{"text_format":"1","workbook":"xlsx","n_sheets":5,"sheets":["Guide d'utilisation","Bilan","Calculateur-Transport","Calculateur-Mati. résiduelles","Références"],"not_rendered":{"charts":2,"images":14,"macros":1,"external_links":0,"defined_names":2,"comments":0,"pivot_tables":0},"unopened":[],"bounds":{"document_bytes":16777216,"sheet_cells":100000,"rows_first":2000,"rows_last":500,"rows_between":2000,"halvings":0,"cell_chars":16384,"cell_head_chars":4096},"cells_cut":0,"cells_raw":0,"read":"whole","date_system":"1900"}

{"sheet":"Guide d'utilisation","index":0,"n_rows":49,"n_cols":2,"rows_kept":49,"cut":false,"hidden":false,"merged":[[48,1,48,8],[6,1,7,8],[11,1,16,8],[19,1,29,8],[32,1,36,8],[39,1,42,8],[44,1,45,8]]}
[]
[]
[]
[]
[]
[]
[null,"Le présent outil vous permet de calculer les gaz à effet de serre (GES) liés au transport et aux matières résiduelles. Ci-dessous, vous découvrirez de quelle façon utiliser les différents onglets."]
[]
[]
[]
[null,"Bilan"]
[null,"L'onglet «Bilan» présente le total des gaz à effet de serre (GES) générés par le volet transport et par le volet matières résiduelles.\nVous trouverez également un tableau récapitulatif présentant, pour chaque mode de transport, lea distance total (en kilomètre), la quantité de GES générés (en kilogramme), le nombre de déplacement, le pourcentage que représente ce nombre de déplacements et le pourcentage des GES générés (en kilogramme)."]
[]
[]
[]
[]
[]
[]
[null,"Calculateur - Transport"]
[null,"L'onglet «Calculateur - Transport» vous permet de calculer les GES liés aux déplacements. \nLes données nécessaires aux calculs  pour le «Calculateur GES - Simple» sont:\n   -le code postal du lieu de l'événement;\n   -le code postal du point de départ des organisateurs/participants/fournisseurs/etc.;\n   -le type de véhicule utilisé pour le déplacement.\n\nLes données nécessaires aux calculs pour le «Calculateur de GES - Multi Modes» sont:\n   -la distance parcourue;\n   -le type de véhicule utilisé pour le déplacement."]
[]
[]
[]
[]
[]
[]
[]
[]
[]
[]
[]
[null,"Calculateur - Matières résiduelles"]
[null,"Le «Calculateur - Matières résiduelles» vous permet de calculer les GES liés aux matières résiduelles produits par votre événement. Les données nécessaires aux calculs sont :\n   -le poids, en kilogramme, des matières organiques générées par l'événement;\n   -le poids, en kilogramme, des matières recyclables générées par l'événement;\n   -le poids, en kilogramme, des déchets générés par l'événement."]
[]
[]
[]
[]
[]
[null,"Références"]
[null,"Les facteurs de conversion sont tirés du calculateur des émissions de GES du  Fonds d’action québécois pour le développement durable, disponible au lien suivant:  www.faqdd.qc.ca/public/Calculateur_GES_FAQDD_version2013.xls"]
[]
[]
[]
[null,"Des questions ?"]
[null,"En cas de question, veuillez communiquer avec FEVE au (819) 238-8297 ou par courriel feve@evenementsverts.com afin d'obtenir une assistance."]
[]
[]
[null,"Version"]
[null,"La première version de cet outil a été publié en janvier 2018."]

{"sheet":"Bilan","index":1,"n_rows":21,"n_cols":15,"rows_kept":21,"cut":false,"hidden":false,"merged":[[7,14,9,14],[18,7,18,9],[19,7,19,9],[7,13,9,13],[7,12,9,12],[7,11,9,11],[7,10,9,10],[14,7,14,9],[7,7,9,9],[15,7,15,9],[16,7,16,9],[17,7,17,9],[6,1,6,4],[7,1,7,4],[8,1,8,4],[9,5,11,5],[13,7,13,9],[12,7,12,9],[11,7,11,9],[10,7,10,9]]}
[]
[]
[]
[]
[]
[]
[null,"Catégorie"]
[null,"Transport",null,null,null,{"$f":"'Calculateur-Transport'!E3","v":0},null,"Mode de transport",null,null,"Distance totale","GES générés","Nombre de déplacements","Pourcentage des déplacements","Pourcentage des GES générés"]
[null,"Matières résiduelles",null,null,null,{"$f":"'Calculateur-Mati. résiduelles'!D9+'Calculateur-Mati. résiduelles'!D10+'Calculateur-Mati. résiduelles'!D11","v":0}]
[null,null,null,null,null,{"$f":"F8+F9","v":0}]
[null,null,null,null,null,null,null,"Piétons / Vélo",null,null,{"$f":"SUMIFS('Calculateur-Transport'!C:C,'Calculateur-Transport'!D:D,Bilan!H11)+SUMIFS('Calculateur-Transport'!S:S,'Calculateur-Transport'!T:T,Bilan!H11)","v":0},{"$f":"SUMIFS('Calculateur-Transport'!E:E,'Calculateur-Transport'!D:D,Bilan!H11)","v":0},{"$f":"COUNTIF('Calculateur-Transport'!$D:$D,Références!B4)+COUNTIF('Calculateur-Transport'!$T:$T,Références!B4)","v":0},{"$f":"IFERROR(M11/SUM(M$11:M$20),0)","v":0},{"$f":"IFERROR(L11/SUM(L$11:L$20),0)","v":0}]
[null,null,null,null,null,null,null,"Voiture solo",null,null,{"$f":"SUMIFS('Calculateur-Transport'!C:C,'Calculateur-Transport'!D:D,Bilan!H12)+SUMIFS('Calculateur-Transport'!S:S,'Calculateur-Transport'!T:T,Bilan!H12)","v":0},{"$f":"SUMIFS('Calculateur-Transport'!E:E,'Calculateur-Transport'!D:D,Bilan!H12)","v":0},{"$f":"COUNTIF('Calculateur-Transport'!$D:$D,Références!B5)+COUNTIF('Calculateur-Transport'!$T:$T,Références!B5)","v":0},0,0]
[null,null,null,null,null,null,null,"Motocyclette",null,null,{"$f":"SUMIFS('Calculateur-Transport'!C:C,'Calculateur-Transport'!D:D,Bilan!H13)+SUMIFS('Calculateur-Transport'!S:S,'Calculateur-Transport'!T:T,Bilan!H13)","v":0},{"$f":"SUMIFS('Calculateur-Transport'!E:E,'Calculateur-Transport'!D:D,Bilan!H13)","v":0},{"$f":"COUNTIF('Calculateur-Transport'!$D:$D,Références!B6)+COUNTIF('Calculateur-Transport'!$T:$T,Références!B6)","v":0},0,0]
[null,null,null,null,null,null,null,"Camion léger solo (VUS, camionnette, minifourgonnete)",null,null,{"$f":"SUMIFS('Calculateur-Transport'!C:C,'Calculateur-Transport'!D:D,Bilan!H14)+SUMIFS('Calculateur-Transport'!S:S,'Calculateur-Transport'!T:T,Bilan!H14)","v":0},{"$f":"SUMIFS('Calculateur-Transport'!E:E,'Calculateur-Transport'!D:D,Bilan!H14)","v":0},{"$f":"COUNTIF('Calculateur-Transport'!$D:$D,Références!B8)+COUNTIF('Calculateur-Transport'!$T:$T,Références!B8)","v":0},0,0]
[null,null,null,null,null,null,null,"Camion lourd",null,null,{"$f":"SUMIFS('Calculateur-Transport'!C:C,'Calculateur-Transport'!D:D,Bilan!H15)+SUMIFS('Calculateur-Transport'!S:S,'Calculateur-Transport'!T:T,Bilan!H15)","v":0},{"$f":"SUMIFS('Calculateur-Transport'!E:E,'Calculateur-Transport'!D:D,Bilan!H15)","v":0},{"$f":"COUNTIF('Calculateur-Transport'!$D:$D,Références!B11)+COUNTIF('Calculateur-Transport'!$T:$T,Références!B11)","v":0},0,0]
[null,null,null,null,null,null,null,"Covoiturage",null,null,{"$f":"SUMIFS('Calculateur-Transport'!C:C,'Calculateur-Transport'!D:D,Bilan!H16)+SUMIFS('Calculateur-Transport'!S:S,'Calculateur-Transport'!T:T,Bilan!H16)","v":0},{"$f":"SUMIFS('Calculateur-Transport'!E:E,'Calculateur-Transport'!D:D,Bilan!H16)","v":0},{"$f":"COUNTIF('Calculateur-Transport'!$D:$D,Références!B7)+COUNTIF('Calculateur-Transport'!$T:$T,Références!B7)","v":0},0,0]
[null,null,null,null,null,null,null,"Transport en commun (autobus)",null,null,{"$f":"SUMIFS('Calculateur-Transport'!C:C,'Calculateur-Transport'!D:D,Bilan!H17)+SUMIFS('Calculateur-Transport'!S:S,'Calculateur-Transport'!T:T,Bilan!H17)","v":0},{"$f":"SUMIFS('Calculateur-Transport'!E:E,'Calculateur-Transport'!D:D,Bilan!H17)","v":0},{"$f":"COUNTIF('Calculateur-Transport'!$D:$D,Références!B9)+COUNTIF('Calculateur-Transport'!$T:$T,Références!B9)","v":0},0,0]
[null,null,null,null,null,null,null,"Autocar interurbain",null,null,{"$f":"SUMIFS('Calculateur-Transport'!C:C,'Calculateur-Transport'!D:D,Bilan!H18)+SUMIFS('Calculateur-Transport'!S:S,'Calculateur-Transport'!T:T,Bilan!H18)","v":0},{"$f":"SUMIFS('Calculateur-Transport'!E:E,'Calculateur-Transport'!D:D,Bilan!H18)","v":0},{"$f":"COUNTIF('Calculateur-Transport'!$D:$D,Références!B10)+COUNTIF('Calculateur-Transport'!$T:$T,Références!B10)","v":0},0,0]
[null,null,null,null,null,null,null,"Train",null,null,{"$f":"SUMIFS('Calculateur-Transport'!C:C,'Calculateur-Transport'!D:D,Bilan!H19)+SUMIFS('Calculateur-Transport'!S:S,'Calculateur-Transport'!T:T,Bilan!H19)","v":0},{"$f":"SUMIFS('Calculateur-Transport'!E:E,'Calculateur-Transport'!D:D,Bilan!H19)","v":0},{"$f":"COUNTIF('Calculateur-Transport'!$D:$D,Références!B12)+COUNTIF('Calculateur-Transport'!$T:$T,Références!B12)","v":0},0,0]
[null,null,null,null,null,null,null,"Avion",null,null,{"$f":"SUMIFS('Calculateur-Transport'!C:C,'Calculateur-Transport'!D:D,Bilan!H20)+SUMIFS('Calculateur-Transport'!S:S,'Calculateur-Transport'!T:T,Bilan!H20)","v":0},{"$f":"SUMIFS('Calculateur-Transport'!E:E,'Calculateur-Transport'!D:D,Bilan!H20)","v":0},{"$f":"COUNTIF('Calculateur-Transport'!$D:$D,Références!B13)+COUNTIF('Calculateur-Transport'!$T:$T,Références!B13)","v":0},0,0]
[null,null,null,null,null,null,null,null,null,"Total",{"$f":"SUM(K11:K20)","v":0},{"$f":"SUM(L11:L20)","v":0},0,0,0]

{"sheet":"Calculateur-Transport","index":2,"n_rows":636,"n_cols":21,"rows_kept":636,"cut":false,"hidden":false,"merged":[[27,7,28,14],[4,1,5,1],[4,3,5,3],[4,4,5,4],[4,2,5,2],[4,20,5,20],[14,7,15,14],[17,7,18,14],[23,7,25,14],[4,17,5,17],[4,16,5,16],[4,18,5,18],[9,7,13,14],[4,19,5,19]]}
[]
[]
[null,"Code postal du lieu de l’événement","J1H5E2",null,{"$f":"SUM(E$7:E$1048576)+SUM(U$7:U$1048576)","v":0}]
[]
[null,"Code postal du\npoint de départ","Distance parcourue","Mode de transport","Émission de CO2 équivalent (kg) ",null,null,null,null,null,null,null,null,null,null,null,"Point de départ","Point d'arrivée","Distance parcourue","Mode de transport","Émission de CO2 équivalent (kg) "]
[]
[null,null,null,null,null,null,null,"Instructions :",null,null,null,null,null,null,null,null,null,null,null,null,{"$f":"(IF(T7=Références!$B$5,Références!$D$5)+IF(T7=Références!$B$6,Références!$D$6)+IF(T7=Références!$B$7,Références!$D$7)+IF(T7=Références!$B$8,Références!$D$8)+IF(T7=Références!$B$9,Références!$D$9)+IF(T7=Références!$B$10,Références!$D$10)+IF(T7=Références!$B$11,Références!$D$11)+IF(T7=Références!$B$12,Références!$D$12)+IF(T7=Références!$B$13,IF(S7>=1600,Références!$D$16,IF('Calculateur-Transport'!S7>=500,Références!$D$15,IF('Calculateur-Transport'!S7<=499,Références!$D$14)))))*S7","v":0}]
[null,null,null,null,null,null,null,"1. Inscrivez le code postal du lieu de l’événement.",null,null,null,null,null,null,null,null,null,null,null,null,{"$f":"(IF(T8=Références!$B$5,Références!$D$5)+IF(T8=Références!$B$6,Références!$D$6)+IF(T8=Références!$B$7,Références!$D$7)+IF(T8=Références!$B$8,Références!$D$8)+IF(T8=Références!$B$9,Références!$D$9)+IF(T8=Références!$B$10,Références!$D$10)+IF(T8=Références!$B$11,Références!$D$11)+IF(T8=Références!$B$12,Références!$D$12)+IF(T8=Références!$B$13,IF(S8>=1600,Références!$D$16,IF('Calculateur-Transport'!S8>=500,Références!$D$15,IF('Calculateur-Transport'!S8<=499,Références!$D$14)))))*S8","v":0}]
[null,null,null,null,null,null,null,"2. Dans le tableau, pour chaque ligne, inscrivez le code postal du lieu de départ de la personne.",null,null,null,null,null,null,null,null,null,null,null,null,{"$f":"(IF(T9=Références!$B$5,Références!$D$5)+IF(T9=Références!$B$6,Références!$D$6)+IF(T9=Références!$B$7,Références!$D$7)+IF(T9=Références!$B$8,Références!$D$8)+IF(T9=Références!$B$9,Références!$D$9)+IF(T9=Références!$B$10,Références!$D$10)+IF(T9=Références!$B$11,Références!$D$11)+IF(T9=Références!$B$12,Références!$D$12)+IF(T9=Références!$B$13,IF(S9>=1600,Références!$D$16,IF('Calculateur-Transport'!S9>=500,Références!$D$15,IF('Calculateur-Transport'!S9<=499,Références!$D$14)))))*S9","v":0}]
[null,null,null,null,null,null,null,"3. Sélectionnez ensuite le mode de transport de la personne. \nSi la personne a utilisé plusieurs modes de transport (par exemple: l'avion de Paris à Montréal et l'autocar de Montréal à Sherbrooke), vous devez compiler ces données dans le tableau «Calculateur GES - Multi Modes» situé à droite. Séparez chaque section de trajet et indiquez manuellement la distance parcourue.",null,null,null,null,null,null,null,null,null,null,null,null,{"$f":"(IF(T10=Références!$B$5,Références!$D$5)+IF(T10=Références!$B$6,Références!$D$6)+IF(T10=Références!$B$7,Références!$D$7)+IF(T10=Références!$B$8,Références!$D$8)+IF(T10=Références!$B$9,Références!$D$9)+IF(T10=Références!$B$10,Références!$D$10)+IF(T10=Références!$B$11,Références!$D$11)+IF(T10=Références!$B$12,Références!$D$12)+IF(T10=Références!$B$13,IF(S10>=1600,Références!$D$16,IF('Calculateur-Transport'!S10>=500,Références!$D$15,IF('Calculateur-Transport'!S10<=499,Références!$D$14)))))*S10","v":0}]
[null,null,null,null,null,null,null,null,null,null,null,null,null,null,null,null,null,null,null,null,{"$f":"(IF(T11=Références!$B$5,Références!$D$5)+IF(T11=Références!$B$6,Références!$D$6)+IF(T11=Références!$B$7,Références!$D$7)+IF(T11=Références!$B$8,Références!$D$8)+IF(T11=Références!$B$9,Références!$D$9)+IF(T11=Références!$B$10,Références!$D$10)+IF(T11=Références!$B$11,Références!$D$11)+IF(T11=Références!$B$12,Références!$D$12)+IF(T11=Références!$B$13,IF(S11>=1600,Références!$D$16,IF('Calculateur-Transport'!S11>=500,Références!$D$15,IF('Calculateur-Transport'!S11<=499,Références!$D$14)))))*S11","v":0}]
[null,null,null,null,null,null,null,null,null,null,null,null,null,null,null,null,null,null,null,null,{"$f":"(IF(T12=Références!$B$5,Références!$D$5)+IF(T12=Références!$B$6,Références!$D$6)+IF(T12=Références!$B$7,Références!$D$7)+IF(T12=Références!$B$8,Références!$D$8)+IF(T12=Références!$B$9,Références!$D$9)+IF(T12=Références!$B$10,Références!$D$10)+IF(T12=Références!$B$11,Références!$D$11)+IF(T12=Références!$B$12,Références!$D$12)+IF(T12=Références!$B$13,IF(S12>=1600,Références!$D$16,IF('Calculateur-Transport'!S12>=500,Références!$D$15,IF('Calculateur-Transport'!S12<=499,Références!$D$14)))))*S12","v":0}]
[null,null,null,null,null,null,null,null,null,null,null,null,null,null,null,null,null,null,null,null,{"$f":"(IF(T13=Références!$B$5,Références!$D$5)+IF(T13=Références!$B$6,Références!$D$6)+IF(T13=Références!$B$7,Références!$D$7)+IF(T13=Références!$B$8,Références!$D$8)+IF(T13=Références!$B$9,Références!$D$9)+IF(T13=Références!$B$10,Références!$D$10)+IF(T13=Références!$B$11,Références!$D$11)+IF(T13=Références!$B$12,Références!$D$12)+IF(T13=Références!$B$13,IF(S13>=1600,Références!$D$16,IF('Calculateur-Transport'!S13>=500,Références!$D$15,IF('Calculateur-Transport'!S13<=499,Références!$D$14)))))*S13","v":0}]
[null,null,null,null,null,null,null,null,null,null,null,null,null,null,null,null,null,null,null,null,{"$f":"(IF(T14=Références!$B$5,Références!$D$5)+IF(T14=Références!$B$6,Références!$D$6)+IF(T14=Références!$B$7,Références!$D$7)+IF(T14=Références!$B$8,Références!$D$8)+IF(T14=Références!$B$9,Références!$D$9)+IF(T14=Références!$B$10,Références!$D$10)+IF(T14=Références!$B$11,Références!$D$11)+IF(T14=Références!$B$12,Références!$D$12)+IF(T14=Références!$B$13,IF(S14>=1600,Références!$D$16,IF('Calculateur-Transport'!S14>=500,Références!$D$15,IF('Calculateur-Transport'!S14<=499,Références!$D$14)))))*S14","v":0}]
[null,null,null,null,null,null,null,"4. Lorsque toutes les données ont été inscrites, appuyez sur le bouton « Calculer ». Le total des émissions (en kg de CO2 équivalents) apparaît dans le rectangle au contour bleu.",null,null,null,null,null,null,null,null,null,null,null,null,{"$f":"(IF(T15=Références!$B$5,Références!$D$5)+IF(T15=Références!$B$6,Références!$D$6)+IF(T15=Références!$B$7,Références!$D$7)+IF(T15=Références!$B$8,Références!$D$8)+IF(T15=Références!$B$9,Références!$D$9)+IF(T15=Références!$B$10,Références!$D$10)+IF(T15=Références!$B$11,Références!$D$11)+IF(T15=Références!$B$12,Références!$D$12)+IF(T15=Références!$B$13,IF(S15>=1600,Références!$D$16,IF('Calculateur-Transport'!S15>=500,Références!$D$15,IF('Calculateur-Transport'!S15<=499,Références!$D$14)))))*S15","v":0}]
[null,null,null,null,null,null,null,null,null,null,null,null,null,null,null,null,null,null,null,null,{"$f":"(IF(T16=Références!$B$5,Références!$D$5)+IF(T16=Références!$B$6,Références!$D$6)+IF(T16=Références!$B$7,Références!$D$7)+IF(T16=Références!$B$8,Références!$D$8)+IF(T16=Références!$B$9,Références!$D$9)+IF(T16=Références!$B$10,Références!$D$10)+IF(T16=Références!$B$11,Références!$D$11)+IF(T16=Références!$B$12,Références!$D$12)+IF(T16=Références!$B$13,IF(S16>=1600,Références!$D$16,IF('Calculateur-Transport'!S16>=500,Références!$D$15,IF('Calculateur-Transport'!S16<=499,Références!$D$14)))))*S16","v":0}]
[null,null,null,null,null,null,null,null,null,null,null,null,null,null,null,null,null,null,null,null,{"$f":"(IF(T17=Références!$B$5,Références!$D$5)+IF(T17=Références!$B$6,Références!$D$6)+IF(T17=Références!$B$7,Références!$D$7)+IF(T17=Références!$B$8,Références!$D$8)+IF(T17=Références!$B$9,Références!$D$9)+IF(T17=Références!$B$10,Références!$D$10)+IF(T17=Références!$B$11,Références!$D$11)+IF(T17=Références!$B$12,Références!$D$12)+IF(T17=Références!$B$13,IF(S17>=1600,Références!$D$16,IF('Calculateur-Transport'!S17>=500,Références!$D$15,IF('Calculateur-Transport'!S17<=499,Références!$D$14)))))*S17","v":0}]
[null,null,null,null,null,null,null,"Attention! Si plus de une personne étaient présentes dans le même véhicule, sélectionnez le mode de transport «Covoiturage», peu importe le type de véhicule.",null,null,null,null,null,null,null,null,null,null,null,null,{"$f":"(IF(T18=Références!$B$5,Références!$D$5)+IF(T18=Références!$B$6,Références!$D$6)+IF(T18=Références!$B$7,Références!$D$7)+IF(T18=Références!$B$8,Références!$D$8)+IF(T18=Références!$B$9,Références!$D$9)+IF(T18=Références!$B$10,Références!$D$10)+IF(T18=Références!$B$11,Références!$D$11)+IF(T18=Références!$B$12,Références!$D$12)+IF(T18=Références!$B$13,IF(S18>=1600,Références!$D$16,IF('Calculateur-Transport'!S18>=500,Références!$D$15,IF('Calculateur-Transport'!S18<=499,Références!$D$14)))))*S18","v":0}]
[null,null,null,null,null,null,null,null,null,null,null,null,null,null,null,null,null,null,null,null,{"$f":"(IF(T19=Références!$B$5,Références!$D$5)+IF(T19=Références!$B$6,Références!$D$6)+IF(T19=Références!$B$7,Références!$D$7)+IF(T19=Références!$B$8,Références!$D$8)+IF(T19=Références!$B$9,Références!$D$9)+IF(T19=Références!$B$10,Références!$D$10)+IF(T19=Références!$B$11,Références!$D$11)+IF(T19=Références!$B$12,Références!$D$12)+IF(T19=Références!$B$13,IF(S19>=1600,Références!$D$16,IF('Calculateur-Transport'!S19>=500,Références!$D$15,IF('Calculateur-Transport'!S19<=499,Références!$D$14)))))*S19","v":0}]
[null,null,null,null,null,null,null,null,null,null,null,null,null,null,null,null,null,null,null,null,{"$f":"(IF(T20=Références!$B$5,Références!$D$5)+IF(T20=Références!$B$6,Références!$D$6)+IF(T20=Références!$B$7,Références!$D$7)+IF(T20=Références!$B$8,Références!$D$8)+IF(T20=Références!$B$9,Références!$D$9)+IF(T20=Références!$B$10,Références!$D$10)+IF(T20=Références!$B$11,Références!$D$11)+IF(T20=Références!$B$12,Références!$D$12)+IF(T20=Références!$B$13,IF(S20>=1600,Références!$D$16,IF('Calculateur-Transport'!S20>=500,Références!$D$15,IF('Calculateur-Transport'!S20<=499,Références!$D$14)))))*S20","v":0}]
[null,null,null,null,null,null,null,null,null,null,null,null,null,null,null,null,null,null,null,null,{"$f":"(IF(T21=Références!$B$5,Références!$D$5)+IF(T21=Références!$B$6,Références!$D$6)+IF(T21=Références!$B$7,Références!$D$7)+IF(T21=Références!$B$8,Références!$D$8)+IF(T21=Références!$B$9,Références!$D$9)+IF(T21=Références!$B$10,Références!$D$10)+IF(T21=Références!$B$11,Références!$D$11)+IF(T21=Références!$B$12,Références!$D$12)+IF(T21=Références!$B$13,IF(S21>=1600,Références!$D$16,IF('Calculateur-Transport'!S21>=500,Références!$D$15,IF('Calculateur-Transport'!S21<=499,Références!$D$14)))))*S21","v":0}]
[null,null,null,null,null,null,null,"Attention ! Pour utiliser le bouton « Calculer », vous devez être connecté à internet.",null,null,null,null,null,null,null,null,null,null,null,null,{"$f":"(IF(T22=Références!$B$5,Références!$D$5)+IF(T22=Références!$B$6,Références!$D$6)+IF(T22=Références!$B$7,Références!$D$7)+IF(T22=Références!$B$8,Références!$D$8)+IF(T22=Références!$B$9,Références!$D$9)+IF(T22=Références!$B$10,Références!$D$10)+IF(T22=Références!$B$11,Références!$D$11)+IF(T22=Références!$B$12,Références!$D$12)+IF(T22=Références!$B$13,IF(S22>=1600,Références!$D$16,IF('Calculateur-Transport'!S22>=500,Références!$D$15,IF('Calculateur-Transport'!S22<=499,Références!$D$14)))))*S22","v":0}]
[null,null,null,null,null,null,null,null,null,null,null,null,null,null,null,null,null,null,null,null,{"$f":"(IF(T23=Références!$B$5,Références!$D$5)+IF(T23=Références!$B$6,Références!$D$6)+IF(T23=Références!$B$7,Références!$D$7)+IF(T23=Références!$B$8,Références!$D$8)+IF(T23=Références!$B$9,Références!$D$9)+IF(T23=Références!$B$10,Références!$D$10)+IF(T23=Références!$B$11,Références!$D$11)+IF(T23=Références!$B$12,Références!$D$12)+IF(T23=Références!$B$13,IF(S23>=1600,Références!$D$16,IF('Calculateur-Transport'!S23>=500,Références!$D$15,IF('Calculateur-Transport'!S23<=499,Références!$D$14)))))*S23","v":0}]
[null,null,null,null,null,null,null,"Attention ! Lorsqu’une cellule est rouge et que sa valeur est égale à 99999, il s’agit d’une erreur. Assurez-vous que les informations inscrites sont complètes.",null,null,null,null,null,null,null,null,null,null,null,null,{"$f":"(IF(T24=Références!$B$5,Références!$D$5)+IF(T24=Références!$B$6,Références!$D$6)+IF(T24=Références!$B$7,Références!$D$7)+IF(T24=Références!$B$8,Références!$D$8)+IF(T24=Références!$B$9,Références!$D$9)+IF(T24=Références!$B$10,Références!$D$10)+IF(T24=Références!$B$11,Références!$D$11)+IF(T24=Références!$B$12,Références!$D$12)+IF(T24=Références!$B$13,IF(S24>=1600,Références!$D$16,IF('Calculateur-Transport'!S24>=500,Références!$D$15,IF('Calculateur-Transport'!S24<=499,Références!$D$14)))))*S24","v":0}]
[null,null,null,null,null,null,null,null,null,null,null,null,null,null,null,null,null,null,null,null,{"$f":"(IF(T25=Références!$B$5,Références!$D$5)+IF(T25=Références!$B$6,Références!$D$6)+IF(T25=Références!$B$7,Références!$D$7)+IF(T25=Références!$B$8,Références!$D$8)+IF(T25=Références!$B$9,Références!$D$9)+IF(T25=Références!$B$10,Références!$D$10)+IF(T25=Références!$B$11,Références!$D$11)+IF(T25=Références!$B$12,Références!$D$12)+IF(T25=Références!$B$13,IF(S25>=1600,Références!$D$16,IF('Calculateur-Transport'!S25>=500,Références!$D$15,IF('Calculateur-Transport'!S25<=499,Références!$D$14)))))*S25","v":0}]
[null,null,null,null,null,null,null,null,null,null,null,null,null,null,null,null,null,null,null,null,{"$f":"(IF(T26=Références!$B$5,Références!$D$5)+IF(T26=Références!$B$6,Références!$D$6)+IF(T26=Références!$B$7,Références!$D$7)+IF(T26=Références!$B$8,Références!$D$8)+IF(T26=Références!$B$9,Références!$D$9)+IF(T26=Références!$B$10,Références!$D$10)+IF(T26=Références!$B$11,Références!$D$11)+IF(T26=Références!$B$12,Références!$D$12)+IF(T26=Références!$B$13,IF(S26>=1600,Références!$D$16,IF('Calculateur-Transport'!S26>=500,Références!$D$15,IF('Calculateur-Transport'!S26<=499,Références!$D$14)))))*S26","v":0}]
[null,null,null,null,null,null,null,null,null,null,null,null,null,null,null,null,null,null,null,null,{"$f":"(IF(T27=Références!$B$5,Références!$D$5)+IF(T27=Références!$B$6,Références!$D$6)+IF(T27=Références!$B$7,Références!$D$7)+IF(T27=Références!$B$8,Références!$D$8)+IF(T27=Références!$B$9,Références!$D$9)+IF(T27=Références!$B$10,Références!$D$10)+IF(T27=Références!$B$11,Références!$D$11)+IF(T27=Références!$B$12,Références!$D$12)+IF(T27=Références!$B$13,IF(S27>=1600,Références!$D$16,IF('Calculateur-Transport'!S27>=500,Références!$D$15,IF('Calculateur-Transport'!S27<=499,Références!$D$14)))))*S27","v":0}]
[null,null,null,null,null,null,null,"Attention ! Ne comptabiliser pas les émissions en double, mais tenez compte des trajets avant, pendant et après l'événement.",null,null,null,null,null,null,null,null,null,null,null,null,{"$f":"(IF(T28=Références!$B$5,Références!$D$5)+IF(T28=Références!$B$6,Références!$D$6)+IF(T28=Références!$B$7,Références!$D$7)+IF(T28=Références!$B$8,Références!$D$8)+IF(T28=Références!$B$9,Références!$D$9)+IF(T28=Références!$B$10,Références!$D$10)+IF(T28=Références!$B$11,Références!$D$11)+IF(T28=Références!$B$12,Références!$D$12)+IF(T28=Références!$B$13,IF(S28>=1600,Références!$D$16,IF('Calculateur-Transport'!S28>=500,Références!$D$15,IF('Calculateur-Transport'!S28<=499,Références!$D$14)))))*S28","v":0}]
[null,null,null,null,null,null,null,null,null,null,null,null,null,null,null,null,null,null,null,null,{"$f":"(IF(T29=Références!$B$5,Références!$D$5)+IF(T29=Références!$B$6,Références!$D$6)+IF(T29=Références!$B$7,Références!$D$7)+IF(T29=Références!$B$8,Références!$D$8)+IF(T29=Références!$B$9,Références!$D$9)+IF(T29=Références!$B$10,Références!$D$10)+IF(T29=Références!$B$11,Références!$D$11)+IF(T29=Références!$B$12,Références!$D$12)+IF(T29=Références!$B$13,IF(S29>=1600,Références!$D$16,IF('Calculateur-Transport'!S29>=500,Références!$D$15,IF('Calculateur-Transport'!S29<=499,Références!$D$14)))))*S29","v":0}]
[null,null,null,null,null,null,null,null,null,null,null,null,null,null,null,null,null,null,null,null,{"$f":"(IF(T30=Références!$B$5,Références!$D$5)+IF(T30=Références!$B$6,Références!$D$6)+IF(T30=Références!$B$7,Références!$D$7)+IF(T30=Références!$B$8,Références!$D$8)+IF(T30=Références!$B$9,Références!$D$9)+IF(T30=Références!$B$10,Références!$D$10)+IF(T30=Références!$B$11,Références!$D$11)+IF(T30=Références!$B$12,Références!$D$12)+IF(T30=Références!$B$13,IF(S30>=1600,Références!$D$16,IF('Calculateur-Transport'!S30>=500,Références!$D$15,IF('Calculateur-Transport'!S30<=499,Références!$D$14)))))*S30","v":0}]
[null,null,null,null,null,null,null,null,null,null,null,null,null,null,null,null,null,null,null,null,{"$f":"(IF(T31=Références!$B$5,Références!$D$5)+IF(T31=Références!$B$6,Références!$D$6)+IF(T31=Références!$B$7,Références!$D$7)+IF(T31=Références!$B$8,Références!$D$8)+IF(T31=Références!$B$9,Références!$D$9)+IF(T31=Références!$B$10,Références!$D$10)+IF(T31=Références!$B$11,Références!$D$11)+IF(T31=Références!$B$12,Références!$D$12)+IF(T31=Références!$B$13,IF(S31>=1600,Références!$D$16,IF('Calculateur-Transport'!S31>=500,Références!$D$15,IF('Calculateur-Transport'!S31<=499,Références!$D$14)))))*S31","v":0}]
[null,null,null,null,null,null,null,null,null,null,null,null,null,null,null,null,null,null,null,null,{"$f":"(IF(T32=Références!$B$5,Références!$D$5)+IF(T32=Références!$B$6,Références!$D$6)+IF(T32=Références!$B$7,Références!$D$7)+IF(T32=Références!$B$8,Références!$D$8)+IF(T32=Références!$B$9,Références!$D$9)+IF(T32=Références!$B$10,Références!$D$10)+IF(T32=Références!$B$11,Références!$D$11)+IF(T32=Références!$B$12,Références!$D$12)+IF(T32=Références!$B$13,IF(S32>=1600,Références!$D$16,IF('Calculateur-Transport'!S32>=500,Références!$D$15,IF('Calculateur-Transport'!S32<=499,Références!$D$14)))))*S32","v":0}]
[null,null,null,null,null,null,null,null,null,null,null,null,null,null,null,null,null,null,null,null,{"$f":"(IF(T33=Références!$B$5,Références!$D$5)+IF(T33=Références!$B$6,Références!$D$6)+IF(T33=Références!$B$7,Références!$D$7)+IF(T33=Références!$B$8,Références!$D$8)+IF(T33=Références!$B$9,Références!$D$9)+IF(T33=Références!$B$10,Références!$D$10)+IF(T33=Références!$B$11,Références!$D$11)+IF(T33=Références!$B$12,Références!$D$12)+IF(T33=Références!$B$13,IF(S33>=1600,Références!$D$16,IF('Calculateur-Transport'!S33>=500,Références!$D$15,IF('Calculateur-Transport'!S33<=499,Références!$D$14)))))*S33","v":0}]
[null,null,null,null,null,null,null,null,null,null,null,null,null,null,null,null,null,null,null,null,{"$f":"(IF(T34=Références!$B$5,Références!$D$5)+IF(T34=Références!$B$6,Références!$D$6)+IF(T34=Références!$B$7,Références!$D$7)+IF(T34=Références!$B$8,Références!$D$8)+IF(T34=Références!$B$9,Références!$D$9)+IF(T34=Références!$B$10,Références!$D$10)+IF(T34=Références!$B$11,Références!$D$11)+IF(T34=Références!$B$12,Références!$D$12)+IF(T34=Références!$B$13,IF(S34>=1600,Références!$D$16,IF('Calculateur-Transport'!S34>=500,Références!$D$15,IF('Calculateur-Transport'!S34<=499,Références!$D$14)))))*S34","v":0}]
[null,null,null,null,null,null,null,null,null,null,null,null,null,null,null,null,null,null,null,null,{"$f":"(IF(T35=Références!$B$5,Références!$D$5)+IF(T35=Références!$B$6,Références!$D$6)+IF(T35=Références!$B$7,Références!$D$7)+IF(T35=Références!$B$8,Références!$D$8)+IF(T35=Références!$B$9,Références!$D$9)+IF(T35=Références!$B$10,Références!$D$10)+IF(T35=Références!$B$11,Références!$D$11)+IF(T35=Références!$B$12,Références!$D$12)+IF(T35=Références!$B$13,IF(S35>=1600,Références!$D$16,IF('Calculateur-Transport'!S35>=500,Références!$D$15,IF('Calculateur-Transport'!S35<=499,Références!$D$14)))))*S35","v":0}]
[null,null,null,null,null,null,null,null,null,null,null,null,null,null,null,null,null,null,null,null,{"$f":"(IF(T36=Références!$B$5,Références!$D$5)+IF(T36=Références!$B$6,Références!$D$6)+IF(T36=Références!$B$7,Références!$D$7)+IF(T36=Références!$B$8,Références!$D$8)+IF(T36=Références!$B$9,Références!$D$9)+IF(T36=Références!$B$10,Références!$D$10)+IF(T36=Références!$B$11,Références!$D$11)+IF(T36=Références!$B$12,Références!$D$12)+IF(T36=Références!$B$13,IF(S36>=1600,Références!$D$16,IF('Calculateur-Transport'!S36>=500,Références!$D$15,IF('Calculateur-Transport'!S36<=499,Références!$D$14)))))*S36","v":0}]
[null,null,null,null,null,null,null,null,null,null,null,null,null,null,null,null,null,null,null,null,{"$f":"(IF(T37=Références!$B$5,Références!$D$5)+IF(T37=Références!$B$6,Références!$D$6)+IF(T37=Références!$B$7,Références!$D$7)+IF(T37=Références!$B$8,Références!$D$8)+IF(T37=Références!$B$9,Références!$D$9)+IF(T37=Références!$B$10,Références!$D$10)+IF(T37=Références!$B$11,Références!$D$11)+IF(T37=Références!$B$12,Références!$D$12)+IF(T37=Références!$B$13,IF(S37>=1600,Références!$D$16,IF('Calculateur-Transport'!S37>=500,Références!$D$15,IF('Calculateur-Transport'!S37<=499,Références!$D$14)))))*S37","v":0}]
[null,null,null,null,null,null,null,null,null,null,null,null,null,null,null,null,null,null,null,null,{"$f":"(IF(T38=Références!$B$5,Références!$D$5)+IF(T38=Références!$B$6,Références!$D$6)+IF(T38=Références!$B$7,Références!$D$7)+IF(T38=Références!$B$8,Références!$D$8)+IF(T38=Références!$B$9,Références!$D$9)+IF(T38=Références!$B$10,Références!$D$10)+IF(T38=Références!$B$11,Références!$D$11)+IF(T38=Références!$B$12,Références!$D$12)+IF(T38=Références!$B$13,IF(S38>=1600,Références!$D$16,IF('Calculateur-Transport'!S38>=500,Références!$D$15,IF('Calculateur-Transport'!S38<=499,Références!$D$14)))))*S38","v":0}]
[null,null,null,null,null,null,null,null,null,null,null,null,null,null,null,null,null,null,null,null,{"$f":"(IF(T39=Références!$B$5,Références!$D$5)+IF(T39=Références!$B$6,Références!$D$6)+IF(T39=Références!$B$7,Références!$D$7)+IF(T39=Références!$B$8,Références!$D$8)+IF(T39=Références!$B$9,Références!$D$9)+IF(T39=Références!$B$10,Références!$D$10)+IF(T39=Références!$B$11,Références!$D$11)+IF(T39=Références!$B$12,Références!$D$12)+IF(T39=Références!$B$13,IF(S39>=1600,Références!$D$16,IF('Calculateur-Transport'!S39>=500,Références!$D$15,IF('Calculateur-Transport'!S39<=499,Références!$D$14)))))*S39","v":0}]
[null,null,null,null,null,null,null,null,null,null,null,null,null,null,null,null,null,null,null,null,{"$f":"(IF(T40=Références!$B$5,Références!$D$5)+IF(T40=Références!$B$6,Références!$D$6)+IF(T40=Références!$B$7,Références!$D$7)+IF(T40=Références!$B$8,Références!$D$8)+IF(T40=Références!$B$9,Références!$D$9)+IF(T40=Références!$B$10,Références!$D$10)+IF(T40=Références!$B$11,Références!$D$11)+IF(T40=Références!$B$12,Références!$D$12)+IF(T40=Références!$B$13,IF(S40>=1600,Références!$D$16,IF('Calculateur-Transport'!S40>=500,Références!$D$15,IF('Calculateur-Transport'!S40<=499,Références!$D$14)))))*S40","v":0}]
[null,null,null,null,null,null,null,null,null,null,null,null,null,null,null,null,null,null,null,null,{"$f":"(IF(T41=Références!$B$5,Références!$D$5)+IF(T41=Références!$B$6,Références!$D$6)+IF(T41=Références!$B$7,Références!$D$7)+IF(T41=Références!$B$8,Références!$D$8)+IF(T41=Références!$B$9,Références!$D$9)+IF(T41=Références!$B$10,Références!$D$10)+IF(T41=Références!$B$11,Références!$D$11)+IF(T41=Références!$B$12,Références!$D$12)+IF(T41=Références!$B$13,IF(S41>=1600,Références!$D$16,IF('Calculateur-Transport'!S41>=500,Références!$D$15,IF('Calculateur-Transport'!S41<=499,Références!$D$14)))))*S41","v":0}]
[null,null,null,null,null,null,null,null,null,null,null,null,null,null,null,null,null,null,null,null,{"$f":"(IF(T42=Références!$B$5,Références!$D$5)+IF(T42=Références!$B$6,Références!$D$6)+IF(T42=Références!$B$7,Références!$D$7)+IF(T42=Références!$B$8,Références!$D$8)+IF(T42=Références!$B$9,Références!$D$9)+IF(T42=Références!$B$10,Références!$D$10)+IF(T42=Références!$B$11,Références!$D$11)+IF(T42=Références!$B$12,Références!$D$12)+IF(T42=Références!$B$13,IF(S42>=1600,Références!$D$16,IF('Calculateur-Transport'!S42>=500,Références!$D$15,IF('Calculateur-Transport'!S42<=499,Références!$D$14)))))*S42","v":0}]
[null,null,null,null,null,null,null,null,null,null,null,null,null,null,null,null,null,null,null,null,{"$f":"(IF(T43=Références!$B$5,Références!$D$5)+IF(T43=Références!$B$6,Références!$D$6)+IF(T43=Références!$B$7,Références!$D$7)+IF(T43=Références!$B$8,Références!$D$8)+IF(T43=Références!$B$9,Références!$D$9)+IF(T43=Références!$B$10,Références!$D$10)+IF(T43=Références!$B$11,Références!$D$11)+IF(T43=Références!$B$12,Références!$D$12)+IF(T43=Références!$B$13,IF(S43>=1600,Références!$D$16,IF('Calculateur-Transport'!S43>=500,Références!$D$15,IF('Calculateur-Transport'!S43<=499,Références!$D$14)))))*S43","v":0}]
[null,null,null,null,null,null,null,null,null,null,null,null,null,null,null,null,null,null,null,null,{"$f":"(IF(T44=Références!$B$5,Références!$D$5)+IF(T44=Références!$B$6,Références!$D$6)+IF(T44=Références!$B$7,Références!$D$7)+IF(T44=Références!$B$8,Références!$D$8)+IF(T44=Références!$B$9,Références!$D$9)+IF(T44=Références!$B$10,Références!$D$10)+IF(T44=Références!$B$11,Références!$D$11)+IF(T44=Références!$B$12,Références!$D$12)+IF(T44=Références!$B$13,IF(S44>=1600,Références!$D$16,IF('Calculateur-Transport'!S44>=500,Références!$D$15,IF('Calculateur-Transport'!S44<=499,Références!$D$14)))))*S44","v":0}]
[null,null,null,null,null,null,null,null,null,null,null,null,null,null,null,null,null,null,null,null,{"$f":"(IF(T45=Références!$B$5,Références!$D$5)+IF(T45=Références!$B$6,Références!$D$6)+IF(T45=Références!$B$7,Références!$D$7)+IF(T45=Références!$B$8,Références!$D$8)+IF(T45=Références!$B$9,Références!$D$9)+IF(T45=Références!$B$10,Références!$D$10)+IF(T45=Références!$B$11,Références!$D$11)+IF(T45=Références!$B$12,Références!$D$12)+IF(T45=Références!$B$13,IF(S45>=1600,Références!$D$16,IF('Calculateur-Transport'!S45>=500,Références!$D$15,IF('Calculateur-Transport'!S45<=499,Références!$D$14)))))*S45","v":0}]
[null,null,null,null,null,null,null,null,null,null,null,null,null,null,null,null,null,null,null,null,{"$f":"(IF(T46=Références!$B$5,Références!$D$5)+IF(T46=Références!$B$6,Références!$D$6)+IF(T46=Références!$B$7,Références!$D$7)+IF(T46=Références!$B$8,Références!$D$8)+IF(T46=Références!$B$9,Références!$D$9)+IF(T46=Références!$B$10,Références!$D$10)+IF(T46=Références!$B$11,Références!$D$11)+IF(T46=Références!$B$12,Références!$D$12)+IF(T46=Références!$B$13,IF(S46>=1600,Références!$D$16,IF('Calculateur-Transport'!S46>=500,Références!$D$15,IF('Calculateur-Transport'!S46<=499,Références!$D$14)))))*S46","v":0}]
[null,null,null,null,null,null,null,null,null,null,null,null,null,null,null,null,null,null,null,null,{"$f":"(IF(T47=Références!$B$5,Références!$D$5)+IF(T47=Références!$B$6,Références!$D$6)+IF(T47=Références!$B$7,Références!$D$7)+IF(T47=Références!$B$8,Références!$D$8)+IF(T47=Références!$B$9,Références!$D$9)+IF(T47=Références!$B$10,Références!$D$10)+IF(T47=Références!$B$11,Références!$D$11)+IF(T47=Références!$B$12,Références!$D$12)+IF(T47=Références!$B$13,IF(S47>=1600,Références!$D$16,IF('Calculateur-Transport'!S47>=500,Références!$D$15,IF('Calculateur-Transport'!S47<=499,Références!$D$14)))))*S47","v":0}]
[null,null,null,null,null,null,null,null,null,null,null,null,null,null,null,null,null,null,null,null,{"$f":"(IF(T48=Références!$B$5,Références!$D$5)+IF(T48=Références!$B$6,Références!$D$6)+IF(T48=Références!$B$7,Références!$D$7)+IF(T48=Références!$B$8,Références!$D$8)+IF(T48=Références!$B$9,Références!$D$9)+IF(T48=Références!$B$10,Références!$D$10)+IF(T48=Références!$B$11,Références!$D$11)+IF(T48=Références!$B$12,Références!$D$12)+IF(T48=Références!$B$13,IF(S48>=1600,Références!$D$16,IF('Calculateur-Transport'!S48>=500,Références!$D$15,IF('Calculateur-Transport'!S48<=499,Références!$D$14)))))*S48","v":0}]
[null,null,null,null,null,null,null,null,null,null,null,null,null,null,null,null,null,null,null,null,{"$f":"(IF(T49=Références!$B$5,Références!$D$5)+IF(T49=Références!$B$6,Références!$D$6)+IF(T49=Références!$B$7,Références!$D$7)+IF(T49=Références!$B$8,Références!$D$8)+IF(T49=Références!$B$9,Références!$D$9)+IF(T49=Références!$B$10,Références!$D$10)+IF(T49=Références!$B$11,Références!$D$11)+IF(T49=Références!$B$12,Références!$D$12)+IF(T49=Références!$B$13,IF(S49>=1600,Références!$D$16,IF('Calculateur-Transport'!S49>=500,Références!$D$15,IF('Calculateur-Transport'!S49<=499,Références!$D$14)))))*S49","v":0}]
[null,null,null,null,null,null,null,null,null,null,null,null,null,null,null,null,null,null,null,null,{"$f":"(IF(T50=Références!$B$5,Références!$D$5)+IF(T50=Références!$B$6,Références!$D$6)+IF(T50=Références!$B$7,Références!$D$7)+IF(T50=Références!$B$8,Références!$D$8)+IF(T50=Références!$B$9,Références!$D$9)+IF(T50=Références!$B$10,Références!$D$10)+IF(T50=Références!$B$11,Références!$D$11)+IF(T50=Références!$B$12,Références!$D$12)+IF(T50=Références!$B$13,IF(S50>=1600,Références!$D$16,IF('Calculateur-Transport'!S50>=500,Références!$D$15,IF('Calculateur-Transport'!S50<=499,Références!$D$14)))))*S50","v":0}]
[null,null,null,null,null,null,null,null,null,null,null,null,null,null,null,null,null,null,null,null,{"$f":"(IF(T51=Références!$B$5,Références!$D$5)+IF(T51=Références!$B$6,Références!$D$6)+IF(T51=Références!$B$7,Références!$D$7)+IF(T51=Références!$B$8,Références!$D$8)+IF(T51=Références!$B$9,Références!$D$9)+IF(T51=Références!$B$10,Références!$D$10)+IF(T51=Références!$B$11,Références!$D$11)+IF(T51=Références!$B$12,Références!$D$12)+IF(T51=Références!$B$13,IF(S51>=1600,Références!$D$16,IF('Calculateur-Transport'!S51>=500,Références!$D$15,IF('Calculateur-Transport'!S51<=499,Références!$D$14)))))*S51","v":0}]
[null,null,null,null,null,null,null,null,null,null,null,null,null,null,null,null,null,null,null,null,{"$f":"(IF(T52=Références!$B$5,Références!$D$5)+IF(T52=Références!$B$6,Références!$D$6)+IF(T52=Références!$B$7,Références!$D$7)+IF(T52=Références!$B$8,Références!$D$8)+IF(T52=Références!$B$9,Références!$D$9)+IF(T52=Références!$B$10,Références!$D$10)+IF(T52=Références!$B$11,Références!$D$11)+IF(T52=Références!$B$12,Références!$D$12)+IF(T52=Références!$B$13,IF(S52>=1600,Références!$D$16,IF('Calculateur-Transport'!S52>=500,Références!$D$15,IF('Calculateur-Transport'!S52<=499,Références!$D$14)))))*S52","v":0}]
[null,null,null,null,null,null,null,null,null,null,null,null,null,null,null,null,null,null,null,null,{"$f":"(IF(T53=Références!$B$5,Références!$D$5)+IF(T53=Références!$B$6,Références!$D$6)+IF(T53=Références!$B$7,Références!$D$7)+IF(T53=Références!$B$8,Références!$D$8)+IF(T53=Références!$B$9,Références!$D$9)+IF(T53=Références!$B$10,Références!$D$10)+IF(T53=Références!$B$11,Références!$D$11)+IF(T53=Références!$B$12,Références!$D$12)+IF(T53=Références!$B$13,IF(S53>=1600,Références!$D$16,IF('Calculateur-Transport'!S53>=500,Références!$D$15,IF('Calculateur-Transport'!S53<=499,Références!$D$14)))))*S53","v":0}]
[null,null,null,null,null,null,null,null,null,null,null,null,null,null,null,null,null,null,null,null,{"$f":"(IF(T54=Références!$B$5,Références!$D$5)+IF(T54=Références!$B$6,Références!$D$6)+IF(T54=Références!$B$7,Références!$D$7)+IF(T54=Références!$B$8,Références!$D$8)+IF(T54=Références!$B$9,Références!$D$9)+IF(T54=Références!$B$10,Références!$D$10)+IF(T54=Références!$B$11,Références!$D$11)+IF(T54=Références!$B$12,Références!$D$12)+IF(T54=Références!$B$13,IF(S54>=1600,Références!$D$16,IF('Calculateur-Transport'!S54>=500,Références!$D$15,IF('Calculateur-Transport'!S54<=499,Références!$D$14)))))*S54","v":0}]
[null,null,null,null,null,null,null,null,null,null,null,null,null,null,null,null,null,null,null,null,{"$f":"(IF(T55=Références!$B$5,Références!$D$5)+IF(T55=Références!$B$6,Références!$D$6)+IF(T55=Références!$B$7,Références!$D$7)+IF(T55=Références!$B$8,Références!$D$8)+IF(T55=Références!$B$9,Références!$D$9)+IF(T55=Références!$B$10,Références!$D$10)+IF(T55=Références!$B$11,Références!$D$11)+IF(T55=Références!$B$12,Références!$D$12)+IF(T55=Références!$B$13,IF(S55>=1600,Références!$D$16,IF('Calculateur-Transport'!S55>=500,Références!$D$15,IF('Calculateur-Transport'!S55<=499,Références!$D$14)))))*S55","v":0}]
[null,null,null,null,null,null,null,null,null,null,null,null,null,null,null,null,null,null,null,null,{"$f":"(IF(T56=Références!$B$5,Références!$D$5)+IF(T56=Références!$B$6,Références!$D$6)+IF(T56=Références!$B$7,Références!$D$7)+IF(T56=Références!$B$8,Références!$D$8)+IF(T56=Références!$B$9,Références!$D$9)+IF(T56=Références!$B$10,Références!$D$10)+IF(T56=Références!$B$11,Références!$D$11)+IF(T56=Références!$B$12,Références!$D$12)+IF(T56=Références!$B$13,IF(S56>=1600,Références!$D$16,IF('Calculateur-Transport'!S56>=500,Références!$D$15,IF('Calculateur-Transport'!S56<=499,Références!$D$14)))))*S56","v":0}]
[null,null,null,null,null,null,null,null,null,null,null,null,null,null,null,null,null,null,null,null,{"$f":"(IF(T57=Références!$B$5,Références!$D$5)+IF(T57=Références!$B$6,Références!$D$6)+IF(T57=Références!$B$7,Références!$D$7)+IF(T57=Références!$B$8,Références!$D$8)+IF(T57=Références!$B$9,Références!$D$9)+IF(T57=Références!$B$10,Références!$D$10)+IF(T57=Références!$B$11,Références!$D$11)+IF(T57=Références!$B$12,Références!$D$12)+IF(T57=Références!$B$13,IF(S57>=1600,Références!$D$16,IF('Calculateur-Transport'!S57>=500,Références!$D$15,IF('Calculateur-Transport'!S57<=499,Références!$D$14)))))*S57","v":0}]
[null,null,null,null,null,null,null,null,null,null,null,null,null,null,null,null,null,null,null,null,{"$f":"(IF(T58=Références!$B$5,Références!$D$5)+IF(T58=Références!$B$6,Références!$D$6)+IF(T58=Références!$B$7,Références!$D$7)+IF(T58=Références!$B$8,Références!$D$8)+IF(T58=Références!$B$9,Références!$D$9)+IF(T58=Références!$B$10,Références!$D$10)+IF(T58=Références!$B$11,Références!$D$11)+IF(T58=Références!$B$12,Références!$D$12)+IF(T58=Références!$B$13,IF(S58>=1600,Références!$D$16,IF('Calculateur-Transport'!S58>=500,Références!$D$15,IF('Calculateur-Transport'!S58<=499,Références!$D$14)))))*S58","v":0}]
[null,null,null,null,null,null,null,null,null,null,null,null,null,null,null,null,null,null,null,null,{"$f":"(IF(T59=Références!$B$5,Références!$D$5)+IF(T59=Références!$B$6,Références!$D$6)+IF(T59=Références!$B$7,Références!$D$7)+IF(T59=Références!$B$8,Références!$D$8)+IF(T59=Références!$B$9,Références!$D$9)+IF(T59=Références!$B$10,Références!$D$10)+IF(T59=Références!$B$11,Références!$D$11)+IF(T59=Références!$B$12,Références!$D$12)+IF(T59=Références!$B$13,IF(S59>=1600,Références!$D$16,IF('Calculateur-Transport'!S59>=500,Références!$D$15,IF('Calculateur-Transport'!S59<=499,Références!$D$14)))))*S59","v":0}]
[null,null,null,null,null,null,null,null,null,null,null,null,null,null,null,null,null,null,null,null,{"$f":"(IF(T60=Références!$B$5,Références!$D$5)+IF(T60=Références!$B$6,Références!$D$6)+IF(T60=Références!$B$7,Références!$D$7)+IF(T60=Références!$B$8,Références!$D$8)+IF(T60=Références!$B$9,Références!$D$9)+IF(T60=Références!$B$10,Références!$D$10)+IF(T60=Références!$B$11,Références!$D$11)+IF(T60=Références!$B$12,Références!$D$12)+IF(T60=Références!$B$13,IF(S60>=1600,Références!$D$16,IF('Calculateur-Transport'!S60>=500,Références!$D$15,IF('Calculateur-Transport'!S60<=499,Références!$D$14)))))*S60","v":0}]
[null,null,null,null,null,null,null,null,null,null,null,null,null,null,null,null,null,null,null,null,{"$f":"(IF(T61=Références!$B$5,Références!$D$5)+IF(T61=Références!$B$6,Références!$D$6)+IF(T61=Références!$B$7,Références!$D$7)+IF(T61=Références!$B$8,Références!$D$8)+IF(T61=Références!$B$9,Références!$D$9)+IF(T61=Références!$B$10,Références!$D$10)+IF(T61=Références!$B$11,Références!$D$11)+IF(T61=Références!$B$12,Références!$D$12)+IF(T61=Références!$B$13,IF(S61>=1600,Références!$D$16,IF('Calculateur-Transport'!S61>=500,Références!$D$15,IF('Calculateur-Transport'!S61<=499,Références!$D$14)))))*S61","v":0}]
[null,null,null,null,null,null,null,null,null,null,null,null,null,null,null,null,null,null,null,null,{"$f":"(IF(T62=Références!$B$5,Références!$D$5)+IF(T62=Références!$B$6,Références!$D$6)+IF(T62=Références!$B$7,Références!$D$7)+IF(T62=Références!$B$8,Références!$D$8)+IF(T62=Références!$B$9,Références!$D$9)+IF(T62=Références!$B$10,Références!$D$10)+IF(T62=Références!$B$11,Références!$D$11)+IF(T62=Références!$B$12,Références!$D$12)+IF(T62=Références!$B$13,IF(S62>=1600,Références!$D$16,IF('Calculateur-Transport'!S62>=500,Références!$D$15,IF('Calculateur-Transport'!S62<=499,Références!$D$14)))))*S62","v":0}]
[null,null,null,null,null,null,null,null,null,null,null,null,null,null,null,null,null,null,null,null,{"$f":"(IF(T63=Références!$B$5,Références!$D$5)+IF(T63=Références!$B$6,Références!$D$6)+IF(T63=Références!$B$7,Références!$D$7)+IF(T63=Références!$B$8,Références!$D$8)+IF(T63=Références!$B$9,Références!$D$9)+IF(T63=Références!$B$10,Références!$D$10)+IF(T63=Références!$B$11,Références!$D$11)+IF(T63=Références!$B$12,Références!$D$12)+IF(T63=Références!$B$13,IF(S63>=1600,Références!$D$16,IF('Calculateur-Transport'!S63>=500,Références!$D$15,IF('Calculateur-Transport'!S63<=499,Références!$D$14)))))*S63","v":0}]
[null,null,null,null,null,null,null,null,null,null,null,null,null,null,null,null,null,null,null,null,{"$f":"(IF(T64=Références!$B$5,Références!$D$5)+IF(T64=Références!$B$6,Références!$D$6)+IF(T64=Références!$B$7,Références!$D$7)+IF(T64=Références!$B$8,Références!$D$8)+IF(T64=Références!$B$9,Références!$D$9)+IF(T64=Références!$B$10,Références!$D$10)+IF(T64=Références!$B$11,Références!$D$11)+IF(T64=Références!$B$12,Références!$D$12)+IF(T64=Références!$B$13,IF(S64>=1600,Références!$D$16,IF('Calculateur-Transport'!S64>=500,Références!$D$15,IF('Calculateur-Transport'!S64<=499,Références!$D$14)))))*S64","v":0}]
[null,null,null,null,null,null,null,null,null,null,null,null,null,null,null,null,null,null,null,null,{"$f":"(IF(T65=Références!$B$5,Références!$D$5)+IF(T65=Références!$B$6,Références!$D$6)+IF(T65=Références!$B$7,Références!$D$7)+IF(T65=Références!$B$8,Références!$D$8)+IF(T65=Références!$B$9,Références!$D$9)+IF(T65=Références!$B$10,Références!$D$10)+IF(T65=Références!$B$11,Références!$D$11)+IF(T65=Références!$B$12,Références!$D$12)+IF(T65=Références!$B$13,IF(S65>=1600,Références!$D$16,IF('Calculateur-Transport'!S65>=500,Références!$D$15,IF('Calculateur-Transport'!S65<=499,Références!$D$14)))))*S65","v":0}]
[null,null,null,null,null,null,null,null,null,null,null,null,null,null,null,null,null,null,null,null,{"$f":"(IF(T66=Références!$B$5,Références!$D$5)+IF(T66=Références!$B$6,Références!$D$6)+IF(T66=Références!$B$7,Références!$D$7)+IF(T66=Références!$B$8,Références!$D$8)+IF(T66=Références!$B$9,Références!$D$9)+IF(T66=Références!$B$10,Références!$D$10)+IF(T66=Références!$B$11,Références!$D$11)+IF(T66=Références!$B$12,Références!$D$12)+IF(T66=Références!$B$13,IF(S66>=1600,Références!$D$16,IF('Calculateur-Transport'!S66>=500,Références!$D$15,IF('Calculateur-Transport'!S66<=499,Références!$D$14)))))*S66","v":0}]
[null,null,null,null,null,null,null,null,null,null,null,null,null,null,null,null,null,null,null,null,{"$f":"(IF(T67=Références!$B$5,Références!$D$5)+IF(T67=Références!$B$6,Références!$D$6)+IF(T67=Références!$B$7,Références!$D$7)+IF(T67=Références!$B$8,Références!$D$8)+IF(T67=Références!$B$9,Références!$D$9)+IF(T67=Références!$B$10,Références!$D$10)+IF(T67=Références!$B$11,Références!$D$11)+IF(T67=Références!$B$12,Références!$D$12)+IF(T67=Références!$B$13,IF(S67>=1600,Références!$D$16,IF('Calculateur-Transport'!S67>=500,Références!$D$15,IF('Calculateur-Transport'!S67<=499,Références!$D$14)))))*S67","v":0}]
[null,null,null,null,null,null,null,null,null,null,null,null,null,null,null,null,null,null,null,null,{"$f":"(IF(T68=Références!$B$5,Références!$D$5)+IF(T68=Références!$B$6,Références!$D$6)+IF(T68=Références!$B$7,Références!$D$7)+IF(T68=Références!$B$8,Références!$D$8)+IF(T68=Références!$B$9,Références!$D$9)+IF(T68=Références!$B$10,Références!$D$10)+IF(T68=Références!$B$11,Références!$D$11)+IF(T68=Références!$B$12,Références!$D$12)+IF(T68=Références!$B$13,IF(S68>=1600,Références!$D$16,IF('Calculateur-Transport'!S68>=500,Références!$D$15,IF('Calculateur-Transport'!S68<=499,Références!$D$14)))))*S68","v":0}]
[null,null,null,null,null,null,null,null,null,null,null,null,null,null,null,null,null,null,null,null,{"$f":"(IF(T69=Références!$B$5,Références!$D$5)+IF(T69=Références!$B$6,Références!$D$6)+IF(T69=Références!$B$7,Références!$D$7)+IF(T69=Références!$B$8,Références!$D$8)+IF(T69=Références!$B$9,Références!$D$9)+IF(T69=Références!$B$10,Références!$D$10)+IF(T69=Références!$B$11,Références!$D$11)+IF(T69=Références!$B$12,Références!$D$12)+IF(T69=Références!$B$13,IF(S69>=1600,Références!$D$16,IF('Calculateur-Transport'!S69>=500,Références!$D$15,IF('Calculateur-Transport'!S69<=499,Références!$D$14)))))*S69","v":0}]
[null,null,null,null,null,null,null,null,null,null,null,null,null,null,null,null,null,null,null,null,{"$f":"(IF(T70=Références!$B$5,Références!$D$5)+IF(T70=Références!$B$6,Références!$D$6)+IF(T70=Références!$B$7,Références!$D$7)+IF(T70=Références!$B$8,Références!$D$8)+IF(T70=Références!$B$9,Références!$D$9)+IF(T70=Références!$B$10,Références!$D$10)+IF(T70=Références!$B$11,Références!$D$11)+IF(T70=Références!$B$12,Références!$D$12)+IF(T70=Références!$B$13,IF(S70>=1600,Références!$D$16,IF('Calculateur-Transport'!S70>=500,Références!$D$15,IF('Calculateur-Transport'!S70<=499,Références!$D$14)))))*S70","v":0}]
[null,null,null,null,null,null,null,null,null,null,null,null,null,null,null,null,null,null,null,null,{"$f":"(IF(T71=Références!$B$5,Références!$D$5)+IF(T71=Références!$B$6,Références!$D$6)+IF(T71=Références!$B$7,Références!$D$7)+IF(T71=Références!$B$8,Références!$D$8)+IF(T71=Références!$B$9,Références!$D$9)+IF(T71=Références!$B$10,Références!$D$10)+IF(T71=Références!$B$11,Références!$D$11)+IF(T71=Références!$B$12,Références!$D$12)+IF(T71=Références!$B$13,IF(S71>=1600,Références!$D$16,IF('Calculateur-Transport'!S71>=500,Références!$D$15,IF('Calculateur-Transport'!S71<=499,Références!$D$14)))))*S71","v":0}]
[null,null,null,null,null,null,null,null,null,null,null,null,null,null,null,null,null,null,null,null,{"$f":"(IF(T72=Références!$B$5,Références!$D$5)+IF(T72=Références!$B$6,Références!$D$6)+IF(T72=Références!$B$7,Références!$D$7)+IF(T72=Références!$B$8,Références!$D$8)+IF(T72=Références!$B$9,Références!$D$9)+IF(T72=Références!$B$10,Références!$D$10)+IF(T72=Références!$B$11,Références!$D$11)+IF(T72=Références!$B$12,Références!$D$12)+IF(T72=Références!$B$13,IF(S72>=1600,Références!$D$16,IF('Calculateur-Transport'!S72>=500,Références!$D$15,IF('Calculateur-Transport'!S72<=499,Références!$D$14)))))*S72","v":0}]
[null,null,null,null,null,null,null,null,null,null,null,null,null,null,null,null,null,null,null,null,{"$f":"(IF(T73=Références!$B$5,Références!$D$5)+IF(T73=Références!$B$6,Références!$D$6)+IF(T73=Références!$B$7,Références!$D$7)+IF(T73=Références!$B$8,Références!$D$8)+IF(T73=Références!$B$9,Références!$D$9)+IF(T73=Références!$B$10,Références!$D$10)+IF(T73=Références!$B$11,Références!$D$11)+IF(T73=Références!$B$12,Références!$D$12)+IF(T73=Références!$B$13,IF(S73>=1600,Références!$D$16,IF('Calculateur-Transport'!S73>=500,Références!$D$15,IF('Calculateur-Transport'!S73<=499,Références!$D$14)))))*S73","v":0}]
[null,null,null,null,null,null,null,null,null,null,null,null,null,null,null,null,null,null,null,null,{"$f":"(IF(T74=Références!$B$5,Références!$D$5)+IF(T74=Références!$B$6,Références!$D$6)+IF(T74=Références!$B$7,Références!$D$7)+IF(T74=Références!$B$8,Références!$D$8)+IF(T74=Références!$B$9,Références!$D$9)+IF(T74=Références!$B$10,Références!$D$10)+IF(T74=Références!$B$11,Références!$D$11)+IF(T74=Références!$B$12,Références!$D$12)+IF(T74=Références!$B$13,IF(S74>=1600,Références!$D$16,IF('Calculateur-Transport'!S74>=500,Références!$D$15,IF('Calculateur-Transport'!S74<=499,Références!$D$14)))))*S74","v":0}]
[null,null,null,null,null,null,null,null,null,null,null,null,null,null,null,null,null,null,null,null,{"$f":"(IF(T75=Références!$B$5,Références!$D$5)+IF(T75=Références!$B$6,Références!$D$6)+IF(T75=Références!$B$7,Références!$D$7)+IF(T75=Références!$B$8,Références!$D$8)+IF(T75=Références!$B$9,Références!$D$9)+IF(T75=Références!$B$10,Références!$D$10)+IF(T75=Références!$B$11,Références!$D$11)+IF(T75=Références!$B$12,Références!$D$12)+IF(T75=Références!$B$13,IF(S75>=1600,Références!$D$16,IF('Calculateur-Transport'!S75>=500,Références!$D$15,IF('Calculateur-Transport'!S75<=499,Références!$D$14)))))*S75","v":0}]
[null,null,null,null,null,null,null,null,null,null,null,null,null,null,null,null,null,null,null,null,{"$f":"(IF(T76=Références!$B$5,Références!$D$5)+IF(T76=Références!$B$6,Références!$D$6)+IF(T76=Références!$B$7,Références!$D$7)+IF(T76=Références!$B$8,Références!$D$8)+IF(T76=Références!$B$9,Références!$D$9)+IF(T76=Références!$B$10,Références!$D$10)+IF(T76=Références!$B$11,Références!$D$11)+IF(T76=Références!$B$12,Références!$D$12)+IF(T76=Références!$B$13,IF(S76>=1600,Références!$D$16,IF('Calculateur-Transport'!S76>=500,Références!$D$15,IF('Calculateur-Transport'!S76<=499,Références!$D$14)))))*S76","v":0}]
[null,null,null,null,null,null,null,null,null,null,null,null,null,null,null,null,null,null,null,null,{"$f":"(IF(T77=Références!$B$5,Références!$D$5)+IF(T77=Références!$B$6,Références!$D$6)+IF(T77=Références!$B$7,Références!$D$7)+IF(T77=Références!$B$8,Références!$D$8)+IF(T77=Références!$B$9,Références!$D$9)+IF(T77=Références!$B$10,Références!$D$10)+IF(T77=Références!$B$11,Références!$D$11)+IF(T77=Références!$B$12,Références!$D$12)+IF(T77=Références!$B$13,IF(S77>=1600,Références!$D$16,IF('Calculateur-Transport'!S77>=500,Références!$D$15,IF('Calculateur-Transport'!S77<=499,Références!$D$14)))))*S77","v":0}]
[null,null,null,null,null,null,null,null,null,null,null,null,null,null,null,null,null,null,null,null,{"$f":"(IF(T78=Références!$B$5,Références!$D$5)+IF(T78=Références!$B$6,Références!$D$6)+IF(T78=Références!$B$7,Références!$D$7)+IF(T78=Références!$B$8,Références!$D$8)+IF(T78=Références!$B$9,Références!$D$9)+IF(T78=Références!$B$10,Références!$D$10)+IF(T78=Références!$B$11,Références!$D$11)+IF(T78=Références!$B$12,Références!$D$12)+IF(T78=Références!$B$13,IF(S78>=1600,Références!$D$16,IF('Calculateur-Transport'!S78>=500,Références!$D$15,IF('Calculateur-Transport'!S78<=499,Références!$D$14)))))*S78","v":0}]
[null,null,null,null,null,null,null,null,null,null,null,null,null,null,null,null,null,null,null,null,{"$f":"(IF(T79=Références!$B$5,Références!$D$5)+IF(T79=Références!$B$6,Références!$D$6)+IF(T79=Références!$B$7,Références!$D$7)+IF(T79=Références!$B$8,Références!$D$8)+IF(T79=Références!$B$9,Références!$D$9)+IF(T79=Références!$B$10,Références!$D$10)+IF(T79=Références!$B$11,Références!$D$11)+IF(T79=Références!$B$12,Références!$D$12)+IF(T79=Références!$B$13,IF(S79>=1600,Références!$D$16,IF('Calculateur-Transport'!S79>=500,Références!$D$15,IF('Calculateur-Transport'!S79<=499,Références!$D$14)))))*S79","v":0}]
[null,null,null,null,null,null,null,null,null,null,null,null,null,null,null,null,null,null,null,null,{"$f":"(IF(T80=Références!$B$5,Références!$D$5)+IF(T80=Références!$B$6,Références!$D$6)+IF(T80=Références!$B$7,Références!$D$7)+IF(T80=Références!$B$8,Références!$D$8)+IF(T80=Références!$B$9,Références!$D$9)+IF(T80=Références!$B$10,Références!$D$10)+IF(T80=Références!$B$11,Références!$D$11)+IF(T80=Références!$B$12,Références!$D$12)+IF(T80=Références!$B$13,IF(S80>=1600,Références!$D$16,IF('Calculateur-Transport'!S80>=500,Références!$D$15,IF('Calculateur-Transport'!S80<=499,Références!$D$14)))))*S80","v":0}]
[null,null,null,null,null,null,null,null,null,null,null,null,null,null,null,null,null,null,null,null,{"$f":"(IF(T81=Références!$B$5,Références!$D$5)+IF(T81=Références!$B$6,Références!$D$6)+IF(T81=Références!$B$7,Références!$D$7)+IF(T81=Références!$B$8,Références!$D$8)+IF(T81=Références!$B$9,Références!$D$9)+IF(T81=Références!$B$10,Références!$D$10)+IF(T81=Références!$B$11,Références!$D$11)+IF(T81=Références!$B$12,Références!$D$12)+IF(T81=Références!$B$13,IF(S81>=1600,Références!$D$16,IF('Calculateur-Transport'!S81>=500,Références!$D$15,IF('Calculateur-Transport'!S81<=499,Références!$D$14)))))*S81","v":0}]
[null,null,null,null,null,null,null,null,null,null,null,null,null,null,null,null,null,null,null,null,{"$f":"(IF(T82=Références!$B$5,Références!$D$5)+IF(T82=Références!$B$6,Références!$D$6)+IF(T82=Références!$B$7,Références!$D$7)+IF(T82=Références!$B$8,Références!$D$8)+IF(T82=Références!$B$9,Références!$D$9)+IF(T82=Références!$B$10,Références!$D$10)+IF(T82=Références!$B$11,Références!$D$11)+IF(T82=Références!$B$12,Références!$D$12)+IF(T82=Références!$B$13,IF(S82>=1600,Références!$D$16,IF('Calculateur-Transport'!S82>=500,Références!$D$15,IF('Calculateur-Transport'!S82<=499,Références!$D$14)))))*S82","v":0}]
[null,null,null,null,null,null,null,null,null,null,null,null,null,null,null,null,null,null,null,null,{"$f":"(IF(T83=Références!$B$5,Références!$D$5)+IF(T83=Références!$B$6,Références!$D$6)+IF(T83=Références!$B$7,Références!$D$7)+IF(T83=Références!$B$8,Références!$D$8)+IF(T83=Références!$B$9,Références!$D$9)+IF(T83=Références!$B$10,Références!$D$10)+IF(T83=Références!$B$11,Références!$D$11)+IF(T83=Références!$B$12,Références!$D$12)+IF(T83=Références!$B$13,IF(S83>=1600,Références!$D$16,IF('Calculateur-Transport'!S83>=500,Références!$D$15,IF('Calculateur-Transport'!S83<=499,Références!$D$14)))))*S83","v":0}]
[null,null,null,null,null,null,null,null,null,null,null,null,null,null,null,null,null,null,null,null,{"$f":"(IF(T84=Références!$B$5,Références!$D$5)+IF(T84=Références!$B$6,Références!$D$6)+IF(T84=Références!$B$7,Références!$D$7)+IF(T84=Références!$B$8,Références!$D$8)+IF(T84=Références!$B$9,Références!$D$9)+IF(T84=Références!$B$10,Références!$D$10)+IF(T84=Références!$B$11,Références!$D$11)+IF(T84=Références!$B$12,Références!$D$12)+IF(T84=Références!$B$13,IF(S84>=1600,Références!$D$16,IF('Calculateur-Transport'!S84>=500,Références!$D$15,IF('Calculateur-Transport'!S84<=499,Références!$D$14)))))*S84","v":0}]
[null,null,null,null,null,null,null,null,null,null,null,null,null,null,null,null,null,null,null,null,{"$f":"(IF(T85=Références!$B$5,Références!$D$5)+IF(T85=Références!$B$6,Références!$D$6)+IF(T85=Références!$B$7,Références!$D$7)+IF(T85=Références!$B$8,Références!$D$8)+IF(T85=Références!$B$9,Références!$D$9)+IF(T85=Références!$B$10,Références!$D$10)+IF(T85=Références!$B$11,Références!$D$11)+IF(T85=Références!$B$12,Références!$D$12)+IF(T85=Références!$B$13,IF(S85>=1600,Références!$D$16,IF('Calculateur-Transport'!S85>=500,Références!$D$15,IF('Calculateur-Transport'!S85<=499,Références!$D$14)))))*S85","v":0}]
[null,null,null,null,null,null,null,null,null,null,null,null,null,null,null,null,null,null,null,null,{"$f":"(IF(T86=Références!$B$5,Références!$D$5)+IF(T86=Références!$B$6,Références!$D$6)+IF(T86=Références!$B$7,Références!$D$7)+IF(T86=Références!$B$8,Références!$D$8)+IF(T86=Références!$B$9,Références!$D$9)+IF(T86=Références!$B$10,Références!$D$10)+IF(T86=Références!$B$11,Références!$D$11)+IF(T86=Références!$B$12,Références!$D$12)+IF(T86=Références!$B$13,IF(S86>=1600,Références!$D$16,IF('Calculateur-Transport'!S86>=500,Références!$D$15,IF('Calculateur-Transport'!S86<=499,Références!$D$14)))))*S86","v":0}]
[null,null,null,null,null,null,null,null,null,null,null,null,null,null,null,null,null,null,null,null,{"$f":"(IF(T87=Références!$B$5,Références!$D$5)+IF(T87=Références!$B$6,Références!$D$6)+IF(T87=Références!$B$7,Références!$D$7)+IF(T87=Références!$B$8,Références!$D$8)+IF(T87=Références!$B$9,Références!$D$9)+IF(T87=Références!$B$10,Références!$D$10)+IF(T87=Références!$B$11,Références!$D$11)+IF(T87=Références!$B$12,Références!$D$12)+IF(T87=Références!$B$13,IF(S87>=1600,Références!$D$16,IF('Calculateur-Transport'!S87>=500,Références!$D$15,IF('Calculateur-Transport'!S87<=499,Références!$D$14)))))*S87","v":0}]
[null,null,null,null,null,null,null,null,null,null,null,null,null,null,null,null,null,null,null,null,{"$f":"(IF(T88=Références!$B$5,Références!$D$5)+IF(T88=Références!$B$6,Références!$D$6)+IF(T88=Références!$B$7,Références!$D$7)+IF(T88=Références!$B$8,Références!$D$8)+IF(T88=Références!$B$9,Références!$D$9)+IF(T88=Références!$B$10,Références!$D$10)+IF(T88=Références!$B$11,Références!$D$11)+IF(T88=Références!$B$12,Références!$D$12)+IF(T88=Références!$B$13,IF(S88>=1600,Références!$D$16,IF('Calculateur-Transport'!S88>=500,Références!$D$15,IF('Calculateur-Transport'!S88<=499,Références!$D$14)))))*S88","v":0}]
[null,null,null,null,null,null,null,null,null,null,null,null,null,null,null,null,null,null,null,null,{"$f":"(IF(T89=Références!$B$5,Références!$D$5)+IF(T89=Références!$B$6,Références!$D$6)+IF(T89=Références!$B$7,Références!$D$7)+IF(T89=Références!$B$8,Références!$D$8)+IF(T89=Références!$B$9,Références!$D$9)+IF(T89=Références!$B$10,Références!$D$10)+IF(T89=Références!$B$11,Références!$D$11)+IF(T89=Références!$B$12,Références!$D$12)+IF(T89=Références!$B$13,IF(S89>=1600,Références!$D$16,IF('Calculateur-Transport'!S89>=500,Références!$D$15,IF('Calculateur-Transport'!S89<=499,Références!$D$14)))))*S89","v":0}]
[null,null,null,null,null,null,null,null,null,null,null,null,null,null,null,null,null,null,null,null,{"$f":"(IF(T90=Références!$B$5,Références!$D$5)+IF(T90=Références!$B$6,Références!$D$6)+IF(T90=Références!$B$7,Références!$D$7)+IF(T90=Références!$B$8,Références!$D$8)+IF(T90=Références!$B$9,Références!$D$9)+IF(T90=Références!$B$10,Références!$D$10)+IF(T90=Références!$B$11,Références!$D$11)+IF(T90=Références!$B$12,Références!$D$12)+IF(T90=Références!$B$13,IF(S90>=1600,Références!$D$16,IF('Calculateur-Transport'!S90>=500,Références!$D$15,IF('Calculateur-Transport'!S90<=499,Références!$D$14)))))*S90","v":0}]
[null,null,null,null,null,null,null,null,null,null,null,null,null,null,null,null,null,null,null,null,{"$f":"(IF(T91=Références!$B$5,Références!$D$5)+IF(T91=Références!$B$6,Références!$D$6)+IF(T91=Références!$B$7,Références!$D$7)+IF(T91=Références!$B$8,Références!$D$8)+IF(T91=Références!$B$9,Références!$D$9)+IF(T91=Références!$B$10,Références!$D$10)+IF(T91=Références!$B$11,Références!$D$11)+IF(T91=Références!$B$12,Références!$D$12)+IF(T91=Références!$B$13,IF(S91>=1600,Références!$D$16,IF('Calculateur-Transport'!S91>=500,Références!$D$15,IF('Calculateur-Transport'!S91<=499,Références!$D$14)))))*S91","v":0}]
[null,null,null,null,null,null,null,null,null,null,null,null,null,null,null,null,null,null,null,null,{"$f":"(IF(T92=Références!$B$5,Références!$D$5)+IF(T92=Références!$B$6,Références!$D$6)+IF(T92=Références!$B$7,Références!$D$7)+IF(T92=Références!$B$8,Références!$D$8)+IF(T92=Références!$B$9,Références!$D$9)+IF(T92=Références!$B$10,Références!$D$10)+IF(T92=Références!$B$11,Références!$D$11)+IF(T92=Références!$B$12,Références!$D$12)+IF(T92=Références!$B$13,IF(S92>=1600,Références!$D$16,IF('Calculateur-Transport'!S92>=500,Références!$D$15,IF('Calculateur-Transport'!S92<=499,Références!$D$14)))))*S92","v":0}]
[null,null,null,null,null,null,null,null,null,null,null,null,null,null,null,null,null,null,null,null,{"$f":"(IF(T93=Références!$B$5,Références!$D$5)+IF(T93=Références!$B$6,Références!$D$6)+IF(T93=Références!$B$7,Références!$D$7)+IF(T93=Références!$B$8,Références!$D$8)+IF(T93=Références!$B$9,Références!$D$9)+IF(T93=Références!$B$10,Références!$D$10)+IF(T93=Références!$B$11,Références!$D$11)+IF(T93=Références!$B$12,Références!$D$12)+IF(T93=Références!$B$13,IF(S93>=1600,Références!$D$16,IF('Calculateur-Transport'!S93>=500,Références!$D$15,IF('Calculateur-Transport'!S93<=499,Références!$D$14)))))*S93","v":0}]
[null,null,null,null,null,null,null,null,null,null,null,null,null,null,null,null,null,null,null,null,{"$f":"(IF(T94=Références!$B$5,Références!$D$5)+IF(T94=Références!$B$6,Références!$D$6)+IF(T94=Références!$B$7,Références!$D$7)+IF(T94=Références!$B$8,Références!$D$8)+IF(T94=Références!$B$9,Références!$D$9)+IF(T94=Références!$B$10,Références!$D$10)+IF(T94=Références!$B$11,Références!$D$11)+IF(T94=Références!$B$12,Références!$D$12)+IF(T94=Références!$B$13,IF(S94>=1600,Références!$D$16,IF('Calculateur-Transport'!S94>=500,Références!$D$15,IF('Calculateur-Transport'!S94<=499,Références!$D$14)))))*S94","v":0}]
[null,null,null,null,null,null,null,null,null,null,null,null,null,null,null,null,null,null,null,null,{"$f":"(IF(T95=Références!$B$5,Références!$D$5)+IF(T95=Références!$B$6,Références!$D$6)+IF(T95=Références!$B$7,Références!$D$7)+IF(T95=Références!$B$8,Références!$D$8)+IF(T95=Références!$B$9,Références!$D$9)+IF(T95=Références!$B$10,Références!$D$10)+IF(T95=Références!$B$11,Références!$D$11)+IF(T95=Références!$B$12,Références!$D$12)+IF(T95=Références!$B$13,IF(S95>=1600,Références!$D$16,IF('Calculateur-Transport'!S95>=500,Références!$D$15,IF('Calculateur-Transport'!S95<=499,Références!$D$14)))))*S95","v":0}]
[null,null,null,null,null,null,null,null,null,null,null,null,null,null,null,null,null,null,null,null,{"$f":"(IF(T96=Références!$B$5,Références!$D$5)+IF(T96=Références!$B$6,Références!$D$6)+IF(T96=Références!$B$7,Références!$D$7)+IF(T96=Références!$B$8,Références!$D$8)+IF(T96=Références!$B$9,Références!$D$9)+IF(T96=Références!$B$10,Références!$D$10)+IF(T96=Références!$B$11,Références!$D$11)+IF(T96=Références!$B$12,Références!$D$12)+IF(T96=Références!$B$13,IF(S96>=1600,Références!$D$16,IF('Calculateur-Transport'!S96>=500,Références!$D$15,IF('Calculateur-Transport'!S96<=499,Références!$D$14)))))*S96","v":0}]
[null,null,null,null,null,null,null,null,null,null,null,null,null,null,null,null,null,null,null,null,{"$f":"(IF(T97=Références!$B$5,Références!$D$5)+IF(T97=Références!$B$6,Références!$D$6)+IF(T97=Références!$B$7,Références!$D$7)+IF(T97=Références!$B$8,Références!$D$8)+IF(T97=Références!$B$9,Références!$D$9)+IF(T97=Références!$B$10,Références!$D$10)+IF(T97=Références!$B$11,Références!$D$11)+IF(T97=Références!$B$12,Références!$D$12)+IF(T97=Références!$B$13,IF(S97>=1600,Références!$D$16,IF('Calculateur-Transport'!S97>=500,Références!$D$15,IF('Calculateur-Transport'!S97<=499,Références!$D$14)))))*S97","v":0}]
[null,null,null,null,null,null,null,null,null,null,null,null,null,null,null,null,null,null,null,null,{"$f":"(IF(T98=Références!$B$5,Références!$D$5)+IF(T98=Références!$B$6,Références!$D$6)+IF(T98=Références!$B$7,Références!$D$7)+IF(T98=Références!$B$8,Références!$D$8)+IF(T98=Références!$B$9,Références!$D$9)+IF(T98=Références!$B$10,Références!$D$10)+IF(T98=Références!$B$11,Références!$D$11)+IF(T98=Références!$B$12,Références!$D$12)+IF(T98=Références!$B$13,IF(S98>=1600,Références!$D$16,IF('Calculateur-Transport'!S98>=500,Références!$D$15,IF('Calculateur-Transport'!S98<=499,Références!$D$14)))))*S98","v":0}]
[null,null,null,null,null,null,null,null,null,null,null,null,null,null,null,null,null,null,null,null,{"$f":"(IF(T99=Références!$B$5,Références!$D$5)+IF(T99=Références!$B$6,Références!$D$6)+IF(T99=Références!$B$7,Références!$D$7)+IF(T99=Références!$B$8,Références!$D$8)+IF(T99=Références!$B$9,Références!$D$9)+IF(T99=Références!$B$10,Références!$D$10)+IF(T99=Références!$B$11,Références!$D$11)+IF(T99=Références!$B$12,Références!$D$12)+IF(T99=Références!$B$13,IF(S99>=1600,Références!$D$16,IF('Calculateur-Transport'!S99>=500,Références!$D$15,IF('Calculateur-Transport'!S99<=499,Références!$D$14)))))*S99","v":0}]
[null,null,null,null,null,null,null,null,null,null,null,null,null,null,null,null,null,null,null,null,{"$f":"(IF(T100=Références!$B$5,Références!$D$5)+IF(T100=Références!$B$6,Références!$D$6)+IF(T100=Références!$B$7,Références!$D$7)+IF(T100=Références!$B$8,Références!$D$8)+IF(T100=Références!$B$9,Références!$D$9)+IF(T100=Références!$B$10,Références!$D$10)+IF(T100=Références!$B$11,Références!$D$11)+IF(T100=Références!$B$12,Références!$D$12)+IF(T100=Références!$B$13,IF(S100>=1600,Références!$D$16,IF('Calculateur-Transport'!S100>=500,Références!$D$15,IF('Calculateur-Transport'!S100<=499,Références!$D$14)))))*S100","v":0}]
[null,null,null,null,null,null,null,null,null,null,null,null,null,null,null,null,null,null,null,null,{"$f":"(IF(T101=Références!$B$5,Références!$D$5)+IF(T101=Références!$B$6,Références!$D$6)+IF(T101=Références!$B$7,Références!$D$7)+IF(T101=Références!$B$8,Références!$D$8)+IF(T101=Références!$B$9,Références!$D$9)+IF(T101=Références!$B$10,Références!$D$10)+IF(T101=Références!$B$11,Références!$D$11)+IF(T101=Références!$B$12,Références!$D$12)+IF(T101=Références!$B$13,IF(S101>=1600,Références!$D$16,IF('Calculateur-Transport'!S101>=500,Références!$D$15,IF('Calculateur-Transport'!S101<=499,Références!$D$14)))))*S101","v":0}]
[null,null,null,null,null,null,null,null,null,null,null,null,null,null,null,null,null,null,null,null,{"$f":"(IF(T102=Références!$B$5,Références!$D$5)+IF(T102=Références!$B$6,Références!$D$6)+IF(T102=Références!$B$7,Références!$D$7)+IF(T102=Références!$B$8,Références!$D$8)+IF(T102=Références!$B$9,Références!$D$9)+IF(T102=Références!$B$10,Références!$D$10)+IF(T102=Références!$B$11,Références!$D$11)+IF(T102=Références!$B$12,Références!$D$12)+IF(T102=Références!$B$13,IF(S102>=1600,Références!$D$16,IF('Calculateur-Transport'!S102>=500,Références!$D$15,IF('Calculateur-Transport'!S102<=499,Références!$D$14)))))*S102","v":0}]
[null,null,null,null,null,null,null,null,null,null,null,null,null,null,null,null,null,null,null,null,{"$f":"(IF(T103=Références!$B$5,Références!$D$5)+IF(T103=Références!$B$6,Références!$D$6)+IF(T103=Références!$B$7,Références!$D$7)+IF(T103=Références!$B$8,Références!$D$8)+IF(T103=Références!$B$9,Références!$D$9)+IF(T103=Références!$B$10,Références!$D$10)+IF(T103=Références!$B$11,Références!$D$11)+IF(T103=Références!$B$12,Références!$D$12)+IF(T103=Références!$B$13,IF(S103>=1600,Références!$D$16,IF('Calculateur-Transport'!S103>=500,Références!$D$15,IF('Calculateur-Transport'!S103<=499,Références!$D$14)))))*S103","v":0}]
[null,null,null,null,null,null,null,null,null,null,null,null,null,null,null,null,null,null,null,null,{"$f":"(IF(T104=Références!$B$5,Références!$D$5)+IF(T104=Références!$B$6,Références!$D$6)+IF(T104=Références!$B$7,Références!$D$7)+IF(T104=Références!$B$8,Références!$D$8)+IF(T104=Références!$B$9,Références!$D$9)+IF(T104=Références!$B$10,Références!$D$10)+IF(T104=Références!$B$11,Références!$D$11)+IF(T104=Références!$B$12,Références!$D$12)+IF(T104=Références!$B$13,IF(S104>=1600,Références!$D$16,IF('Calculateur-Transport'!S104>=500,Références!$D$15,IF('Calculateur-Transport'!S104<=499,Références!$D$14)))))*S104","v":0}]
[null,null,null,null,null,null,null,null,null,null,null,null,null,null,null,null,null,null,null,null,{"$f":"(IF(T105=Références!$B$5,Références!$D$5)+IF(T105=Références!$B$6,Références!$D$6)+IF(T105=Références!$B$7,Références!$D$7)+IF(T105=Références!$B$8,Références!$D$8)+IF(T105=Références!$B$9,Références!$D$9)+IF(T105=Références!$B$10,Références!$D$10)+IF(T105=Références!$B$11,Références!$D$11)+IF(T105=Références!$B$12,Références!$D$12)+IF(T105=Références!$B$13,IF(S105>=1600,Références!$D$16,IF('Calculateur-Transport'!S105>=500,Références!$D$15,IF('Calculateur-Transport'!S105<=499,Références!$D$14)))))*S105","v":0}]
[null,null,null,null,null,null,null,null,null,null,null,null,null,null,null,null,null,null,null,null,{"$f":"(IF(T106=Références!$B$5,Références!$D$5)+IF(T106=Références!$B$6,Références!$D$6)+IF(T106=Références!$B$7,Références!$D$7)+IF(T106=Références!$B$8,Références!$D$8)+IF(T106=Références!$B$9,Références!$D$9)+IF(T106=Références!$B$10,Références!$D$10)+IF(T106=Références!$B$11,Références!$D$11)+IF(T106=Références!$B$12,Références!$D$12)+IF(T106=Références!$B$13,IF(S106>=1600,Références!$D$16,IF('Calculateur-Transport'!S106>=500,Références!$D$15,IF('Calculateur-Transport'!S106<=499,Références!$D$14)))))*S106","v":0}]
[null,null,null,null,null,null,null,null,null,null,null,null,null,null,null,null,null,null,null,null,{"$f":"(IF(T107=Références!$B$5,Références!$D$5)+IF(T107=Références!$B$6,Références!$D$6)+IF(T107=Références!$B$7,Références!$D$7)+IF(T107=Références!$B$8,Références!$D$8)+IF(T107=Références!$B$9,Références!$D$9)+IF(T107=Références!$B$10,Références!$D$10)+IF(T107=Références!$B$11,Références!$D$11)+IF(T107=Références!$B$12,Références!$D$12)+IF(T107=Références!$B$13,IF(S107>=1600,Références!$D$16,IF('Calculateur-Transport'!S107>=500,Références!$D$15,IF('Calculateur-Transport'!S107<=499,Références!$D$14)))))*S107","v":0}]
[null,null,null,null,null,null,null,null,null,null,null,null,null,null,null,null,null,null,null,null,{"$f":"(IF(T108=Références!$B$5,Références!$D$5)+IF(T108=Références!$B$6,Références!$D$6)+IF(T108=Références!$B$7,Références!$D$7)+IF(T108=Références!$B$8,Références!$D$8)+IF(T108=Références!$B$9,Références!$D$9)+IF(T108=Références!$B$10,Références!$D$10)+IF(T108=Références!$B$11,Références!$D$11)+IF(T108=Références!$B$12,Références!$D$12)+IF(T108=Références!$B$13,IF(S108>=1600,Références!$D$16,IF('Calculateur-Transport'!S108>=500,Références!$D$15,IF('Calculateur-Transport'!S108<=499,Références!$D$14)))))*S108","v":0}]
[null,null,null,null,null,null,null,null,null,null,null,null,null,null,null,null,null,null,null,null,{"$f":"(IF(T109=Références!$B$5,Références!$D$5)+IF(T109=Références!$B$6,Références!$D$6)+IF(T109=Références!$B$7,Références!$D$7)+IF(T109=Références!$B$8,Références!$D$8)+IF(T109=Références!$B$9,Références!$D$9)+IF(T109=Références!$B$10,Références!$D$10)+IF(T109=Références!$B$11,Références!$D$11)+IF(T109=Références!$B$12,Références!$D$12)+IF(T109=Références!$B$13,IF(S109>=1600,Références!$D$16,IF('Calculateur-Transport'!S109>=500,Références!$D$15,IF('Calculateur-Transport'!S109<=499,Références!$D$14)))))*S109","v":0}]
[null,null,null,null,null,null,null,null,null,null,null,null,null,null,null,null,null,null,null,null,{"$f":"(IF(T110=Références!$B$5,Références!$D$5)+IF(T110=Références!$B$6,Références!$D$6)+IF(T110=Références!$B$7,Références!$D$7)+IF(T110=Références!$B$8,Références!$D$8)+IF(T110=Références!$B$9,Références!$D$9)+IF(T110=Références!$B$10,Références!$D$10)+IF(T110=Références!$B$11,Références!$D$11)+IF(T110=Références!$B$12,Références!$D$12)+IF(T110=Références!$B$13,IF(S110>=1600,Références!$D$16,IF('Calculateur-Transport'!S110>=500,Références!$D$15,IF('Calculateur-Transport'!S110<=499,Références!$D$14)))))*S110","v":0}]
[null,null,null,null,null,null,null,null,null,null,null,null,null,null,null,null,null,null,null,null,{"$f":"(IF(T111=Références!$B$5,Références!$D$5)+IF(T111=Références!$B$6,Références!$D$6)+IF(T111=Références!$B$7,Références!$D$7)+IF(T111=Références!$B$8,Références!$D$8)+IF(T111=Références!$B$9,Références!$D$9)+IF(T111=Références!$B$10,Références!$D$10)+IF(T111=Références!$B$11,Références!$D$11)+IF(T111=Références!$B$12,Références!$D$12)+IF(T111=Références!$B$13,IF(S111>=1600,Références!$D$16,IF('Calculateur-Transport'!S111>=500,Références!$D$15,IF('Calculateur-Transport'!S111<=499,Références!$D$14)))))*S111","v":0}]
[null,null,null,null,null,null,null,null,null,null,null,null,null,null,null,null,null,null,null,null,{"$f":"(IF(T112=Références!$B$5,Références!$D$5)+IF(T112=Références!$B$6,Références!$D$6)+IF(T112=Références!$B$7,Références!$D$7)+IF(T112=Références!$B$8,Références!$D$8)+IF(T112=Références!$B$9,Références!$D$9)+IF(T112=Références!$B$10,Références!$D$10)+IF(T112=Références!$B$11,Références!$D$11)+IF(T112=Références!$B$12,Références!$D$12)+IF(T112=Références!$B$13,IF(S112>=1600,Références!$D$16,IF('Calculateur-Transport'!S112>=500,Références!$D$15,IF('Calculateur-Transport'!S112<=499,Références!$D$14)))))*S112","v":0}]
[null,null,null,null,null,null,null,null,null,null,null,null,null,null,null,null,null,null,null,null,{"$f":"(IF(T113=Références!$B$5,Références!$D$5)+IF(T113=Références!$B$6,Références!$D$6)+IF(T113=Références!$B$7,Références!$D$7)+IF(T113=Références!$B$8,Références!$D$8)+IF(T113=Références!$B$9,Références!$D$9)+IF(T113=Références!$B$10,Références!$D$10)+IF(T113=Références!$B$11,Références!$D$11)+IF(T113=Références!$B$12,Références!$D$12)+IF(T113=Références!$B$13,IF(S113>=1600,Références!$D$16,IF('Calculateur-Transport'!S113>=500,Références!$D$15,IF('Calculateur-Transport'!S113<=499,Références!$D$14)))))*S113","v":0}]
[null,null,null,null,null,null,null,null,null,null,null,null,null,null,null,null,null,null,null,null,{"$f":"(IF(T114=Références!$B$5,Références!$D$5)+IF(T114=Références!$B$6,Références!$D$6)+IF(T114=Références!$B$7,Références!$D$7)+IF(T114=Références!$B$8,Références!$D$8)+IF(T114=Références!$B$9,Références!$D$9)+IF(T114=Références!$B$10,Références!$D$10)+IF(T114=Références!$B$11,Références!$D$11)+IF(T114=Références!$B$12,Références!$D$12)+IF(T114=Références!$B$13,IF(S114>=1600,Références!$D$16,IF('Calculateur-Transport'!S114>=500,Références!$D$15,IF('Calculateur-Transport'!S114<=499,Références!$D$14)))))*S114","v":0}]
[null,null,null,null,null,null,null,null,null,null,null,null,null,null,null,null,null,null,null,null,{"$f":"(IF(T115=Références!$B$5,Références!$D$5)+IF(T115=Références!$B$6,Références!$D$6)+IF(T115=Références!$B$7,Références!$D$7)+IF(T115=Références!$B$8,Références!$D$8)+IF(T115=Références!$B$9,Références!$D$9)+IF(T115=Références!$B$10,Références!$D$10)+IF(T115=Références!$B$11,Références!$D$11)+IF(T115=Références!$B$12,Références!$D$12)+IF(T115=Références!$B$13,IF(S115>=1600,Références!$D$16,IF('Calculateur-Transport'!S115>=500,Références!$D$15,IF('Calculateur-Transport'!S115<=499,Références!$D$14)))))*S115","v":0}]
[null,null,null,null,null,null,null,null,null,null,null,null,null,null,null,null,null,null,null,null,{"$f":"(IF(T116=Références!$B$5,Références!$D$5)+IF(T116=Références!$B$6,Références!$D$6)+IF(T116=Références!$B$7,Références!$D$7)+IF(T116=Références!$B$8,Références!$D$8)+IF(T116=Références!$B$9,Références!$D$9)+IF(T116=Références!$B$10,Références!$D$10)+IF(T116=Références!$B$11,Références!$D$11)+IF(T116=Références!$B$12,Références!$D$12)+IF(T116=Références!$B$13,IF(S116>=1600,Références!$D$16,IF('Calculateur-Transport'!S116>=500,Références!$D$15,IF('Calculateur-Transport'!S116<=499,Références!$D$14)))))*S116","v":0}]
[null,null,null,null,null,null,null,null,null,null,null,null,null,null,null,null,null,null,null,null,{"$f":"(IF(T117=Références!$B$5,Références!$D$5)+IF(T117=Références!$B$6,Références!$D$6)+IF(T117=Références!$B$7,Références!$D$7)+IF(T117=Références!$B$8,Références!$D$8)+IF(T117=Références!$B$9,Références!$D$9)+IF(T117=Références!$B$10,Références!$D$10)+IF(T117=Références!$B$11,Références!$D$11)+IF(T117=Références!$B$12,Références!$D$12)+IF(T117=Références!$B$13,IF(S117>=1600,Références!$D$16,IF('Calculateur-Transport'!S117>=500,Références!$D$15,IF('Calculateur-Transport'!S117<=499,Références!$D$14)))))*S117","v":0}]
[null,null,null,null,null,null,null,null,null,null,null,null,null,null,null,null,null,null,null,null,{"$f":"(IF(T118=Références!$B$5,Références!$D$5)+IF(T118=Références!$B$6,Références!$D$6)+IF(T118=Références!$B$7,Références!$D$7)+IF(T118=Références!$B$8,Références!$D$8)+IF(T118=Références!$B$9,Références!$D$9)+IF(T118=Références!$B$10,Références!$D$10)+IF(T118=Références!$B$11,Références!$D$11)+IF(T118=Références!$B$12,Références!$D$12)+IF(T118=Références!$B$13,IF(S118>=1600,Références!$D$16,IF('Calculateur-Transport'!S118>=500,Références!$D$15,IF('Calculateur-Transport'!S118<=499,Références!$D$14)))))*S118","v":0}]
[null,null,null,null,null,null,null,null,null,null,null,null,null,null,null,null,null,null,null,null,{"$f":"(IF(T119=Références!$B$5,Références!$D$5)+IF(T119=Références!$B$6,Références!$D$6)+IF(T119=Références!$B$7,Références!$D$7)+IF(T119=Références!$B$8,Références!$D$8)+IF(T119=Références!$B$9,Références!$D$9)+IF(T119=Références!$B$10,Références!$D$10)+IF(T119=Références!$B$11,Références!$D$11)+IF(T119=Références!$B$12,Références!$D$12)+IF(T119=Références!$B$13,IF(S119>=1600,Références!$D$16,IF('Calculateur-Transport'!S119>=500,Références!$D$15,IF('Calculateur-Transport'!S119<=499,Références!$D$14)))))*S119","v":0}]
[null,null,null,null,null,null,null,null,null,null,null,null,null,null,null,null,null,null,null,null,{"$f":"(IF(T120=Références!$B$5,Références!$D$5)+IF(T120=Références!$B$6,Références!$D$6)+IF(T120=Références!$B$7,Références!$D$7)+IF(T120=Références!$B$8,Références!$D$8)+IF(T120=Références!$B$9,Références!$D$9)+IF(T120=Références!$B$10,Références!$D$10)+IF(T120=Références!$B$11,Références!$D$11)+IF(T120=Références!$B$12,Références!$D$12)+IF(T120=Références!$B$13,IF(S120>=1600,Références!$D$16,IF('Calculateur-Transport'!S120>=500,Références!$D$15,IF('Calculateur-Transport'!S120<=499,Références!$D$14)))))*S120","v":0}]
[null,null,null,null,null,null,null,null,null,null,null,null,null,null,null,null,null,null,null,null,{"$f":"(IF(T121=Références!$B$5,Références!$D$5)+IF(T121=Références!$B$6,Références!$D$6)+IF(T121=Références!$B$7,Références!$D$7)+IF(T121=Références!$B$8,Références!$D$8)+IF(T121=Références!$B$9,Références!$D$9)+IF(T121=Références!$B$10,Références!$D$10)+IF(T121=Références!$B$11,Références!$D$11)+IF(T121=Références!$B$12,Références!$D$12)+IF(T121=Références!$B$13,IF(S121>=1600,Références!$D$16,IF('Calculateur-Transport'!S121>=500,Références!$D$15,IF('Calculateur-Transport'!S121<=499,Références!$D$14)))))*S121","v":0}]
[null,null,null,null,null,null,null,null,null,null,null,null,null,null,null,null,null,null,null,null,{"$f":"(IF(T122=Références!$B$5,Références!$D$5)+IF(T122=Références!$B$6,Références!$D$6)+IF(T122=Références!$B$7,Références!$D$7)+IF(T122=Références!$B$8,Références!$D$8)+IF(T122=Références!$B$9,Références!$D$9)+IF(T122=Références!$B$10,Références!$D$10)+IF(T122=Références!$B$11,Références!$D$11)+IF(T122=Références!$B$12,Références!$D$12)+IF(T122=Références!$B$13,IF(S122>=1600,Références!$D$16,IF('Calculateur-Transport'!S122>=500,Références!$D$15,IF('Calculateur-Transport'!S122<=499,Références!$D$14)))))*S122","v":0}]
[null,null,null,null,null,null,null,null,null,null,null,null,null,null,null,null,null,null,null,null,{"$f":"(IF(T123=Références!$B$5,Références!$D$5)+IF(T123=Références!$B$6,Références!$D$6)+IF(T123=Références!$B$7,Références!$D$7)+IF(T123=Références!$B$8,Références!$D$8)+IF(T123=Références!$B$9,Références!$D$9)+IF(T123=Références!$B$10,Références!$D$10)+IF(T123=Références!$B$11,Références!$D$11)+IF(T123=Références!$B$12,Références!$D$12)+IF(T123=Références!$B$13,IF(S123>=1600,Références!$D$16,IF('Calculateur-Transport'!S123>=500,Références!$D$15,IF('Calculateur-Transport'!S123<=499,Références!$D$14)))))*S123","v":0}]
[null,null,null,null,null,null,null,null,null,null,null,null,null,null,null,null,null,null,null,null,{"$f":"(IF(T124=Références!$B$5,Références!$D$5)+IF(T124=Références!$B$6,Références!$D$6)+IF(T124=Références!$B$7,Références!$D$7)+IF(T124=Références!$B$8,Références!$D$8)+IF(T124=Références!$B$9,Références!$D$9)+IF(T124=Références!$B$10,Références!$D$10)+IF(T124=Références!$B$11,Références!$D$11)+IF(T124=Références!$B$12,Références!$D$12)+IF(T124=Références!$B$13,IF(S124>=1600,Références!$D$16,IF('Calculateur-Transport'!S124>=500,Références!$D$15,IF('Calculateur-Transport'!S124<=499,Références!$D$14)))))*S124","v":0}]
[null,null,null,null,null,null,null,null,null,null,null,null,null,null,null,null,null,null,null,null,{"$f":"(IF(T125=Références!$B$5,Références!$D$5)+IF(T125=Références!$B$6,Références!$D$6)+IF(T125=Références!$B$7,Références!$D$7)+IF(T125=Références!$B$8,Références!$D$8)+IF(T125=Références!$B$9,Références!$D$9)+IF(T125=Références!$B$10,Références!$D$10)+IF(T125=Références!$B$11,Références!$D$11)+IF(T125=Références!$B$12,Références!$D$12)+IF(T125=Références!$B$13,IF(S125>=1600,Références!$D$16,IF('Calculateur-Transport'!S125>=500,Références!$D$15,IF('Calculateur-Transport'!S125<=499,Références!$D$14)))))*S125","v":0}]
[null,null,null,null,null,null,null,null,null,null,null,null,null,null,null,null,null,null,null,null,{"$f":"(IF(T126=Références!$B$5,Références!$D$5)+IF(T126=Références!$B$6,Références!$D$6)+IF(T126=Références!$B$7,Références!$D$7)+IF(T126=Références!$B$8,Références!$D$8)+IF(T126=Références!$B$9,Références!$D$9)+IF(T126=Références!$B$10,Références!$D$10)+IF(T126=Références!$B$11,Références!$D$11)+IF(T126=Références!$B$12,Références!$D$12)+IF(T126=Références!$B$13,IF(S126>=1600,Références!$D$16,IF('Calculateur-Transport'!S126>=500,Références!$D$15,IF('Calculateur-Transport'!S126<=499,Références!$D$14)))))*S126","v":0}]
[null,null,null,null,null,null,null,null,null,null,null,null,null,null,null,null,null,null,null,null,{"$f":"(IF(T127=Références!$B$5,Références!$D$5)+IF(T127=Références!$B$6,Références!$D$6)+IF(T127=Références!$B$7,Références!$D$7)+IF(T127=Références!$B$8,Références!$D$8)+IF(T127=Références!$B$9,Références!$D$9)+IF(T127=Références!$B$10,Références!$D$10)+IF(T127=Références!$B$11,Références!$D$11)+IF(T127=Références!$B$12,Références!$D$12)+IF(T127=Références!$B$13,IF(S127>=1600,Références!$D$16,IF('Calculateur-Transport'!S127>=500,Références!$D$15,IF('Calculateur-Transport'!S127<=499,Références!$D$14)))))*S127","v":0}]
[null,null,null,null,null,null,null,null,null,null,null,null,null,null,null,null,null,null,null,null,{"$f":"(IF(T128=Références!$B$5,Références!$D$5)+IF(T128=Références!$B$6,Références!$D$6)+IF(T128=Références!$B$7,Références!$D$7)+IF(T128=Références!$B$8,Références!$D$8)+IF(T128=Références!$B$9,Références!$D$9)+IF(T128=Références!$B$10,Références!$D$10)+IF(T128=Références!$B$11,Références!$D$11)+IF(T128=Références!$B$12,Références!$D$12)+IF(T128=Références!$B$13,IF(S128>=1600,Références!$D$16,IF('Calculateur-Transport'!S128>=500,Références!$D$15,IF('Calculateur-Transport'!S128<=499,Références!$D$14)))))*S128","v":0}]
[null,null,null,null,null,null,null,null,null,null,null,null,null,null,null,null,null,null,null,null,{"$f":"(IF(T129=Références!$B$5,Références!$D$5)+IF(T129=Références!$B$6,Références!$D$6)+IF(T129=Références!$B$7,Références!$D$7)+IF(T129=Références!$B$8,Références!$D$8)+IF(T129=Références!$B$9,Références!$D$9)+IF(T129=Références!$B$10,Références!$D$10)+IF(T129=Références!$B$11,Références!$D$11)+IF(T129=Références!$B$12,Références!$D$12)+IF(T129=Références!$B$13,IF(S129>=1600,Références!$D$16,IF('Calculateur-Transport'!S129>=500,Références!$D$15,IF('Calculateur-Transport'!S129<=499,Références!$D$14)))))*S129","v":0}]
[null,null,null,null,null,null,null,null,null,null,null,null,null,null,null,null,null,null,null,null,{"$f":"(IF(T130=Références!$B$5,Références!$D$5)+IF(T130=Références!$B$6,Références!$D$6)+IF(T130=Références!$B$7,Références!$D$7)+IF(T130=Références!$B$8,Références!$D$8)+IF(T130=Références!$B$9,Références!$D$9)+IF(T130=Références!$B$10,Références!$D$10)+IF(T130=Références!$B$11,Références!$D$11)+IF(T130=Références!$B$12,Références!$D$12)+IF(T130=Références!$B$13,IF(S130>=1600,Références!$D$16,IF('Calculateur-Transport'!S130>=500,Références!$D$15,IF('Calculateur-Transport'!S130<=499,Références!$D$14)))))*S130","v":0}]
[null,null,null,null,null,null,null,null,null,null,null,null,null,null,null,null,null,null,null,null,{"$f":"(IF(T131=Références!$B$5,Références!$D$5)+IF(T131=Références!$B$6,Références!$D$6)+IF(T131=Références!$B$7,Références!$D$7)+IF(T131=Références!$B$8,Références!$D$8)+IF(T131=Références!$B$9,Références!$D$9)+IF(T131=Références!$B$10,Références!$D$10)+IF(T131=Références!$B$11,Références!$D$11)+IF(T131=Références!$B$12,Références!$D$12)+IF(T131=Références!$B$13,IF(S131>=1600,Références!$D$16,IF('Calculateur-Transport'!S131>=500,Références!$D$15,IF('Calculateur-Transport'!S131<=499,Références!$D$14)))))*S131","v":0}]
[null,null,null,null,null,null,null,null,null,null,null,null,null,null,null,null,null,null,null,null,{"$f":"(IF(T132=Références!$B$5,Références!$D$5)+IF(T132=Références!$B$6,Références!$D$6)+IF(T132=Références!$B$7,Références!$D$7)+IF(T132=Références!$B$8,Références!$D$8)+IF(T132=Références!$B$9,Références!$D$9)+IF(T132=Références!$B$10,Références!$D$10)+IF(T132=Références!$B$11,Références!$D$11)+IF(T132=Références!$B$12,Références!$D$12)+IF(T132=Références!$B$13,IF(S132>=1600,Références!$D$16,IF('Calculateur-Transport'!S132>=500,Références!$D$15,IF('Calculateur-Transport'!S132<=499,Références!$D$14)))))*S132","v":0}]
[null,null,null,null,null,null,null,null,null,null,null,null,null,null,null,null,null,null,null,null,{"$f":"(IF(T133=Références!$B$5,Références!$D$5)+IF(T133=Références!$B$6,Références!$D$6)+IF(T133=Références!$B$7,Références!$D$7)+IF(T133=Références!$B$8,Références!$D$8)+IF(T133=Références!$B$9,Références!$D$9)+IF(T133=Références!$B$10,Références!$D$10)+IF(T133=Références!$B$11,Références!$D$11)+IF(T133=Références!$B$12,Références!$D$12)+IF(T133=Références!$B$13,IF(S133>=1600,Références!$D$16,IF('Calculateur-Transport'!S133>=500,Références!$D$15,IF('Calculateur-Transport'!S133<=499,Références!$D$14)))))*S133","v":0}]
[null,null,null,null,null,null,null,null,null,null,null,null,null,null,null,null,null,null,null,null,{"$f":"(IF(T134=Références!$B$5,Références!$D$5)+IF(T134=Références!$B$6,Références!$D$6)+IF(T134=Références!$B$7,Références!$D$7)+IF(T134=Références!$B$8,Références!$D$8)+IF(T134=Références!$B$9,Références!$D$9)+IF(T134=Références!$B$10,Références!$D$10)+IF(T134=Références!$B$11,Références!$D$11)+IF(T134=Références!$B$12,Références!$D$12)+IF(T134=Références!$B$13,IF(S134>=1600,Références!$D$16,IF('Calculateur-Transport'!S134>=500,Références!$D$15,IF('Calculateur-Transport'!S134<=499,Références!$D$14)))))*S134","v":0}]
[null,null,null,null,null,null,null,null,null,null,null,null,null,null,null,null,null,null,null,null,{"$f":"(IF(T135=Références!$B$5,Références!$D$5)+IF(T135=Références!$B$6,Références!$D$6)+IF(T135=Références!$B$7,Références!$D$7)+IF(T135=Références!$B$8,Références!$D$8)+IF(T135=Références!$B$9,Références!$D$9)+IF(T135=Références!$B$10,Références!$D$10)+IF(T135=Références!$B$11,Références!$D$11)+IF(T135=Références!$B$12,Références!$D$12)+IF(T135=Références!$B$13,IF(S135>=1600,Références!$D$16,IF('Calculateur-Transport'!S135>=500,Références!$D$15,IF('Calculateur-Transport'!S135<=499,Références!$D$14)))))*S135","v":0}]
[null,null,null,null,null,null,null,null,null,null,null,null,null,null,null,null,null,null,null,null,{"$f":"(IF(T136=Références!$B$5,Références!$D$5)+IF(T136=Références!$B$6,Références!$D$6)+IF(T136=Références!$B$7,Références!$D$7)+IF(T136=Références!$B$8,Références!$D$8)+IF(T136=Références!$B$9,Références!$D$9)+IF(T136=Références!$B$10,Références!$D$10)+IF(T136=Références!$B$11,Références!$D$11)+IF(T136=Références!$B$12,Références!$D$12)+IF(T136=Références!$B$13,IF(S136>=1600,Références!$D$16,IF('Calculateur-Transport'!S136>=500,Références!$D$15,IF('Calculateur-Transport'!S136<=499,Références!$D$14)))))*S136","v":0}]
[null,null,null,null,null,null,null,null,null,null,null,null,null,null,null,null,null,null,null,null,{"$f":"(IF(T137=Références!$B$5,Références!$D$5)+IF(T137=Références!$B$6,Références!$D$6)+IF(T137=Références!$B$7,Références!$D$7)+IF(T137=Références!$B$8,Références!$D$8)+IF(T137=Références!$B$9,Références!$D$9)+IF(T137=Références!$B$10,Références!$D$10)+IF(T137=Références!$B$11,Références!$D$11)+IF(T137=Références!$B$12,Références!$D$12)+IF(T137=Références!$B$13,IF(S137>=1600,Références!$D$16,IF('Calculateur-Transport'!S137>=500,Références!$D$15,IF('Calculateur-Transport'!S137<=499,Références!$D$14)))))*S137","v":0}]
[null,null,null,null,null,null,null,null,null,null,null,null,null,null,null,null,null,null,null,null,{"$f":"(IF(T138=Références!$B$5,Références!$D$5)+IF(T138=Références!$B$6,Références!$D$6)+IF(T138=Références!$B$7,Références!$D$7)+IF(T138=Références!$B$8,Références!$D$8)+IF(T138=Références!$B$9,Références!$D$9)+IF(T138=Références!$B$10,Références!$D$10)+IF(T138=Références!$B$11,Références!$D$11)+IF(T138=Références!$B$12,Références!$D$12)+IF(T138=Références!$B$13,IF(S138>=1600,Références!$D$16,IF('Calculateur-Transport'!S138>=500,Références!$D$15,IF('Calculateur-Transport'!S138<=499,Références!$D$14)))))*S138","v":0}]
[null,null,null,null,null,null,null,null,null,null,null,null,null,null,null,null,null,null,null,null,{"$f":"(IF(T139=Références!$B$5,Références!$D$5)+IF(T139=Références!$B$6,Références!$D$6)+IF(T139=Références!$B$7,Références!$D$7)+IF(T139=Références!$B$8,Références!$D$8)+IF(T139=Références!$B$9,Références!$D$9)+IF(T139=Références!$B$10,Références!$D$10)+IF(T139=Références!$B$11,Références!$D$11)+IF(T139=Références!$B$12,Références!$D$12)+IF(T139=Références!$B$13,IF(S139>=1600,Références!$D$16,IF('Calculateur-Transport'!S139>=500,Références!$D$15,IF('Calculateur-Transport'!S139<=499,Références!$D$14)))))*S139","v":0}]
[null,null,null,null,null,null,null,null,null,null,null,null,null,null,null,null,null,null,null,null,{"$f":"(IF(T140=Références!$B$5,Références!$D$5)+IF(T140=Références!$B$6,Références!$D$6)+IF(T140=Références!$B$7,Références!$D$7)+IF(T140=Références!$B$8,Références!$D$8)+IF(T140=Références!$B$9,Références!$D$9)+IF(T140=Références!$B$10,Références!$D$10)+IF(T140=Références!$B$11,Références!$D$11)+IF(T140=Références!$B$12,Références!$D$12)+IF(T140=Références!$B$13,IF(S140>=1600,Références!$D$16,IF('Calculateur-Transport'!S140>=500,Références!$D$15,IF('Calculateur-Transport'!S140<=499,Références!$D$14)))))*S140","v":0}]
[null,null,null,null,null,null,null,null,null,null,null,null,null,null,null,null,null,null,null,null,{"$f":"(IF(T141=Références!$B$5,Références!$D$5)+IF(T141=Références!$B$6,Références!$D$6)+IF(T141=Références!$B$7,Références!$D$7)+IF(T141=Références!$B$8,Références!$D$8)+IF(T141=Références!$B$9,Références!$D$9)+IF(T141=Références!$B$10,Références!$D$10)+IF(T141=Références!$B$11,Références!$D$11)+IF(T141=Références!$B$12,Références!$D$12)+IF(T141=Références!$B$13,IF(S141>=1600,Références!$D$16,IF('Calculateur-Transport'!S141>=500,Références!$D$15,IF('Calculateur-Transport'!S141<=499,Références!$D$14)))))*S141","v":0}]
[null,null,null,null,null,null,null,null,null,null,null,null,null,null,null,null,null,null,null,null,{"$f":"(IF(T142=Références!$B$5,Références!$D$5)+IF(T142=Références!$B$6,Références!$D$6)+IF(T142=Références!$B$7,Références!$D$7)+IF(T142=Références!$B$8,Références!$D$8)+IF(T142=Références!$B$9,Références!$D$9)+IF(T142=Références!$B$10,Références!$D$10)+IF(T142=Références!$B$11,Références!$D$11)+IF(T142=Références!$B$12,Références!$D$12)+IF(T142=Références!$B$13,IF(S142>=1600,Références!$D$16,IF('Calculateur-Transport'!S142>=500,Références!$D$15,IF('Calculateur-Transport'!S142<=499,Références!$D$14)))))*S142","v":0}]
[null,null,null,null,null,null,null,null,null,null,null,null,null,null,null,null,null,null,null,null,{"$f":"(IF(T143=Références!$B$5,Références!$D$5)+IF(T143=Références!$B$6,Références!$D$6)+IF(T143=Références!$B$7,Références!$D$7)+IF(T143=Références!$B$8,Références!$D$8)+IF(T143=Références!$B$9,Références!$D$9)+IF(T143=Références!$B$10,Références!$D$10)+IF(T143=Références!$B$11,Références!$D$11)+IF(T143=Références!$B$12,Références!$D$12)+IF(T143=Références!$B$13,IF(S143>=1600,Références!$D$16,IF('Calculateur-Transport'!S143>=500,Références!$D$15,IF('Calculateur-Transport'!S143<=499,Références!$D$14)))))*S143","v":0}]
[null,null,null,null,null,null,null,null,null,null,null,null,null,null,null,null,null,null,null,null,{"$f":"(IF(T144=Références!$B$5,Références!$D$5)+IF(T144=Références!$B$6,Références!$D$6)+IF(T144=Références!$B$7,Références!$D$7)+IF(T144=Références!$B$8,Références!$D$8)+IF(T144=Références!$B$9,Références!$D$9)+IF(T144=Références!$B$10,Références!$D$10)+IF(T144=Références!$B$11,Références!$D$11)+IF(T144=Références!$B$12,Références!$D$12)+IF(T144=Références!$B$13,IF(S144>=1600,Références!$D$16,IF('Calculateur-Transport'!S144>=500,Références!$D$15,IF('Calculateur-Transport'!S144<=499,Références!$D$14)))))*S144","v":0}]
[null,null,null,null,null,null,null,null,null,null,null,null,null,null,null,null,null,null,null,null,{"$f":"(IF(T145=Références!$B$5,Références!$D$5)+IF(T145=Références!$B$6,Références!$D$6)+IF(T145=Références!$B$7,Références!$D$7)+IF(T145=Références!$B$8,Références!$D$8)+IF(T145=Références!$B$9,Références!$D$9)+IF(T145=Références!$B$10,Références!$D$10)+IF(T145=Références!$B$11,Références!$D$11)+IF(T145=Références!$B$12,Références!$D$12)+IF(T145=Références!$B$13,IF(S145>=1600,Références!$D$16,IF('Calculateur-Transport'!S145>=500,Références!$D$15,IF('Calculateur-Transport'!S145<=499,Références!$D$14)))))*S145","v":0}]
[null,null,null,null,null,null,null,null,null,null,null,null,null,null,null,null,null,null,null,null,{"$f":"(IF(T146=Références!$B$5,Références!$D$5)+IF(T146=Références!$B$6,Références!$D$6)+IF(T146=Références!$B$7,Références!$D$7)+IF(T146=Références!$B$8,Références!$D$8)+IF(T146=Références!$B$9,Références!$D$9)+IF(T146=Références!$B$10,Références!$D$10)+IF(T146=Références!$B$11,Références!$D$11)+IF(T146=Références!$B$12,Références!$D$12)+IF(T146=Références!$B$13,IF(S146>=1600,Références!$D$16,IF('Calculateur-Transport'!S146>=500,Références!$D$15,IF('Calculateur-Transport'!S146<=499,Références!$D$14)))))*S146","v":0}]
[null,null,null,null,null,null,null,null,null,null,null,null,null,null,null,null,null,null,null,null,{"$f":"(IF(T147=Références!$B$5,Références!$D$5)+IF(T147=Références!$B$6,Références!$D$6)+IF(T147=Références!$B$7,Références!$D$7)+IF(T147=Références!$B$8,Références!$D$8)+IF(T147=Références!$B$9,Références!$D$9)+IF(T147=Références!$B$10,Références!$D$10)+IF(T147=Références!$B$11,Références!$D$11)+IF(T147=Références!$B$12,Références!$D$12)+IF(T147=Références!$B$13,IF(S147>=1600,Références!$D$16,IF('Calculateur-Transport'!S147>=500,Références!$D$15,IF('Calculateur-Transport'!S147<=499,Références!$D$14)))))*S147","v":0}]
[null,null,null,null,null,null,null,null,null,null,null,null,null,null,null,null,null,null,null,null,{"$f":"(IF(T148=Références!$B$5,Références!$D$5)+IF(T148=Références!$B$6,Références!$D$6)+IF(T148=Références!$B$7,Références!$D$7)+IF(T148=Références!$B$8,Références!$D$8)+IF(T148=Références!$B$9,Références!$D$9)+IF(T148=Références!$B$10,Références!$D$10)+IF(T148=Références!$B$11,Références!$D$11)+IF(T148=Références!$B$12,Références!$D$12)+IF(T148=Références!$B$13,IF(S148>=1600,Références!$D$16,IF('Calculateur-Transport'!S148>=500,Références!$D$15,IF('Calculateur-Transport'!S148<=499,Références!$D$14)))))*S148","v":0}]
[null,null,null,null,null,null,null,null,null,null,null,null,null,null,null,null,null,null,null,null,{"$f":"(IF(T149=Références!$B$5,Références!$D$5)+IF(T149=Références!$B$6,Références!$D$6)+IF(T149=Références!$B$7,Références!$D$7)+IF(T149=Références!$B$8,Références!$D$8)+IF(T149=Références!$B$9,Références!$D$9)+IF(T149=Références!$B$10,Références!$D$10)+IF(T149=Références!$B$11,Références!$D$11)+IF(T149=Références!$B$12,Références!$D$12)+IF(T149=Références!$B$13,IF(S149>=1600,Références!$D$16,IF('Calculateur-Transport'!S149>=500,Références!$D$15,IF('Calculateur-Transport'!S149<=499,Références!$D$14)))))*S149","v":0}]
[null,null,null,null,null,null,null,null,null,null,null,null,null,null,null,null,null,null,null,null,{"$f":"(IF(T150=Références!$B$5,Références!$D$5)+IF(T150=Références!$B$6,Références!$D$6)+IF(T150=Références!$B$7,Références!$D$7)+IF(T150=Références!$B$8,Références!$D$8)+IF(T150=Références!$B$9,Références!$D$9)+IF(T150=Références!$B$10,Références!$D$10)+IF(T150=Références!$B$11,Références!$D$11)+IF(T150=Références!$B$12,Références!$D$12)+IF(T150=Références!$B$13,IF(S150>=1600,Références!$D$16,IF('Calculateur-Transport'!S150>=500,Références!$D$15,IF('Calculateur-Transport'!S150<=499,Références!$D$14)))))*S150","v":0}]
[null,null,null,null,null,null,null,null,null,null,null,null,null,null,null,null,null,null,null,null,{"$f":"(IF(T151=Références!$B$5,Références!$D$5)+IF(T151=Références!$B$6,Références!$D$6)+IF(T151=Références!$B$7,Références!$D$7)+IF(T151=Références!$B$8,Références!$D$8)+IF(T151=Références!$B$9,Références!$D$9)+IF(T151=Références!$B$10,Références!$D$10)+IF(T151=Références!$B$11,Références!$D$11)+IF(T151=Références!$B$12,Références!$D$12)+IF(T151=Références!$B$13,IF(S151>=1600,Références!$D$16,IF('Calculateur-Transport'!S151>=500,Références!$D$15,IF('Calculateur-Transport'!S151<=499,Références!$D$14)))))*S151","v":0}]
[null,null,null,null,null,null,null,null,null,null,null,null,null,null,null,null,null,null,null,null,{"$f":"(IF(T152=Références!$B$5,Références!$D$5)+IF(T152=Références!$B$6,Références!$D$6)+IF(T152=Références!$B$7,Références!$D$7)+IF(T152=Références!$B$8,Références!$D$8)+IF(T152=Références!$B$9,Références!$D$9)+IF(T152=Références!$B$10,Références!$D$10)+IF(T152=Références!$B$11,Références!$D$11)+IF(T152=Références!$B$12,Références!$D$12)+IF(T152=Références!$B$13,IF(S152>=1600,Références!$D$16,IF('Calculateur-Transport'!S152>=500,Références!$D$15,IF('Calculateur-Transport'!S152<=499,Références!$D$14)))))*S152","v":0}]
[null,null,null,null,null,null,null,null,null,null,null,null,null,null,null,null,null,null,null,null,{"$f":"(IF(T153=Références!$B$5,Références!$D$5)+IF(T153=Références!$B$6,Références!$D$6)+IF(T153=Références!$B$7,Références!$D$7)+IF(T153=Références!$B$8,Références!$D$8)+IF(T153=Références!$B$9,Références!$D$9)+IF(T153=Références!$B$10,Références!$D$10)+IF(T153=Références!$B$11,Références!$D$11)+IF(T153=Références!$B$12,Références!$D$12)+IF(T153=Références!$B$13,IF(S153>=1600,Références!$D$16,IF('Calculateur-Transport'!S153>=500,Références!$D$15,IF('Calculateur-Transport'!S153<=499,Références!$D$14)))))*S153","v":0}]
[null,null,null,null,null,null,null,null,null,null,null,null,null,null,null,null,null,null,null,null,{"$f":"(IF(T154=Références!$B$5,Références!$D$5)+IF(T154=Références!$B$6,Références!$D$6)+IF(T154=Références!$B$7,Références!$D$7)+IF(T154=Références!$B$8,Références!$D$8)+IF(T154=Références!$B$9,Références!$D$9)+IF(T154=Références!$B$10,Références!$D$10)+IF(T154=Références!$B$11,Références!$D$11)+IF(T154=Références!$B$12,Références!$D$12)+IF(T154=Références!$B$13,IF(S154>=1600,Références!$D$16,IF('Calculateur-Transport'!S154>=500,Références!$D$15,IF('Calculateur-Transport'!S154<=499,Références!$D$14)))))*S154","v":0}]
[null,null,null,null,null,null,null,null,null,null,null,null,null,null,null,null,null,null,null,null,{"$f":"(IF(T155=Références!$B$5,Références!$D$5)+IF(T155=Références!$B$6,Références!$D$6)+IF(T155=Références!$B$7,Références!$D$7)+IF(T155=Références!$B$8,Références!$D$8)+IF(T155=Références!$B$9,Références!$D$9)+IF(T155=Références!$B$10,Références!$D$10)+IF(T155=Références!$B$11,Références!$D$11)+IF(T155=Références!$B$12,Références!$D$12)+IF(T155=Références!$B$13,IF(S155>=1600,Références!$D$16,IF('Calculateur-Transport'!S155>=500,Références!$D$15,IF('Calculateur-Transport'!S155<=499,Références!$D$14)))))*S155","v":0}]
[null,null,null,null,null,null,null,null,null,null,null,null,null,null,null,null,null,null,null,null,{"$f":"(IF(T156=Références!$B$5,Références!$D$5)+IF(T156=Références!$B$6,Références!$D$6)+IF(T156=Références!$B$7,Références!$D$7)+IF(T156=Références!$B$8,Références!$D$8)+IF(T156=Références!$B$9,Références!$D$9)+IF(T156=Références!$B$10,Références!$D$10)+IF(T156=Références!$B$11,Références!$D$11)+IF(T156=Références!$B$12,Références!$D$12)+IF(T156=Références!$B$13,IF(S156>=1600,Références!$D$16,IF('Calculateur-Transport'!S156>=500,Références!$D$15,IF('Calculateur-Transport'!S156<=499,Références!$D$14)))))*S156","v":0}]
[null,null,null,null,null,null,null,null,null,null,null,null,null,null,null,null,null,null,null,null,{"$f":"(IF(T157=Références!$B$5,Références!$D$5)+IF(T157=Références!$B$6,Références!$D$6)+IF(T157=Références!$B$7,Références!$D$7)+IF(T157=Références!$B$8,Références!$D$8)+IF(T157=Références!$B$9,Références!$D$9)+IF(T157=Références!$B$10,Références!$D$10)+IF(T157=Références!$B$11,Références!$D$11)+IF(T157=Références!$B$12,Références!$D$12)+IF(T157=Références!$B$13,IF(S157>=1600,Références!$D$16,IF('Calculateur-Transport'!S157>=500,Références!$D$15,IF('Calculateur-Transport'!S157<=499,Références!$D$14)))))*S157","v":0}]
[null,null,null,null,null,null,null,null,null,null,null,null,null,null,null,null,null,null,null,null,{"$f":"(IF(T158=Références!$B$5,Références!$D$5)+IF(T158=Références!$B$6,Références!$D$6)+IF(T158=Références!$B$7,Références!$D$7)+IF(T158=Références!$B$8,Références!$D$8)+IF(T158=Références!$B$9,Références!$D$9)+IF(T158=Références!$B$10,Références!$D$10)+IF(T158=Références!$B$11,Références!$D$11)+IF(T158=Références!$B$12,Références!$D$12)+IF(T158=Références!$B$13,IF(S158>=1600,Références!$D$16,IF('Calculateur-Transport'!S158>=500,Références!$D$15,IF('Calculateur-Transport'!S158<=499,Références!$D$14)))))*S158","v":0}]
[null,null,null,null,null,null,null,null,null,null,null,null,null,null,null,null,null,null,null,null,{"$f":"(IF(T159=Références!$B$5,Références!$D$5)+IF(T159=Références!$B$6,Références!$D$6)+IF(T159=Références!$B$7,Références!$D$7)+IF(T159=Références!$B$8,Références!$D$8)+IF(T159=Références!$B$9,Références!$D$9)+IF(T159=Références!$B$10,Références!$D$10)+IF(T159=Références!$B$11,Références!$D$11)+IF(T159=Références!$B$12,Références!$D$12)+IF(T159=Références!$B$13,IF(S159>=1600,Références!$D$16,IF('Calculateur-Transport'!S159>=500,Références!$D$15,IF('Calculateur-Transport'!S159<=499,Références!$D$14)))))*S159","v":0}]
[null,null,null,null,null,null,null,null,null,null,null,null,null,null,null,null,null,null,null,null,{"$f":"(IF(T160=Références!$B$5,Références!$D$5)+IF(T160=Références!$B$6,Références!$D$6)+IF(T160=Références!$B$7,Références!$D$7)+IF(T160=Références!$B$8,Références!$D$8)+IF(T160=Références!$B$9,Références!$D$9)+IF(T160=Références!$B$10,Références!$D$10)+IF(T160=Références!$B$11,Références!$D$11)+IF(T160=Références!$B$12,Références!$D$12)+IF(T160=Références!$B$13,IF(S160>=1600,Références!$D$16,IF('Calculateur-Transport'!S160>=500,Références!$D$15,IF('Calculateur-Transport'!S160<=499,Références!$D$14)))))*S160","v":0}]
[null,null,null,null,null,null,null,null,null,null,null,null,null,null,null,null,null,null,null,null,{"$f":"(IF(T161=Références!$B$5,Références!$D$5)+IF(T161=Références!$B$6,Références!$D$6)+IF(T161=Références!$B$7,Références!$D$7)+IF(T161=Références!$B$8,Références!$D$8)+IF(T161=Références!$B$9,Références!$D$9)+IF(T161=Références!$B$10,Références!$D$10)+IF(T161=Références!$B$11,Références!$D$11)+IF(T161=Références!$B$12,Références!$D$12)+IF(T161=Références!$B$13,IF(S161>=1600,Références!$D$16,IF('Calculateur-Transport'!S161>=500,Références!$D$15,IF('Calculateur-Transport'!S161<=499,Références!$D$14)))))*S161","v":0}]
[null,null,null,null,null,null,null,null,null,null,null,null,null,null,null,null,null,null,null,null,{"$f":"(IF(T162=Références!$B$5,Références!$D$5)+IF(T162=Références!$B$6,Références!$D$6)+IF(T162=Références!$B$7,Références!$D$7)+IF(T162=Références!$B$8,Références!$D$8)+IF(T162=Références!$B$9,Références!$D$9)+IF(T162=Références!$B$10,Références!$D$10)+IF(T162=Références!$B$11,Références!$D$11)+IF(T162=Références!$B$12,Références!$D$12)+IF(T162=Références!$B$13,IF(S162>=1600,Références!$D$16,IF('Calculateur-Transport'!S162>=500,Références!$D$15,IF('Calculateur-Transport'!S162<=499,Références!$D$14)))))*S162","v":0}]
[null,null,null,null,null,null,null,null,null,null,null,null,null,null,null,null,null,null,null,null,{"$f":"(IF(T163=Références!$B$5,Références!$D$5)+IF(T163=Références!$B$6,Références!$D$6)+IF(T163=Références!$B$7,Références!$D$7)+IF(T163=Références!$B$8,Références!$D$8)+IF(T163=Références!$B$9,Références!$D$9)+IF(T163=Références!$B$10,Références!$D$10)+IF(T163=Références!$B$11,Références!$D$11)+IF(T163=Références!$B$12,Références!$D$12)+IF(T163=Références!$B$13,IF(S163>=1600,Références!$D$16,IF('Calculateur-Transport'!S163>=500,Références!$D$15,IF('Calculateur-Transport'!S163<=499,Références!$D$14)))))*S163","v":0}]
[null,null,null,null,null,null,null,null,null,null,null,null,null,null,null,null,null,null,null,null,{"$f":"(IF(T164=Références!$B$5,Références!$D$5)+IF(T164=Références!$B$6,Références!$D$6)+IF(T164=Références!$B$7,Références!$D$7)+IF(T164=Références!$B$8,Références!$D$8)+IF(T164=Références!$B$9,Références!$D$9)+IF(T164=Références!$B$10,Références!$D$10)+IF(T164=Références!$B$11,Références!$D$11)+IF(T164=Références!$B$12,Références!$D$12)+IF(T164=Références!$B$13,IF(S164>=1600,Références!$D$16,IF('Calculateur-Transport'!S164>=500,Références!$D$15,IF('Calculateur-Transport'!S164<=499,Références!$D$14)))))*S164","v":0}]
[null,null,null,null,null,null,null,null,null,null,null,null,null,null,null,null,null,null,null,null,{"$f":"(IF(T165=Références!$B$5,Références!$D$5)+IF(T165=Références!$B$6,Références!$D$6)+IF(T165=Références!$B$7,Références!$D$7)+IF(T165=Références!$B$8,Références!$D$8)+IF(T165=Références!$B$9,Références!$D$9)+IF(T165=Références!$B$10,Références!$D$10)+IF(T165=Références!$B$11,Références!$D$11)+IF(T165=Références!$B$12,Références!$D$12)+IF(T165=Références!$B$13,IF(S165>=1600,Références!$D$16,IF('Calculateur-Transport'!S165>=500,Références!$D$15,IF('Calculateur-Transport'!S165<=499,Références!$D$14)))))*S165","v":0}]
[null,null,null,null,null,null,null,null,null,null,null,null,null,null,null,null,null,null,null,null,{"$f":"(IF(T166=Références!$B$5,Références!$D$5)+IF(T166=Références!$B$6,Références!$D$6)+IF(T166=Références!$B$7,Références!$D$7)+IF(T166=Références!$B$8,Références!$D$8)+IF(T166=Références!$B$9,Références!$D$9)+IF(T166=Références!$B$10,Références!$D$10)+IF(T166=Références!$B$11,Références!$D$11)+IF(T166=Références!$B$12,Références!$D$12)+IF(T166=Références!$B$13,IF(S166>=1600,Références!$D$16,IF('Calculateur-Transport'!S166>=500,Références!$D$15,IF('Calculateur-Transport'!S166<=499,Références!$D$14)))))*S166","v":0}]
[null,null,null,null,null,null,null,null,null,null,null,null,null,null,null,null,null,null,null,null,{"$f":"(IF(T167=Références!$B$5,Références!$D$5)+IF(T167=Références!$B$6,Références!$D$6)+IF(T167=Références!$B$7,Références!$D$7)+IF(T167=Références!$B$8,Références!$D$8)+IF(T167=Références!$B$9,Références!$D$9)+IF(T167=Références!$B$10,Références!$D$10)+IF(T167=Références!$B$11,Références!$D$11)+IF(T167=Références!$B$12,Références!$D$12)+IF(T167=Références!$B$13,IF(S167>=1600,Références!$D$16,IF('Calculateur-Transport'!S167>=500,Références!$D$15,IF('Calculateur-Transport'!S167<=499,Références!$D$14)))))*S167","v":0}]
[null,null,null,null,null,null,null,null,null,null,null,null,null,null,null,null,null,null,null,null,{"$f":"(IF(T168=Références!$B$5,Références!$D$5)+IF(T168=Références!$B$6,Références!$D$6)+IF(T168=Références!$B$7,Références!$D$7)+IF(T168=Références!$B$8,Références!$D$8)+IF(T168=Références!$B$9,Références!$D$9)+IF(T168=Références!$B$10,Références!$D$10)+IF(T168=Références!$B$11,Références!$D$11)+IF(T168=Références!$B$12,Références!$D$12)+IF(T168=Références!$B$13,IF(S168>=1600,Références!$D$16,IF('Calculateur-Transport'!S168>=500,Références!$D$15,IF('Calculateur-Transport'!S168<=499,Références!$D$14)))))*S168","v":0}]
[null,null,null,null,null,null,null,null,null,null,null,null,null,null,null,null,null,null,null,null,{"$f":"(IF(T169=Références!$B$5,Références!$D$5)+IF(T169=Références!$B$6,Références!$D$6)+IF(T169=Références!$B$7,Références!$D$7)+IF(T169=Références!$B$8,Références!$D$8)+IF(T169=Références!$B$9,Références!$D$9)+IF(T169=Références!$B$10,Références!$D$10)+IF(T169=Références!$B$11,Références!$D$11)+IF(T169=Références!$B$12,Références!$D$12)+IF(T169=Références!$B$13,IF(S169>=1600,Références!$D$16,IF('Calculateur-Transport'!S169>=500,Références!$D$15,IF('Calculateur-Transport'!S169<=499,Références!$D$14)))))*S169","v":0}]
[null,null,null,null,null,null,null,null,null,null,null,null,null,null,null,null,null,null,null,null,{"$f":"(IF(T170=Références!$B$5,Références!$D$5)+IF(T170=Références!$B$6,Références!$D$6)+IF(T170=Références!$B$7,Références!$D$7)+IF(T170=Références!$B$8,Références!$D$8)+IF(T170=Références!$B$9,Références!$D$9)+IF(T170=Références!$B$10,Références!$D$10)+IF(T170=Références!$B$11,Références!$D$11)+IF(T170=Références!$B$12,Références!$D$12)+IF(T170=Références!$B$13,IF(S170>=1600,Références!$D$16,IF('Calculateur-Transport'!S170>=500,Références!$D$15,IF('Calculateur-Transport'!S170<=499,Références!$D$14)))))*S170","v":0}]
[null,null,null,null,null,null,null,null,null,null,null,null,null,null,null,null,null,null,null,null,{"$f":"(IF(T171=Références!$B$5,Références!$D$5)+IF(T171=Références!$B$6,Références!$D$6)+IF(T171=Références!$B$7,Références!$D$7)+IF(T171=Références!$B$8,Références!$D$8)+IF(T171=Références!$B$9,Références!$D$9)+IF(T171=Références!$B$10,Références!$D$10)+IF(T171=Références!$B$11,Références!$D$11)+IF(T171=Références!$B$12,Références!$D$12)+IF(T171=Références!$B$13,IF(S171>=1600,Références!$D$16,IF('Calculateur-Transport'!S171>=500,Références!$D$15,IF('Calculateur-Transport'!S171<=499,Références!$D$14)))))*S171","v":0}]
[null,null,null,null,null,null,null,null,null,null,null,null,null,null,null,null,null,null,null,null,{"$f":"(IF(T172=Références!$B$5,Références!$D$5)+IF(T172=Références!$B$6,Références!$D$6)+IF(T172=Références!$B$7,Références!$D$7)+IF(T172=Références!$B$8,Références!$D$8)+IF(T172=Références!$B$9,Références!$D$9)+IF(T172=Références!$B$10,Références!$D$10)+IF(T172=Références!$B$11,Références!$D$11)+IF(T172=Références!$B$12,Références!$D$12)+IF(T172=Références!$B$13,IF(S172>=1600,Références!$D$16,IF('Calculateur-Transport'!S172>=500,Références!$D$15,IF('Calculateur-Transport'!S172<=499,Références!$D$14)))))*S172","v":0}]
[null,null,null,null,null,null,null,null,null,null,null,null,null,null,null,null,null,null,null,null,{"$f":"(IF(T173=Références!$B$5,Références!$D$5)+IF(T173=Références!$B$6,Références!$D$6)+IF(T173=Références!$B$7,Références!$D$7)+IF(T173=Références!$B$8,Références!$D$8)+IF(T173=Références!$B$9,Références!$D$9)+IF(T173=Références!$B$10,Références!$D$10)+IF(T173=Références!$B$11,Références!$D$11)+IF(T173=Références!$B$12,Références!$D$12)+IF(T173=Références!$B$13,IF(S173>=1600,Références!$D$16,IF('Calculateur-Transport'!S173>=500,Références!$D$15,IF('Calculateur-Transport'!S173<=499,Références!$D$14)))))*S173","v":0}]
[null,null,null,null,null,null,null,null,null,null,null,null,null,null,null,null,null,null,null,null,{"$f":"(IF(T174=Références!$B$5,Références!$D$5)+IF(T174=Références!$B$6,Références!$D$6)+IF(T174=Références!$B$7,Références!$D$7)+IF(T174=Références!$B$8,Références!$D$8)+IF(T174=Références!$B$9,Références!$D$9)+IF(T174=Références!$B$10,Références!$D$10)+IF(T174=Références!$B$11,Références!$D$11)+IF(T174=Références!$B$12,Références!$D$12)+IF(T174=Références!$B$13,IF(S174>=1600,Références!$D$16,IF('Calculateur-Transport'!S174>=500,Références!$D$15,IF('Calculateur-Transport'!S174<=499,Références!$D$14)))))*S174","v":0}]
[null,null,null,null,null,null,null,null,null,null,null,null,null,null,null,null,null,null,null,null,{"$f":"(IF(T175=Références!$B$5,Références!$D$5)+IF(T175=Références!$B$6,Références!$D$6)+IF(T175=Références!$B$7,Références!$D$7)+IF(T175=Références!$B$8,Références!$D$8)+IF(T175=Références!$B$9,Références!$D$9)+IF(T175=Références!$B$10,Références!$D$10)+IF(T175=Références!$B$11,Références!$D$11)+IF(T175=Références!$B$12,Références!$D$12)+IF(T175=Références!$B$13,IF(S175>=1600,Références!$D$16,IF('Calculateur-Transport'!S175>=500,Références!$D$15,IF('Calculateur-Transport'!S175<=499,Références!$D$14)))))*S175","v":0}]
[null,null,null,null,null,null,null,null,null,null,null,null,null,null,null,null,null,null,null,null,{"$f":"(IF(T176=Références!$B$5,Références!$D$5)+IF(T176=Références!$B$6,Références!$D$6)+IF(T176=Références!$B$7,Références!$D$7)+IF(T176=Références!$B$8,Références!$D$8)+IF(T176=Références!$B$9,Références!$D$9)+IF(T176=Références!$B$10,Références!$D$10)+IF(T176=Références!$B$11,Références!$D$11)+IF(T176=Références!$B$12,Références!$D$12)+IF(T176=Références!$B$13,IF(S176>=1600,Références!$D$16,IF('Calculateur-Transport'!S176>=500,Références!$D$15,IF('Calculateur-Transport'!S176<=499,Références!$D$14)))))*S176","v":0}]
[null,null,null,null,null,null,null,null,null,null,null,null,null,null,null,null,null,null,null,null,{"$f":"(IF(T177=Références!$B$5,Références!$D$5)+IF(T177=Références!$B$6,Références!$D$6)+IF(T177=Références!$B$7,Références!$D$7)+IF(T177=Références!$B$8,Références!$D$8)+IF(T177=Références!$B$9,Références!$D$9)+IF(T177=Références!$B$10,Références!$D$10)+IF(T177=Références!$B$11,Références!$D$11)+IF(T177=Références!$B$12,Références!$D$12)+IF(T177=Références!$B$13,IF(S177>=1600,Références!$D$16,IF('Calculateur-Transport'!S177>=500,Références!$D$15,IF('Calculateur-Transport'!S177<=499,Références!$D$14)))))*S177","v":0}]
[null,null,null,null,null,null,null,null,null,null,null,null,null,null,null,null,null,null,null,null,{"$f":"(IF(T178=Références!$B$5,Références!$D$5)+IF(T178=Références!$B$6,Références!$D$6)+IF(T178=Références!$B$7,Références!$D$7)+IF(T178=Références!$B$8,Références!$D$8)+IF(T178=Références!$B$9,Références!$D$9)+IF(T178=Références!$B$10,Références!$D$10)+IF(T178=Références!$B$11,Références!$D$11)+IF(T178=Références!$B$12,Références!$D$12)+IF(T178=Références!$B$13,IF(S178>=1600,Références!$D$16,IF('Calculateur-Transport'!S178>=500,Références!$D$15,IF('Calculateur-Transport'!S178<=499,Références!$D$14)))))*S178","v":0}]
[null,null,null,null,null,null,null,null,null,null,null,null,null,null,null,null,null,null,null,null,{"$f":"(IF(T179=Références!$B$5,Références!$D$5)+IF(T179=Références!$B$6,Références!$D$6)+IF(T179=Références!$B$7,Références!$D$7)+IF(T179=Références!$B$8,Références!$D$8)+IF(T179=Références!$B$9,Références!$D$9)+IF(T179=Références!$B$10,Références!$D$10)+IF(T179=Références!$B$11,Références!$D$11)+IF(T179=Références!$B$12,Références!$D$12)+IF(T179=Références!$B$13,IF(S179>=1600,Références!$D$16,IF('Calculateur-Transport'!S179>=500,Références!$D$15,IF('Calculateur-Transport'!S179<=499,Références!$D$14)))))*S179","v":0}]
[null,null,null,null,null,null,null,null,null,null,null,null,null,null,null,null,null,null,null,null,{"$f":"(IF(T180=Références!$B$5,Références!$D$5)+IF(T180=Références!$B$6,Références!$D$6)+IF(T180=Références!$B$7,Références!$D$7)+IF(T180=Références!$B$8,Références!$D$8)+IF(T180=Références!$B$9,Références!$D$9)+IF(T180=Références!$B$10,Références!$D$10)+IF(T180=Références!$B$11,Références!$D$11)+IF(T180=Références!$B$12,Références!$D$12)+IF(T180=Références!$B$13,IF(S180>=1600,Références!$D$16,IF('Calculateur-Transport'!S180>=500,Références!$D$15,IF('Calculateur-Transport'!S180<=499,Références!$D$14)))))*S180","v":0}]
[null,null,null,null,null,null,null,null,null,null,null,null,null,null,null,null,null,null,null,null,{"$f":"(IF(T181=Références!$B$5,Références!$D$5)+IF(T181=Références!$B$6,Références!$D$6)+IF(T181=Références!$B$7,Références!$D$7)+IF(T181=Références!$B$8,Références!$D$8)+IF(T181=Références!$B$9,Références!$D$9)+IF(T181=Références!$B$10,Références!$D$10)+IF(T181=Références!$B$11,Références!$D$11)+IF(T181=Références!$B$12,Références!$D$12)+IF(T181=Références!$B$13,IF(S181>=1600,Références!$D$16,IF('Calculateur-Transport'!S181>=500,Références!$D$15,IF('Calculateur-Transport'!S181<=499,Références!$D$14)))))*S181","v":0}]
[null,null,null,null,null,null,null,null,null,null,null,null,null,null,null,null,null,null,null,null,{"$f":"(IF(T182=Références!$B$5,Références!$D$5)+IF(T182=Références!$B$6,Références!$D$6)+IF(T182=Références!$B$7,Références!$D$7)+IF(T182=Références!$B$8,Références!$D$8)+IF(T182=Références!$B$9,Références!$D$9)+IF(T182=Références!$B$10,Références!$D$10)+IF(T182=Références!$B$11,Références!$D$11)+IF(T182=Références!$B$12,Références!$D$12)+IF(T182=Références!$B$13,IF(S182>=1600,Références!$D$16,IF('Calculateur-Transport'!S182>=500,Références!$D$15,IF('Calculateur-Transport'!S182<=499,Références!$D$14)))))*S182","v":0}]
[null,null,null,null,null,null,null,null,null,null,null,null,null,null,null,null,null,null,null,null,{"$f":"(IF(T183=Références!$B$5,Références!$D$5)+IF(T183=Références!$B$6,Références!$D$6)+IF(T183=Références!$B$7,Références!$D$7)+IF(T183=Références!$B$8,Références!$D$8)+IF(T183=Références!$B$9,Références!$D$9)+IF(T183=Références!$B$10,Références!$D$10)+IF(T183=Références!$B$11,Références!$D$11)+IF(T183=Références!$B$12,Références!$D$12)+IF(T183=Références!$B$13,IF(S183>=1600,Références!$D$16,IF('Calculateur-Transport'!S183>=500,Références!$D$15,IF('Calculateur-Transport'!S183<=499,Références!$D$14)))))*S183","v":0}]
[null,null,null,null,null,null,null,null,null,null,null,null,null,null,null,null,null,null,null,null,{"$f":"(IF(T184=Références!$B$5,Références!$D$5)+IF(T184=Références!$B$6,Références!$D$6)+IF(T184=Références!$B$7,Références!$D$7)+IF(T184=Références!$B$8,Références!$D$8)+IF(T184=Références!$B$9,Références!$D$9)+IF(T184=Références!$B$10,Références!$D$10)+IF(T184=Références!$B$11,Références!$D$11)+IF(T184=Références!$B$12,Références!$D$12)+IF(T184=Références!$B$13,IF(S184>=1600,Références!$D$16,IF('Calculateur-Transport'!S184>=500,Références!$D$15,IF('Calculateur-Transport'!S184<=499,Références!$D$14)))))*S184","v":0}]
[null,null,null,null,null,null,null,null,null,null,null,null,null,null,null,null,null,null,null,null,{"$f":"(IF(T185=Références!$B$5,Références!$D$5)+IF(T185=Références!$B$6,Références!$D$6)+IF(T185=Références!$B$7,Références!$D$7)+IF(T185=Références!$B$8,Références!$D$8)+IF(T185=Références!$B$9,Références!$D$9)+IF(T185=Références!$B$10,Références!$D$10)+IF(T185=Références!$B$11,Références!$D$11)+IF(T185=Références!$B$12,Références!$D$12)+IF(T185=Références!$B$13,IF(S185>=1600,Références!$D$16,IF('Calculateur-Transport'!S185>=500,Références!$D$15,IF('Calculateur-Transport'!S185<=499,Références!$D$14)))))*S185","v":0}]
[null,null,null,null,null,null,null,null,null,null,null,null,null,null,null,null,null,null,null,null,{"$f":"(IF(T186=Références!$B$5,Références!$D$5)+IF(T186=Références!$B$6,Références!$D$6)+IF(T186=Références!$B$7,Références!$D$7)+IF(T186=Références!$B$8,Références!$D$8)+IF(T186=Références!$B$9,Références!$D$9)+IF(T186=Références!$B$10,Références!$D$10)+IF(T186=Références!$B$11,Références!$D$11)+IF(T186=Références!$B$12,Références!$D$12)+IF(T186=Références!$B$13,IF(S186>=1600,Références!$D$16,IF('Calculateur-Transport'!S186>=500,Références!$D$15,IF('Calculateur-Transport'!S186<=499,Références!$D$14)))))*S186","v":0}]
[null,null,null,null,null,null,null,null,null,null,null,null,null,null,null,null,null,null,null,null,{"$f":"(IF(T187=Références!$B$5,Références!$D$5)+IF(T187=Références!$B$6,Références!$D$6)+IF(T187=Références!$B$7,Références!$D$7)+IF(T187=Références!$B$8,Références!$D$8)+IF(T187=Références!$B$9,Références!$D$9)+IF(T187=Références!$B$10,Références!$D$10)+IF(T187=Références!$B$11,Références!$D$11)+IF(T187=Références!$B$12,Références!$D$12)+IF(T187=Références!$B$13,IF(S187>=1600,Références!$D$16,IF('Calculateur-Transport'!S187>=500,Références!$D$15,IF('Calculateur-Transport'!S187<=499,Références!$D$14)))))*S187","v":0}]
[null,null,null,null,null,null,null,null,null,null,null,null,null,null,null,null,null,null,null,null,{"$f":"(IF(T188=Références!$B$5,Références!$D$5)+IF(T188=Références!$B$6,Références!$D$6)+IF(T188=Références!$B$7,Références!$D$7)+IF(T188=Références!$B$8,Références!$D$8)+IF(T188=Références!$B$9,Références!$D$9)+IF(T188=Références!$B$10,Références!$D$10)+IF(T188=Références!$B$11,Références!$D$11)+IF(T188=Références!$B$12,Références!$D$12)+IF(T188=Références!$B$13,IF(S188>=1600,Références!$D$16,IF('Calculateur-Transport'!S188>=500,Références!$D$15,IF('Calculateur-Transport'!S188<=499,Références!$D$14)))))*S188","v":0}]
[null,null,null,null,null,null,null,null,null,null,null,null,null,null,null,null,null,null,null,null,{"$f":"(IF(T189=Références!$B$5,Références!$D$5)+IF(T189=Références!$B$6,Références!$D$6)+IF(T189=Références!$B$7,Références!$D$7)+IF(T189=Références!$B$8,Références!$D$8)+IF(T189=Références!$B$9,Références!$D$9)+IF(T189=Références!$B$10,Références!$D$10)+IF(T189=Références!$B$11,Références!$D$11)+IF(T189=Références!$B$12,Références!$D$12)+IF(T189=Références!$B$13,IF(S189>=1600,Références!$D$16,IF('Calculateur-Transport'!S189>=500,Références!$D$15,IF('Calculateur-Transport'!S189<=499,Références!$D$14)))))*S189","v":0}]
[null,null,null,null,null,null,null,null,null,null,null,null,null,null,null,null,null,null,null,null,{"$f":"(IF(T190=Références!$B$5,Références!$D$5)+IF(T190=Références!$B$6,Références!$D$6)+IF(T190=Références!$B$7,Références!$D$7)+IF(T190=Références!$B$8,Références!$D$8)+IF(T190=Références!$B$9,Références!$D$9)+IF(T190=Références!$B$10,Références!$D$10)+IF(T190=Références!$B$11,Références!$D$11)+IF(T190=Références!$B$12,Références!$D$12)+IF(T190=Références!$B$13,IF(S190>=1600,Références!$D$16,IF('Calculateur-Transport'!S190>=500,Références!$D$15,IF('Calculateur-Transport'!S190<=499,Références!$D$14)))))*S190","v":0}]
[null,null,null,null,null,null,null,null,null,null,null,null,null,null,null,null,null,null,null,null,{"$f":"(IF(T191=Références!$B$5,Références!$D$5)+IF(T191=Références!$B$6,Références!$D$6)+IF(T191=Références!$B$7,Références!$D$7)+IF(T191=Références!$B$8,Références!$D$8)+IF(T191=Références!$B$9,Références!$D$9)+IF(T191=Références!$B$10,Références!$D$10)+IF(T191=Références!$B$11,Références!$D$11)+IF(T191=Références!$B$12,Références!$D$12)+IF(T191=Références!$B$13,IF(S191>=1600,Références!$D$16,IF('Calculateur-Transport'!S191>=500,Références!$D$15,IF('Calculateur-Transport'!S191<=499,Références!$D$14)))))*S191","v":0}]
[null,null,null,null,null,null,null,null,null,null,null,null,null,null,null,null,null,null,null,null,{"$f":"(IF(T192=Références!$B$5,Références!$D$5)+IF(T192=Références!$B$6,Références!$D$6)+IF(T192=Références!$B$7,Références!$D$7)+IF(T192=Références!$B$8,Références!$D$8)+IF(T192=Références!$B$9,Références!$D$9)+IF(T192=Références!$B$10,Références!$D$10)+IF(T192=Références!$B$11,Références!$D$11)+IF(T192=Références!$B$12,Références!$D$12)+IF(T192=Références!$B$13,IF(S192>=1600,Références!$D$16,IF('Calculateur-Transport'!S192>=500,Références!$D$15,IF('Calculateur-Transport'!S192<=499,Références!$D$14)))))*S192","v":0}]
[null,null,null,null,null,null,null,null,null,null,null,null,null,null,null,null,null,null,null,null,{"$f":"(IF(T193=Références!$B$5,Références!$D$5)+IF(T193=Références!$B$6,Références!$D$6)+IF(T193=Références!$B$7,Références!$D$7)+IF(T193=Références!$B$8,Références!$D$8)+IF(T193=Références!$B$9,Références!$D$9)+IF(T193=Références!$B$10,Références!$D$10)+IF(T193=Références!$B$11,Références!$D$11)+IF(T193=Références!$B$12,Références!$D$12)+IF(T193=Références!$B$13,IF(S193>=1600,Références!$D$16,IF('Calculateur-Transport'!S193>=500,Références!$D$15,IF('Calculateur-Transport'!S193<=499,Références!$D$14)))))*S193","v":0}]
[null,null,null,null,null,null,null,null,null,null,null,null,null,null,null,null,null,null,null,null,{"$f":"(IF(T194=Références!$B$5,Références!$D$5)+IF(T194=Références!$B$6,Références!$D$6)+IF(T194=Références!$B$7,Références!$D$7)+IF(T194=Références!$B$8,Références!$D$8)+IF(T194=Références!$B$9,Références!$D$9)+IF(T194=Références!$B$10,Références!$D$10)+IF(T194=Références!$B$11,Références!$D$11)+IF(T194=Références!$B$12,Références!$D$12)+IF(T194=Références!$B$13,IF(S194>=1600,Références!$D$16,IF('Calculateur-Transport'!S194>=500,Références!$D$15,IF('Calculateur-Transport'!S194<=499,Références!$D$14)))))*S194","v":0}]
[null,null,null,null,null,null,null,null,null,null,null,null,null,null,null,null,null,null,null,null,{"$f":"(IF(T195=Références!$B$5,Références!$D$5)+IF(T195=Références!$B$6,Références!$D$6)+IF(T195=Références!$B$7,Références!$D$7)+IF(T195=Références!$B$8,Références!$D$8)+IF(T195=Références!$B$9,Références!$D$9)+IF(T195=Références!$B$10,Références!$D$10)+IF(T195=Références!$B$11,Références!$D$11)+IF(T195=Références!$B$12,Références!$D$12)+IF(T195=Références!$B$13,IF(S195>=1600,Références!$D$16,IF('Calculateur-Transport'!S195>=500,Références!$D$15,IF('Calculateur-Transport'!S195<=499,Références!$D$14)))))*S195","v":0}]
[null,null,null,null,null,null,null,null,null,null,null,null,null,null,null,null,null,null,null,null,{"$f":"(IF(T196=Références!$B$5,Références!$D$5)+IF(T196=Références!$B$6,Références!$D$6)+IF(T196=Références!$B$7,Références!$D$7)+IF(T196=Références!$B$8,Références!$D$8)+IF(T196=Références!$B$9,Références!$D$9)+IF(T196=Références!$B$10,Références!$D$10)+IF(T196=Références!$B$11,Références!$D$11)+IF(T196=Références!$B$12,Références!$D$12)+IF(T196=Références!$B$13,IF(S196>=1600,Références!$D$16,IF('Calculateur-Transport'!S196>=500,Références!$D$15,IF('Calculateur-Transport'!S196<=499,Références!$D$14)))))*S196","v":0}]
[null,null,null,null,null,null,null,null,null,null,null,null,null,null,null,null,null,null,null,null,{"$f":"(IF(T197=Références!$B$5,Références!$D$5)+IF(T197=Références!$B$6,Références!$D$6)+IF(T197=Références!$B$7,Références!$D$7)+IF(T197=Références!$B$8,Références!$D$8)+IF(T197=Références!$B$9,Références!$D$9)+IF(T197=Références!$B$10,Références!$D$10)+IF(T197=Références!$B$11,Références!$D$11)+IF(T197=Références!$B$12,Références!$D$12)+IF(T197=Références!$B$13,IF(S197>=1600,Références!$D$16,IF('Calculateur-Transport'!S197>=500,Références!$D$15,IF('Calculateur-Transport'!S197<=499,Références!$D$14)))))*S197","v":0}]
[null,null,null,null,null,null,null,null,null,null,null,null,null,null,null,null,null,null,null,null,{"$f":"(IF(T198=Références!$B$5,Références!$D$5)+IF(T198=Références!$B$6,Références!$D$6)+IF(T198=Références!$B$7,Références!$D$7)+IF(T198=Références!$B$8,Références!$D$8)+IF(T198=Références!$B$9,Références!$D$9)+IF(T198=Références!$B$10,Références!$D$10)+IF(T198=Références!$B$11,Références!$D$11)+IF(T198=Références!$B$12,Références!$D$12)+IF(T198=Références!$B$13,IF(S198>=1600,Références!$D$16,IF('Calculateur-Transport'!S198>=500,Références!$D$15,IF('Calculateur-Transport'!S198<=499,Références!$D$14)))))*S198","v":0}]
[null,null,null,null,null,null,null,null,null,null,null,null,null,null,null,null,null,null,null,null,{"$f":"(IF(T199=Références!$B$5,Références!$D$5)+IF(T199=Références!$B$6,Références!$D$6)+IF(T199=Références!$B$7,Références!$D$7)+IF(T199=Références!$B$8,Références!$D$8)+IF(T199=Références!$B$9,Références!$D$9)+IF(T199=Références!$B$10,Références!$D$10)+IF(T199=Références!$B$11,Références!$D$11)+IF(T199=Références!$B$12,Références!$D$12)+IF(T199=Références!$B$13,IF(S199>=1600,Références!$D$16,IF('Calculateur-Transport'!S199>=500,Références!$D$15,IF('Calculateur-Transport'!S199<=499,Références!$D$14)))))*S199","v":0}]
[null,null,null,null,null,null,null,null,null,null,null,null,null,null,null,null,null,null,null,null,{"$f":"(IF(T200=Références!$B$5,Références!$D$5)+IF(T200=Références!$B$6,Références!$D$6)+IF(T200=Références!$B$7,Références!$D$7)+IF(T200=Références!$B$8,Références!$D$8)+IF(T200=Références!$B$9,Références!$D$9)+IF(T200=Références!$B$10,Références!$D$10)+IF(T200=Références!$B$11,Références!$D$11)+IF(T200=Références!$B$12,Références!$D$12)+IF(T200=Références!$B$13,IF(S200>=1600,Références!$D$16,IF('Calculateur-Transport'!S200>=500,Références!$D$15,IF('Calculateur-Transport'!S200<=499,Références!$D$14)))))*S200","v":0}]
[null,null,null,null,null,null,null,null,null,null,null,null,null,null,null,null,null,null,null,null,{"$f":"(IF(T201=Références!$B$5,Références!$D$5)+IF(T201=Références!$B$6,Références!$D$6)+IF(T201=Références!$B$7,Références!$D$7)+IF(T201=Références!$B$8,Références!$D$8)+IF(T201=Références!$B$9,Références!$D$9)+IF(T201=Références!$B$10,Références!$D$10)+IF(T201=Références!$B$11,Références!$D$11)+IF(T201=Références!$B$12,Références!$D$12)+IF(T201=Références!$B$13,IF(S201>=1600,Références!$D$16,IF('Calculateur-Transport'!S201>=500,Références!$D$15,IF('Calculateur-Transport'!S201<=499,Références!$D$14)))))*S201","v":0}]
[null,null,null,null,null,null,null,null,null,null,null,null,null,null,null,null,null,null,null,null,{"$f":"(IF(T202=Références!$B$5,Références!$D$5)+IF(T202=Références!$B$6,Références!$D$6)+IF(T202=Références!$B$7,Références!$D$7)+IF(T202=Références!$B$8,Références!$D$8)+IF(T202=Références!$B$9,Références!$D$9)+IF(T202=Références!$B$10,Références!$D$10)+IF(T202=Références!$B$11,Références!$D$11)+IF(T202=Références!$B$12,Références!$D$12)+IF(T202=Références!$B$13,IF(S202>=1600,Références!$D$16,IF('Calculateur-Transport'!S202>=500,Références!$D$15,IF('Calculateur-Transport'!S202<=499,Références!$D$14)))))*S202","v":0}]
[null,null,null,null,null,null,null,null,null,null,null,null,null,null,null,null,null,null,null,null,{"$f":"(IF(T203=Références!$B$5,Références!$D$5)+IF(T203=Références!$B$6,Références!$D$6)+IF(T203=Références!$B$7,Références!$D$7)+IF(T203=Références!$B$8,Références!$D$8)+IF(T203=Références!$B$9,Références!$D$9)+IF(T203=Références!$B$10,Références!$D$10)+IF(T203=Références!$B$11,Références!$D$11)+IF(T203=Références!$B$12,Références!$D$12)+IF(T203=Références!$B$13,IF(S203>=1600,Références!$D$16,IF('Calculateur-Transport'!S203>=500,Références!$D$15,IF('Calculateur-Transport'!S203<=499,Références!$D$14)))))*S203","v":0}]
[null,null,null,null,null,null,null,null,null,null,null,null,null,null,null,null,null,null,null,null,{"$f":"(IF(T204=Références!$B$5,Références!$D$5)+IF(T204=Références!$B$6,Références!$D$6)+IF(T204=Références!$B$7,Références!$D$7)+IF(T204=Références!$B$8,Références!$D$8)+IF(T204=Références!$B$9,Références!$D$9)+IF(T204=Références!$B$10,Références!$D$10)+IF(T204=Références!$B$11,Références!$D$11)+IF(T204=Références!$B$12,Références!$D$12)+IF(T204=Références!$B$13,IF(S204>=1600,Références!$D$16,IF('Calculateur-Transport'!S204>=500,Références!$D$15,IF('Calculateur-Transport'!S204<=499,Références!$D$14)))))*S204","v":0}]
[null,null,null,null,null,null,null,null,null,null,null,null,null,null,null,null,null,null,null,null,{"$f":"(IF(T205=Références!$B$5,Références!$D$5)+IF(T205=Références!$B$6,Références!$D$6)+IF(T205=Références!$B$7,Références!$D$7)+IF(T205=Références!$B$8,Références!$D$8)+IF(T205=Références!$B$9,Références!$D$9)+IF(T205=Références!$B$10,Références!$D$10)+IF(T205=Références!$B$11,Références!$D$11)+IF(T205=Références!$B$12,Références!$D$12)+IF(T205=Références!$B$13,IF(S205>=1600,Références!$D$16,IF('Calculateur-Transport'!S205>=500,Références!$D$15,IF('Calculateur-Transport'!S205<=499,Références!$D$14)))))*S205","v":0}]
[null,null,null,null,null,null,null,null,null,null,null,null,null,null,null,null,null,null,null,null,{"$f":"(IF(T206=Références!$B$5,Références!$D$5)+IF(T206=Références!$B$6,Références!$D$6)+IF(T206=Références!$B$7,Références!$D$7)+IF(T206=Références!$B$8,Références!$D$8)+IF(T206=Références!$B$9,Références!$D$9)+IF(T206=Références!$B$10,Références!$D$10)+IF(T206=Références!$B$11,Références!$D$11)+IF(T206=Références!$B$12,Références!$D$12)+IF(T206=Références!$B$13,IF(S206>=1600,Références!$D$16,IF('Calculateur-Transport'!S206>=500,Références!$D$15,IF('Calculateur-Transport'!S206<=499,Références!$D$14)))))*S206","v":0}]
[null,null,null,null,null,null,null,null,null,null,null,null,null,null,null,null,null,null,null,null,{"$f":"(IF(T207=Références!$B$5,Références!$D$5)+IF(T207=Références!$B$6,Références!$D$6)+IF(T207=Références!$B$7,Références!$D$7)+IF(T207=Références!$B$8,Références!$D$8)+IF(T207=Références!$B$9,Références!$D$9)+IF(T207=Références!$B$10,Références!$D$10)+IF(T207=Références!$B$11,Références!$D$11)+IF(T207=Références!$B$12,Références!$D$12)+IF(T207=Références!$B$13,IF(S207>=1600,Références!$D$16,IF('Calculateur-Transport'!S207>=500,Références!$D$15,IF('Calculateur-Transport'!S207<=499,Références!$D$14)))))*S207","v":0}]
[null,null,null,null,null,null,null,null,null,null,null,null,null,null,null,null,null,null,null,null,{"$f":"(IF(T208=Références!$B$5,Références!$D$5)+IF(T208=Références!$B$6,Références!$D$6)+IF(T208=Références!$B$7,Références!$D$7)+IF(T208=Références!$B$8,Références!$D$8)+IF(T208=Références!$B$9,Références!$D$9)+IF(T208=Références!$B$10,Références!$D$10)+IF(T208=Références!$B$11,Références!$D$11)+IF(T208=Références!$B$12,Références!$D$12)+IF(T208=Références!$B$13,IF(S208>=1600,Références!$D$16,IF('Calculateur-Transport'!S208>=500,Références!$D$15,IF('Calculateur-Transport'!S208<=499,Références!$D$14)))))*S208","v":0}]
[null,null,null,null,null,null,null,null,null,null,null,null,null,null,null,null,null,null,null,null,{"$f":"(IF(T209=Références!$B$5,Références!$D$5)+IF(T209=Références!$B$6,Références!$D$6)+IF(T209=Références!$B$7,Références!$D$7)+IF(T209=Références!$B$8,Références!$D$8)+IF(T209=Références!$B$9,Références!$D$9)+IF(T209=Références!$B$10,Références!$D$10)+IF(T209=Références!$B$11,Références!$D$11)+IF(T209=Références!$B$12,Références!$D$12)+IF(T209=Références!$B$13,IF(S209>=1600,Références!$D$16,IF('Calculateur-Transport'!S209>=500,Références!$D$15,IF('Calculateur-Transport'!S209<=499,Références!$D$14)))))*S209","v":0}]
[null,null,null,null,null,null,null,null,null,null,null,null,null,null,null,null,null,null,null,null,{"$f":"(IF(T210=Références!$B$5,Références!$D$5)+IF(T210=Références!$B$6,Références!$D$6)+IF(T210=Références!$B$7,Références!$D$7)+IF(T210=Références!$B$8,Références!$D$8)+IF(T210=Références!$B$9,Références!$D$9)+IF(T210=Références!$B$10,Références!$D$10)+IF(T210=Références!$B$11,Références!$D$11)+IF(T210=Références!$B$12,Références!$D$12)+IF(T210=Références!$B$13,IF(S210>=1600,Références!$D$16,IF('Calculateur-Transport'!S210>=500,Références!$D$15,IF('Calculateur-Transport'!S210<=499,Références!$D$14)))))*S210","v":0}]
[null,null,null,null,null,null,null,null,null,null,null,null,null,null,null,null,null,null,null,null,{"$f":"(IF(T211=Références!$B$5,Références!$D$5)+IF(T211=Références!$B$6,Références!$D$6)+IF(T211=Références!$B$7,Références!$D$7)+IF(T211=Références!$B$8,Références!$D$8)+IF(T211=Références!$B$9,Références!$D$9)+IF(T211=Références!$B$10,Références!$D$10)+IF(T211=Références!$B$11,Références!$D$11)+IF(T211=Références!$B$12,Références!$D$12)+IF(T211=Références!$B$13,IF(S211>=1600,Références!$D$16,IF('Calculateur-Transport'!S211>=500,Références!$D$15,IF('Calculateur-Transport'!S211<=499,Références!$D$14)))))*S211","v":0}]
[null,null,null,null,null,null,null,null,null,null,null,null,null,null,null,null,null,null,null,null,{"$f":"(IF(T212=Références!$B$5,Références!$D$5)+IF(T212=Références!$B$6,Références!$D$6)+IF(T212=Références!$B$7,Références!$D$7)+IF(T212=Références!$B$8,Références!$D$8)+IF(T212=Références!$B$9,Références!$D$9)+IF(T212=Références!$B$10,Références!$D$10)+IF(T212=Références!$B$11,Références!$D$11)+IF(T212=Références!$B$12,Références!$D$12)+IF(T212=Références!$B$13,IF(S212>=1600,Références!$D$16,IF('Calculateur-Transport'!S212>=500,Références!$D$15,IF('Calculateur-Transport'!S212<=499,Références!$D$14)))))*S212","v":0}]
[null,null,null,null,null,null,null,null,null,null,null,null,null,null,null,null,null,null,null,null,{"$f":"(IF(T213=Références!$B$5,Références!$D$5)+IF(T213=Références!$B$6,Références!$D$6)+IF(T213=Références!$B$7,Références!$D$7)+IF(T213=Références!$B$8,Références!$D$8)+IF(T213=Références!$B$9,Références!$D$9)+IF(T213=Références!$B$10,Références!$D$10)+IF(T213=Références!$B$11,Références!$D$11)+IF(T213=Références!$B$12,Références!$D$12)+IF(T213=Références!$B$13,IF(S213>=1600,Références!$D$16,IF('Calculateur-Transport'!S213>=500,Références!$D$15,IF('Calculateur-Transport'!S213<=499,Références!$D$14)))))*S213","v":0}]
[null,null,null,null,null,null,null,null,null,null,null,null,null,null,null,null,null,null,null,null,{"$f":"(IF(T214=Références!$B$5,Références!$D$5)+IF(T214=Références!$B$6,Références!$D$6)+IF(T214=Références!$B$7,Références!$D$7)+IF(T214=Références!$B$8,Références!$D$8)+IF(T214=Références!$B$9,Références!$D$9)+IF(T214=Références!$B$10,Références!$D$10)+IF(T214=Références!$B$11,Références!$D$11)+IF(T214=Références!$B$12,Références!$D$12)+IF(T214=Références!$B$13,IF(S214>=1600,Références!$D$16,IF('Calculateur-Transport'!S214>=500,Références!$D$15,IF('Calculateur-Transport'!S214<=499,Références!$D$14)))))*S214","v":0}]
[null,null,null,null,null,null,null,null,null,null,null,null,null,null,null,null,null,null,null,null,{"$f":"(IF(T215=Références!$B$5,Références!$D$5)+IF(T215=Références!$B$6,Références!$D$6)+IF(T215=Références!$B$7,Références!$D$7)+IF(T215=Références!$B$8,Références!$D$8)+IF(T215=Références!$B$9,Références!$D$9)+IF(T215=Références!$B$10,Références!$D$10)+IF(T215=Références!$B$11,Références!$D$11)+IF(T215=Références!$B$12,Références!$D$12)+IF(T215=Références!$B$13,IF(S215>=1600,Références!$D$16,IF('Calculateur-Transport'!S215>=500,Références!$D$15,IF('Calculateur-Transport'!S215<=499,Références!$D$14)))))*S215","v":0}]
[null,null,null,null,null,null,null,null,null,null,null,null,null,null,null,null,null,null,null,null,{"$f":"(IF(T216=Références!$B$5,Références!$D$5)+IF(T216=Références!$B$6,Références!$D$6)+IF(T216=Références!$B$7,Références!$D$7)+IF(T216=Références!$B$8,Références!$D$8)+IF(T216=Références!$B$9,Références!$D$9)+IF(T216=Références!$B$10,Références!$D$10)+IF(T216=Références!$B$11,Références!$D$11)+IF(T216=Références!$B$12,Références!$D$12)+IF(T216=Références!$B$13,IF(S216>=1600,Références!$D$16,IF('Calculateur-Transport'!S216>=500,Références!$D$15,IF('Calculateur-Transport'!S216<=499,Références!$D$14)))))*S216","v":0}]
[null,null,null,null,null,null,null,null,null,null,null,null,null,null,null,null,null,null,null,null,{"$f":"(IF(T217=Références!$B$5,Références!$D$5)+IF(T217=Références!$B$6,Références!$D$6)+IF(T217=Références!$B$7,Références!$D$7)+IF(T217=Références!$B$8,Références!$D$8)+IF(T217=Références!$B$9,Références!$D$9)+IF(T217=Références!$B$10,Références!$D$10)+IF(T217=Références!$B$11,Références!$D$11)+IF(T217=Références!$B$12,Références!$D$12)+IF(T217=Références!$B$13,IF(S217>=1600,Références!$D$16,IF('Calculateur-Transport'!S217>=500,Références!$D$15,IF('Calculateur-Transport'!S217<=499,Références!$D$14)))))*S217","v":0}]
[null,null,null,null,null,null,null,null,null,null,null,null,null,null,null,null,null,null,null,null,{"$f":"(IF(T218=Références!$B$5,Références!$D$5)+IF(T218=Références!$B$6,Références!$D$6)+IF(T218=Références!$B$7,Références!$D$7)+IF(T218=Références!$B$8,Références!$D$8)+IF(T218=Références!$B$9,Références!$D$9)+IF(T218=Références!$B$10,Références!$D$10)+IF(T218=Références!$B$11,Références!$D$11)+IF(T218=Références!$B$12,Références!$D$12)+IF(T218=Références!$B$13,IF(S218>=1600,Références!$D$16,IF('Calculateur-Transport'!S218>=500,Références!$D$15,IF('Calculateur-Transport'!S218<=499,Références!$D$14)))))*S218","v":0}]
[null,null,null,null,null,null,null,null,null,null,null,null,null,null,null,null,null,null,null,null,{"$f":"(IF(T219=Références!$B$5,Références!$D$5)+IF(T219=Références!$B$6,Références!$D$6)+IF(T219=Références!$B$7,Références!$D$7)+IF(T219=Références!$B$8,Références!$D$8)+IF(T219=Références!$B$9,Références!$D$9)+IF(T219=Références!$B$10,Références!$D$10)+IF(T219=Références!$B$11,Références!$D$11)+IF(T219=Références!$B$12,Références!$D$12)+IF(T219=Références!$B$13,IF(S219>=1600,Références!$D$16,IF('Calculateur-Transport'!S219>=500,Références!$D$15,IF('Calculateur-Transport'!S219<=499,Références!$D$14)))))*S219","v":0}]
[null,null,null,null,null,null,null,null,null,null,null,null,null,null,null,null,null,null,null,null,{"$f":"(IF(T220=Références!$B$5,Références!$D$5)+IF(T220=Références!$B$6,Références!$D$6)+IF(T220=Références!$B$7,Références!$D$7)+IF(T220=Références!$B$8,Références!$D$8)+IF(T220=Références!$B$9,Références!$D$9)+IF(T220=Références!$B$10,Références!$D$10)+IF(T220=Références!$B$11,Références!$D$11)+IF(T220=Références!$B$12,Références!$D$12)+IF(T220=Références!$B$13,IF(S220>=1600,Références!$D$16,IF('Calculateur-Transport'!S220>=500,Références!$D$15,IF('Calculateur-Transport'!S220<=499,Références!$D$14)))))*S220","v":0}]
[null,null,null,null,null,null,null,null,null,null,null,null,null,null,null,null,null,null,null,null,{"$f":"(IF(T221=Références!$B$5,Références!$D$5)+IF(T221=Références!$B$6,Références!$D$6)+IF(T221=Références!$B$7,Références!$D$7)+IF(T221=Références!$B$8,Références!$D$8)+IF(T221=Références!$B$9,Références!$D$9)+IF(T221=Références!$B$10,Références!$D$10)+IF(T221=Références!$B$11,Références!$D$11)+IF(T221=Références!$B$12,Références!$D$12)+IF(T221=Références!$B$13,IF(S221>=1600,Références!$D$16,IF('Calculateur-Transport'!S221>=500,Références!$D$15,IF('Calculateur-Transport'!S221<=499,Références!$D$14)))))*S221","v":0}]
[null,null,null,null,null,null,null,null,null,null,null,null,null,null,null,null,null,null,null,null,{"$f":"(IF(T222=Références!$B$5,Références!$D$5)+IF(T222=Références!$B$6,Références!$D$6)+IF(T222=Références!$B$7,Références!$D$7)+IF(T222=Références!$B$8,Références!$D$8)+IF(T222=Références!$B$9,Références!$D$9)+IF(T222=Références!$B$10,Références!$D$10)+IF(T222=Références!$B$11,Références!$D$11)+IF(T222=Références!$B$12,Références!$D$12)+IF(T222=Références!$B$13,IF(S222>=1600,Références!$D$16,IF('Calculateur-Transport'!S222>=500,Références!$D$15,IF('Calculateur-Transport'!S222<=499,Références!$D$14)))))*S222","v":0}]
[null,null,null,null,null,null,null,null,null,null,null,null,null,null,null,null,null,null,null,null,{"$f":"(IF(T223=Références!$B$5,Références!$D$5)+IF(T223=Références!$B$6,Références!$D$6)+IF(T223=Références!$B$7,Références!$D$7)+IF(T223=Références!$B$8,Références!$D$8)+IF(T223=Références!$B$9,Références!$D$9)+IF(T223=Références!$B$10,Références!$D$10)+IF(T223=Références!$B$11,Références!$D$11)+IF(T223=Références!$B$12,Références!$D$12)+IF(T223=Références!$B$13,IF(S223>=1600,Références!$D$16,IF('Calculateur-Transport'!S223>=500,Références!$D$15,IF('Calculateur-Transport'!S223<=499,Références!$D$14)))))*S223","v":0}]
[null,null,null,null,null,null,null,null,null,null,null,null,null,null,null,null,null,null,null,null,{"$f":"(IF(T224=Références!$B$5,Références!$D$5)+IF(T224=Références!$B$6,Références!$D$6)+IF(T224=Références!$B$7,Références!$D$7)+IF(T224=Références!$B$8,Références!$D$8)+IF(T224=Références!$B$9,Références!$D$9)+IF(T224=Références!$B$10,Références!$D$10)+IF(T224=Références!$B$11,Références!$D$11)+IF(T224=Références!$B$12,Références!$D$12)+IF(T224=Références!$B$13,IF(S224>=1600,Références!$D$16,IF('Calculateur-Transport'!S224>=500,Références!$D$15,IF('Calculateur-Transport'!S224<=499,Références!$D$14)))))*S224","v":0}]
[null,null,null,null,null,null,null,null,null,null,null,null,null,null,null,null,null,null,null,null,{"$f":"(IF(T225=Références!$B$5,Références!$D$5)+IF(T225=Références!$B$6,Références!$D$6)+IF(T225=Références!$B$7,Références!$D$7)+IF(T225=Références!$B$8,Références!$D$8)+IF(T225=Références!$B$9,Références!$D$9)+IF(T225=Références!$B$10,Références!$D$10)+IF(T225=Références!$B$11,Références!$D$11)+IF(T225=Références!$B$12,Références!$D$12)+IF(T225=Références!$B$13,IF(S225>=1600,Références!$D$16,IF('Calculateur-Transport'!S225>=500,Références!$D$15,IF('Calculateur-Transport'!S225<=499,Références!$D$14)))))*S225","v":0}]
[null,null,null,null,null,null,null,null,null,null,null,null,null,null,null,null,null,null,null,null,{"$f":"(IF(T226=Références!$B$5,Références!$D$5)+IF(T226=Références!$B$6,Références!$D$6)+IF(T226=Références!$B$7,Références!$D$7)+IF(T226=Références!$B$8,Références!$D$8)+IF(T226=Références!$B$9,Références!$D$9)+IF(T226=Références!$B$10,Références!$D$10)+IF(T226=Références!$B$11,Références!$D$11)+IF(T226=Références!$B$12,Références!$D$12)+IF(T226=Références!$B$13,IF(S226>=1600,Références!$D$16,IF('Calculateur-Transport'!S226>=500,Références!$D$15,IF('Calculateur-Transport'!S226<=499,Références!$D$14)))))*S226","v":0}]
[null,null,null,null,null,null,null,null,null,null,null,null,null,null,null,null,null,null,null,null,{"$f":"(IF(T227=Références!$B$5,Références!$D$5)+IF(T227=Références!$B$6,Références!$D$6)+IF(T227=Références!$B$7,Références!$D$7)+IF(T227=Références!$B$8,Références!$D$8)+IF(T227=Références!$B$9,Références!$D$9)+IF(T227=Références!$B$10,Références!$D$10)+IF(T227=Références!$B$11,Références!$D$11)+IF(T227=Références!$B$12,Références!$D$12)+IF(T227=Références!$B$13,IF(S227>=1600,Références!$D$16,IF('Calculateur-Transport'!S227>=500,Références!$D$15,IF('Calculateur-Transport'!S227<=499,Références!$D$14)))))*S227","v":0}]
[null,null,null,null,null,null,null,null,null,null,null,null,null,null,null,null,null,null,null,null,{"$f":"(IF(T228=Références!$B$5,Références!$D$5)+IF(T228=Références!$B$6,Références!$D$6)+IF(T228=Références!$B$7,Références!$D$7)+IF(T228=Références!$B$8,Références!$D$8)+IF(T228=Références!$B$9,Références!$D$9)+IF(T228=Références!$B$10,Références!$D$10)+IF(T228=Références!$B$11,Références!$D$11)+IF(T228=Références!$B$12,Références!$D$12)+IF(T228=Références!$B$13,IF(S228>=1600,Références!$D$16,IF('Calculateur-Transport'!S228>=500,Références!$D$15,IF('Calculateur-Transport'!S228<=499,Références!$D$14)))))*S228","v":0}]
[null,null,null,null,null,null,null,null,null,null,null,null,null,null,null,null,null,null,null,null,{"$f":"(IF(T229=Références!$B$5,Références!$D$5)+IF(T229=Références!$B$6,Références!$D$6)+IF(T229=Références!$B$7,Références!$D$7)+IF(T229=Références!$B$8,Références!$D$8)+IF(T229=Références!$B$9,Références!$D$9)+IF(T229=Références!$B$10,Références!$D$10)+IF(T229=Références!$B$11,Références!$D$11)+IF(T229=Références!$B$12,Références!$D$12)+IF(T229=Références!$B$13,IF(S229>=1600,Références!$D$16,IF('Calculateur-Transport'!S229>=500,Références!$D$15,IF('Calculateur-Transport'!S229<=499,Références!$D$14)))))*S229","v":0}]
[null,null,null,null,null,null,null,null,null,null,null,null,null,null,null,null,null,null,null,null,{"$f":"(IF(T230=Références!$B$5,Références!$D$5)+IF(T230=Références!$B$6,Références!$D$6)+IF(T230=Références!$B$7,Références!$D$7)+IF(T230=Références!$B$8,Références!$D$8)+IF(T230=Références!$B$9,Références!$D$9)+IF(T230=Références!$B$10,Références!$D$10)+IF(T230=Références!$B$11,Références!$D$11)+IF(T230=Références!$B$12,Références!$D$12)+IF(T230=Références!$B$13,IF(S230>=1600,Références!$D$16,IF('Calculateur-Transport'!S230>=500,Références!$D$15,IF('Calculateur-Transport'!S230<=499,Références!$D$14)))))*S230","v":0}]
[null,null,null,null,null,null,null,null,null,null,null,null,null,null,null,null,null,null,null,null,{"$f":"(IF(T231=Références!$B$5,Références!$D$5)+IF(T231=Références!$B$6,Références!$D$6)+IF(T231=Références!$B$7,Références!$D$7)+IF(T231=Références!$B$8,Références!$D$8)+IF(T231=Références!$B$9,Références!$D$9)+IF(T231=Références!$B$10,Références!$D$10)+IF(T231=Références!$B$11,Références!$D$11)+IF(T231=Références!$B$12,Références!$D$12)+IF(T231=Références!$B$13,IF(S231>=1600,Références!$D$16,IF('Calculateur-Transport'!S231>=500,Références!$D$15,IF('Calculateur-Transport'!S231<=499,Références!$D$14)))))*S231","v":0}]
[null,null,null,null,null,null,null,null,null,null,null,null,null,null,null,null,null,null,null,null,{"$f":"(IF(T232=Références!$B$5,Références!$D$5)+IF(T232=Références!$B$6,Références!$D$6)+IF(T232=Références!$B$7,Références!$D$7)+IF(T232=Références!$B$8,Références!$D$8)+IF(T232=Références!$B$9,Références!$D$9)+IF(T232=Références!$B$10,Références!$D$10)+IF(T232=Références!$B$11,Références!$D$11)+IF(T232=Références!$B$12,Références!$D$12)+IF(T232=Références!$B$13,IF(S232>=1600,Références!$D$16,IF('Calculateur-Transport'!S232>=500,Références!$D$15,IF('Calculateur-Transport'!S232<=499,Références!$D$14)))))*S232","v":0}]
[null,null,null,null,null,null,null,null,null,null,null,null,null,null,null,null,null,null,null,null,{"$f":"(IF(T233=Références!$B$5,Références!$D$5)+IF(T233=Références!$B$6,Références!$D$6)+IF(T233=Références!$B$7,Références!$D$7)+IF(T233=Références!$B$8,Références!$D$8)+IF(T233=Références!$B$9,Références!$D$9)+IF(T233=Références!$B$10,Références!$D$10)+IF(T233=Références!$B$11,Références!$D$11)+IF(T233=Références!$B$12,Références!$D$12)+IF(T233=Références!$B$13,IF(S233>=1600,Références!$D$16,IF('Calculateur-Transport'!S233>=500,Références!$D$15,IF('Calculateur-Transport'!S233<=499,Références!$D$14)))))*S233","v":0}]
[null,null,null,null,null,null,null,null,null,null,null,null,null,null,null,null,null,null,null,null,{"$f":"(IF(T234=Références!$B$5,Références!$D$5)+IF(T234=Références!$B$6,Références!$D$6)+IF(T234=Références!$B$7,Références!$D$7)+IF(T234=Références!$B$8,Références!$D$8)+IF(T234=Références!$B$9,Références!$D$9)+IF(T234=Références!$B$10,Références!$D$10)+IF(T234=Références!$B$11,Références!$D$11)+IF(T234=Références!$B$12,Références!$D$12)+IF(T234=Références!$B$13,IF(S234>=1600,Références!$D$16,IF('Calculateur-Transport'!S234>=500,Références!$D$15,IF('Calculateur-Transport'!S234<=499,Références!$D$14)))))*S234","v":0}]
[null,null,null,null,null,null,null,null,null,null,null,null,null,null,null,null,null,null,null,null,{"$f":"(IF(T235=Références!$B$5,Références!$D$5)+IF(T235=Références!$B$6,Références!$D$6)+IF(T235=Références!$B$7,Références!$D$7)+IF(T235=Références!$B$8,Références!$D$8)+IF(T235=Références!$B$9,Références!$D$9)+IF(T235=Références!$B$10,Références!$D$10)+IF(T235=Références!$B$11,Références!$D$11)+IF(T235=Références!$B$12,Références!$D$12)+IF(T235=Références!$B$13,IF(S235>=1600,Références!$D$16,IF('Calculateur-Transport'!S235>=500,Références!$D$15,IF('Calculateur-Transport'!S235<=499,Références!$D$14)))))*S235","v":0}]
[null,null,null,null,null,null,null,null,null,null,null,null,null,null,null,null,null,null,null,null,{"$f":"(IF(T236=Références!$B$5,Références!$D$5)+IF(T236=Références!$B$6,Références!$D$6)+IF(T236=Références!$B$7,Références!$D$7)+IF(T236=Références!$B$8,Références!$D$8)+IF(T236=Références!$B$9,Références!$D$9)+IF(T236=Références!$B$10,Références!$D$10)+IF(T236=Références!$B$11,Références!$D$11)+IF(T236=Références!$B$12,Références!$D$12)+IF(T236=Références!$B$13,IF(S236>=1600,Références!$D$16,IF('Calculateur-Transport'!S236>=500,Références!$D$15,IF('Calculateur-Transport'!S236<=499,Références!$D$14)))))*S236","v":0}]
[null,null,null,null,null,null,null,null,null,null,null,null,null,null,null,null,null,null,null,null,{"$f":"(IF(T237=Références!$B$5,Références!$D$5)+IF(T237=Références!$B$6,Références!$D$6)+IF(T237=Références!$B$7,Références!$D$7)+IF(T237=Références!$B$8,Références!$D$8)+IF(T237=Références!$B$9,Références!$D$9)+IF(T237=Références!$B$10,Références!$D$10)+IF(T237=Références!$B$11,Références!$D$11)+IF(T237=Références!$B$12,Références!$D$12)+IF(T237=Références!$B$13,IF(S237>=1600,Références!$D$16,IF('Calculateur-Transport'!S237>=500,Références!$D$15,IF('Calculateur-Transport'!S237<=499,Références!$D$14)))))*S237","v":0}]
[null,null,null,null,null,null,null,null,null,null,null,null,null,null,null,null,null,null,null,null,{"$f":"(IF(T238=Références!$B$5,Références!$D$5)+IF(T238=Références!$B$6,Références!$D$6)+IF(T238=Références!$B$7,Références!$D$7)+IF(T238=Références!$B$8,Références!$D$8)+IF(T238=Références!$B$9,Références!$D$9)+IF(T238=Références!$B$10,Références!$D$10)+IF(T238=Références!$B$11,Références!$D$11)+IF(T238=Références!$B$12,Références!$D$12)+IF(T238=Références!$B$13,IF(S238>=1600,Références!$D$16,IF('Calculateur-Transport'!S238>=500,Références!$D$15,IF('Calculateur-Transport'!S238<=499,Références!$D$14)))))*S238","v":0}]
[null,null,null,null,null,null,null,null,null,null,null,null,null,null,null,null,null,null,null,null,{"$f":"(IF(T239=Références!$B$5,Références!$D$5)+IF(T239=Références!$B$6,Références!$D$6)+IF(T239=Références!$B$7,Références!$D$7)+IF(T239=Références!$B$8,Références!$D$8)+IF(T239=Références!$B$9,Références!$D$9)+IF(T239=Références!$B$10,Références!$D$10)+IF(T239=Références!$B$11,Références!$D$11)+IF(T239=Références!$B$12,Références!$D$12)+IF(T239=Références!$B$13,IF(S239>=1600,Références!$D$16,IF('Calculateur-Transport'!S239>=500,Références!$D$15,IF('Calculateur-Transport'!S239<=499,Références!$D$14)))))*S239","v":0}]
[null,null,null,null,null,null,null,null,null,null,null,null,null,null,null,null,null,null,null,null,{"$f":"(IF(T240=Références!$B$5,Références!$D$5)+IF(T240=Références!$B$6,Références!$D$6)+IF(T240=Références!$B$7,Références!$D$7)+IF(T240=Références!$B$8,Références!$D$8)+IF(T240=Références!$B$9,Références!$D$9)+IF(T240=Références!$B$10,Références!$D$10)+IF(T240=Références!$B$11,Références!$D$11)+IF(T240=Références!$B$12,Références!$D$12)+IF(T240=Références!$B$13,IF(S240>=1600,Références!$D$16,IF('Calculateur-Transport'!S240>=500,Références!$D$15,IF('Calculateur-Transport'!S240<=499,Références!$D$14)))))*S240","v":0}]
[null,null,null,null,null,null,null,null,null,null,null,null,null,null,null,null,null,null,null,null,{"$f":"(IF(T241=Références!$B$5,Références!$D$5)+IF(T241=Références!$B$6,Références!$D$6)+IF(T241=Références!$B$7,Références!$D$7)+IF(T241=Références!$B$8,Références!$D$8)+IF(T241=Références!$B$9,Références!$D$9)+IF(T241=Références!$B$10,Références!$D$10)+IF(T241=Références!$B$11,Références!$D$11)+IF(T241=Références!$B$12,Références!$D$12)+IF(T241=Références!$B$13,IF(S241>=1600,Références!$D$16,IF('Calculateur-Transport'!S241>=500,Références!$D$15,IF('Calculateur-Transport'!S241<=499,Références!$D$14)))))*S241","v":0}]
[null,null,null,null,null,null,null,null,null,null,null,null,null,null,null,null,null,null,null,null,{"$f":"(IF(T242=Références!$B$5,Références!$D$5)+IF(T242=Références!$B$6,Références!$D$6)+IF(T242=Références!$B$7,Références!$D$7)+IF(T242=Références!$B$8,Références!$D$8)+IF(T242=Références!$B$9,Références!$D$9)+IF(T242=Références!$B$10,Références!$D$10)+IF(T242=Références!$B$11,Références!$D$11)+IF(T242=Références!$B$12,Références!$D$12)+IF(T242=Références!$B$13,IF(S242>=1600,Références!$D$16,IF('Calculateur-Transport'!S242>=500,Références!$D$15,IF('Calculateur-Transport'!S242<=499,Références!$D$14)))))*S242","v":0}]
[null,null,null,null,null,null,null,null,null,null,null,null,null,null,null,null,null,null,null,null,{"$f":"(IF(T243=Références!$B$5,Références!$D$5)+IF(T243=Références!$B$6,Références!$D$6)+IF(T243=Références!$B$7,Références!$D$7)+IF(T243=Références!$B$8,Références!$D$8)+IF(T243=Références!$B$9,Références!$D$9)+IF(T243=Références!$B$10,Références!$D$10)+IF(T243=Références!$B$11,Références!$D$11)+IF(T243=Références!$B$12,Références!$D$12)+IF(T243=Références!$B$13,IF(S243>=1600,Références!$D$16,IF('Calculateur-Transport'!S243>=500,Références!$D$15,IF('Calculateur-Transport'!S243<=499,Références!$D$14)))))*S243","v":0}]
[null,null,null,null,null,null,null,null,null,null,null,null,null,null,null,null,null,null,null,null,{"$f":"(IF(T244=Références!$B$5,Références!$D$5)+IF(T244=Références!$B$6,Références!$D$6)+IF(T244=Références!$B$7,Références!$D$7)+IF(T244=Références!$B$8,Références!$D$8)+IF(T244=Références!$B$9,Références!$D$9)+IF(T244=Références!$B$10,Références!$D$10)+IF(T244=Références!$B$11,Références!$D$11)+IF(T244=Références!$B$12,Références!$D$12)+IF(T244=Références!$B$13,IF(S244>=1600,Références!$D$16,IF('Calculateur-Transport'!S244>=500,Références!$D$15,IF('Calculateur-Transport'!S244<=499,Références!$D$14)))))*S244","v":0}]
[null,null,null,null,null,null,null,null,null,null,null,null,null,null,null,null,null,null,null,null,{"$f":"(IF(T245=Références!$B$5,Références!$D$5)+IF(T245=Références!$B$6,Références!$D$6)+IF(T245=Références!$B$7,Références!$D$7)+IF(T245=Références!$B$8,Références!$D$8)+IF(T245=Références!$B$9,Références!$D$9)+IF(T245=Références!$B$10,Références!$D$10)+IF(T245=Références!$B$11,Références!$D$11)+IF(T245=Références!$B$12,Références!$D$12)+IF(T245=Références!$B$13,IF(S245>=1600,Références!$D$16,IF('Calculateur-Transport'!S245>=500,Références!$D$15,IF('Calculateur-Transport'!S245<=499,Références!$D$14)))))*S245","v":0}]
[null,null,null,null,null,null,null,null,null,null,null,null,null,null,null,null,null,null,null,null,{"$f":"(IF(T246=Références!$B$5,Références!$D$5)+IF(T246=Références!$B$6,Références!$D$6)+IF(T246=Références!$B$7,Références!$D$7)+IF(T246=Références!$B$8,Références!$D$8)+IF(T246=Références!$B$9,Références!$D$9)+IF(T246=Références!$B$10,Références!$D$10)+IF(T246=Références!$B$11,Références!$D$11)+IF(T246=Références!$B$12,Références!$D$12)+IF(T246=Références!$B$13,IF(S246>=1600,Références!$D$16,IF('Calculateur-Transport'!S246>=500,Références!$D$15,IF('Calculateur-Transport'!S246<=499,Références!$D$14)))))*S246","v":0}]
[null,null,null,null,null,null,null,null,null,null,null,null,null,null,null,null,null,null,null,null,{"$f":"(IF(T247=Références!$B$5,Références!$D$5)+IF(T247=Références!$B$6,Références!$D$6)+IF(T247=Références!$B$7,Références!$D$7)+IF(T247=Références!$B$8,Références!$D$8)+IF(T247=Références!$B$9,Références!$D$9)+IF(T247=Références!$B$10,Références!$D$10)+IF(T247=Références!$B$11,Références!$D$11)+IF(T247=Références!$B$12,Références!$D$12)+IF(T247=Références!$B$13,IF(S247>=1600,Références!$D$16,IF('Calculateur-Transport'!S247>=500,Références!$D$15,IF('Calculateur-Transport'!S247<=499,Références!$D$14)))))*S247","v":0}]
[null,null,null,null,null,null,null,null,null,null,null,null,null,null,null,null,null,null,null,null,{"$f":"(IF(T248=Références!$B$5,Références!$D$5)+IF(T248=Références!$B$6,Références!$D$6)+IF(T248=Références!$B$7,Références!$D$7)+IF(T248=Références!$B$8,Références!$D$8)+IF(T248=Références!$B$9,Références!$D$9)+IF(T248=Références!$B$10,Références!$D$10)+IF(T248=Références!$B$11,Références!$D$11)+IF(T248=Références!$B$12,Références!$D$12)+IF(T248=Références!$B$13,IF(S248>=1600,Références!$D$16,IF('Calculateur-Transport'!S248>=500,Références!$D$15,IF('Calculateur-Transport'!S248<=499,Références!$D$14)))))*S248","v":0}]
[null,null,null,null,null,null,null,null,null,null,null,null,null,null,null,null,null,null,null,null,{"$f":"(IF(T249=Références!$B$5,Références!$D$5)+IF(T249=Références!$B$6,Références!$D$6)+IF(T249=Références!$B$7,Références!$D$7)+IF(T249=Références!$B$8,Références!$D$8)+IF(T249=Références!$B$9,Références!$D$9)+IF(T249=Références!$B$10,Références!$D$10)+IF(T249=Références!$B$11,Références!$D$11)+IF(T249=Références!$B$12,Références!$D$12)+IF(T249=Références!$B$13,IF(S249>=1600,Références!$D$16,IF('Calculateur-Transport'!S249>=500,Références!$D$15,IF('Calculateur-Transport'!S249<=499,Références!$D$14)))))*S249","v":0}]
[null,null,null,null,null,null,null,null,null,null,null,null,null,null,null,null,null,null,null,null,{"$f":"(IF(T250=Références!$B$5,Références!$D$5)+IF(T250=Références!$B$6,Références!$D$6)+IF(T250=Références!$B$7,Références!$D$7)+IF(T250=Références!$B$8,Références!$D$8)+IF(T250=Références!$B$9,Références!$D$9)+IF(T250=Références!$B$10,Références!$D$10)+IF(T250=Références!$B$11,Références!$D$11)+IF(T250=Références!$B$12,Références!$D$12)+IF(T250=Références!$B$13,IF(S250>=1600,Références!$D$16,IF('Calculateur-Transport'!S250>=500,Références!$D$15,IF('Calculateur-Transport'!S250<=499,Références!$D$14)))))*S250","v":0}]
[null,null,null,null,null,null,null,null,null,null,null,null,null,null,null,null,null,null,null,null,{"$f":"(IF(T251=Références!$B$5,Références!$D$5)+IF(T251=Références!$B$6,Références!$D$6)+IF(T251=Références!$B$7,Références!$D$7)+IF(T251=Références!$B$8,Références!$D$8)+IF(T251=Références!$B$9,Références!$D$9)+IF(T251=Références!$B$10,Références!$D$10)+IF(T251=Références!$B$11,Références!$D$11)+IF(T251=Références!$B$12,Références!$D$12)+IF(T251=Références!$B$13,IF(S251>=1600,Références!$D$16,IF('Calculateur-Transport'!S251>=500,Références!$D$15,IF('Calculateur-Transport'!S251<=499,Références!$D$14)))))*S251","v":0}]
[null,null,null,null,null,null,null,null,null,null,null,null,null,null,null,null,null,null,null,null,{"$f":"(IF(T252=Références!$B$5,Références!$D$5)+IF(T252=Références!$B$6,Références!$D$6)+IF(T252=Références!$B$7,Références!$D$7)+IF(T252=Références!$B$8,Références!$D$8)+IF(T252=Références!$B$9,Références!$D$9)+IF(T252=Références!$B$10,Références!$D$10)+IF(T252=Références!$B$11,Références!$D$11)+IF(T252=Références!$B$12,Références!$D$12)+IF(T252=Références!$B$13,IF(S252>=1600,Références!$D$16,IF('Calculateur-Transport'!S252>=500,Références!$D$15,IF('Calculateur-Transport'!S252<=499,Références!$D$14)))))*S252","v":0}]
[null,null,null,null,null,null,null,null,null,null,null,null,null,null,null,null,null,null,null,null,{"$f":"(IF(T253=Références!$B$5,Références!$D$5)+IF(T253=Références!$B$6,Références!$D$6)+IF(T253=Références!$B$7,Références!$D$7)+IF(T253=Références!$B$8,Références!$D$8)+IF(T253=Références!$B$9,Références!$D$9)+IF(T253=Références!$B$10,Références!$D$10)+IF(T253=Références!$B$11,Références!$D$11)+IF(T253=Références!$B$12,Références!$D$12)+IF(T253=Références!$B$13,IF(S253>=1600,Références!$D$16,IF('Calculateur-Transport'!S253>=500,Références!$D$15,IF('Calculateur-Transport'!S253<=499,Références!$D$14)))))*S253","v":0}]
[null,null,null,null,null,null,null,null,null,null,null,null,null,null,null,null,null,null,null,null,{"$f":"(IF(T254=Références!$B$5,Références!$D$5)+IF(T254=Références!$B$6,Références!$D$6)+IF(T254=Références!$B$7,Références!$D$7)+IF(T254=Références!$B$8,Références!$D$8)+IF(T254=Références!$B$9,Références!$D$9)+IF(T254=Références!$B$10,Références!$D$10)+IF(T254=Références!$B$11,Références!$D$11)+IF(T254=Références!$B$12,Références!$D$12)+IF(T254=Références!$B$13,IF(S254>=1600,Références!$D$16,IF('Calculateur-Transport'!S254>=500,Références!$D$15,IF('Calculateur-Transport'!S254<=499,Références!$D$14)))))*S254","v":0}]
[null,null,null,null,null,null,null,null,null,null,null,null,null,null,null,null,null,null,null,null,{"$f":"(IF(T255=Références!$B$5,Références!$D$5)+IF(T255=Références!$B$6,Références!$D$6)+IF(T255=Références!$B$7,Références!$D$7)+IF(T255=Références!$B$8,Références!$D$8)+IF(T255=Références!$B$9,Références!$D$9)+IF(T255=Références!$B$10,Références!$D$10)+IF(T255=Références!$B$11,Références!$D$11)+IF(T255=Références!$B$12,Références!$D$12)+IF(T255=Références!$B$13,IF(S255>=1600,Références!$D$16,IF('Calculateur-Transport'!S255>=500,Références!$D$15,IF('Calculateur-Transport'!S255<=499,Références!$D$14)))))*S255","v":0}]
[null,null,null,null,null,null,null,null,null,null,null,null,null,null,null,null,null,null,null,null,{"$f":"(IF(T256=Références!$B$5,Références!$D$5)+IF(T256=Références!$B$6,Références!$D$6)+IF(T256=Références!$B$7,Références!$D$7)+IF(T256=Références!$B$8,Références!$D$8)+IF(T256=Références!$B$9,Références!$D$9)+IF(T256=Références!$B$10,Références!$D$10)+IF(T256=Références!$B$11,Références!$D$11)+IF(T256=Références!$B$12,Références!$D$12)+IF(T256=Références!$B$13,IF(S256>=1600,Références!$D$16,IF('Calculateur-Transport'!S256>=500,Références!$D$15,IF('Calculateur-Transport'!S256<=499,Références!$D$14)))))*S256","v":0}]
[null,null,null,null,null,null,null,null,null,null,null,null,null,null,null,null,null,null,null,null,{"$f":"(IF(T257=Références!$B$5,Références!$D$5)+IF(T257=Références!$B$6,Références!$D$6)+IF(T257=Références!$B$7,Références!$D$7)+IF(T257=Références!$B$8,Références!$D$8)+IF(T257=Références!$B$9,Références!$D$9)+IF(T257=Références!$B$10,Références!$D$10)+IF(T257=Références!$B$11,Références!$D$11)+IF(T257=Références!$B$12,Références!$D$12)+IF(T257=Références!$B$13,IF(S257>=1600,Références!$D$16,IF('Calculateur-Transport'!S257>=500,Références!$D$15,IF('Calculateur-Transport'!S257<=499,Références!$D$14)))))*S257","v":0}]
[null,null,null,null,null,null,null,null,null,null,null,null,null,null,null,null,null,null,null,null,{"$f":"(IF(T258=Références!$B$5,Références!$D$5)+IF(T258=Références!$B$6,Références!$D$6)+IF(T258=Références!$B$7,Références!$D$7)+IF(T258=Références!$B$8,Références!$D$8)+IF(T258=Références!$B$9,Références!$D$9)+IF(T258=Références!$B$10,Références!$D$10)+IF(T258=Références!$B$11,Références!$D$11)+IF(T258=Références!$B$12,Références!$D$12)+IF(T258=Références!$B$13,IF(S258>=1600,Références!$D$16,IF('Calculateur-Transport'!S258>=500,Références!$D$15,IF('Calculateur-Transport'!S258<=499,Références!$D$14)))))*S258","v":0}]
[null,null,null,null,null,null,null,null,null,null,null,null,null,null,null,null,null,null,null,null,{"$f":"(IF(T259=Références!$B$5,Références!$D$5)+IF(T259=Références!$B$6,Références!$D$6)+IF(T259=Références!$B$7,Références!$D$7)+IF(T259=Références!$B$8,Références!$D$8)+IF(T259=Références!$B$9,Références!$D$9)+IF(T259=Références!$B$10,Références!$D$10)+IF(T259=Références!$B$11,Références!$D$11)+IF(T259=Références!$B$12,Références!$D$12)+IF(T259=Références!$B$13,IF(S259>=1600,Références!$D$16,IF('Calculateur-Transport'!S259>=500,Références!$D$15,IF('Calculateur-Transport'!S259<=499,Références!$D$14)))))*S259","v":0}]
[null,null,null,null,null,null,null,null,null,null,null,null,null,null,null,null,null,null,null,null,{"$f":"(IF(T260=Références!$B$5,Références!$D$5)+IF(T260=Références!$B$6,Références!$D$6)+IF(T260=Références!$B$7,Références!$D$7)+IF(T260=Références!$B$8,Références!$D$8)+IF(T260=Références!$B$9,Références!$D$9)+IF(T260=Références!$B$10,Références!$D$10)+IF(T260=Références!$B$11,Références!$D$11)+IF(T260=Références!$B$12,Références!$D$12)+IF(T260=Références!$B$13,IF(S260>=1600,Références!$D$16,IF('Calculateur-Transport'!S260>=500,Références!$D$15,IF('Calculateur-Transport'!S260<=499,Références!$D$14)))))*S260","v":0}]
[null,null,null,null,null,null,null,null,null,null,null,null,null,null,null,null,null,null,null,null,{"$f":"(IF(T261=Références!$B$5,Références!$D$5)+IF(T261=Références!$B$6,Références!$D$6)+IF(T261=Références!$B$7,Références!$D$7)+IF(T261=Références!$B$8,Références!$D$8)+IF(T261=Références!$B$9,Références!$D$9)+IF(T261=Références!$B$10,Références!$D$10)+IF(T261=Références!$B$11,Références!$D$11)+IF(T261=Références!$B$12,Références!$D$12)+IF(T261=Références!$B$13,IF(S261>=1600,Références!$D$16,IF('Calculateur-Transport'!S261>=500,Références!$D$15,IF('Calculateur-Transport'!S261<=499,Références!$D$14)))))*S261","v":0}]
[null,null,null,null,null,null,null,null,null,null,null,null,null,null,null,null,null,null,null,null,{"$f":"(IF(T262=Références!$B$5,Références!$D$5)+IF(T262=Références!$B$6,Références!$D$6)+IF(T262=Références!$B$7,Références!$D$7)+IF(T262=Références!$B$8,Références!$D$8)+IF(T262=Références!$B$9,Références!$D$9)+IF(T262=Références!$B$10,Références!$D$10)+IF(T262=Références!$B$11,Références!$D$11)+IF(T262=Références!$B$12,Références!$D$12)+IF(T262=Références!$B$13,IF(S262>=1600,Références!$D$16,IF('Calculateur-Transport'!S262>=500,Références!$D$15,IF('Calculateur-Transport'!S262<=499,Références!$D$14)))))*S262","v":0}]
[null,null,null,null,null,null,null,null,null,null,null,null,null,null,null,null,null,null,null,null,{"$f":"(IF(T263=Références!$B$5,Références!$D$5)+IF(T263=Références!$B$6,Références!$D$6)+IF(T263=Références!$B$7,Références!$D$7)+IF(T263=Références!$B$8,Références!$D$8)+IF(T263=Références!$B$9,Références!$D$9)+IF(T263=Références!$B$10,Références!$D$10)+IF(T263=Références!$B$11,Références!$D$11)+IF(T263=Références!$B$12,Références!$D$12)+IF(T263=Références!$B$13,IF(S263>=1600,Références!$D$16,IF('Calculateur-Transport'!S263>=500,Références!$D$15,IF('Calculateur-Transport'!S263<=499,Références!$D$14)))))*S263","v":0}]
[null,null,null,null,null,null,null,null,null,null,null,null,null,null,null,null,null,null,null,null,{"$f":"(IF(T264=Références!$B$5,Références!$D$5)+IF(T264=Références!$B$6,Références!$D$6)+IF(T264=Références!$B$7,Références!$D$7)+IF(T264=Références!$B$8,Références!$D$8)+IF(T264=Références!$B$9,Références!$D$9)+IF(T264=Références!$B$10,Références!$D$10)+IF(T264=Références!$B$11,Références!$D$11)+IF(T264=Références!$B$12,Références!$D$12)+IF(T264=Références!$B$13,IF(S264>=1600,Références!$D$16,IF('Calculateur-Transport'!S264>=500,Références!$D$15,IF('Calculateur-Transport'!S264<=499,Références!$D$14)))))*S264","v":0}]
[null,null,null,null,null,null,null,null,null,null,null,null,null,null,null,null,null,null,null,null,{"$f":"(IF(T265=Références!$B$5,Références!$D$5)+IF(T265=Références!$B$6,Références!$D$6)+IF(T265=Références!$B$7,Références!$D$7)+IF(T265=Références!$B$8,Références!$D$8)+IF(T265=Références!$B$9,Références!$D$9)+IF(T265=Références!$B$10,Références!$D$10)+IF(T265=Références!$B$11,Références!$D$11)+IF(T265=Références!$B$12,Références!$D$12)+IF(T265=Références!$B$13,IF(S265>=1600,Références!$D$16,IF('Calculateur-Transport'!S265>=500,Références!$D$15,IF('Calculateur-Transport'!S265<=499,Références!$D$14)))))*S265","v":0}]
[null,null,null,null,null,null,null,null,null,null,null,null,null,null,null,null,null,null,null,null,{"$f":"(IF(T266=Références!$B$5,Références!$D$5)+IF(T266=Références!$B$6,Références!$D$6)+IF(T266=Références!$B$7,Références!$D$7)+IF(T266=Références!$B$8,Références!$D$8)+IF(T266=Références!$B$9,Références!$D$9)+IF(T266=Références!$B$10,Références!$D$10)+IF(T266=Références!$B$11,Références!$D$11)+IF(T266=Références!$B$12,Références!$D$12)+IF(T266=Références!$B$13,IF(S266>=1600,Références!$D$16,IF('Calculateur-Transport'!S266>=500,Références!$D$15,IF('Calculateur-Transport'!S266<=499,Références!$D$14)))))*S266","v":0}]
[null,null,null,null,null,null,null,null,null,null,null,null,null,null,null,null,null,null,null,null,{"$f":"(IF(T267=Références!$B$5,Références!$D$5)+IF(T267=Références!$B$6,Références!$D$6)+IF(T267=Références!$B$7,Références!$D$7)+IF(T267=Références!$B$8,Références!$D$8)+IF(T267=Références!$B$9,Références!$D$9)+IF(T267=Références!$B$10,Références!$D$10)+IF(T267=Références!$B$11,Références!$D$11)+IF(T267=Références!$B$12,Références!$D$12)+IF(T267=Références!$B$13,IF(S267>=1600,Références!$D$16,IF('Calculateur-Transport'!S267>=500,Références!$D$15,IF('Calculateur-Transport'!S267<=499,Références!$D$14)))))*S267","v":0}]
[null,null,null,null,null,null,null,null,null,null,null,null,null,null,null,null,null,null,null,null,{"$f":"(IF(T268=Références!$B$5,Références!$D$5)+IF(T268=Références!$B$6,Références!$D$6)+IF(T268=Références!$B$7,Références!$D$7)+IF(T268=Références!$B$8,Références!$D$8)+IF(T268=Références!$B$9,Références!$D$9)+IF(T268=Références!$B$10,Références!$D$10)+IF(T268=Références!$B$11,Références!$D$11)+IF(T268=Références!$B$12,Références!$D$12)+IF(T268=Références!$B$13,IF(S268>=1600,Références!$D$16,IF('Calculateur-Transport'!S268>=500,Références!$D$15,IF('Calculateur-Transport'!S268<=499,Références!$D$14)))))*S268","v":0}]
[null,null,null,null,null,null,null,null,null,null,null,null,null,null,null,null,null,null,null,null,{"$f":"(IF(T269=Références!$B$5,Références!$D$5)+IF(T269=Références!$B$6,Références!$D$6)+IF(T269=Références!$B$7,Références!$D$7)+IF(T269=Références!$B$8,Références!$D$8)+IF(T269=Références!$B$9,Références!$D$9)+IF(T269=Références!$B$10,Références!$D$10)+IF(T269=Références!$B$11,Références!$D$11)+IF(T269=Références!$B$12,Références!$D$12)+IF(T269=Références!$B$13,IF(S269>=1600,Références!$D$16,IF('Calculateur-Transport'!S269>=500,Références!$D$15,IF('Calculateur-Transport'!S269<=499,Références!$D$14)))))*S269","v":0}]
[null,null,null,null,null,null,null,null,null,null,null,null,null,null,null,null,null,null,null,null,{"$f":"(IF(T270=Références!$B$5,Références!$D$5)+IF(T270=Références!$B$6,Références!$D$6)+IF(T270=Références!$B$7,Références!$D$7)+IF(T270=Références!$B$8,Références!$D$8)+IF(T270=Références!$B$9,Références!$D$9)+IF(T270=Références!$B$10,Références!$D$10)+IF(T270=Références!$B$11,Références!$D$11)+IF(T270=Références!$B$12,Références!$D$12)+IF(T270=Références!$B$13,IF(S270>=1600,Références!$D$16,IF('Calculateur-Transport'!S270>=500,Références!$D$15,IF('Calculateur-Transport'!S270<=499,Références!$D$14)))))*S270","v":0}]
[null,null,null,null,null,null,null,null,null,null,null,null,null,null,null,null,null,null,null,null,{"$f":"(IF(T271=Références!$B$5,Références!$D$5)+IF(T271=Références!$B$6,Références!$D$6)+IF(T271=Références!$B$7,Références!$D$7)+IF(T271=Références!$B$8,Références!$D$8)+IF(T271=Références!$B$9,Références!$D$9)+IF(T271=Références!$B$10,Références!$D$10)+IF(T271=Références!$B$11,Références!$D$11)+IF(T271=Références!$B$12,Références!$D$12)+IF(T271=Références!$B$13,IF(S271>=1600,Références!$D$16,IF('Calculateur-Transport'!S271>=500,Références!$D$15,IF('Calculateur-Transport'!S271<=499,Références!$D$14)))))*S271","v":0}]
[null,null,null,null,null,null,null,null,null,null,null,null,null,null,null,null,null,null,null,null,{"$f":"(IF(T272=Références!$B$5,Références!$D$5)+IF(T272=Références!$B$6,Références!$D$6)+IF(T272=Références!$B$7,Références!$D$7)+IF(T272=Références!$B$8,Références!$D$8)+IF(T272=Références!$B$9,Références!$D$9)+IF(T272=Références!$B$10,Références!$D$10)+IF(T272=Références!$B$11,Références!$D$11)+IF(T272=Références!$B$12,Références!$D$12)+IF(T272=Références!$B$13,IF(S272>=1600,Références!$D$16,IF('Calculateur-Transport'!S272>=500,Références!$D$15,IF('Calculateur-Transport'!S272<=499,Références!$D$14)))))*S272","v":0}]
[null,null,null,null,null,null,null,null,null,null,null,null,null,null,null,null,null,null,null,null,{"$f":"(IF(T273=Références!$B$5,Références!$D$5)+IF(T273=Références!$B$6,Références!$D$6)+IF(T273=Références!$B$7,Références!$D$7)+IF(T273=Références!$B$8,Références!$D$8)+IF(T273=Références!$B$9,Références!$D$9)+IF(T273=Références!$B$10,Références!$D$10)+IF(T273=Références!$B$11,Références!$D$11)+IF(T273=Références!$B$12,Références!$D$12)+IF(T273=Références!$B$13,IF(S273>=1600,Références!$D$16,IF('Calculateur-Transport'!S273>=500,Références!$D$15,IF('Calculateur-Transport'!S273<=499,Références!$D$14)))))*S273","v":0}]
[null,null,null,null,null,null,null,null,null,null,null,null,null,null,null,null,null,null,null,null,{"$f":"(IF(T274=Références!$B$5,Références!$D$5)+IF(T274=Références!$B$6,Références!$D$6)+IF(T274=Références!$B$7,Références!$D$7)+IF(T274=Références!$B$8,Références!$D$8)+IF(T274=Références!$B$9,Références!$D$9)+IF(T274=Références!$B$10,Références!$D$10)+IF(T274=Références!$B$11,Références!$D$11)+IF(T274=Références!$B$12,Références!$D$12)+IF(T274=Références!$B$13,IF(S274>=1600,Références!$D$16,IF('Calculateur-Transport'!S274>=500,Références!$D$15,IF('Calculateur-Transport'!S274<=499,Références!$D$14)))))*S274","v":0}]
[null,null,null,null,null,null,null,null,null,null,null,null,null,null,null,null,null,null,null,null,{"$f":"(IF(T275=Références!$B$5,Références!$D$5)+IF(T275=Références!$B$6,Références!$D$6)+IF(T275=Références!$B$7,Références!$D$7)+IF(T275=Références!$B$8,Références!$D$8)+IF(T275=Références!$B$9,Références!$D$9)+IF(T275=Références!$B$10,Références!$D$10)+IF(T275=Références!$B$11,Références!$D$11)+IF(T275=Références!$B$12,Références!$D$12)+IF(T275=Références!$B$13,IF(S275>=1600,Références!$D$16,IF('Calculateur-Transport'!S275>=500,Références!$D$15,IF('Calculateur-Transport'!S275<=499,Références!$D$14)))))*S275","v":0}]
[null,null,null,null,null,null,null,null,null,null,null,null,null,null,null,null,null,null,null,null,{"$f":"(IF(T276=Références!$B$5,Références!$D$5)+IF(T276=Références!$B$6,Références!$D$6)+IF(T276=Références!$B$7,Références!$D$7)+IF(T276=Références!$B$8,Références!$D$8)+IF(T276=Références!$B$9,Références!$D$9)+IF(T276=Références!$B$10,Références!$D$10)+IF(T276=Références!$B$11,Références!$D$11)+IF(T276=Références!$B$12,Références!$D$12)+IF(T276=Références!$B$13,IF(S276>=1600,Références!$D$16,IF('Calculateur-Transport'!S276>=500,Références!$D$15,IF('Calculateur-Transport'!S276<=499,Références!$D$14)))))*S276","v":0}]
[null,null,null,null,null,null,null,null,null,null,null,null,null,null,null,null,null,null,null,null,{"$f":"(IF(T277=Références!$B$5,Références!$D$5)+IF(T277=Références!$B$6,Références!$D$6)+IF(T277=Références!$B$7,Références!$D$7)+IF(T277=Références!$B$8,Références!$D$8)+IF(T277=Références!$B$9,Références!$D$9)+IF(T277=Références!$B$10,Références!$D$10)+IF(T277=Références!$B$11,Références!$D$11)+IF(T277=Références!$B$12,Références!$D$12)+IF(T277=Références!$B$13,IF(S277>=1600,Références!$D$16,IF('Calculateur-Transport'!S277>=500,Références!$D$15,IF('Calculateur-Transport'!S277<=499,Références!$D$14)))))*S277","v":0}]
[null,null,null,null,null,null,null,null,null,null,null,null,null,null,null,null,null,null,null,null,{"$f":"(IF(T278=Références!$B$5,Références!$D$5)+IF(T278=Références!$B$6,Références!$D$6)+IF(T278=Références!$B$7,Références!$D$7)+IF(T278=Références!$B$8,Références!$D$8)+IF(T278=Références!$B$9,Références!$D$9)+IF(T278=Références!$B$10,Références!$D$10)+IF(T278=Références!$B$11,Références!$D$11)+IF(T278=Références!$B$12,Références!$D$12)+IF(T278=Références!$B$13,IF(S278>=1600,Références!$D$16,IF('Calculateur-Transport'!S278>=500,Références!$D$15,IF('Calculateur-Transport'!S278<=499,Références!$D$14)))))*S278","v":0}]
[null,null,null,null,null,null,null,null,null,null,null,null,null,null,null,null,null,null,null,null,{"$f":"(IF(T279=Références!$B$5,Références!$D$5)+IF(T279=Références!$B$6,Références!$D$6)+IF(T279=Références!$B$7,Références!$D$7)+IF(T279=Références!$B$8,Références!$D$8)+IF(T279=Références!$B$9,Références!$D$9)+IF(T279=Références!$B$10,Références!$D$10)+IF(T279=Références!$B$11,Références!$D$11)+IF(T279=Références!$B$12,Références!$D$12)+IF(T279=Références!$B$13,IF(S279>=1600,Références!$D$16,IF('Calculateur-Transport'!S279>=500,Références!$D$15,IF('Calculateur-Transport'!S279<=499,Références!$D$14)))))*S279","v":0}]
[null,null,null,null,null,null,null,null,null,null,null,null,null,null,null,null,null,null,null,null,{"$f":"(IF(T280=Références!$B$5,Références!$D$5)+IF(T280=Références!$B$6,Références!$D$6)+IF(T280=Références!$B$7,Références!$D$7)+IF(T280=Références!$B$8,Références!$D$8)+IF(T280=Références!$B$9,Références!$D$9)+IF(T280=Références!$B$10,Références!$D$10)+IF(T280=Références!$B$11,Références!$D$11)+IF(T280=Références!$B$12,Références!$D$12)+IF(T280=Références!$B$13,IF(S280>=1600,Références!$D$16,IF('Calculateur-Transport'!S280>=500,Références!$D$15,IF('Calculateur-Transport'!S280<=499,Références!$D$14)))))*S280","v":0}]
[null,null,null,null,null,null,null,null,null,null,null,null,null,null,null,null,null,null,null,null,{"$f":"(IF(T281=Références!$B$5,Références!$D$5)+IF(T281=Références!$B$6,Références!$D$6)+IF(T281=Références!$B$7,Références!$D$7)+IF(T281=Références!$B$8,Références!$D$8)+IF(T281=Références!$B$9,Références!$D$9)+IF(T281=Références!$B$10,Références!$D$10)+IF(T281=Références!$B$11,Références!$D$11)+IF(T281=Références!$B$12,Références!$D$12)+IF(T281=Références!$B$13,IF(S281>=1600,Références!$D$16,IF('Calculateur-Transport'!S281>=500,Références!$D$15,IF('Calculateur-Transport'!S281<=499,Références!$D$14)))))*S281","v":0}]
[null,null,null,null,null,null,null,null,null,null,null,null,null,null,null,null,null,null,null,null,{"$f":"(IF(T282=Références!$B$5,Références!$D$5)+IF(T282=Références!$B$6,Références!$D$6)+IF(T282=Références!$B$7,Références!$D$7)+IF(T282=Références!$B$8,Références!$D$8)+IF(T282=Références!$B$9,Références!$D$9)+IF(T282=Références!$B$10,Références!$D$10)+IF(T282=Références!$B$11,Références!$D$11)+IF(T282=Références!$B$12,Références!$D$12)+IF(T282=Références!$B$13,IF(S282>=1600,Références!$D$16,IF('Calculateur-Transport'!S282>=500,Références!$D$15,IF('Calculateur-Transport'!S282<=499,Références!$D$14)))))*S282","v":0}]
[null,null,null,null,null,null,null,null,null,null,null,null,null,null,null,null,null,null,null,null,{"$f":"(IF(T283=Références!$B$5,Références!$D$5)+IF(T283=Références!$B$6,Références!$D$6)+IF(T283=Références!$B$7,Références!$D$7)+IF(T283=Références!$B$8,Références!$D$8)+IF(T283=Références!$B$9,Références!$D$9)+IF(T283=Références!$B$10,Références!$D$10)+IF(T283=Références!$B$11,Références!$D$11)+IF(T283=Références!$B$12,Références!$D$12)+IF(T283=Références!$B$13,IF(S283>=1600,Références!$D$16,IF('Calculateur-Transport'!S283>=500,Références!$D$15,IF('Calculateur-Transport'!S283<=499,Références!$D$14)))))*S283","v":0}]
[null,null,null,null,null,null,null,null,null,null,null,null,null,null,null,null,null,null,null,null,{"$f":"(IF(T284=Références!$B$5,Références!$D$5)+IF(T284=Références!$B$6,Références!$D$6)+IF(T284=Références!$B$7,Références!$D$7)+IF(T284=Références!$B$8,Références!$D$8)+IF(T284=Références!$B$9,Références!$D$9)+IF(T284=Références!$B$10,Références!$D$10)+IF(T284=Références!$B$11,Références!$D$11)+IF(T284=Références!$B$12,Références!$D$12)+IF(T284=Références!$B$13,IF(S284>=1600,Références!$D$16,IF('Calculateur-Transport'!S284>=500,Références!$D$15,IF('Calculateur-Transport'!S284<=499,Références!$D$14)))))*S284","v":0}]
[null,null,null,null,null,null,null,null,null,null,null,null,null,null,null,null,null,null,null,null,{"$f":"(IF(T285=Références!$B$5,Références!$D$5)+IF(T285=Références!$B$6,Références!$D$6)+IF(T285=Références!$B$7,Références!$D$7)+IF(T285=Références!$B$8,Références!$D$8)+IF(T285=Références!$B$9,Références!$D$9)+IF(T285=Références!$B$10,Références!$D$10)+IF(T285=Références!$B$11,Références!$D$11)+IF(T285=Références!$B$12,Références!$D$12)+IF(T285=Références!$B$13,IF(S285>=1600,Références!$D$16,IF('Calculateur-Transport'!S285>=500,Références!$D$15,IF('Calculateur-Transport'!S285<=499,Références!$D$14)))))*S285","v":0}]
[null,null,null,null,null,null,null,null,null,null,null,null,null,null,null,null,null,null,null,null,{"$f":"(IF(T286=Références!$B$5,Références!$D$5)+IF(T286=Références!$B$6,Références!$D$6)+IF(T286=Références!$B$7,Références!$D$7)+IF(T286=Références!$B$8,Références!$D$8)+IF(T286=Références!$B$9,Références!$D$9)+IF(T286=Références!$B$10,Références!$D$10)+IF(T286=Références!$B$11,Références!$D$11)+IF(T286=Références!$B$12,Références!$D$12)+IF(T286=Références!$B$13,IF(S286>=1600,Références!$D$16,IF('Calculateur-Transport'!S286>=500,Références!$D$15,IF('Calculateur-Transport'!S286<=499,Références!$D$14)))))*S286","v":0}]
[null,null,null,null,null,null,null,null,null,null,null,null,null,null,null,null,null,null,null,null,{"$f":"(IF(T287=Références!$B$5,Références!$D$5)+IF(T287=Références!$B$6,Références!$D$6)+IF(T287=Références!$B$7,Références!$D$7)+IF(T287=Références!$B$8,Références!$D$8)+IF(T287=Références!$B$9,Références!$D$9)+IF(T287=Références!$B$10,Références!$D$10)+IF(T287=Références!$B$11,Références!$D$11)+IF(T287=Références!$B$12,Références!$D$12)+IF(T287=Références!$B$13,IF(S287>=1600,Références!$D$16,IF('Calculateur-Transport'!S287>=500,Références!$D$15,IF('Calculateur-Transport'!S287<=499,Références!$D$14)))))*S287","v":0}]
[null,null,null,null,null,null,null,null,null,null,null,null,null,null,null,null,null,null,null,null,{"$f":"(IF(T288=Références!$B$5,Références!$D$5)+IF(T288=Références!$B$6,Références!$D$6)+IF(T288=Références!$B$7,Références!$D$7)+IF(T288=Références!$B$8,Références!$D$8)+IF(T288=Références!$B$9,Références!$D$9)+IF(T288=Références!$B$10,Références!$D$10)+IF(T288=Références!$B$11,Références!$D$11)+IF(T288=Références!$B$12,Références!$D$12)+IF(T288=Références!$B$13,IF(S288>=1600,Références!$D$16,IF('Calculateur-Transport'!S288>=500,Références!$D$15,IF('Calculateur-Transport'!S288<=499,Références!$D$14)))))*S288","v":0}]
[null,null,null,null,null,null,null,null,null,null,null,null,null,null,null,null,null,null,null,null,{"$f":"(IF(T289=Références!$B$5,Références!$D$5)+IF(T289=Références!$B$6,Références!$D$6)+IF(T289=Références!$B$7,Références!$D$7)+IF(T289=Références!$B$8,Références!$D$8)+IF(T289=Références!$B$9,Références!$D$9)+IF(T289=Références!$B$10,Références!$D$10)+IF(T289=Références!$B$11,Références!$D$11)+IF(T289=Références!$B$12,Références!$D$12)+IF(T289=Références!$B$13,IF(S289>=1600,Références!$D$16,IF('Calculateur-Transport'!S289>=500,Références!$D$15,IF('Calculateur-Transport'!S289<=499,Références!$D$14)))))*S289","v":0}]
[null,null,null,null,null,null,null,null,null,null,null,null,null,null,null,null,null,null,null,null,{"$f":"(IF(T290=Références!$B$5,Références!$D$5)+IF(T290=Références!$B$6,Références!$D$6)+IF(T290=Références!$B$7,Références!$D$7)+IF(T290=Références!$B$8,Références!$D$8)+IF(T290=Références!$B$9,Références!$D$9)+IF(T290=Références!$B$10,Références!$D$10)+IF(T290=Références!$B$11,Références!$D$11)+IF(T290=Références!$B$12,Références!$D$12)+IF(T290=Références!$B$13,IF(S290>=1600,Références!$D$16,IF('Calculateur-Transport'!S290>=500,Références!$D$15,IF('Calculateur-Transport'!S290<=499,Références!$D$14)))))*S290","v":0}]
[null,null,null,null,null,null,null,null,null,null,null,null,null,null,null,null,null,null,null,null,{"$f":"(IF(T291=Références!$B$5,Références!$D$5)+IF(T291=Références!$B$6,Références!$D$6)+IF(T291=Références!$B$7,Références!$D$7)+IF(T291=Références!$B$8,Références!$D$8)+IF(T291=Références!$B$9,Références!$D$9)+IF(T291=Références!$B$10,Références!$D$10)+IF(T291=Références!$B$11,Références!$D$11)+IF(T291=Références!$B$12,Références!$D$12)+IF(T291=Références!$B$13,IF(S291>=1600,Références!$D$16,IF('Calculateur-Transport'!S291>=500,Références!$D$15,IF('Calculateur-Transport'!S291<=499,Références!$D$14)))))*S291","v":0}]
[null,null,null,null,null,null,null,null,null,null,null,null,null,null,null,null,null,null,null,null,{"$f":"(IF(T292=Références!$B$5,Références!$D$5)+IF(T292=Références!$B$6,Références!$D$6)+IF(T292=Références!$B$7,Références!$D$7)+IF(T292=Références!$B$8,Références!$D$8)+IF(T292=Références!$B$9,Références!$D$9)+IF(T292=Références!$B$10,Références!$D$10)+IF(T292=Références!$B$11,Références!$D$11)+IF(T292=Références!$B$12,Références!$D$12)+IF(T292=Références!$B$13,IF(S292>=1600,Références!$D$16,IF('Calculateur-Transport'!S292>=500,Références!$D$15,IF('Calculateur-Transport'!S292<=499,Références!$D$14)))))*S292","v":0}]
[null,null,null,null,null,null,null,null,null,null,null,null,null,null,null,null,null,null,null,null,{"$f":"(IF(T293=Références!$B$5,Références!$D$5)+IF(T293=Références!$B$6,Références!$D$6)+IF(T293=Références!$B$7,Références!$D$7)+IF(T293=Références!$B$8,Références!$D$8)+IF(T293=Références!$B$9,Références!$D$9)+IF(T293=Références!$B$10,Références!$D$10)+IF(T293=Références!$B$11,Références!$D$11)+IF(T293=Références!$B$12,Références!$D$12)+IF(T293=Références!$B$13,IF(S293>=1600,Références!$D$16,IF('Calculateur-Transport'!S293>=500,Références!$D$15,IF('Calculateur-Transport'!S293<=499,Références!$D$14)))))*S293","v":0}]
[null,null,null,null,null,null,null,null,null,null,null,null,null,null,null,null,null,null,null,null,{"$f":"(IF(T294=Références!$B$5,Références!$D$5)+IF(T294=Références!$B$6,Références!$D$6)+IF(T294=Références!$B$7,Références!$D$7)+IF(T294=Références!$B$8,Références!$D$8)+IF(T294=Références!$B$9,Références!$D$9)+IF(T294=Références!$B$10,Références!$D$10)+IF(T294=Références!$B$11,Références!$D$11)+IF(T294=Références!$B$12,Références!$D$12)+IF(T294=Références!$B$13,IF(S294>=1600,Références!$D$16,IF('Calculateur-Transport'!S294>=500,Références!$D$15,IF('Calculateur-Transport'!S294<=499,Références!$D$14)))))*S294","v":0}]
[null,null,null,null,null,null,null,null,null,null,null,null,null,null,null,null,null,null,null,null,{"$f":"(IF(T295=Références!$B$5,Références!$D$5)+IF(T295=Références!$B$6,Références!$D$6)+IF(T295=Références!$B$7,Références!$D$7)+IF(T295=Références!$B$8,Références!$D$8)+IF(T295=Références!$B$9,Références!$D$9)+IF(T295=Références!$B$10,Références!$D$10)+IF(T295=Références!$B$11,Références!$D$11)+IF(T295=Références!$B$12,Références!$D$12)+IF(T295=Références!$B$13,IF(S295>=1600,Références!$D$16,IF('Calculateur-Transport'!S295>=500,Références!$D$15,IF('Calculateur-Transport'!S295<=499,Références!$D$14)))))*S295","v":0}]
[null,null,null,null,null,null,null,null,null,null,null,null,null,null,null,null,null,null,null,null,{"$f":"(IF(T296=Références!$B$5,Références!$D$5)+IF(T296=Références!$B$6,Références!$D$6)+IF(T296=Références!$B$7,Références!$D$7)+IF(T296=Références!$B$8,Références!$D$8)+IF(T296=Références!$B$9,Références!$D$9)+IF(T296=Références!$B$10,Références!$D$10)+IF(T296=Références!$B$11,Références!$D$11)+IF(T296=Références!$B$12,Références!$D$12)+IF(T296=Références!$B$13,IF(S296>=1600,Références!$D$16,IF('Calculateur-Transport'!S296>=500,Références!$D$15,IF('Calculateur-Transport'!S296<=499,Références!$D$14)))))*S296","v":0}]
[null,null,null,null,null,null,null,null,null,null,null,null,null,null,null,null,null,null,null,null,{"$f":"(IF(T297=Références!$B$5,Références!$D$5)+IF(T297=Références!$B$6,Références!$D$6)+IF(T297=Références!$B$7,Références!$D$7)+IF(T297=Références!$B$8,Références!$D$8)+IF(T297=Références!$B$9,Références!$D$9)+IF(T297=Références!$B$10,Références!$D$10)+IF(T297=Références!$B$11,Références!$D$11)+IF(T297=Références!$B$12,Références!$D$12)+IF(T297=Références!$B$13,IF(S297>=1600,Références!$D$16,IF('Calculateur-Transport'!S297>=500,Références!$D$15,IF('Calculateur-Transport'!S297<=499,Références!$D$14)))))*S297","v":0}]
[null,null,null,null,null,null,null,null,null,null,null,null,null,null,null,null,null,null,null,null,{"$f":"(IF(T298=Références!$B$5,Références!$D$5)+IF(T298=Références!$B$6,Références!$D$6)+IF(T298=Références!$B$7,Références!$D$7)+IF(T298=Références!$B$8,Références!$D$8)+IF(T298=Références!$B$9,Références!$D$9)+IF(T298=Références!$B$10,Références!$D$10)+IF(T298=Références!$B$11,Références!$D$11)+IF(T298=Références!$B$12,Références!$D$12)+IF(T298=Références!$B$13,IF(S298>=1600,Références!$D$16,IF('Calculateur-Transport'!S298>=500,Références!$D$15,IF('Calculateur-Transport'!S298<=499,Références!$D$14)))))*S298","v":0}]
[null,null,null,null,null,null,null,null,null,null,null,null,null,null,null,null,null,null,null,null,{"$f":"(IF(T299=Références!$B$5,Références!$D$5)+IF(T299=Références!$B$6,Références!$D$6)+IF(T299=Références!$B$7,Références!$D$7)+IF(T299=Références!$B$8,Références!$D$8)+IF(T299=Références!$B$9,Références!$D$9)+IF(T299=Références!$B$10,Références!$D$10)+IF(T299=Références!$B$11,Références!$D$11)+IF(T299=Références!$B$12,Références!$D$12)+IF(T299=Références!$B$13,IF(S299>=1600,Références!$D$16,IF('Calculateur-Transport'!S299>=500,Références!$D$15,IF('Calculateur-Transport'!S299<=499,Références!$D$14)))))*S299","v":0}]
[null,null,null,null,null,null,null,null,null,null,null,null,null,null,null,null,null,null,null,null,{"$f":"(IF(T300=Références!$B$5,Références!$D$5)+IF(T300=Références!$B$6,Références!$D$6)+IF(T300=Références!$B$7,Références!$D$7)+IF(T300=Références!$B$8,Références!$D$8)+IF(T300=Références!$B$9,Références!$D$9)+IF(T300=Références!$B$10,Références!$D$10)+IF(T300=Références!$B$11,Références!$D$11)+IF(T300=Références!$B$12,Références!$D$12)+IF(T300=Références!$B$13,IF(S300>=1600,Références!$D$16,IF('Calculateur-Transport'!S300>=500,Références!$D$15,IF('Calculateur-Transport'!S300<=499,Références!$D$14)))))*S300","v":0}]
[null,null,null,null,null,null,null,null,null,null,null,null,null,null,null,null,null,null,null,null,{"$f":"(IF(T301=Références!$B$5,Références!$D$5)+IF(T301=Références!$B$6,Références!$D$6)+IF(T301=Références!$B$7,Références!$D$7)+IF(T301=Références!$B$8,Références!$D$8)+IF(T301=Références!$B$9,Références!$D$9)+IF(T301=Références!$B$10,Références!$D$10)+IF(T301=Références!$B$11,Références!$D$11)+IF(T301=Références!$B$12,Références!$D$12)+IF(T301=Références!$B$13,IF(S301>=1600,Références!$D$16,IF('Calculateur-Transport'!S301>=500,Références!$D$15,IF('Calculateur-Transport'!S301<=499,Références!$D$14)))))*S301","v":0}]
[null,null,null,null,null,null,null,null,null,null,null,null,null,null,null,null,null,null,null,null,{"$f":"(IF(T302=Références!$B$5,Références!$D$5)+IF(T302=Références!$B$6,Références!$D$6)+IF(T302=Références!$B$7,Références!$D$7)+IF(T302=Références!$B$8,Références!$D$8)+IF(T302=Références!$B$9,Références!$D$9)+IF(T302=Références!$B$10,Références!$D$10)+IF(T302=Références!$B$11,Références!$D$11)+IF(T302=Références!$B$12,Références!$D$12)+IF(T302=Références!$B$13,IF(S302>=1600,Références!$D$16,IF('Calculateur-Transport'!S302>=500,Références!$D$15,IF('Calculateur-Transport'!S302<=499,Références!$D$14)))))*S302","v":0}]
[null,null,null,null,null,null,null,null,null,null,null,null,null,null,null,null,null,null,null,null,{"$f":"(IF(T303=Références!$B$5,Références!$D$5)+IF(T303=Références!$B$6,Références!$D$6)+IF(T303=Références!$B$7,Références!$D$7)+IF(T303=Références!$B$8,Références!$D$8)+IF(T303=Références!$B$9,Références!$D$9)+IF(T303=Références!$B$10,Références!$D$10)+IF(T303=Références!$B$11,Références!$D$11)+IF(T303=Références!$B$12,Références!$D$12)+IF(T303=Références!$B$13,IF(S303>=1600,Références!$D$16,IF('Calculateur-Transport'!S303>=500,Références!$D$15,IF('Calculateur-Transport'!S303<=499,Références!$D$14)))))*S303","v":0}]
[null,null,null,null,null,null,null,null,null,null,null,null,null,null,null,null,null,null,null,null,{"$f":"(IF(T304=Références!$B$5,Références!$D$5)+IF(T304=Références!$B$6,Références!$D$6)+IF(T304=Références!$B$7,Références!$D$7)+IF(T304=Références!$B$8,Références!$D$8)+IF(T304=Références!$B$9,Références!$D$9)+IF(T304=Références!$B$10,Références!$D$10)+IF(T304=Références!$B$11,Références!$D$11)+IF(T304=Références!$B$12,Références!$D$12)+IF(T304=Références!$B$13,IF(S304>=1600,Références!$D$16,IF('Calculateur-Transport'!S304>=500,Références!$D$15,IF('Calculateur-Transport'!S304<=499,Références!$D$14)))))*S304","v":0}]
[null,null,null,null,null,null,null,null,null,null,null,null,null,null,null,null,null,null,null,null,{"$f":"(IF(T305=Références!$B$5,Références!$D$5)+IF(T305=Références!$B$6,Références!$D$6)+IF(T305=Références!$B$7,Références!$D$7)+IF(T305=Références!$B$8,Références!$D$8)+IF(T305=Références!$B$9,Références!$D$9)+IF(T305=Références!$B$10,Références!$D$10)+IF(T305=Références!$B$11,Références!$D$11)+IF(T305=Références!$B$12,Références!$D$12)+IF(T305=Références!$B$13,IF(S305>=1600,Références!$D$16,IF('Calculateur-Transport'!S305>=500,Références!$D$15,IF('Calculateur-Transport'!S305<=499,Références!$D$14)))))*S305","v":0}]
[null,null,null,null,null,null,null,null,null,null,null,null,null,null,null,null,null,null,null,null,{"$f":"(IF(T306=Références!$B$5,Références!$D$5)+IF(T306=Références!$B$6,Références!$D$6)+IF(T306=Références!$B$7,Références!$D$7)+IF(T306=Références!$B$8,Références!$D$8)+IF(T306=Références!$B$9,Références!$D$9)+IF(T306=Références!$B$10,Références!$D$10)+IF(T306=Références!$B$11,Références!$D$11)+IF(T306=Références!$B$12,Références!$D$12)+IF(T306=Références!$B$13,IF(S306>=1600,Références!$D$16,IF('Calculateur-Transport'!S306>=500,Références!$D$15,IF('Calculateur-Transport'!S306<=499,Références!$D$14)))))*S306","v":0}]
[null,null,null,null,null,null,null,null,null,null,null,null,null,null,null,null,null,null,null,null,{"$f":"(IF(T307=Références!$B$5,Références!$D$5)+IF(T307=Références!$B$6,Références!$D$6)+IF(T307=Références!$B$7,Références!$D$7)+IF(T307=Références!$B$8,Références!$D$8)+IF(T307=Références!$B$9,Références!$D$9)+IF(T307=Références!$B$10,Références!$D$10)+IF(T307=Références!$B$11,Références!$D$11)+IF(T307=Références!$B$12,Références!$D$12)+IF(T307=Références!$B$13,IF(S307>=1600,Références!$D$16,IF('Calculateur-Transport'!S307>=500,Références!$D$15,IF('Calculateur-Transport'!S307<=499,Références!$D$14)))))*S307","v":0}]
[null,null,null,null,null,null,null,null,null,null,null,null,null,null,null,null,null,null,null,null,{"$f":"(IF(T308=Références!$B$5,Références!$D$5)+IF(T308=Références!$B$6,Références!$D$6)+IF(T308=Références!$B$7,Références!$D$7)+IF(T308=Références!$B$8,Références!$D$8)+IF(T308=Références!$B$9,Références!$D$9)+IF(T308=Références!$B$10,Références!$D$10)+IF(T308=Références!$B$11,Références!$D$11)+IF(T308=Références!$B$12,Références!$D$12)+IF(T308=Références!$B$13,IF(S308>=1600,Références!$D$16,IF('Calculateur-Transport'!S308>=500,Références!$D$15,IF('Calculateur-Transport'!S308<=499,Références!$D$14)))))*S308","v":0}]
[null,null,null,null,null,null,null,null,null,null,null,null,null,null,null,null,null,null,null,null,{"$f":"(IF(T309=Références!$B$5,Références!$D$5)+IF(T309=Références!$B$6,Références!$D$6)+IF(T309=Références!$B$7,Références!$D$7)+IF(T309=Références!$B$8,Références!$D$8)+IF(T309=Références!$B$9,Références!$D$9)+IF(T309=Références!$B$10,Références!$D$10)+IF(T309=Références!$B$11,Références!$D$11)+IF(T309=Références!$B$12,Références!$D$12)+IF(T309=Références!$B$13,IF(S309>=1600,Références!$D$16,IF('Calculateur-Transport'!S309>=500,Références!$D$15,IF('Calculateur-Transport'!S309<=499,Références!$D$14)))))*S309","v":0}]
[null,null,null,null,null,null,null,null,null,null,null,null,null,null,null,null,null,null,null,null,{"$f":"(IF(T310=Références!$B$5,Références!$D$5)+IF(T310=Références!$B$6,Références!$D$6)+IF(T310=Références!$B$7,Références!$D$7)+IF(T310=Références!$B$8,Références!$D$8)+IF(T310=Références!$B$9,Références!$D$9)+IF(T310=Références!$B$10,Références!$D$10)+IF(T310=Références!$B$11,Références!$D$11)+IF(T310=Références!$B$12,Références!$D$12)+IF(T310=Références!$B$13,IF(S310>=1600,Références!$D$16,IF('Calculateur-Transport'!S310>=500,Références!$D$15,IF('Calculateur-Transport'!S310<=499,Références!$D$14)))))*S310","v":0}]
[null,null,null,null,null,null,null,null,null,null,null,null,null,null,null,null,null,null,null,null,{"$f":"(IF(T311=Références!$B$5,Références!$D$5)+IF(T311=Références!$B$6,Références!$D$6)+IF(T311=Références!$B$7,Références!$D$7)+IF(T311=Références!$B$8,Références!$D$8)+IF(T311=Références!$B$9,Références!$D$9)+IF(T311=Références!$B$10,Références!$D$10)+IF(T311=Références!$B$11,Références!$D$11)+IF(T311=Références!$B$12,Références!$D$12)+IF(T311=Références!$B$13,IF(S311>=1600,Références!$D$16,IF('Calculateur-Transport'!S311>=500,Références!$D$15,IF('Calculateur-Transport'!S311<=499,Références!$D$14)))))*S311","v":0}]
[null,null,null,null,null,null,null,null,null,null,null,null,null,null,null,null,null,null,null,null,{"$f":"(IF(T312=Références!$B$5,Références!$D$5)+IF(T312=Références!$B$6,Références!$D$6)+IF(T312=Références!$B$7,Références!$D$7)+IF(T312=Références!$B$8,Références!$D$8)+IF(T312=Références!$B$9,Références!$D$9)+IF(T312=Références!$B$10,Références!$D$10)+IF(T312=Références!$B$11,Références!$D$11)+IF(T312=Références!$B$12,Références!$D$12)+IF(T312=Références!$B$13,IF(S312>=1600,Références!$D$16,IF('Calculateur-Transport'!S312>=500,Références!$D$15,IF('Calculateur-Transport'!S312<=499,Références!$D$14)))))*S312","v":0}]
[null,null,null,null,null,null,null,null,null,null,null,null,null,null,null,null,null,null,null,null,{"$f":"(IF(T313=Références!$B$5,Références!$D$5)+IF(T313=Références!$B$6,Références!$D$6)+IF(T313=Références!$B$7,Références!$D$7)+IF(T313=Références!$B$8,Références!$D$8)+IF(T313=Références!$B$9,Références!$D$9)+IF(T313=Références!$B$10,Références!$D$10)+IF(T313=Références!$B$11,Références!$D$11)+IF(T313=Références!$B$12,Références!$D$12)+IF(T313=Références!$B$13,IF(S313>=1600,Références!$D$16,IF('Calculateur-Transport'!S313>=500,Références!$D$15,IF('Calculateur-Transport'!S313<=499,Références!$D$14)))))*S313","v":0}]
[null,null,null,null,null,null,null,null,null,null,null,null,null,null,null,null,null,null,null,null,{"$f":"(IF(T314=Références!$B$5,Références!$D$5)+IF(T314=Références!$B$6,Références!$D$6)+IF(T314=Références!$B$7,Références!$D$7)+IF(T314=Références!$B$8,Références!$D$8)+IF(T314=Références!$B$9,Références!$D$9)+IF(T314=Références!$B$10,Références!$D$10)+IF(T314=Références!$B$11,Références!$D$11)+IF(T314=Références!$B$12,Références!$D$12)+IF(T314=Références!$B$13,IF(S314>=1600,Références!$D$16,IF('Calculateur-Transport'!S314>=500,Références!$D$15,IF('Calculateur-Transport'!S314<=499,Références!$D$14)))))*S314","v":0}]
[null,null,null,null,null,null,null,null,null,null,null,null,null,null,null,null,null,null,null,null,{"$f":"(IF(T315=Références!$B$5,Références!$D$5)+IF(T315=Références!$B$6,Références!$D$6)+IF(T315=Références!$B$7,Références!$D$7)+IF(T315=Références!$B$8,Références!$D$8)+IF(T315=Références!$B$9,Références!$D$9)+IF(T315=Références!$B$10,Références!$D$10)+IF(T315=Références!$B$11,Références!$D$11)+IF(T315=Références!$B$12,Références!$D$12)+IF(T315=Références!$B$13,IF(S315>=1600,Références!$D$16,IF('Calculateur-Transport'!S315>=500,Références!$D$15,IF('Calculateur-Transport'!S315<=499,Références!$D$14)))))*S315","v":0}]
[null,null,null,null,null,null,null,null,null,null,null,null,null,null,null,null,null,null,null,null,{"$f":"(IF(T316=Références!$B$5,Références!$D$5)+IF(T316=Références!$B$6,Références!$D$6)+IF(T316=Références!$B$7,Références!$D$7)+IF(T316=Références!$B$8,Références!$D$8)+IF(T316=Références!$B$9,Références!$D$9)+IF(T316=Références!$B$10,Références!$D$10)+IF(T316=Références!$B$11,Références!$D$11)+IF(T316=Références!$B$12,Références!$D$12)+IF(T316=Références!$B$13,IF(S316>=1600,Références!$D$16,IF('Calculateur-Transport'!S316>=500,Références!$D$15,IF('Calculateur-Transport'!S316<=499,Références!$D$14)))))*S316","v":0}]
[null,null,null,null,null,null,null,null,null,null,null,null,null,null,null,null,null,null,null,null,{"$f":"(IF(T317=Références!$B$5,Références!$D$5)+IF(T317=Références!$B$6,Références!$D$6)+IF(T317=Références!$B$7,Références!$D$7)+IF(T317=Références!$B$8,Références!$D$8)+IF(T317=Références!$B$9,Références!$D$9)+IF(T317=Références!$B$10,Références!$D$10)+IF(T317=Références!$B$11,Références!$D$11)+IF(T317=Références!$B$12,Références!$D$12)+IF(T317=Références!$B$13,IF(S317>=1600,Références!$D$16,IF('Calculateur-Transport'!S317>=500,Références!$D$15,IF('Calculateur-Transport'!S317<=499,Références!$D$14)))))*S317","v":0}]
[null,null,null,null,null,null,null,null,null,null,null,null,null,null,null,null,null,null,null,null,{"$f":"(IF(T318=Références!$B$5,Références!$D$5)+IF(T318=Références!$B$6,Références!$D$6)+IF(T318=Références!$B$7,Références!$D$7)+IF(T318=Références!$B$8,Références!$D$8)+IF(T318=Références!$B$9,Références!$D$9)+IF(T318=Références!$B$10,Références!$D$10)+IF(T318=Références!$B$11,Références!$D$11)+IF(T318=Références!$B$12,Références!$D$12)+IF(T318=Références!$B$13,IF(S318>=1600,Références!$D$16,IF('Calculateur-Transport'!S318>=500,Références!$D$15,IF('Calculateur-Transport'!S318<=499,Références!$D$14)))))*S318","v":0}]
[null,null,null,null,null,null,null,null,null,null,null,null,null,null,null,null,null,null,null,null,{"$f":"(IF(T319=Références!$B$5,Références!$D$5)+IF(T319=Références!$B$6,Références!$D$6)+IF(T319=Références!$B$7,Références!$D$7)+IF(T319=Références!$B$8,Références!$D$8)+IF(T319=Références!$B$9,Références!$D$9)+IF(T319=Références!$B$10,Références!$D$10)+IF(T319=Références!$B$11,Références!$D$11)+IF(T319=Références!$B$12,Références!$D$12)+IF(T319=Références!$B$13,IF(S319>=1600,Références!$D$16,IF('Calculateur-Transport'!S319>=500,Références!$D$15,IF('Calculateur-Transport'!S319<=499,Références!$D$14)))))*S319","v":0}]
[null,null,null,null,null,null,null,null,null,null,null,null,null,null,null,null,null,null,null,null,{"$f":"(IF(T320=Références!$B$5,Références!$D$5)+IF(T320=Références!$B$6,Références!$D$6)+IF(T320=Références!$B$7,Références!$D$7)+IF(T320=Références!$B$8,Références!$D$8)+IF(T320=Références!$B$9,Références!$D$9)+IF(T320=Références!$B$10,Références!$D$10)+IF(T320=Références!$B$11,Références!$D$11)+IF(T320=Références!$B$12,Références!$D$12)+IF(T320=Références!$B$13,IF(S320>=1600,Références!$D$16,IF('Calculateur-Transport'!S320>=500,Références!$D$15,IF('Calculateur-Transport'!S320<=499,Références!$D$14)))))*S320","v":0}]
[null,null,null,null,null,null,null,null,null,null,null,null,null,null,null,null,null,null,null,null,{"$f":"(IF(T321=Références!$B$5,Références!$D$5)+IF(T321=Références!$B$6,Références!$D$6)+IF(T321=Références!$B$7,Références!$D$7)+IF(T321=Références!$B$8,Références!$D$8)+IF(T321=Références!$B$9,Références!$D$9)+IF(T321=Références!$B$10,Références!$D$10)+IF(T321=Références!$B$11,Références!$D$11)+IF(T321=Références!$B$12,Références!$D$12)+IF(T321=Références!$B$13,IF(S321>=1600,Références!$D$16,IF('Calculateur-Transport'!S321>=500,Références!$D$15,IF('Calculateur-Transport'!S321<=499,Références!$D$14)))))*S321","v":0}]
[null,null,null,null,null,null,null,null,null,null,null,null,null,null,null,null,null,null,null,null,{"$f":"(IF(T322=Références!$B$5,Références!$D$5)+IF(T322=Références!$B$6,Références!$D$6)+IF(T322=Références!$B$7,Références!$D$7)+IF(T322=Références!$B$8,Références!$D$8)+IF(T322=Références!$B$9,Références!$D$9)+IF(T322=Références!$B$10,Références!$D$10)+IF(T322=Références!$B$11,Références!$D$11)+IF(T322=Références!$B$12,Références!$D$12)+IF(T322=Références!$B$13,IF(S322>=1600,Références!$D$16,IF('Calculateur-Transport'!S322>=500,Références!$D$15,IF('Calculateur-Transport'!S322<=499,Références!$D$14)))))*S322","v":0}]
[null,null,null,null,null,null,null,null,null,null,null,null,null,null,null,null,null,null,null,null,{"$f":"(IF(T323=Références!$B$5,Références!$D$5)+IF(T323=Références!$B$6,Références!$D$6)+IF(T323=Références!$B$7,Références!$D$7)+IF(T323=Références!$B$8,Références!$D$8)+IF(T323=Références!$B$9,Références!$D$9)+IF(T323=Références!$B$10,Références!$D$10)+IF(T323=Références!$B$11,Références!$D$11)+IF(T323=Références!$B$12,Références!$D$12)+IF(T323=Références!$B$13,IF(S323>=1600,Références!$D$16,IF('Calculateur-Transport'!S323>=500,Références!$D$15,IF('Calculateur-Transport'!S323<=499,Références!$D$14)))))*S323","v":0}]
[null,null,null,null,null,null,null,null,null,null,null,null,null,null,null,null,null,null,null,null,{"$f":"(IF(T324=Références!$B$5,Références!$D$5)+IF(T324=Références!$B$6,Références!$D$6)+IF(T324=Références!$B$7,Références!$D$7)+IF(T324=Références!$B$8,Références!$D$8)+IF(T324=Références!$B$9,Références!$D$9)+IF(T324=Références!$B$10,Références!$D$10)+IF(T324=Références!$B$11,Références!$D$11)+IF(T324=Références!$B$12,Références!$D$12)+IF(T324=Références!$B$13,IF(S324>=1600,Références!$D$16,IF('Calculateur-Transport'!S324>=500,Références!$D$15,IF('Calculateur-Transport'!S324<=499,Références!$D$14)))))*S324","v":0}]
[null,null,null,null,null,null,null,null,null,null,null,null,null,null,null,null,null,null,null,null,{"$f":"(IF(T325=Références!$B$5,Références!$D$5)+IF(T325=Références!$B$6,Références!$D$6)+IF(T325=Références!$B$7,Références!$D$7)+IF(T325=Références!$B$8,Références!$D$8)+IF(T325=Références!$B$9,Références!$D$9)+IF(T325=Références!$B$10,Références!$D$10)+IF(T325=Références!$B$11,Références!$D$11)+IF(T325=Références!$B$12,Références!$D$12)+IF(T325=Références!$B$13,IF(S325>=1600,Références!$D$16,IF('Calculateur-Transport'!S325>=500,Références!$D$15,IF('Calculateur-Transport'!S325<=499,Références!$D$14)))))*S325","v":0}]
[null,null,null,null,null,null,null,null,null,null,null,null,null,null,null,null,null,null,null,null,{"$f":"(IF(T326=Références!$B$5,Références!$D$5)+IF(T326=Références!$B$6,Références!$D$6)+IF(T326=Références!$B$7,Références!$D$7)+IF(T326=Références!$B$8,Références!$D$8)+IF(T326=Références!$B$9,Références!$D$9)+IF(T326=Références!$B$10,Références!$D$10)+IF(T326=Références!$B$11,Références!$D$11)+IF(T326=Références!$B$12,Références!$D$12)+IF(T326=Références!$B$13,IF(S326>=1600,Références!$D$16,IF('Calculateur-Transport'!S326>=500,Références!$D$15,IF('Calculateur-Transport'!S326<=499,Références!$D$14)))))*S326","v":0}]
[null,null,null,null,null,null,null,null,null,null,null,null,null,null,null,null,null,null,null,null,{"$f":"(IF(T327=Références!$B$5,Références!$D$5)+IF(T327=Références!$B$6,Références!$D$6)+IF(T327=Références!$B$7,Références!$D$7)+IF(T327=Références!$B$8,Références!$D$8)+IF(T327=Références!$B$9,Références!$D$9)+IF(T327=Références!$B$10,Références!$D$10)+IF(T327=Références!$B$11,Références!$D$11)+IF(T327=Références!$B$12,Références!$D$12)+IF(T327=Références!$B$13,IF(S327>=1600,Références!$D$16,IF('Calculateur-Transport'!S327>=500,Références!$D$15,IF('Calculateur-Transport'!S327<=499,Références!$D$14)))))*S327","v":0}]
[null,null,null,null,null,null,null,null,null,null,null,null,null,null,null,null,null,null,null,null,{"$f":"(IF(T328=Références!$B$5,Références!$D$5)+IF(T328=Références!$B$6,Références!$D$6)+IF(T328=Références!$B$7,Références!$D$7)+IF(T328=Références!$B$8,Références!$D$8)+IF(T328=Références!$B$9,Références!$D$9)+IF(T328=Références!$B$10,Références!$D$10)+IF(T328=Références!$B$11,Références!$D$11)+IF(T328=Références!$B$12,Références!$D$12)+IF(T328=Références!$B$13,IF(S328>=1600,Références!$D$16,IF('Calculateur-Transport'!S328>=500,Références!$D$15,IF('Calculateur-Transport'!S328<=499,Références!$D$14)))))*S328","v":0}]
[null,null,null,null,null,null,null,null,null,null,null,null,null,null,null,null,null,null,null,null,{"$f":"(IF(T329=Références!$B$5,Références!$D$5)+IF(T329=Références!$B$6,Références!$D$6)+IF(T329=Références!$B$7,Références!$D$7)+IF(T329=Références!$B$8,Références!$D$8)+IF(T329=Références!$B$9,Références!$D$9)+IF(T329=Références!$B$10,Références!$D$10)+IF(T329=Références!$B$11,Références!$D$11)+IF(T329=Références!$B$12,Références!$D$12)+IF(T329=Références!$B$13,IF(S329>=1600,Références!$D$16,IF('Calculateur-Transport'!S329>=500,Références!$D$15,IF('Calculateur-Transport'!S329<=499,Références!$D$14)))))*S329","v":0}]
[null,null,null,null,null,null,null,null,null,null,null,null,null,null,null,null,null,null,null,null,{"$f":"(IF(T330=Références!$B$5,Références!$D$5)+IF(T330=Références!$B$6,Références!$D$6)+IF(T330=Références!$B$7,Références!$D$7)+IF(T330=Références!$B$8,Références!$D$8)+IF(T330=Références!$B$9,Références!$D$9)+IF(T330=Références!$B$10,Références!$D$10)+IF(T330=Références!$B$11,Références!$D$11)+IF(T330=Références!$B$12,Références!$D$12)+IF(T330=Références!$B$13,IF(S330>=1600,Références!$D$16,IF('Calculateur-Transport'!S330>=500,Références!$D$15,IF('Calculateur-Transport'!S330<=499,Références!$D$14)))))*S330","v":0}]
[null,null,null,null,null,null,null,null,null,null,null,null,null,null,null,null,null,null,null,null,{"$f":"(IF(T331=Références!$B$5,Références!$D$5)+IF(T331=Références!$B$6,Références!$D$6)+IF(T331=Références!$B$7,Références!$D$7)+IF(T331=Références!$B$8,Références!$D$8)+IF(T331=Références!$B$9,Références!$D$9)+IF(T331=Références!$B$10,Références!$D$10)+IF(T331=Références!$B$11,Références!$D$11)+IF(T331=Références!$B$12,Références!$D$12)+IF(T331=Références!$B$13,IF(S331>=1600,Références!$D$16,IF('Calculateur-Transport'!S331>=500,Références!$D$15,IF('Calculateur-Transport'!S331<=499,Références!$D$14)))))*S331","v":0}]
[null,null,null,null,null,null,null,null,null,null,null,null,null,null,null,null,null,null,null,null,{"$f":"(IF(T332=Références!$B$5,Références!$D$5)+IF(T332=Références!$B$6,Références!$D$6)+IF(T332=Références!$B$7,Références!$D$7)+IF(T332=Références!$B$8,Références!$D$8)+IF(T332=Références!$B$9,Références!$D$9)+IF(T332=Références!$B$10,Références!$D$10)+IF(T332=Références!$B$11,Références!$D$11)+IF(T332=Références!$B$12,Références!$D$12)+IF(T332=Références!$B$13,IF(S332>=1600,Références!$D$16,IF('Calculateur-Transport'!S332>=500,Références!$D$15,IF('Calculateur-Transport'!S332<=499,Références!$D$14)))))*S332","v":0}]
[null,null,null,null,null,null,null,null,null,null,null,null,null,null,null,null,null,null,null,null,{"$f":"(IF(T333=Références!$B$5,Références!$D$5)+IF(T333=Références!$B$6,Références!$D$6)+IF(T333=Références!$B$7,Références!$D$7)+IF(T333=Références!$B$8,Références!$D$8)+IF(T333=Références!$B$9,Références!$D$9)+IF(T333=Références!$B$10,Références!$D$10)+IF(T333=Références!$B$11,Références!$D$11)+IF(T333=Références!$B$12,Références!$D$12)+IF(T333=Références!$B$13,IF(S333>=1600,Références!$D$16,IF('Calculateur-Transport'!S333>=500,Références!$D$15,IF('Calculateur-Transport'!S333<=499,Références!$D$14)))))*S333","v":0}]
[null,null,null,null,null,null,null,null,null,null,null,null,null,null,null,null,null,null,null,null,{"$f":"(IF(T334=Références!$B$5,Références!$D$5)+IF(T334=Références!$B$6,Références!$D$6)+IF(T334=Références!$B$7,Références!$D$7)+IF(T334=Références!$B$8,Références!$D$8)+IF(T334=Références!$B$9,Références!$D$9)+IF(T334=Références!$B$10,Références!$D$10)+IF(T334=Références!$B$11,Références!$D$11)+IF(T334=Références!$B$12,Références!$D$12)+IF(T334=Références!$B$13,IF(S334>=1600,Références!$D$16,IF('Calculateur-Transport'!S334>=500,Références!$D$15,IF('Calculateur-Transport'!S334<=499,Références!$D$14)))))*S334","v":0}]
[null,null,null,null,null,null,null,null,null,null,null,null,null,null,null,null,null,null,null,null,{"$f":"(IF(T335=Références!$B$5,Références!$D$5)+IF(T335=Références!$B$6,Références!$D$6)+IF(T335=Références!$B$7,Références!$D$7)+IF(T335=Références!$B$8,Références!$D$8)+IF(T335=Références!$B$9,Références!$D$9)+IF(T335=Références!$B$10,Références!$D$10)+IF(T335=Références!$B$11,Références!$D$11)+IF(T335=Références!$B$12,Références!$D$12)+IF(T335=Références!$B$13,IF(S335>=1600,Références!$D$16,IF('Calculateur-Transport'!S335>=500,Références!$D$15,IF('Calculateur-Transport'!S335<=499,Références!$D$14)))))*S335","v":0}]
[null,null,null,null,null,null,null,null,null,null,null,null,null,null,null,null,null,null,null,null,{"$f":"(IF(T336=Références!$B$5,Références!$D$5)+IF(T336=Références!$B$6,Références!$D$6)+IF(T336=Références!$B$7,Références!$D$7)+IF(T336=Références!$B$8,Références!$D$8)+IF(T336=Références!$B$9,Références!$D$9)+IF(T336=Références!$B$10,Références!$D$10)+IF(T336=Références!$B$11,Références!$D$11)+IF(T336=Références!$B$12,Références!$D$12)+IF(T336=Références!$B$13,IF(S336>=1600,Références!$D$16,IF('Calculateur-Transport'!S336>=500,Références!$D$15,IF('Calculateur-Transport'!S336<=499,Références!$D$14)))))*S336","v":0}]
[null,null,null,null,null,null,null,null,null,null,null,null,null,null,null,null,null,null,null,null,{"$f":"(IF(T337=Références!$B$5,Références!$D$5)+IF(T337=Références!$B$6,Références!$D$6)+IF(T337=Références!$B$7,Références!$D$7)+IF(T337=Références!$B$8,Références!$D$8)+IF(T337=Références!$B$9,Références!$D$9)+IF(T337=Références!$B$10,Références!$D$10)+IF(T337=Références!$B$11,Références!$D$11)+IF(T337=Références!$B$12,Références!$D$12)+IF(T337=Références!$B$13,IF(S337>=1600,Références!$D$16,IF('Calculateur-Transport'!S337>=500,Références!$D$15,IF('Calculateur-Transport'!S337<=499,Références!$D$14)))))*S337","v":0}]
[null,null,null,null,null,null,null,null,null,null,null,null,null,null,null,null,null,null,null,null,{"$f":"(IF(T338=Références!$B$5,Références!$D$5)+IF(T338=Références!$B$6,Références!$D$6)+IF(T338=Références!$B$7,Références!$D$7)+IF(T338=Références!$B$8,Références!$D$8)+IF(T338=Références!$B$9,Références!$D$9)+IF(T338=Références!$B$10,Références!$D$10)+IF(T338=Références!$B$11,Références!$D$11)+IF(T338=Références!$B$12,Références!$D$12)+IF(T338=Références!$B$13,IF(S338>=1600,Références!$D$16,IF('Calculateur-Transport'!S338>=500,Références!$D$15,IF('Calculateur-Transport'!S338<=499,Références!$D$14)))))*S338","v":0}]
[null,null,null,null,null,null,null,null,null,null,null,null,null,null,null,null,null,null,null,null,{"$f":"(IF(T339=Références!$B$5,Références!$D$5)+IF(T339=Références!$B$6,Références!$D$6)+IF(T339=Références!$B$7,Références!$D$7)+IF(T339=Références!$B$8,Références!$D$8)+IF(T339=Références!$B$9,Références!$D$9)+IF(T339=Références!$B$10,Références!$D$10)+IF(T339=Références!$B$11,Références!$D$11)+IF(T339=Références!$B$12,Références!$D$12)+IF(T339=Références!$B$13,IF(S339>=1600,Références!$D$16,IF('Calculateur-Transport'!S339>=500,Références!$D$15,IF('Calculateur-Transport'!S339<=499,Références!$D$14)))))*S339","v":0}]
[null,null,null,null,null,null,null,null,null,null,null,null,null,null,null,null,null,null,null,null,{"$f":"(IF(T340=Références!$B$5,Références!$D$5)+IF(T340=Références!$B$6,Références!$D$6)+IF(T340=Références!$B$7,Références!$D$7)+IF(T340=Références!$B$8,Références!$D$8)+IF(T340=Références!$B$9,Références!$D$9)+IF(T340=Références!$B$10,Références!$D$10)+IF(T340=Références!$B$11,Références!$D$11)+IF(T340=Références!$B$12,Références!$D$12)+IF(T340=Références!$B$13,IF(S340>=1600,Références!$D$16,IF('Calculateur-Transport'!S340>=500,Références!$D$15,IF('Calculateur-Transport'!S340<=499,Références!$D$14)))))*S340","v":0}]
[null,null,null,null,null,null,null,null,null,null,null,null,null,null,null,null,null,null,null,null,{"$f":"(IF(T341=Références!$B$5,Références!$D$5)+IF(T341=Références!$B$6,Références!$D$6)+IF(T341=Références!$B$7,Références!$D$7)+IF(T341=Références!$B$8,Références!$D$8)+IF(T341=Références!$B$9,Références!$D$9)+IF(T341=Références!$B$10,Références!$D$10)+IF(T341=Références!$B$11,Références!$D$11)+IF(T341=Références!$B$12,Références!$D$12)+IF(T341=Références!$B$13,IF(S341>=1600,Références!$D$16,IF('Calculateur-Transport'!S341>=500,Références!$D$15,IF('Calculateur-Transport'!S341<=499,Références!$D$14)))))*S341","v":0}]
[null,null,null,null,null,null,null,null,null,null,null,null,null,null,null,null,null,null,null,null,{"$f":"(IF(T342=Références!$B$5,Références!$D$5)+IF(T342=Références!$B$6,Références!$D$6)+IF(T342=Références!$B$7,Références!$D$7)+IF(T342=Références!$B$8,Références!$D$8)+IF(T342=Références!$B$9,Références!$D$9)+IF(T342=Références!$B$10,Références!$D$10)+IF(T342=Références!$B$11,Références!$D$11)+IF(T342=Références!$B$12,Références!$D$12)+IF(T342=Références!$B$13,IF(S342>=1600,Références!$D$16,IF('Calculateur-Transport'!S342>=500,Références!$D$15,IF('Calculateur-Transport'!S342<=499,Références!$D$14)))))*S342","v":0}]
[null,null,null,null,null,null,null,null,null,null,null,null,null,null,null,null,null,null,null,null,{"$f":"(IF(T343=Références!$B$5,Références!$D$5)+IF(T343=Références!$B$6,Références!$D$6)+IF(T343=Références!$B$7,Références!$D$7)+IF(T343=Références!$B$8,Références!$D$8)+IF(T343=Références!$B$9,Références!$D$9)+IF(T343=Références!$B$10,Références!$D$10)+IF(T343=Références!$B$11,Références!$D$11)+IF(T343=Références!$B$12,Références!$D$12)+IF(T343=Références!$B$13,IF(S343>=1600,Références!$D$16,IF('Calculateur-Transport'!S343>=500,Références!$D$15,IF('Calculateur-Transport'!S343<=499,Références!$D$14)))))*S343","v":0}]
[null,null,null,null,null,null,null,null,null,null,null,null,null,null,null,null,null,null,null,null,{"$f":"(IF(T344=Références!$B$5,Références!$D$5)+IF(T344=Références!$B$6,Références!$D$6)+IF(T344=Références!$B$7,Références!$D$7)+IF(T344=Références!$B$8,Références!$D$8)+IF(T344=Références!$B$9,Références!$D$9)+IF(T344=Références!$B$10,Références!$D$10)+IF(T344=Références!$B$11,Références!$D$11)+IF(T344=Références!$B$12,Références!$D$12)+IF(T344=Références!$B$13,IF(S344>=1600,Références!$D$16,IF('Calculateur-Transport'!S344>=500,Références!$D$15,IF('Calculateur-Transport'!S344<=499,Références!$D$14)))))*S344","v":0}]
[null,null,null,null,null,null,null,null,null,null,null,null,null,null,null,null,null,null,null,null,{"$f":"(IF(T345=Références!$B$5,Références!$D$5)+IF(T345=Références!$B$6,Références!$D$6)+IF(T345=Références!$B$7,Références!$D$7)+IF(T345=Références!$B$8,Références!$D$8)+IF(T345=Références!$B$9,Références!$D$9)+IF(T345=Références!$B$10,Références!$D$10)+IF(T345=Références!$B$11,Références!$D$11)+IF(T345=Références!$B$12,Références!$D$12)+IF(T345=Références!$B$13,IF(S345>=1600,Références!$D$16,IF('Calculateur-Transport'!S345>=500,Références!$D$15,IF('Calculateur-Transport'!S345<=499,Références!$D$14)))))*S345","v":0}]
[null,null,null,null,null,null,null,null,null,null,null,null,null,null,null,null,null,null,null,null,{"$f":"(IF(T346=Références!$B$5,Références!$D$5)+IF(T346=Références!$B$6,Références!$D$6)+IF(T346=Références!$B$7,Références!$D$7)+IF(T346=Références!$B$8,Références!$D$8)+IF(T346=Références!$B$9,Références!$D$9)+IF(T346=Références!$B$10,Références!$D$10)+IF(T346=Références!$B$11,Références!$D$11)+IF(T346=Références!$B$12,Références!$D$12)+IF(T346=Références!$B$13,IF(S346>=1600,Références!$D$16,IF('Calculateur-Transport'!S346>=500,Références!$D$15,IF('Calculateur-Transport'!S346<=499,Références!$D$14)))))*S346","v":0}]
[null,null,null,null,null,null,null,null,null,null,null,null,null,null,null,null,null,null,null,null,{"$f":"(IF(T347=Références!$B$5,Références!$D$5)+IF(T347=Références!$B$6,Références!$D$6)+IF(T347=Références!$B$7,Références!$D$7)+IF(T347=Références!$B$8,Références!$D$8)+IF(T347=Références!$B$9,Références!$D$9)+IF(T347=Références!$B$10,Références!$D$10)+IF(T347=Références!$B$11,Références!$D$11)+IF(T347=Références!$B$12,Références!$D$12)+IF(T347=Références!$B$13,IF(S347>=1600,Références!$D$16,IF('Calculateur-Transport'!S347>=500,Références!$D$15,IF('Calculateur-Transport'!S347<=499,Références!$D$14)))))*S347","v":0}]
[null,null,null,null,null,null,null,null,null,null,null,null,null,null,null,null,null,null,null,null,{"$f":"(IF(T348=Références!$B$5,Références!$D$5)+IF(T348=Références!$B$6,Références!$D$6)+IF(T348=Références!$B$7,Références!$D$7)+IF(T348=Références!$B$8,Références!$D$8)+IF(T348=Références!$B$9,Références!$D$9)+IF(T348=Références!$B$10,Références!$D$10)+IF(T348=Références!$B$11,Références!$D$11)+IF(T348=Références!$B$12,Références!$D$12)+IF(T348=Références!$B$13,IF(S348>=1600,Références!$D$16,IF('Calculateur-Transport'!S348>=500,Références!$D$15,IF('Calculateur-Transport'!S348<=499,Références!$D$14)))))*S348","v":0}]
[null,null,null,null,null,null,null,null,null,null,null,null,null,null,null,null,null,null,null,null,{"$f":"(IF(T349=Références!$B$5,Références!$D$5)+IF(T349=Références!$B$6,Références!$D$6)+IF(T349=Références!$B$7,Références!$D$7)+IF(T349=Références!$B$8,Références!$D$8)+IF(T349=Références!$B$9,Références!$D$9)+IF(T349=Références!$B$10,Références!$D$10)+IF(T349=Références!$B$11,Références!$D$11)+IF(T349=Références!$B$12,Références!$D$12)+IF(T349=Références!$B$13,IF(S349>=1600,Références!$D$16,IF('Calculateur-Transport'!S349>=500,Références!$D$15,IF('Calculateur-Transport'!S349<=499,Références!$D$14)))))*S349","v":0}]
[null,null,null,null,null,null,null,null,null,null,null,null,null,null,null,null,null,null,null,null,{"$f":"(IF(T350=Références!$B$5,Références!$D$5)+IF(T350=Références!$B$6,Références!$D$6)+IF(T350=Références!$B$7,Références!$D$7)+IF(T350=Références!$B$8,Références!$D$8)+IF(T350=Références!$B$9,Références!$D$9)+IF(T350=Références!$B$10,Références!$D$10)+IF(T350=Références!$B$11,Références!$D$11)+IF(T350=Références!$B$12,Références!$D$12)+IF(T350=Références!$B$13,IF(S350>=1600,Références!$D$16,IF('Calculateur-Transport'!S350>=500,Références!$D$15,IF('Calculateur-Transport'!S350<=499,Références!$D$14)))))*S350","v":0}]
[null,null,null,null,null,null,null,null,null,null,null,null,null,null,null,null,null,null,null,null,{"$f":"(IF(T351=Références!$B$5,Références!$D$5)+IF(T351=Références!$B$6,Références!$D$6)+IF(T351=Références!$B$7,Références!$D$7)+IF(T351=Références!$B$8,Références!$D$8)+IF(T351=Références!$B$9,Références!$D$9)+IF(T351=Références!$B$10,Références!$D$10)+IF(T351=Références!$B$11,Références!$D$11)+IF(T351=Références!$B$12,Références!$D$12)+IF(T351=Références!$B$13,IF(S351>=1600,Références!$D$16,IF('Calculateur-Transport'!S351>=500,Références!$D$15,IF('Calculateur-Transport'!S351<=499,Références!$D$14)))))*S351","v":0}]
[null,null,null,null,null,null,null,null,null,null,null,null,null,null,null,null,null,null,null,null,{"$f":"(IF(T352=Références!$B$5,Références!$D$5)+IF(T352=Références!$B$6,Références!$D$6)+IF(T352=Références!$B$7,Références!$D$7)+IF(T352=Références!$B$8,Références!$D$8)+IF(T352=Références!$B$9,Références!$D$9)+IF(T352=Références!$B$10,Références!$D$10)+IF(T352=Références!$B$11,Références!$D$11)+IF(T352=Références!$B$12,Références!$D$12)+IF(T352=Références!$B$13,IF(S352>=1600,Références!$D$16,IF('Calculateur-Transport'!S352>=500,Références!$D$15,IF('Calculateur-Transport'!S352<=499,Références!$D$14)))))*S352","v":0}]
[null,null,null,null,null,null,null,null,null,null,null,null,null,null,null,null,null,null,null,null,{"$f":"(IF(T353=Références!$B$5,Références!$D$5)+IF(T353=Références!$B$6,Références!$D$6)+IF(T353=Références!$B$7,Références!$D$7)+IF(T353=Références!$B$8,Références!$D$8)+IF(T353=Références!$B$9,Références!$D$9)+IF(T353=Références!$B$10,Références!$D$10)+IF(T353=Références!$B$11,Références!$D$11)+IF(T353=Références!$B$12,Références!$D$12)+IF(T353=Références!$B$13,IF(S353>=1600,Références!$D$16,IF('Calculateur-Transport'!S353>=500,Références!$D$15,IF('Calculateur-Transport'!S353<=499,Références!$D$14)))))*S353","v":0}]
[null,null,null,null,null,null,null,null,null,null,null,null,null,null,null,null,null,null,null,null,{"$f":"(IF(T354=Références!$B$5,Références!$D$5)+IF(T354=Références!$B$6,Références!$D$6)+IF(T354=Références!$B$7,Références!$D$7)+IF(T354=Références!$B$8,Références!$D$8)+IF(T354=Références!$B$9,Références!$D$9)+IF(T354=Références!$B$10,Références!$D$10)+IF(T354=Références!$B$11,Références!$D$11)+IF(T354=Références!$B$12,Références!$D$12)+IF(T354=Références!$B$13,IF(S354>=1600,Références!$D$16,IF('Calculateur-Transport'!S354>=500,Références!$D$15,IF('Calculateur-Transport'!S354<=499,Références!$D$14)))))*S354","v":0}]
[null,null,null,null,null,null,null,null,null,null,null,null,null,null,null,null,null,null,null,null,{"$f":"(IF(T355=Références!$B$5,Références!$D$5)+IF(T355=Références!$B$6,Références!$D$6)+IF(T355=Références!$B$7,Références!$D$7)+IF(T355=Références!$B$8,Références!$D$8)+IF(T355=Références!$B$9,Références!$D$9)+IF(T355=Références!$B$10,Références!$D$10)+IF(T355=Références!$B$11,Références!$D$11)+IF(T355=Références!$B$12,Références!$D$12)+IF(T355=Références!$B$13,IF(S355>=1600,Références!$D$16,IF('Calculateur-Transport'!S355>=500,Références!$D$15,IF('Calculateur-Transport'!S355<=499,Références!$D$14)))))*S355","v":0}]
[null,null,null,null,null,null,null,null,null,null,null,null,null,null,null,null,null,null,null,null,{"$f":"(IF(T356=Références!$B$5,Références!$D$5)+IF(T356=Références!$B$6,Références!$D$6)+IF(T356=Références!$B$7,Références!$D$7)+IF(T356=Références!$B$8,Références!$D$8)+IF(T356=Références!$B$9,Références!$D$9)+IF(T356=Références!$B$10,Références!$D$10)+IF(T356=Références!$B$11,Références!$D$11)+IF(T356=Références!$B$12,Références!$D$12)+IF(T356=Références!$B$13,IF(S356>=1600,Références!$D$16,IF('Calculateur-Transport'!S356>=500,Références!$D$15,IF('Calculateur-Transport'!S356<=499,Références!$D$14)))))*S356","v":0}]
[null,null,null,null,null,null,null,null,null,null,null,null,null,null,null,null,null,null,null,null,{"$f":"(IF(T357=Références!$B$5,Références!$D$5)+IF(T357=Références!$B$6,Références!$D$6)+IF(T357=Références!$B$7,Références!$D$7)+IF(T357=Références!$B$8,Références!$D$8)+IF(T357=Références!$B$9,Références!$D$9)+IF(T357=Références!$B$10,Références!$D$10)+IF(T357=Références!$B$11,Références!$D$11)+IF(T357=Références!$B$12,Références!$D$12)+IF(T357=Références!$B$13,IF(S357>=1600,Références!$D$16,IF('Calculateur-Transport'!S357>=500,Références!$D$15,IF('Calculateur-Transport'!S357<=499,Références!$D$14)))))*S357","v":0}]
[null,null,null,null,null,null,null,null,null,null,null,null,null,null,null,null,null,null,null,null,{"$f":"(IF(T358=Références!$B$5,Références!$D$5)+IF(T358=Références!$B$6,Références!$D$6)+IF(T358=Références!$B$7,Références!$D$7)+IF(T358=Références!$B$8,Références!$D$8)+IF(T358=Références!$B$9,Références!$D$9)+IF(T358=Références!$B$10,Références!$D$10)+IF(T358=Références!$B$11,Références!$D$11)+IF(T358=Références!$B$12,Références!$D$12)+IF(T358=Références!$B$13,IF(S358>=1600,Références!$D$16,IF('Calculateur-Transport'!S358>=500,Références!$D$15,IF('Calculateur-Transport'!S358<=499,Références!$D$14)))))*S358","v":0}]
[null,null,null,null,null,null,null,null,null,null,null,null,null,null,null,null,null,null,null,null,{"$f":"(IF(T359=Références!$B$5,Références!$D$5)+IF(T359=Références!$B$6,Références!$D$6)+IF(T359=Références!$B$7,Références!$D$7)+IF(T359=Références!$B$8,Références!$D$8)+IF(T359=Références!$B$9,Références!$D$9)+IF(T359=Références!$B$10,Références!$D$10)+IF(T359=Références!$B$11,Références!$D$11)+IF(T359=Références!$B$12,Références!$D$12)+IF(T359=Références!$B$13,IF(S359>=1600,Références!$D$16,IF('Calculateur-Transport'!S359>=500,Références!$D$15,IF('Calculateur-Transport'!S359<=499,Références!$D$14)))))*S359","v":0}]
[null,null,null,null,null,null,null,null,null,null,null,null,null,null,null,null,null,null,null,null,{"$f":"(IF(T360=Références!$B$5,Références!$D$5)+IF(T360=Références!$B$6,Références!$D$6)+IF(T360=Références!$B$7,Références!$D$7)+IF(T360=Références!$B$8,Références!$D$8)+IF(T360=Références!$B$9,Références!$D$9)+IF(T360=Références!$B$10,Références!$D$10)+IF(T360=Références!$B$11,Références!$D$11)+IF(T360=Références!$B$12,Références!$D$12)+IF(T360=Références!$B$13,IF(S360>=1600,Références!$D$16,IF('Calculateur-Transport'!S360>=500,Références!$D$15,IF('Calculateur-Transport'!S360<=499,Références!$D$14)))))*S360","v":0}]
[null,null,null,null,null,null,null,null,null,null,null,null,null,null,null,null,null,null,null,null,{"$f":"(IF(T361=Références!$B$5,Références!$D$5)+IF(T361=Références!$B$6,Références!$D$6)+IF(T361=Références!$B$7,Références!$D$7)+IF(T361=Références!$B$8,Références!$D$8)+IF(T361=Références!$B$9,Références!$D$9)+IF(T361=Références!$B$10,Références!$D$10)+IF(T361=Références!$B$11,Références!$D$11)+IF(T361=Références!$B$12,Références!$D$12)+IF(T361=Références!$B$13,IF(S361>=1600,Références!$D$16,IF('Calculateur-Transport'!S361>=500,Références!$D$15,IF('Calculateur-Transport'!S361<=499,Références!$D$14)))))*S361","v":0}]
[null,null,null,null,null,null,null,null,null,null,null,null,null,null,null,null,null,null,null,null,{"$f":"(IF(T362=Références!$B$5,Références!$D$5)+IF(T362=Références!$B$6,Références!$D$6)+IF(T362=Références!$B$7,Références!$D$7)+IF(T362=Références!$B$8,Références!$D$8)+IF(T362=Références!$B$9,Références!$D$9)+IF(T362=Références!$B$10,Références!$D$10)+IF(T362=Références!$B$11,Références!$D$11)+IF(T362=Références!$B$12,Références!$D$12)+IF(T362=Références!$B$13,IF(S362>=1600,Références!$D$16,IF('Calculateur-Transport'!S362>=500,Références!$D$15,IF('Calculateur-Transport'!S362<=499,Références!$D$14)))))*S362","v":0}]
[null,null,null,null,null,null,null,null,null,null,null,null,null,null,null,null,null,null,null,null,{"$f":"(IF(T363=Références!$B$5,Références!$D$5)+IF(T363=Références!$B$6,Références!$D$6)+IF(T363=Références!$B$7,Références!$D$7)+IF(T363=Références!$B$8,Références!$D$8)+IF(T363=Références!$B$9,Références!$D$9)+IF(T363=Références!$B$10,Références!$D$10)+IF(T363=Références!$B$11,Références!$D$11)+IF(T363=Références!$B$12,Références!$D$12)+IF(T363=Références!$B$13,IF(S363>=1600,Références!$D$16,IF('Calculateur-Transport'!S363>=500,Références!$D$15,IF('Calculateur-Transport'!S363<=499,Références!$D$14)))))*S363","v":0}]
[null,null,null,null,null,null,null,null,null,null,null,null,null,null,null,null,null,null,null,null,{"$f":"(IF(T364=Références!$B$5,Références!$D$5)+IF(T364=Références!$B$6,Références!$D$6)+IF(T364=Références!$B$7,Références!$D$7)+IF(T364=Références!$B$8,Références!$D$8)+IF(T364=Références!$B$9,Références!$D$9)+IF(T364=Références!$B$10,Références!$D$10)+IF(T364=Références!$B$11,Références!$D$11)+IF(T364=Références!$B$12,Références!$D$12)+IF(T364=Références!$B$13,IF(S364>=1600,Références!$D$16,IF('Calculateur-Transport'!S364>=500,Références!$D$15,IF('Calculateur-Transport'!S364<=499,Références!$D$14)))))*S364","v":0}]
[null,null,null,null,null,null,null,null,null,null,null,null,null,null,null,null,null,null,null,null,{"$f":"(IF(T365=Références!$B$5,Références!$D$5)+IF(T365=Références!$B$6,Références!$D$6)+IF(T365=Références!$B$7,Références!$D$7)+IF(T365=Références!$B$8,Références!$D$8)+IF(T365=Références!$B$9,Références!$D$9)+IF(T365=Références!$B$10,Références!$D$10)+IF(T365=Références!$B$11,Références!$D$11)+IF(T365=Références!$B$12,Références!$D$12)+IF(T365=Références!$B$13,IF(S365>=1600,Références!$D$16,IF('Calculateur-Transport'!S365>=500,Références!$D$15,IF('Calculateur-Transport'!S365<=499,Références!$D$14)))))*S365","v":0}]
[null,null,null,null,null,null,null,null,null,null,null,null,null,null,null,null,null,null,null,null,{"$f":"(IF(T366=Références!$B$5,Références!$D$5)+IF(T366=Références!$B$6,Références!$D$6)+IF(T366=Références!$B$7,Références!$D$7)+IF(T366=Références!$B$8,Références!$D$8)+IF(T366=Références!$B$9,Références!$D$9)+IF(T366=Références!$B$10,Références!$D$10)+IF(T366=Références!$B$11,Références!$D$11)+IF(T366=Références!$B$12,Références!$D$12)+IF(T366=Références!$B$13,IF(S366>=1600,Références!$D$16,IF('Calculateur-Transport'!S366>=500,Références!$D$15,IF('Calculateur-Transport'!S366<=499,Références!$D$14)))))*S366","v":0}]
[null,null,null,null,null,null,null,null,null,null,null,null,null,null,null,null,null,null,null,null,{"$f":"(IF(T367=Références!$B$5,Références!$D$5)+IF(T367=Références!$B$6,Références!$D$6)+IF(T367=Références!$B$7,Références!$D$7)+IF(T367=Références!$B$8,Références!$D$8)+IF(T367=Références!$B$9,Références!$D$9)+IF(T367=Références!$B$10,Références!$D$10)+IF(T367=Références!$B$11,Références!$D$11)+IF(T367=Références!$B$12,Références!$D$12)+IF(T367=Références!$B$13,IF(S367>=1600,Références!$D$16,IF('Calculateur-Transport'!S367>=500,Références!$D$15,IF('Calculateur-Transport'!S367<=499,Références!$D$14)))))*S367","v":0}]
[null,null,null,null,null,null,null,null,null,null,null,null,null,null,null,null,null,null,null,null,{"$f":"(IF(T368=Références!$B$5,Références!$D$5)+IF(T368=Références!$B$6,Références!$D$6)+IF(T368=Références!$B$7,Références!$D$7)+IF(T368=Références!$B$8,Références!$D$8)+IF(T368=Références!$B$9,Références!$D$9)+IF(T368=Références!$B$10,Références!$D$10)+IF(T368=Références!$B$11,Références!$D$11)+IF(T368=Références!$B$12,Références!$D$12)+IF(T368=Références!$B$13,IF(S368>=1600,Références!$D$16,IF('Calculateur-Transport'!S368>=500,Références!$D$15,IF('Calculateur-Transport'!S368<=499,Références!$D$14)))))*S368","v":0}]
[null,null,null,null,null,null,null,null,null,null,null,null,null,null,null,null,null,null,null,null,{"$f":"(IF(T369=Références!$B$5,Références!$D$5)+IF(T369=Références!$B$6,Références!$D$6)+IF(T369=Références!$B$7,Références!$D$7)+IF(T369=Références!$B$8,Références!$D$8)+IF(T369=Références!$B$9,Références!$D$9)+IF(T369=Références!$B$10,Références!$D$10)+IF(T369=Références!$B$11,Références!$D$11)+IF(T369=Références!$B$12,Références!$D$12)+IF(T369=Références!$B$13,IF(S369>=1600,Références!$D$16,IF('Calculateur-Transport'!S369>=500,Références!$D$15,IF('Calculateur-Transport'!S369<=499,Références!$D$14)))))*S369","v":0}]
[null,null,null,null,null,null,null,null,null,null,null,null,null,null,null,null,null,null,null,null,{"$f":"(IF(T370=Références!$B$5,Références!$D$5)+IF(T370=Références!$B$6,Références!$D$6)+IF(T370=Références!$B$7,Références!$D$7)+IF(T370=Références!$B$8,Références!$D$8)+IF(T370=Références!$B$9,Références!$D$9)+IF(T370=Références!$B$10,Références!$D$10)+IF(T370=Références!$B$11,Références!$D$11)+IF(T370=Références!$B$12,Références!$D$12)+IF(T370=Références!$B$13,IF(S370>=1600,Références!$D$16,IF('Calculateur-Transport'!S370>=500,Références!$D$15,IF('Calculateur-Transport'!S370<=499,Références!$D$14)))))*S370","v":0}]
[null,null,null,null,null,null,null,null,null,null,null,null,null,null,null,null,null,null,null,null,{"$f":"(IF(T371=Références!$B$5,Références!$D$5)+IF(T371=Références!$B$6,Références!$D$6)+IF(T371=Références!$B$7,Références!$D$7)+IF(T371=Références!$B$8,Références!$D$8)+IF(T371=Références!$B$9,Références!$D$9)+IF(T371=Références!$B$10,Références!$D$10)+IF(T371=Références!$B$11,Références!$D$11)+IF(T371=Références!$B$12,Références!$D$12)+IF(T371=Références!$B$13,IF(S371>=1600,Références!$D$16,IF('Calculateur-Transport'!S371>=500,Références!$D$15,IF('Calculateur-Transport'!S371<=499,Références!$D$14)))))*S371","v":0}]
[null,null,null,null,null,null,null,null,null,null,null,null,null,null,null,null,null,null,null,null,{"$f":"(IF(T372=Références!$B$5,Références!$D$5)+IF(T372=Références!$B$6,Références!$D$6)+IF(T372=Références!$B$7,Références!$D$7)+IF(T372=Références!$B$8,Références!$D$8)+IF(T372=Références!$B$9,Références!$D$9)+IF(T372=Références!$B$10,Références!$D$10)+IF(T372=Références!$B$11,Références!$D$11)+IF(T372=Références!$B$12,Références!$D$12)+IF(T372=Références!$B$13,IF(S372>=1600,Références!$D$16,IF('Calculateur-Transport'!S372>=500,Références!$D$15,IF('Calculateur-Transport'!S372<=499,Références!$D$14)))))*S372","v":0}]
[null,null,null,null,null,null,null,null,null,null,null,null,null,null,null,null,null,null,null,null,{"$f":"(IF(T373=Références!$B$5,Références!$D$5)+IF(T373=Références!$B$6,Références!$D$6)+IF(T373=Références!$B$7,Références!$D$7)+IF(T373=Références!$B$8,Références!$D$8)+IF(T373=Références!$B$9,Références!$D$9)+IF(T373=Références!$B$10,Références!$D$10)+IF(T373=Références!$B$11,Références!$D$11)+IF(T373=Références!$B$12,Références!$D$12)+IF(T373=Références!$B$13,IF(S373>=1600,Références!$D$16,IF('Calculateur-Transport'!S373>=500,Références!$D$15,IF('Calculateur-Transport'!S373<=499,Références!$D$14)))))*S373","v":0}]
[null,null,null,null,null,null,null,null,null,null,null,null,null,null,null,null,null,null,null,null,{"$f":"(IF(T374=Références!$B$5,Références!$D$5)+IF(T374=Références!$B$6,Références!$D$6)+IF(T374=Références!$B$7,Références!$D$7)+IF(T374=Références!$B$8,Références!$D$8)+IF(T374=Références!$B$9,Références!$D$9)+IF(T374=Références!$B$10,Références!$D$10)+IF(T374=Références!$B$11,Références!$D$11)+IF(T374=Références!$B$12,Références!$D$12)+IF(T374=Références!$B$13,IF(S374>=1600,Références!$D$16,IF('Calculateur-Transport'!S374>=500,Références!$D$15,IF('Calculateur-Transport'!S374<=499,Références!$D$14)))))*S374","v":0}]
[null,null,null,null,null,null,null,null,null,null,null,null,null,null,null,null,null,null,null,null,{"$f":"(IF(T375=Références!$B$5,Références!$D$5)+IF(T375=Références!$B$6,Références!$D$6)+IF(T375=Références!$B$7,Références!$D$7)+IF(T375=Références!$B$8,Références!$D$8)+IF(T375=Références!$B$9,Références!$D$9)+IF(T375=Références!$B$10,Références!$D$10)+IF(T375=Références!$B$11,Références!$D$11)+IF(T375=Références!$B$12,Références!$D$12)+IF(T375=Références!$B$13,IF(S375>=1600,Références!$D$16,IF('Calculateur-Transport'!S375>=500,Références!$D$15,IF('Calculateur-Transport'!S375<=499,Références!$D$14)))))*S375","v":0}]
[null,null,null,null,null,null,null,null,null,null,null,null,null,null,null,null,null,null,null,null,{"$f":"(IF(T376=Références!$B$5,Références!$D$5)+IF(T376=Références!$B$6,Références!$D$6)+IF(T376=Références!$B$7,Références!$D$7)+IF(T376=Références!$B$8,Références!$D$8)+IF(T376=Références!$B$9,Références!$D$9)+IF(T376=Références!$B$10,Références!$D$10)+IF(T376=Références!$B$11,Références!$D$11)+IF(T376=Références!$B$12,Références!$D$12)+IF(T376=Références!$B$13,IF(S376>=1600,Références!$D$16,IF('Calculateur-Transport'!S376>=500,Références!$D$15,IF('Calculateur-Transport'!S376<=499,Références!$D$14)))))*S376","v":0}]
[null,null,null,null,null,null,null,null,null,null,null,null,null,null,null,null,null,null,null,null,{"$f":"(IF(T377=Références!$B$5,Références!$D$5)+IF(T377=Références!$B$6,Références!$D$6)+IF(T377=Références!$B$7,Références!$D$7)+IF(T377=Références!$B$8,Références!$D$8)+IF(T377=Références!$B$9,Références!$D$9)+IF(T377=Références!$B$10,Références!$D$10)+IF(T377=Références!$B$11,Références!$D$11)+IF(T377=Références!$B$12,Références!$D$12)+IF(T377=Références!$B$13,IF(S377>=1600,Références!$D$16,IF('Calculateur-Transport'!S377>=500,Références!$D$15,IF('Calculateur-Transport'!S377<=499,Références!$D$14)))))*S377","v":0}]
[null,null,null,null,null,null,null,null,null,null,null,null,null,null,null,null,null,null,null,null,{"$f":"(IF(T378=Références!$B$5,Références!$D$5)+IF(T378=Références!$B$6,Références!$D$6)+IF(T378=Références!$B$7,Références!$D$7)+IF(T378=Références!$B$8,Références!$D$8)+IF(T378=Références!$B$9,Références!$D$9)+IF(T378=Références!$B$10,Références!$D$10)+IF(T378=Références!$B$11,Références!$D$11)+IF(T378=Références!$B$12,Références!$D$12)+IF(T378=Références!$B$13,IF(S378>=1600,Références!$D$16,IF('Calculateur-Transport'!S378>=500,Références!$D$15,IF('Calculateur-Transport'!S378<=499,Références!$D$14)))))*S378","v":0}]
[null,null,null,null,null,null,null,null,null,null,null,null,null,null,null,null,null,null,null,null,{"$f":"(IF(T379=Références!$B$5,Références!$D$5)+IF(T379=Références!$B$6,Références!$D$6)+IF(T379=Références!$B$7,Références!$D$7)+IF(T379=Références!$B$8,Références!$D$8)+IF(T379=Références!$B$9,Références!$D$9)+IF(T379=Références!$B$10,Références!$D$10)+IF(T379=Références!$B$11,Références!$D$11)+IF(T379=Références!$B$12,Références!$D$12)+IF(T379=Références!$B$13,IF(S379>=1600,Références!$D$16,IF('Calculateur-Transport'!S379>=500,Références!$D$15,IF('Calculateur-Transport'!S379<=499,Références!$D$14)))))*S379","v":0}]
[null,null,null,null,null,null,null,null,null,null,null,null,null,null,null,null,null,null,null,null,{"$f":"(IF(T380=Références!$B$5,Références!$D$5)+IF(T380=Références!$B$6,Références!$D$6)+IF(T380=Références!$B$7,Références!$D$7)+IF(T380=Références!$B$8,Références!$D$8)+IF(T380=Références!$B$9,Références!$D$9)+IF(T380=Références!$B$10,Références!$D$10)+IF(T380=Références!$B$11,Références!$D$11)+IF(T380=Références!$B$12,Références!$D$12)+IF(T380=Références!$B$13,IF(S380>=1600,Références!$D$16,IF('Calculateur-Transport'!S380>=500,Références!$D$15,IF('Calculateur-Transport'!S380<=499,Références!$D$14)))))*S380","v":0}]
[null,null,null,null,null,null,null,null,null,null,null,null,null,null,null,null,null,null,null,null,{"$f":"(IF(T381=Références!$B$5,Références!$D$5)+IF(T381=Références!$B$6,Références!$D$6)+IF(T381=Références!$B$7,Références!$D$7)+IF(T381=Références!$B$8,Références!$D$8)+IF(T381=Références!$B$9,Références!$D$9)+IF(T381=Références!$B$10,Références!$D$10)+IF(T381=Références!$B$11,Références!$D$11)+IF(T381=Références!$B$12,Références!$D$12)+IF(T381=Références!$B$13,IF(S381>=1600,Références!$D$16,IF('Calculateur-Transport'!S381>=500,Références!$D$15,IF('Calculateur-Transport'!S381<=499,Références!$D$14)))))*S381","v":0}]
[null,null,null,null,null,null,null,null,null,null,null,null,null,null,null,null,null,null,null,null,{"$f":"(IF(T382=Références!$B$5,Références!$D$5)+IF(T382=Références!$B$6,Références!$D$6)+IF(T382=Références!$B$7,Références!$D$7)+IF(T382=Références!$B$8,Références!$D$8)+IF(T382=Références!$B$9,Références!$D$9)+IF(T382=Références!$B$10,Références!$D$10)+IF(T382=Références!$B$11,Références!$D$11)+IF(T382=Références!$B$12,Références!$D$12)+IF(T382=Références!$B$13,IF(S382>=1600,Références!$D$16,IF('Calculateur-Transport'!S382>=500,Références!$D$15,IF('Calculateur-Transport'!S382<=499,Références!$D$14)))))*S382","v":0}]
[null,null,null,null,null,null,null,null,null,null,null,null,null,null,null,null,null,null,null,null,{"$f":"(IF(T383=Références!$B$5,Références!$D$5)+IF(T383=Références!$B$6,Références!$D$6)+IF(T383=Références!$B$7,Références!$D$7)+IF(T383=Références!$B$8,Références!$D$8)+IF(T383=Références!$B$9,Références!$D$9)+IF(T383=Références!$B$10,Références!$D$10)+IF(T383=Références!$B$11,Références!$D$11)+IF(T383=Références!$B$12,Références!$D$12)+IF(T383=Références!$B$13,IF(S383>=1600,Références!$D$16,IF('Calculateur-Transport'!S383>=500,Références!$D$15,IF('Calculateur-Transport'!S383<=499,Références!$D$14)))))*S383","v":0}]
[null,null,null,null,null,null,null,null,null,null,null,null,null,null,null,null,null,null,null,null,{"$f":"(IF(T384=Références!$B$5,Références!$D$5)+IF(T384=Références!$B$6,Références!$D$6)+IF(T384=Références!$B$7,Références!$D$7)+IF(T384=Références!$B$8,Références!$D$8)+IF(T384=Références!$B$9,Références!$D$9)+IF(T384=Références!$B$10,Références!$D$10)+IF(T384=Références!$B$11,Références!$D$11)+IF(T384=Références!$B$12,Références!$D$12)+IF(T384=Références!$B$13,IF(S384>=1600,Références!$D$16,IF('Calculateur-Transport'!S384>=500,Références!$D$15,IF('Calculateur-Transport'!S384<=499,Références!$D$14)))))*S384","v":0}]
[null,null,null,null,null,null,null,null,null,null,null,null,null,null,null,null,null,null,null,null,{"$f":"(IF(T385=Références!$B$5,Références!$D$5)+IF(T385=Références!$B$6,Références!$D$6)+IF(T385=Références!$B$7,Références!$D$7)+IF(T385=Références!$B$8,Références!$D$8)+IF(T385=Références!$B$9,Références!$D$9)+IF(T385=Références!$B$10,Références!$D$10)+IF(T385=Références!$B$11,Références!$D$11)+IF(T385=Références!$B$12,Références!$D$12)+IF(T385=Références!$B$13,IF(S385>=1600,Références!$D$16,IF('Calculateur-Transport'!S385>=500,Références!$D$15,IF('Calculateur-Transport'!S385<=499,Références!$D$14)))))*S385","v":0}]
[null,null,null,null,null,null,null,null,null,null,null,null,null,null,null,null,null,null,null,null,{"$f":"(IF(T386=Références!$B$5,Références!$D$5)+IF(T386=Références!$B$6,Références!$D$6)+IF(T386=Références!$B$7,Références!$D$7)+IF(T386=Références!$B$8,Références!$D$8)+IF(T386=Références!$B$9,Références!$D$9)+IF(T386=Références!$B$10,Références!$D$10)+IF(T386=Références!$B$11,Références!$D$11)+IF(T386=Références!$B$12,Références!$D$12)+IF(T386=Références!$B$13,IF(S386>=1600,Références!$D$16,IF('Calculateur-Transport'!S386>=500,Références!$D$15,IF('Calculateur-Transport'!S386<=499,Références!$D$14)))))*S386","v":0}]
[null,null,null,null,null,null,null,null,null,null,null,null,null,null,null,null,null,null,null,null,{"$f":"(IF(T387=Références!$B$5,Références!$D$5)+IF(T387=Références!$B$6,Références!$D$6)+IF(T387=Références!$B$7,Références!$D$7)+IF(T387=Références!$B$8,Références!$D$8)+IF(T387=Références!$B$9,Références!$D$9)+IF(T387=Références!$B$10,Références!$D$10)+IF(T387=Références!$B$11,Références!$D$11)+IF(T387=Références!$B$12,Références!$D$12)+IF(T387=Références!$B$13,IF(S387>=1600,Références!$D$16,IF('Calculateur-Transport'!S387>=500,Références!$D$15,IF('Calculateur-Transport'!S387<=499,Références!$D$14)))))*S387","v":0}]
[null,null,null,null,null,null,null,null,null,null,null,null,null,null,null,null,null,null,null,null,{"$f":"(IF(T388=Références!$B$5,Références!$D$5)+IF(T388=Références!$B$6,Références!$D$6)+IF(T388=Références!$B$7,Références!$D$7)+IF(T388=Références!$B$8,Références!$D$8)+IF(T388=Références!$B$9,Références!$D$9)+IF(T388=Références!$B$10,Références!$D$10)+IF(T388=Références!$B$11,Références!$D$11)+IF(T388=Références!$B$12,Références!$D$12)+IF(T388=Références!$B$13,IF(S388>=1600,Références!$D$16,IF('Calculateur-Transport'!S388>=500,Références!$D$15,IF('Calculateur-Transport'!S388<=499,Références!$D$14)))))*S388","v":0}]
[null,null,null,null,null,null,null,null,null,null,null,null,null,null,null,null,null,null,null,null,{"$f":"(IF(T389=Références!$B$5,Références!$D$5)+IF(T389=Références!$B$6,Références!$D$6)+IF(T389=Références!$B$7,Références!$D$7)+IF(T389=Références!$B$8,Références!$D$8)+IF(T389=Références!$B$9,Références!$D$9)+IF(T389=Références!$B$10,Références!$D$10)+IF(T389=Références!$B$11,Références!$D$11)+IF(T389=Références!$B$12,Références!$D$12)+IF(T389=Références!$B$13,IF(S389>=1600,Références!$D$16,IF('Calculateur-Transport'!S389>=500,Références!$D$15,IF('Calculateur-Transport'!S389<=499,Références!$D$14)))))*S389","v":0}]
[null,null,null,null,null,null,null,null,null,null,null,null,null,null,null,null,null,null,null,null,{"$f":"(IF(T390=Références!$B$5,Références!$D$5)+IF(T390=Références!$B$6,Références!$D$6)+IF(T390=Références!$B$7,Références!$D$7)+IF(T390=Références!$B$8,Références!$D$8)+IF(T390=Références!$B$9,Références!$D$9)+IF(T390=Références!$B$10,Références!$D$10)+IF(T390=Références!$B$11,Références!$D$11)+IF(T390=Références!$B$12,Références!$D$12)+IF(T390=Références!$B$13,IF(S390>=1600,Références!$D$16,IF('Calculateur-Transport'!S390>=500,Références!$D$15,IF('Calculateur-Transport'!S390<=499,Références!$D$14)))))*S390","v":0}]
[null,null,null,null,null,null,null,null,null,null,null,null,null,null,null,null,null,null,null,null,{"$f":"(IF(T391=Références!$B$5,Références!$D$5)+IF(T391=Références!$B$6,Références!$D$6)+IF(T391=Références!$B$7,Références!$D$7)+IF(T391=Références!$B$8,Références!$D$8)+IF(T391=Références!$B$9,Références!$D$9)+IF(T391=Références!$B$10,Références!$D$10)+IF(T391=Références!$B$11,Références!$D$11)+IF(T391=Références!$B$12,Références!$D$12)+IF(T391=Références!$B$13,IF(S391>=1600,Références!$D$16,IF('Calculateur-Transport'!S391>=500,Références!$D$15,IF('Calculateur-Transport'!S391<=499,Références!$D$14)))))*S391","v":0}]
[null,null,null,null,null,null,null,null,null,null,null,null,null,null,null,null,null,null,null,null,{"$f":"(IF(T392=Références!$B$5,Références!$D$5)+IF(T392=Références!$B$6,Références!$D$6)+IF(T392=Références!$B$7,Références!$D$7)+IF(T392=Références!$B$8,Références!$D$8)+IF(T392=Références!$B$9,Références!$D$9)+IF(T392=Références!$B$10,Références!$D$10)+IF(T392=Références!$B$11,Références!$D$11)+IF(T392=Références!$B$12,Références!$D$12)+IF(T392=Références!$B$13,IF(S392>=1600,Références!$D$16,IF('Calculateur-Transport'!S392>=500,Références!$D$15,IF('Calculateur-Transport'!S392<=499,Références!$D$14)))))*S392","v":0}]
[null,null,null,null,null,null,null,null,null,null,null,null,null,null,null,null,null,null,null,null,{"$f":"(IF(T393=Références!$B$5,Références!$D$5)+IF(T393=Références!$B$6,Références!$D$6)+IF(T393=Références!$B$7,Références!$D$7)+IF(T393=Références!$B$8,Références!$D$8)+IF(T393=Références!$B$9,Références!$D$9)+IF(T393=Références!$B$10,Références!$D$10)+IF(T393=Références!$B$11,Références!$D$11)+IF(T393=Références!$B$12,Références!$D$12)+IF(T393=Références!$B$13,IF(S393>=1600,Références!$D$16,IF('Calculateur-Transport'!S393>=500,Références!$D$15,IF('Calculateur-Transport'!S393<=499,Références!$D$14)))))*S393","v":0}]
[null,null,null,null,null,null,null,null,null,null,null,null,null,null,null,null,null,null,null,null,{"$f":"(IF(T394=Références!$B$5,Références!$D$5)+IF(T394=Références!$B$6,Références!$D$6)+IF(T394=Références!$B$7,Références!$D$7)+IF(T394=Références!$B$8,Références!$D$8)+IF(T394=Références!$B$9,Références!$D$9)+IF(T394=Références!$B$10,Références!$D$10)+IF(T394=Références!$B$11,Références!$D$11)+IF(T394=Références!$B$12,Références!$D$12)+IF(T394=Références!$B$13,IF(S394>=1600,Références!$D$16,IF('Calculateur-Transport'!S394>=500,Références!$D$15,IF('Calculateur-Transport'!S394<=499,Références!$D$14)))))*S394","v":0}]
[null,null,null,null,null,null,null,null,null,null,null,null,null,null,null,null,null,null,null,null,{"$f":"(IF(T395=Références!$B$5,Références!$D$5)+IF(T395=Références!$B$6,Références!$D$6)+IF(T395=Références!$B$7,Références!$D$7)+IF(T395=Références!$B$8,Références!$D$8)+IF(T395=Références!$B$9,Références!$D$9)+IF(T395=Références!$B$10,Références!$D$10)+IF(T395=Références!$B$11,Références!$D$11)+IF(T395=Références!$B$12,Références!$D$12)+IF(T395=Références!$B$13,IF(S395>=1600,Références!$D$16,IF('Calculateur-Transport'!S395>=500,Références!$D$15,IF('Calculateur-Transport'!S395<=499,Références!$D$14)))))*S395","v":0}]
[null,null,null,null,null,null,null,null,null,null,null,null,null,null,null,null,null,null,null,null,{"$f":"(IF(T396=Références!$B$5,Références!$D$5)+IF(T396=Références!$B$6,Références!$D$6)+IF(T396=Références!$B$7,Références!$D$7)+IF(T396=Références!$B$8,Références!$D$8)+IF(T396=Références!$B$9,Références!$D$9)+IF(T396=Références!$B$10,Références!$D$10)+IF(T396=Références!$B$11,Références!$D$11)+IF(T396=Références!$B$12,Références!$D$12)+IF(T396=Références!$B$13,IF(S396>=1600,Références!$D$16,IF('Calculateur-Transport'!S396>=500,Références!$D$15,IF('Calculateur-Transport'!S396<=499,Références!$D$14)))))*S396","v":0}]
[null,null,null,null,null,null,null,null,null,null,null,null,null,null,null,null,null,null,null,null,{"$f":"(IF(T397=Références!$B$5,Références!$D$5)+IF(T397=Références!$B$6,Références!$D$6)+IF(T397=Références!$B$7,Références!$D$7)+IF(T397=Références!$B$8,Références!$D$8)+IF(T397=Références!$B$9,Références!$D$9)+IF(T397=Références!$B$10,Références!$D$10)+IF(T397=Références!$B$11,Références!$D$11)+IF(T397=Références!$B$12,Références!$D$12)+IF(T397=Références!$B$13,IF(S397>=1600,Références!$D$16,IF('Calculateur-Transport'!S397>=500,Références!$D$15,IF('Calculateur-Transport'!S397<=499,Références!$D$14)))))*S397","v":0}]
[null,null,null,null,null,null,null,null,null,null,null,null,null,null,null,null,null,null,null,null,{"$f":"(IF(T398=Références!$B$5,Références!$D$5)+IF(T398=Références!$B$6,Références!$D$6)+IF(T398=Références!$B$7,Références!$D$7)+IF(T398=Références!$B$8,Références!$D$8)+IF(T398=Références!$B$9,Références!$D$9)+IF(T398=Références!$B$10,Références!$D$10)+IF(T398=Références!$B$11,Références!$D$11)+IF(T398=Références!$B$12,Références!$D$12)+IF(T398=Références!$B$13,IF(S398>=1600,Références!$D$16,IF('Calculateur-Transport'!S398>=500,Références!$D$15,IF('Calculateur-Transport'!S398<=499,Références!$D$14)))))*S398","v":0}]
[null,null,null,null,null,null,null,null,null,null,null,null,null,null,null,null,null,null,null,null,{"$f":"(IF(T399=Références!$B$5,Références!$D$5)+IF(T399=Références!$B$6,Références!$D$6)+IF(T399=Références!$B$7,Références!$D$7)+IF(T399=Références!$B$8,Références!$D$8)+IF(T399=Références!$B$9,Références!$D$9)+IF(T399=Références!$B$10,Références!$D$10)+IF(T399=Références!$B$11,Références!$D$11)+IF(T399=Références!$B$12,Références!$D$12)+IF(T399=Références!$B$13,IF(S399>=1600,Références!$D$16,IF('Calculateur-Transport'!S399>=500,Références!$D$15,IF('Calculateur-Transport'!S399<=499,Références!$D$14)))))*S399","v":0}]
[null,null,null,null,null,null,null,null,null,null,null,null,null,null,null,null,null,null,null,null,{"$f":"(IF(T400=Références!$B$5,Références!$D$5)+IF(T400=Références!$B$6,Références!$D$6)+IF(T400=Références!$B$7,Références!$D$7)+IF(T400=Références!$B$8,Références!$D$8)+IF(T400=Références!$B$9,Références!$D$9)+IF(T400=Références!$B$10,Références!$D$10)+IF(T400=Références!$B$11,Références!$D$11)+IF(T400=Références!$B$12,Références!$D$12)+IF(T400=Références!$B$13,IF(S400>=1600,Références!$D$16,IF('Calculateur-Transport'!S400>=500,Références!$D$15,IF('Calculateur-Transport'!S400<=499,Références!$D$14)))))*S400","v":0}]
[null,null,null,null,null,null,null,null,null,null,null,null,null,null,null,null,null,null,null,null,{"$f":"(IF(T401=Références!$B$5,Références!$D$5)+IF(T401=Références!$B$6,Références!$D$6)+IF(T401=Références!$B$7,Références!$D$7)+IF(T401=Références!$B$8,Références!$D$8)+IF(T401=Références!$B$9,Références!$D$9)+IF(T401=Références!$B$10,Références!$D$10)+IF(T401=Références!$B$11,Références!$D$11)+IF(T401=Références!$B$12,Références!$D$12)+IF(T401=Références!$B$13,IF(S401>=1600,Références!$D$16,IF('Calculateur-Transport'!S401>=500,Références!$D$15,IF('Calculateur-Transport'!S401<=499,Références!$D$14)))))*S401","v":0}]
[null,null,null,null,null,null,null,null,null,null,null,null,null,null,null,null,null,null,null,null,{"$f":"(IF(T402=Références!$B$5,Références!$D$5)+IF(T402=Références!$B$6,Références!$D$6)+IF(T402=Références!$B$7,Références!$D$7)+IF(T402=Références!$B$8,Références!$D$8)+IF(T402=Références!$B$9,Références!$D$9)+IF(T402=Références!$B$10,Références!$D$10)+IF(T402=Références!$B$11,Références!$D$11)+IF(T402=Références!$B$12,Références!$D$12)+IF(T402=Références!$B$13,IF(S402>=1600,Références!$D$16,IF('Calculateur-Transport'!S402>=500,Références!$D$15,IF('Calculateur-Transport'!S402<=499,Références!$D$14)))))*S402","v":0}]
[null,null,null,null,null,null,null,null,null,null,null,null,null,null,null,null,null,null,null,null,{"$f":"(IF(T403=Références!$B$5,Références!$D$5)+IF(T403=Références!$B$6,Références!$D$6)+IF(T403=Références!$B$7,Références!$D$7)+IF(T403=Références!$B$8,Références!$D$8)+IF(T403=Références!$B$9,Références!$D$9)+IF(T403=Références!$B$10,Références!$D$10)+IF(T403=Références!$B$11,Références!$D$11)+IF(T403=Références!$B$12,Références!$D$12)+IF(T403=Références!$B$13,IF(S403>=1600,Références!$D$16,IF('Calculateur-Transport'!S403>=500,Références!$D$15,IF('Calculateur-Transport'!S403<=499,Références!$D$14)))))*S403","v":0}]
[null,null,null,null,null,null,null,null,null,null,null,null,null,null,null,null,null,null,null,null,{"$f":"(IF(T404=Références!$B$5,Références!$D$5)+IF(T404=Références!$B$6,Références!$D$6)+IF(T404=Références!$B$7,Références!$D$7)+IF(T404=Références!$B$8,Références!$D$8)+IF(T404=Références!$B$9,Références!$D$9)+IF(T404=Références!$B$10,Références!$D$10)+IF(T404=Références!$B$11,Références!$D$11)+IF(T404=Références!$B$12,Références!$D$12)+IF(T404=Références!$B$13,IF(S404>=1600,Références!$D$16,IF('Calculateur-Transport'!S404>=500,Références!$D$15,IF('Calculateur-Transport'!S404<=499,Références!$D$14)))))*S404","v":0}]
[null,null,null,null,null,null,null,null,null,null,null,null,null,null,null,null,null,null,null,null,{"$f":"(IF(T405=Références!$B$5,Références!$D$5)+IF(T405=Références!$B$6,Références!$D$6)+IF(T405=Références!$B$7,Références!$D$7)+IF(T405=Références!$B$8,Références!$D$8)+IF(T405=Références!$B$9,Références!$D$9)+IF(T405=Références!$B$10,Références!$D$10)+IF(T405=Références!$B$11,Références!$D$11)+IF(T405=Références!$B$12,Références!$D$12)+IF(T405=Références!$B$13,IF(S405>=1600,Références!$D$16,IF('Calculateur-Transport'!S405>=500,Références!$D$15,IF('Calculateur-Transport'!S405<=499,Références!$D$14)))))*S405","v":0}]
[null,null,null,null,null,null,null,null,null,null,null,null,null,null,null,null,null,null,null,null,{"$f":"(IF(T406=Références!$B$5,Références!$D$5)+IF(T406=Références!$B$6,Références!$D$6)+IF(T406=Références!$B$7,Références!$D$7)+IF(T406=Références!$B$8,Références!$D$8)+IF(T406=Références!$B$9,Références!$D$9)+IF(T406=Références!$B$10,Références!$D$10)+IF(T406=Références!$B$11,Références!$D$11)+IF(T406=Références!$B$12,Références!$D$12)+IF(T406=Références!$B$13,IF(S406>=1600,Références!$D$16,IF('Calculateur-Transport'!S406>=500,Références!$D$15,IF('Calculateur-Transport'!S406<=499,Références!$D$14)))))*S406","v":0}]
[null,null,null,null,null,null,null,null,null,null,null,null,null,null,null,null,null,null,null,null,{"$f":"(IF(T407=Références!$B$5,Références!$D$5)+IF(T407=Références!$B$6,Références!$D$6)+IF(T407=Références!$B$7,Références!$D$7)+IF(T407=Références!$B$8,Références!$D$8)+IF(T407=Références!$B$9,Références!$D$9)+IF(T407=Références!$B$10,Références!$D$10)+IF(T407=Références!$B$11,Références!$D$11)+IF(T407=Références!$B$12,Références!$D$12)+IF(T407=Références!$B$13,IF(S407>=1600,Références!$D$16,IF('Calculateur-Transport'!S407>=500,Références!$D$15,IF('Calculateur-Transport'!S407<=499,Références!$D$14)))))*S407","v":0}]
[null,null,null,null,null,null,null,null,null,null,null,null,null,null,null,null,null,null,null,null,{"$f":"(IF(T408=Références!$B$5,Références!$D$5)+IF(T408=Références!$B$6,Références!$D$6)+IF(T408=Références!$B$7,Références!$D$7)+IF(T408=Références!$B$8,Références!$D$8)+IF(T408=Références!$B$9,Références!$D$9)+IF(T408=Références!$B$10,Références!$D$10)+IF(T408=Références!$B$11,Références!$D$11)+IF(T408=Références!$B$12,Références!$D$12)+IF(T408=Références!$B$13,IF(S408>=1600,Références!$D$16,IF('Calculateur-Transport'!S408>=500,Références!$D$15,IF('Calculateur-Transport'!S408<=499,Références!$D$14)))))*S408","v":0}]
[null,null,null,null,null,null,null,null,null,null,null,null,null,null,null,null,null,null,null,null,{"$f":"(IF(T409=Références!$B$5,Références!$D$5)+IF(T409=Références!$B$6,Références!$D$6)+IF(T409=Références!$B$7,Références!$D$7)+IF(T409=Références!$B$8,Références!$D$8)+IF(T409=Références!$B$9,Références!$D$9)+IF(T409=Références!$B$10,Références!$D$10)+IF(T409=Références!$B$11,Références!$D$11)+IF(T409=Références!$B$12,Références!$D$12)+IF(T409=Références!$B$13,IF(S409>=1600,Références!$D$16,IF('Calculateur-Transport'!S409>=500,Références!$D$15,IF('Calculateur-Transport'!S409<=499,Références!$D$14)))))*S409","v":0}]
[null,null,null,null,null,null,null,null,null,null,null,null,null,null,null,null,null,null,null,null,{"$f":"(IF(T410=Références!$B$5,Références!$D$5)+IF(T410=Références!$B$6,Références!$D$6)+IF(T410=Références!$B$7,Références!$D$7)+IF(T410=Références!$B$8,Références!$D$8)+IF(T410=Références!$B$9,Références!$D$9)+IF(T410=Références!$B$10,Références!$D$10)+IF(T410=Références!$B$11,Références!$D$11)+IF(T410=Références!$B$12,Références!$D$12)+IF(T410=Références!$B$13,IF(S410>=1600,Références!$D$16,IF('Calculateur-Transport'!S410>=500,Références!$D$15,IF('Calculateur-Transport'!S410<=499,Références!$D$14)))))*S410","v":0}]
[null,null,null,null,null,null,null,null,null,null,null,null,null,null,null,null,null,null,null,null,{"$f":"(IF(T411=Références!$B$5,Références!$D$5)+IF(T411=Références!$B$6,Références!$D$6)+IF(T411=Références!$B$7,Références!$D$7)+IF(T411=Références!$B$8,Références!$D$8)+IF(T411=Références!$B$9,Références!$D$9)+IF(T411=Références!$B$10,Références!$D$10)+IF(T411=Références!$B$11,Références!$D$11)+IF(T411=Références!$B$12,Références!$D$12)+IF(T411=Références!$B$13,IF(S411>=1600,Références!$D$16,IF('Calculateur-Transport'!S411>=500,Références!$D$15,IF('Calculateur-Transport'!S411<=499,Références!$D$14)))))*S411","v":0}]
[null,null,null,null,null,null,null,null,null,null,null,null,null,null,null,null,null,null,null,null,{"$f":"(IF(T412=Références!$B$5,Références!$D$5)+IF(T412=Références!$B$6,Références!$D$6)+IF(T412=Références!$B$7,Références!$D$7)+IF(T412=Références!$B$8,Références!$D$8)+IF(T412=Références!$B$9,Références!$D$9)+IF(T412=Références!$B$10,Références!$D$10)+IF(T412=Références!$B$11,Références!$D$11)+IF(T412=Références!$B$12,Références!$D$12)+IF(T412=Références!$B$13,IF(S412>=1600,Références!$D$16,IF('Calculateur-Transport'!S412>=500,Références!$D$15,IF('Calculateur-Transport'!S412<=499,Références!$D$14)))))*S412","v":0}]
[null,null,null,null,null,null,null,null,null,null,null,null,null,null,null,null,null,null,null,null,{"$f":"(IF(T413=Références!$B$5,Références!$D$5)+IF(T413=Références!$B$6,Références!$D$6)+IF(T413=Références!$B$7,Références!$D$7)+IF(T413=Références!$B$8,Références!$D$8)+IF(T413=Références!$B$9,Références!$D$9)+IF(T413=Références!$B$10,Références!$D$10)+IF(T413=Références!$B$11,Références!$D$11)+IF(T413=Références!$B$12,Références!$D$12)+IF(T413=Références!$B$13,IF(S413>=1600,Références!$D$16,IF('Calculateur-Transport'!S413>=500,Références!$D$15,IF('Calculateur-Transport'!S413<=499,Références!$D$14)))))*S413","v":0}]
[null,null,null,null,null,null,null,null,null,null,null,null,null,null,null,null,null,null,null,null,{"$f":"(IF(T414=Références!$B$5,Références!$D$5)+IF(T414=Références!$B$6,Références!$D$6)+IF(T414=Références!$B$7,Références!$D$7)+IF(T414=Références!$B$8,Références!$D$8)+IF(T414=Références!$B$9,Références!$D$9)+IF(T414=Références!$B$10,Références!$D$10)+IF(T414=Références!$B$11,Références!$D$11)+IF(T414=Références!$B$12,Références!$D$12)+IF(T414=Références!$B$13,IF(S414>=1600,Références!$D$16,IF('Calculateur-Transport'!S414>=500,Références!$D$15,IF('Calculateur-Transport'!S414<=499,Références!$D$14)))))*S414","v":0}]
[null,null,null,null,null,null,null,null,null,null,null,null,null,null,null,null,null,null,null,null,{"$f":"(IF(T415=Références!$B$5,Références!$D$5)+IF(T415=Références!$B$6,Références!$D$6)+IF(T415=Références!$B$7,Références!$D$7)+IF(T415=Références!$B$8,Références!$D$8)+IF(T415=Références!$B$9,Références!$D$9)+IF(T415=Références!$B$10,Références!$D$10)+IF(T415=Références!$B$11,Références!$D$11)+IF(T415=Références!$B$12,Références!$D$12)+IF(T415=Références!$B$13,IF(S415>=1600,Références!$D$16,IF('Calculateur-Transport'!S415>=500,Références!$D$15,IF('Calculateur-Transport'!S415<=499,Références!$D$14)))))*S415","v":0}]
[null,null,null,null,null,null,null,null,null,null,null,null,null,null,null,null,null,null,null,null,{"$f":"(IF(T416=Références!$B$5,Références!$D$5)+IF(T416=Références!$B$6,Références!$D$6)+IF(T416=Références!$B$7,Références!$D$7)+IF(T416=Références!$B$8,Références!$D$8)+IF(T416=Références!$B$9,Références!$D$9)+IF(T416=Références!$B$10,Références!$D$10)+IF(T416=Références!$B$11,Références!$D$11)+IF(T416=Références!$B$12,Références!$D$12)+IF(T416=Références!$B$13,IF(S416>=1600,Références!$D$16,IF('Calculateur-Transport'!S416>=500,Références!$D$15,IF('Calculateur-Transport'!S416<=499,Références!$D$14)))))*S416","v":0}]
[null,null,null,null,null,null,null,null,null,null,null,null,null,null,null,null,null,null,null,null,{"$f":"(IF(T417=Références!$B$5,Références!$D$5)+IF(T417=Références!$B$6,Références!$D$6)+IF(T417=Références!$B$7,Références!$D$7)+IF(T417=Références!$B$8,Références!$D$8)+IF(T417=Références!$B$9,Références!$D$9)+IF(T417=Références!$B$10,Références!$D$10)+IF(T417=Références!$B$11,Références!$D$11)+IF(T417=Références!$B$12,Références!$D$12)+IF(T417=Références!$B$13,IF(S417>=1600,Références!$D$16,IF('Calculateur-Transport'!S417>=500,Références!$D$15,IF('Calculateur-Transport'!S417<=499,Références!$D$14)))))*S417","v":0}]
[null,null,null,null,null,null,null,null,null,null,null,null,null,null,null,null,null,null,null,null,{"$f":"(IF(T418=Références!$B$5,Références!$D$5)+IF(T418=Références!$B$6,Références!$D$6)+IF(T418=Références!$B$7,Références!$D$7)+IF(T418=Références!$B$8,Références!$D$8)+IF(T418=Références!$B$9,Références!$D$9)+IF(T418=Références!$B$10,Références!$D$10)+IF(T418=Références!$B$11,Références!$D$11)+IF(T418=Références!$B$12,Références!$D$12)+IF(T418=Références!$B$13,IF(S418>=1600,Références!$D$16,IF('Calculateur-Transport'!S418>=500,Références!$D$15,IF('Calculateur-Transport'!S418<=499,Références!$D$14)))))*S418","v":0}]
[null,null,null,null,null,null,null,null,null,null,null,null,null,null,null,null,null,null,null,null,{"$f":"(IF(T419=Références!$B$5,Références!$D$5)+IF(T419=Références!$B$6,Références!$D$6)+IF(T419=Références!$B$7,Références!$D$7)+IF(T419=Références!$B$8,Références!$D$8)+IF(T419=Références!$B$9,Références!$D$9)+IF(T419=Références!$B$10,Références!$D$10)+IF(T419=Références!$B$11,Références!$D$11)+IF(T419=Références!$B$12,Références!$D$12)+IF(T419=Références!$B$13,IF(S419>=1600,Références!$D$16,IF('Calculateur-Transport'!S419>=500,Références!$D$15,IF('Calculateur-Transport'!S419<=499,Références!$D$14)))))*S419","v":0}]
[null,null,null,null,null,null,null,null,null,null,null,null,null,null,null,null,null,null,null,null,{"$f":"(IF(T420=Références!$B$5,Références!$D$5)+IF(T420=Références!$B$6,Références!$D$6)+IF(T420=Références!$B$7,Références!$D$7)+IF(T420=Références!$B$8,Références!$D$8)+IF(T420=Références!$B$9,Références!$D$9)+IF(T420=Références!$B$10,Références!$D$10)+IF(T420=Références!$B$11,Références!$D$11)+IF(T420=Références!$B$12,Références!$D$12)+IF(T420=Références!$B$13,IF(S420>=1600,Références!$D$16,IF('Calculateur-Transport'!S420>=500,Références!$D$15,IF('Calculateur-Transport'!S420<=499,Références!$D$14)))))*S420","v":0}]
[null,null,null,null,null,null,null,null,null,null,null,null,null,null,null,null,null,null,null,null,{"$f":"(IF(T421=Références!$B$5,Références!$D$5)+IF(T421=Références!$B$6,Références!$D$6)+IF(T421=Références!$B$7,Références!$D$7)+IF(T421=Références!$B$8,Références!$D$8)+IF(T421=Références!$B$9,Références!$D$9)+IF(T421=Références!$B$10,Références!$D$10)+IF(T421=Références!$B$11,Références!$D$11)+IF(T421=Références!$B$12,Références!$D$12)+IF(T421=Références!$B$13,IF(S421>=1600,Références!$D$16,IF('Calculateur-Transport'!S421>=500,Références!$D$15,IF('Calculateur-Transport'!S421<=499,Références!$D$14)))))*S421","v":0}]
[null,null,null,null,null,null,null,null,null,null,null,null,null,null,null,null,null,null,null,null,{"$f":"(IF(T422=Références!$B$5,Références!$D$5)+IF(T422=Références!$B$6,Références!$D$6)+IF(T422=Références!$B$7,Références!$D$7)+IF(T422=Références!$B$8,Références!$D$8)+IF(T422=Références!$B$9,Références!$D$9)+IF(T422=Références!$B$10,Références!$D$10)+IF(T422=Références!$B$11,Références!$D$11)+IF(T422=Références!$B$12,Références!$D$12)+IF(T422=Références!$B$13,IF(S422>=1600,Références!$D$16,IF('Calculateur-Transport'!S422>=500,Références!$D$15,IF('Calculateur-Transport'!S422<=499,Références!$D$14)))))*S422","v":0}]
[null,null,null,null,null,null,null,null,null,null,null,null,null,null,null,null,null,null,null,null,{"$f":"(IF(T423=Références!$B$5,Références!$D$5)+IF(T423=Références!$B$6,Références!$D$6)+IF(T423=Références!$B$7,Références!$D$7)+IF(T423=Références!$B$8,Références!$D$8)+IF(T423=Références!$B$9,Références!$D$9)+IF(T423=Références!$B$10,Références!$D$10)+IF(T423=Références!$B$11,Références!$D$11)+IF(T423=Références!$B$12,Références!$D$12)+IF(T423=Références!$B$13,IF(S423>=1600,Références!$D$16,IF('Calculateur-Transport'!S423>=500,Références!$D$15,IF('Calculateur-Transport'!S423<=499,Références!$D$14)))))*S423","v":0}]
[null,null,null,null,null,null,null,null,null,null,null,null,null,null,null,null,null,null,null,null,{"$f":"(IF(T424=Références!$B$5,Références!$D$5)+IF(T424=Références!$B$6,Références!$D$6)+IF(T424=Références!$B$7,Références!$D$7)+IF(T424=Références!$B$8,Références!$D$8)+IF(T424=Références!$B$9,Références!$D$9)+IF(T424=Références!$B$10,Références!$D$10)+IF(T424=Références!$B$11,Références!$D$11)+IF(T424=Références!$B$12,Références!$D$12)+IF(T424=Références!$B$13,IF(S424>=1600,Références!$D$16,IF('Calculateur-Transport'!S424>=500,Références!$D$15,IF('Calculateur-Transport'!S424<=499,Références!$D$14)))))*S424","v":0}]
[null,null,null,null,null,null,null,null,null,null,null,null,null,null,null,null,null,null,null,null,{"$f":"(IF(T425=Références!$B$5,Références!$D$5)+IF(T425=Références!$B$6,Références!$D$6)+IF(T425=Références!$B$7,Références!$D$7)+IF(T425=Références!$B$8,Références!$D$8)+IF(T425=Références!$B$9,Références!$D$9)+IF(T425=Références!$B$10,Références!$D$10)+IF(T425=Références!$B$11,Références!$D$11)+IF(T425=Références!$B$12,Références!$D$12)+IF(T425=Références!$B$13,IF(S425>=1600,Références!$D$16,IF('Calculateur-Transport'!S425>=500,Références!$D$15,IF('Calculateur-Transport'!S425<=499,Références!$D$14)))))*S425","v":0}]
[null,null,null,null,null,null,null,null,null,null,null,null,null,null,null,null,null,null,null,null,{"$f":"(IF(T426=Références!$B$5,Références!$D$5)+IF(T426=Références!$B$6,Références!$D$6)+IF(T426=Références!$B$7,Références!$D$7)+IF(T426=Références!$B$8,Références!$D$8)+IF(T426=Références!$B$9,Références!$D$9)+IF(T426=Références!$B$10,Références!$D$10)+IF(T426=Références!$B$11,Références!$D$11)+IF(T426=Références!$B$12,Références!$D$12)+IF(T426=Références!$B$13,IF(S426>=1600,Références!$D$16,IF('Calculateur-Transport'!S426>=500,Références!$D$15,IF('Calculateur-Transport'!S426<=499,Références!$D$14)))))*S426","v":0}]
[null,null,null,null,null,null,null,null,null,null,null,null,null,null,null,null,null,null,null,null,{"$f":"(IF(T427=Références!$B$5,Références!$D$5)+IF(T427=Références!$B$6,Références!$D$6)+IF(T427=Références!$B$7,Références!$D$7)+IF(T427=Références!$B$8,Références!$D$8)+IF(T427=Références!$B$9,Références!$D$9)+IF(T427=Références!$B$10,Références!$D$10)+IF(T427=Références!$B$11,Références!$D$11)+IF(T427=Références!$B$12,Références!$D$12)+IF(T427=Références!$B$13,IF(S427>=1600,Références!$D$16,IF('Calculateur-Transport'!S427>=500,Références!$D$15,IF('Calculateur-Transport'!S427<=499,Références!$D$14)))))*S427","v":0}]
[null,null,null,null,null,null,null,null,null,null,null,null,null,null,null,null,null,null,null,null,{"$f":"(IF(T428=Références!$B$5,Références!$D$5)+IF(T428=Références!$B$6,Références!$D$6)+IF(T428=Références!$B$7,Références!$D$7)+IF(T428=Références!$B$8,Références!$D$8)+IF(T428=Références!$B$9,Références!$D$9)+IF(T428=Références!$B$10,Références!$D$10)+IF(T428=Références!$B$11,Références!$D$11)+IF(T428=Références!$B$12,Références!$D$12)+IF(T428=Références!$B$13,IF(S428>=1600,Références!$D$16,IF('Calculateur-Transport'!S428>=500,Références!$D$15,IF('Calculateur-Transport'!S428<=499,Références!$D$14)))))*S428","v":0}]
[null,null,null,null,null,null,null,null,null,null,null,null,null,null,null,null,null,null,null,null,{"$f":"(IF(T429=Références!$B$5,Références!$D$5)+IF(T429=Références!$B$6,Références!$D$6)+IF(T429=Références!$B$7,Références!$D$7)+IF(T429=Références!$B$8,Références!$D$8)+IF(T429=Références!$B$9,Références!$D$9)+IF(T429=Références!$B$10,Références!$D$10)+IF(T429=Références!$B$11,Références!$D$11)+IF(T429=Références!$B$12,Références!$D$12)+IF(T429=Références!$B$13,IF(S429>=1600,Références!$D$16,IF('Calculateur-Transport'!S429>=500,Références!$D$15,IF('Calculateur-Transport'!S429<=499,Références!$D$14)))))*S429","v":0}]
[null,null,null,null,null,null,null,null,null,null,null,null,null,null,null,null,null,null,null,null,{"$f":"(IF(T430=Références!$B$5,Références!$D$5)+IF(T430=Références!$B$6,Références!$D$6)+IF(T430=Références!$B$7,Références!$D$7)+IF(T430=Références!$B$8,Références!$D$8)+IF(T430=Références!$B$9,Références!$D$9)+IF(T430=Références!$B$10,Références!$D$10)+IF(T430=Références!$B$11,Références!$D$11)+IF(T430=Références!$B$12,Références!$D$12)+IF(T430=Références!$B$13,IF(S430>=1600,Références!$D$16,IF('Calculateur-Transport'!S430>=500,Références!$D$15,IF('Calculateur-Transport'!S430<=499,Références!$D$14)))))*S430","v":0}]
[null,null,null,null,null,null,null,null,null,null,null,null,null,null,null,null,null,null,null,null,{"$f":"(IF(T431=Références!$B$5,Références!$D$5)+IF(T431=Références!$B$6,Références!$D$6)+IF(T431=Références!$B$7,Références!$D$7)+IF(T431=Références!$B$8,Références!$D$8)+IF(T431=Références!$B$9,Références!$D$9)+IF(T431=Références!$B$10,Références!$D$10)+IF(T431=Références!$B$11,Références!$D$11)+IF(T431=Références!$B$12,Références!$D$12)+IF(T431=Références!$B$13,IF(S431>=1600,Références!$D$16,IF('Calculateur-Transport'!S431>=500,Références!$D$15,IF('Calculateur-Transport'!S431<=499,Références!$D$14)))))*S431","v":0}]
[null,null,null,null,null,null,null,null,null,null,null,null,null,null,null,null,null,null,null,null,{"$f":"(IF(T432=Références!$B$5,Références!$D$5)+IF(T432=Références!$B$6,Références!$D$6)+IF(T432=Références!$B$7,Références!$D$7)+IF(T432=Références!$B$8,Références!$D$8)+IF(T432=Références!$B$9,Références!$D$9)+IF(T432=Références!$B$10,Références!$D$10)+IF(T432=Références!$B$11,Références!$D$11)+IF(T432=Références!$B$12,Références!$D$12)+IF(T432=Références!$B$13,IF(S432>=1600,Références!$D$16,IF('Calculateur-Transport'!S432>=500,Références!$D$15,IF('Calculateur-Transport'!S432<=499,Références!$D$14)))))*S432","v":0}]
[null,null,null,null,null,null,null,null,null,null,null,null,null,null,null,null,null,null,null,null,{"$f":"(IF(T433=Références!$B$5,Références!$D$5)+IF(T433=Références!$B$6,Références!$D$6)+IF(T433=Références!$B$7,Références!$D$7)+IF(T433=Références!$B$8,Références!$D$8)+IF(T433=Références!$B$9,Références!$D$9)+IF(T433=Références!$B$10,Références!$D$10)+IF(T433=Références!$B$11,Références!$D$11)+IF(T433=Références!$B$12,Références!$D$12)+IF(T433=Références!$B$13,IF(S433>=1600,Références!$D$16,IF('Calculateur-Transport'!S433>=500,Références!$D$15,IF('Calculateur-Transport'!S433<=499,Références!$D$14)))))*S433","v":0}]
[null,null,null,null,null,null,null,null,null,null,null,null,null,null,null,null,null,null,null,null,{"$f":"(IF(T434=Références!$B$5,Références!$D$5)+IF(T434=Références!$B$6,Références!$D$6)+IF(T434=Références!$B$7,Références!$D$7)+IF(T434=Références!$B$8,Références!$D$8)+IF(T434=Références!$B$9,Références!$D$9)+IF(T434=Références!$B$10,Références!$D$10)+IF(T434=Références!$B$11,Références!$D$11)+IF(T434=Références!$B$12,Références!$D$12)+IF(T434=Références!$B$13,IF(S434>=1600,Références!$D$16,IF('Calculateur-Transport'!S434>=500,Références!$D$15,IF('Calculateur-Transport'!S434<=499,Références!$D$14)))))*S434","v":0}]
[null,null,null,null,null,null,null,null,null,null,null,null,null,null,null,null,null,null,null,null,{"$f":"(IF(T435=Références!$B$5,Références!$D$5)+IF(T435=Références!$B$6,Références!$D$6)+IF(T435=Références!$B$7,Références!$D$7)+IF(T435=Références!$B$8,Références!$D$8)+IF(T435=Références!$B$9,Références!$D$9)+IF(T435=Références!$B$10,Références!$D$10)+IF(T435=Références!$B$11,Références!$D$11)+IF(T435=Références!$B$12,Références!$D$12)+IF(T435=Références!$B$13,IF(S435>=1600,Références!$D$16,IF('Calculateur-Transport'!S435>=500,Références!$D$15,IF('Calculateur-Transport'!S435<=499,Références!$D$14)))))*S435","v":0}]
[null,null,null,null,null,null,null,null,null,null,null,null,null,null,null,null,null,null,null,null,{"$f":"(IF(T436=Références!$B$5,Références!$D$5)+IF(T436=Références!$B$6,Références!$D$6)+IF(T436=Références!$B$7,Références!$D$7)+IF(T436=Références!$B$8,Références!$D$8)+IF(T436=Références!$B$9,Références!$D$9)+IF(T436=Références!$B$10,Références!$D$10)+IF(T436=Références!$B$11,Références!$D$11)+IF(T436=Références!$B$12,Références!$D$12)+IF(T436=Références!$B$13,IF(S436>=1600,Références!$D$16,IF('Calculateur-Transport'!S436>=500,Références!$D$15,IF('Calculateur-Transport'!S436<=499,Références!$D$14)))))*S436","v":0}]
[null,null,null,null,null,null,null,null,null,null,null,null,null,null,null,null,null,null,null,null,{"$f":"(IF(T437=Références!$B$5,Références!$D$5)+IF(T437=Références!$B$6,Références!$D$6)+IF(T437=Références!$B$7,Références!$D$7)+IF(T437=Références!$B$8,Références!$D$8)+IF(T437=Références!$B$9,Références!$D$9)+IF(T437=Références!$B$10,Références!$D$10)+IF(T437=Références!$B$11,Références!$D$11)+IF(T437=Références!$B$12,Références!$D$12)+IF(T437=Références!$B$13,IF(S437>=1600,Références!$D$16,IF('Calculateur-Transport'!S437>=500,Références!$D$15,IF('Calculateur-Transport'!S437<=499,Références!$D$14)))))*S437","v":0}]
[null,null,null,null,null,null,null,null,null,null,null,null,null,null,null,null,null,null,null,null,{"$f":"(IF(T438=Références!$B$5,Références!$D$5)+IF(T438=Références!$B$6,Références!$D$6)+IF(T438=Références!$B$7,Références!$D$7)+IF(T438=Références!$B$8,Références!$D$8)+IF(T438=Références!$B$9,Références!$D$9)+IF(T438=Références!$B$10,Références!$D$10)+IF(T438=Références!$B$11,Références!$D$11)+IF(T438=Références!$B$12,Références!$D$12)+IF(T438=Références!$B$13,IF(S438>=1600,Références!$D$16,IF('Calculateur-Transport'!S438>=500,Références!$D$15,IF('Calculateur-Transport'!S438<=499,Références!$D$14)))))*S438","v":0}]
[null,null,null,null,null,null,null,null,null,null,null,null,null,null,null,null,null,null,null,null,{"$f":"(IF(T439=Références!$B$5,Références!$D$5)+IF(T439=Références!$B$6,Références!$D$6)+IF(T439=Références!$B$7,Références!$D$7)+IF(T439=Références!$B$8,Références!$D$8)+IF(T439=Références!$B$9,Références!$D$9)+IF(T439=Références!$B$10,Références!$D$10)+IF(T439=Références!$B$11,Références!$D$11)+IF(T439=Références!$B$12,Références!$D$12)+IF(T439=Références!$B$13,IF(S439>=1600,Références!$D$16,IF('Calculateur-Transport'!S439>=500,Références!$D$15,IF('Calculateur-Transport'!S439<=499,Références!$D$14)))))*S439","v":0}]
[null,null,null,null,null,null,null,null,null,null,null,null,null,null,null,null,null,null,null,null,{"$f":"(IF(T440=Références!$B$5,Références!$D$5)+IF(T440=Références!$B$6,Références!$D$6)+IF(T440=Références!$B$7,Références!$D$7)+IF(T440=Références!$B$8,Références!$D$8)+IF(T440=Références!$B$9,Références!$D$9)+IF(T440=Références!$B$10,Références!$D$10)+IF(T440=Références!$B$11,Références!$D$11)+IF(T440=Références!$B$12,Références!$D$12)+IF(T440=Références!$B$13,IF(S440>=1600,Références!$D$16,IF('Calculateur-Transport'!S440>=500,Références!$D$15,IF('Calculateur-Transport'!S440<=499,Références!$D$14)))))*S440","v":0}]
[null,null,null,null,null,null,null,null,null,null,null,null,null,null,null,null,null,null,null,null,{"$f":"(IF(T441=Références!$B$5,Références!$D$5)+IF(T441=Références!$B$6,Références!$D$6)+IF(T441=Références!$B$7,Références!$D$7)+IF(T441=Références!$B$8,Références!$D$8)+IF(T441=Références!$B$9,Références!$D$9)+IF(T441=Références!$B$10,Références!$D$10)+IF(T441=Références!$B$11,Références!$D$11)+IF(T441=Références!$B$12,Références!$D$12)+IF(T441=Références!$B$13,IF(S441>=1600,Références!$D$16,IF('Calculateur-Transport'!S441>=500,Références!$D$15,IF('Calculateur-Transport'!S441<=499,Références!$D$14)))))*S441","v":0}]
[null,null,null,null,null,null,null,null,null,null,null,null,null,null,null,null,null,null,null,null,{"$f":"(IF(T442=Références!$B$5,Références!$D$5)+IF(T442=Références!$B$6,Références!$D$6)+IF(T442=Références!$B$7,Références!$D$7)+IF(T442=Références!$B$8,Références!$D$8)+IF(T442=Références!$B$9,Références!$D$9)+IF(T442=Références!$B$10,Références!$D$10)+IF(T442=Références!$B$11,Références!$D$11)+IF(T442=Références!$B$12,Références!$D$12)+IF(T442=Références!$B$13,IF(S442>=1600,Références!$D$16,IF('Calculateur-Transport'!S442>=500,Références!$D$15,IF('Calculateur-Transport'!S442<=499,Références!$D$14)))))*S442","v":0}]
[null,null,null,null,null,null,null,null,null,null,null,null,null,null,null,null,null,null,null,null,{"$f":"(IF(T443=Références!$B$5,Références!$D$5)+IF(T443=Références!$B$6,Références!$D$6)+IF(T443=Références!$B$7,Références!$D$7)+IF(T443=Références!$B$8,Références!$D$8)+IF(T443=Références!$B$9,Références!$D$9)+IF(T443=Références!$B$10,Références!$D$10)+IF(T443=Références!$B$11,Références!$D$11)+IF(T443=Références!$B$12,Références!$D$12)+IF(T443=Références!$B$13,IF(S443>=1600,Références!$D$16,IF('Calculateur-Transport'!S443>=500,Références!$D$15,IF('Calculateur-Transport'!S443<=499,Références!$D$14)))))*S443","v":0}]
[null,null,null,null,null,null,null,null,null,null,null,null,null,null,null,null,null,null,null,null,{"$f":"(IF(T444=Références!$B$5,Références!$D$5)+IF(T444=Références!$B$6,Références!$D$6)+IF(T444=Références!$B$7,Références!$D$7)+IF(T444=Références!$B$8,Références!$D$8)+IF(T444=Références!$B$9,Références!$D$9)+IF(T444=Références!$B$10,Références!$D$10)+IF(T444=Références!$B$11,Références!$D$11)+IF(T444=Références!$B$12,Références!$D$12)+IF(T444=Références!$B$13,IF(S444>=1600,Références!$D$16,IF('Calculateur-Transport'!S444>=500,Références!$D$15,IF('Calculateur-Transport'!S444<=499,Références!$D$14)))))*S444","v":0}]
[null,null,null,null,null,null,null,null,null,null,null,null,null,null,null,null,null,null,null,null,{"$f":"(IF(T445=Références!$B$5,Références!$D$5)+IF(T445=Références!$B$6,Références!$D$6)+IF(T445=Références!$B$7,Références!$D$7)+IF(T445=Références!$B$8,Références!$D$8)+IF(T445=Références!$B$9,Références!$D$9)+IF(T445=Références!$B$10,Références!$D$10)+IF(T445=Références!$B$11,Références!$D$11)+IF(T445=Références!$B$12,Références!$D$12)+IF(T445=Références!$B$13,IF(S445>=1600,Références!$D$16,IF('Calculateur-Transport'!S445>=500,Références!$D$15,IF('Calculateur-Transport'!S445<=499,Références!$D$14)))))*S445","v":0}]
[null,null,null,null,null,null,null,null,null,null,null,null,null,null,null,null,null,null,null,null,{"$f":"(IF(T446=Références!$B$5,Références!$D$5)+IF(T446=Références!$B$6,Références!$D$6)+IF(T446=Références!$B$7,Références!$D$7)+IF(T446=Références!$B$8,Références!$D$8)+IF(T446=Références!$B$9,Références!$D$9)+IF(T446=Références!$B$10,Références!$D$10)+IF(T446=Références!$B$11,Références!$D$11)+IF(T446=Références!$B$12,Références!$D$12)+IF(T446=Références!$B$13,IF(S446>=1600,Références!$D$16,IF('Calculateur-Transport'!S446>=500,Références!$D$15,IF('Calculateur-Transport'!S446<=499,Références!$D$14)))))*S446","v":0}]
[null,null,null,null,null,null,null,null,null,null,null,null,null,null,null,null,null,null,null,null,{"$f":"(IF(T447=Références!$B$5,Références!$D$5)+IF(T447=Références!$B$6,Références!$D$6)+IF(T447=Références!$B$7,Références!$D$7)+IF(T447=Références!$B$8,Références!$D$8)+IF(T447=Références!$B$9,Références!$D$9)+IF(T447=Références!$B$10,Références!$D$10)+IF(T447=Références!$B$11,Références!$D$11)+IF(T447=Références!$B$12,Références!$D$12)+IF(T447=Références!$B$13,IF(S447>=1600,Références!$D$16,IF('Calculateur-Transport'!S447>=500,Références!$D$15,IF('Calculateur-Transport'!S447<=499,Références!$D$14)))))*S447","v":0}]
[null,null,null,null,null,null,null,null,null,null,null,null,null,null,null,null,null,null,null,null,{"$f":"(IF(T448=Références!$B$5,Références!$D$5)+IF(T448=Références!$B$6,Références!$D$6)+IF(T448=Références!$B$7,Références!$D$7)+IF(T448=Références!$B$8,Références!$D$8)+IF(T448=Références!$B$9,Références!$D$9)+IF(T448=Références!$B$10,Références!$D$10)+IF(T448=Références!$B$11,Références!$D$11)+IF(T448=Références!$B$12,Références!$D$12)+IF(T448=Références!$B$13,IF(S448>=1600,Références!$D$16,IF('Calculateur-Transport'!S448>=500,Références!$D$15,IF('Calculateur-Transport'!S448<=499,Références!$D$14)))))*S448","v":0}]
[null,null,null,null,null,null,null,null,null,null,null,null,null,null,null,null,null,null,null,null,{"$f":"(IF(T449=Références!$B$5,Références!$D$5)+IF(T449=Références!$B$6,Références!$D$6)+IF(T449=Références!$B$7,Références!$D$7)+IF(T449=Références!$B$8,Références!$D$8)+IF(T449=Références!$B$9,Références!$D$9)+IF(T449=Références!$B$10,Références!$D$10)+IF(T449=Références!$B$11,Références!$D$11)+IF(T449=Références!$B$12,Références!$D$12)+IF(T449=Références!$B$13,IF(S449>=1600,Références!$D$16,IF('Calculateur-Transport'!S449>=500,Références!$D$15,IF('Calculateur-Transport'!S449<=499,Références!$D$14)))))*S449","v":0}]
[null,null,null,null,null,null,null,null,null,null,null,null,null,null,null,null,null,null,null,null,{"$f":"(IF(T450=Références!$B$5,Références!$D$5)+IF(T450=Références!$B$6,Références!$D$6)+IF(T450=Références!$B$7,Références!$D$7)+IF(T450=Références!$B$8,Références!$D$8)+IF(T450=Références!$B$9,Références!$D$9)+IF(T450=Références!$B$10,Références!$D$10)+IF(T450=Références!$B$11,Références!$D$11)+IF(T450=Références!$B$12,Références!$D$12)+IF(T450=Références!$B$13,IF(S450>=1600,Références!$D$16,IF('Calculateur-Transport'!S450>=500,Références!$D$15,IF('Calculateur-Transport'!S450<=499,Références!$D$14)))))*S450","v":0}]
[null,null,null,null,null,null,null,null,null,null,null,null,null,null,null,null,null,null,null,null,{"$f":"(IF(T451=Références!$B$5,Références!$D$5)+IF(T451=Références!$B$6,Références!$D$6)+IF(T451=Références!$B$7,Références!$D$7)+IF(T451=Références!$B$8,Références!$D$8)+IF(T451=Références!$B$9,Références!$D$9)+IF(T451=Références!$B$10,Références!$D$10)+IF(T451=Références!$B$11,Références!$D$11)+IF(T451=Références!$B$12,Références!$D$12)+IF(T451=Références!$B$13,IF(S451>=1600,Références!$D$16,IF('Calculateur-Transport'!S451>=500,Références!$D$15,IF('Calculateur-Transport'!S451<=499,Références!$D$14)))))*S451","v":0}]
[null,null,null,null,null,null,null,null,null,null,null,null,null,null,null,null,null,null,null,null,{"$f":"(IF(T452=Références!$B$5,Références!$D$5)+IF(T452=Références!$B$6,Références!$D$6)+IF(T452=Références!$B$7,Références!$D$7)+IF(T452=Références!$B$8,Références!$D$8)+IF(T452=Références!$B$9,Références!$D$9)+IF(T452=Références!$B$10,Références!$D$10)+IF(T452=Références!$B$11,Références!$D$11)+IF(T452=Références!$B$12,Références!$D$12)+IF(T452=Références!$B$13,IF(S452>=1600,Références!$D$16,IF('Calculateur-Transport'!S452>=500,Références!$D$15,IF('Calculateur-Transport'!S452<=499,Références!$D$14)))))*S452","v":0}]
[null,null,null,null,null,null,null,null,null,null,null,null,null,null,null,null,null,null,null,null,{"$f":"(IF(T453=Références!$B$5,Références!$D$5)+IF(T453=Références!$B$6,Références!$D$6)+IF(T453=Références!$B$7,Références!$D$7)+IF(T453=Références!$B$8,Références!$D$8)+IF(T453=Références!$B$9,Références!$D$9)+IF(T453=Références!$B$10,Références!$D$10)+IF(T453=Références!$B$11,Références!$D$11)+IF(T453=Références!$B$12,Références!$D$12)+IF(T453=Références!$B$13,IF(S453>=1600,Références!$D$16,IF('Calculateur-Transport'!S453>=500,Références!$D$15,IF('Calculateur-Transport'!S453<=499,Références!$D$14)))))*S453","v":0}]
[null,null,null,null,null,null,null,null,null,null,null,null,null,null,null,null,null,null,null,null,{"$f":"(IF(T454=Références!$B$5,Références!$D$5)+IF(T454=Références!$B$6,Références!$D$6)+IF(T454=Références!$B$7,Références!$D$7)+IF(T454=Références!$B$8,Références!$D$8)+IF(T454=Références!$B$9,Références!$D$9)+IF(T454=Références!$B$10,Références!$D$10)+IF(T454=Références!$B$11,Références!$D$11)+IF(T454=Références!$B$12,Références!$D$12)+IF(T454=Références!$B$13,IF(S454>=1600,Références!$D$16,IF('Calculateur-Transport'!S454>=500,Références!$D$15,IF('Calculateur-Transport'!S454<=499,Références!$D$14)))))*S454","v":0}]
[null,null,null,null,null,null,null,null,null,null,null,null,null,null,null,null,null,null,null,null,{"$f":"(IF(T455=Références!$B$5,Références!$D$5)+IF(T455=Références!$B$6,Références!$D$6)+IF(T455=Références!$B$7,Références!$D$7)+IF(T455=Références!$B$8,Références!$D$8)+IF(T455=Références!$B$9,Références!$D$9)+IF(T455=Références!$B$10,Références!$D$10)+IF(T455=Références!$B$11,Références!$D$11)+IF(T455=Références!$B$12,Références!$D$12)+IF(T455=Références!$B$13,IF(S455>=1600,Références!$D$16,IF('Calculateur-Transport'!S455>=500,Références!$D$15,IF('Calculateur-Transport'!S455<=499,Références!$D$14)))))*S455","v":0}]
[null,null,null,null,null,null,null,null,null,null,null,null,null,null,null,null,null,null,null,null,{"$f":"(IF(T456=Références!$B$5,Références!$D$5)+IF(T456=Références!$B$6,Références!$D$6)+IF(T456=Références!$B$7,Références!$D$7)+IF(T456=Références!$B$8,Références!$D$8)+IF(T456=Références!$B$9,Références!$D$9)+IF(T456=Références!$B$10,Références!$D$10)+IF(T456=Références!$B$11,Références!$D$11)+IF(T456=Références!$B$12,Références!$D$12)+IF(T456=Références!$B$13,IF(S456>=1600,Références!$D$16,IF('Calculateur-Transport'!S456>=500,Références!$D$15,IF('Calculateur-Transport'!S456<=499,Références!$D$14)))))*S456","v":0}]
[null,null,null,null,null,null,null,null,null,null,null,null,null,null,null,null,null,null,null,null,{"$f":"(IF(T457=Références!$B$5,Références!$D$5)+IF(T457=Références!$B$6,Références!$D$6)+IF(T457=Références!$B$7,Références!$D$7)+IF(T457=Références!$B$8,Références!$D$8)+IF(T457=Références!$B$9,Références!$D$9)+IF(T457=Références!$B$10,Références!$D$10)+IF(T457=Références!$B$11,Références!$D$11)+IF(T457=Références!$B$12,Références!$D$12)+IF(T457=Références!$B$13,IF(S457>=1600,Références!$D$16,IF('Calculateur-Transport'!S457>=500,Références!$D$15,IF('Calculateur-Transport'!S457<=499,Références!$D$14)))))*S457","v":0}]
[null,null,null,null,null,null,null,null,null,null,null,null,null,null,null,null,null,null,null,null,{"$f":"(IF(T458=Références!$B$5,Références!$D$5)+IF(T458=Références!$B$6,Références!$D$6)+IF(T458=Références!$B$7,Références!$D$7)+IF(T458=Références!$B$8,Références!$D$8)+IF(T458=Références!$B$9,Références!$D$9)+IF(T458=Références!$B$10,Références!$D$10)+IF(T458=Références!$B$11,Références!$D$11)+IF(T458=Références!$B$12,Références!$D$12)+IF(T458=Références!$B$13,IF(S458>=1600,Références!$D$16,IF('Calculateur-Transport'!S458>=500,Références!$D$15,IF('Calculateur-Transport'!S458<=499,Références!$D$14)))))*S458","v":0}]
[null,null,null,null,null,null,null,null,null,null,null,null,null,null,null,null,null,null,null,null,{"$f":"(IF(T459=Références!$B$5,Références!$D$5)+IF(T459=Références!$B$6,Références!$D$6)+IF(T459=Références!$B$7,Références!$D$7)+IF(T459=Références!$B$8,Références!$D$8)+IF(T459=Références!$B$9,Références!$D$9)+IF(T459=Références!$B$10,Références!$D$10)+IF(T459=Références!$B$11,Références!$D$11)+IF(T459=Références!$B$12,Références!$D$12)+IF(T459=Références!$B$13,IF(S459>=1600,Références!$D$16,IF('Calculateur-Transport'!S459>=500,Références!$D$15,IF('Calculateur-Transport'!S459<=499,Références!$D$14)))))*S459","v":0}]
[null,null,null,null,null,null,null,null,null,null,null,null,null,null,null,null,null,null,null,null,{"$f":"(IF(T460=Références!$B$5,Références!$D$5)+IF(T460=Références!$B$6,Références!$D$6)+IF(T460=Références!$B$7,Références!$D$7)+IF(T460=Références!$B$8,Références!$D$8)+IF(T460=Références!$B$9,Références!$D$9)+IF(T460=Références!$B$10,Références!$D$10)+IF(T460=Références!$B$11,Références!$D$11)+IF(T460=Références!$B$12,Références!$D$12)+IF(T460=Références!$B$13,IF(S460>=1600,Références!$D$16,IF('Calculateur-Transport'!S460>=500,Références!$D$15,IF('Calculateur-Transport'!S460<=499,Références!$D$14)))))*S460","v":0}]
[null,null,null,null,null,null,null,null,null,null,null,null,null,null,null,null,null,null,null,null,{"$f":"(IF(T461=Références!$B$5,Références!$D$5)+IF(T461=Références!$B$6,Références!$D$6)+IF(T461=Références!$B$7,Références!$D$7)+IF(T461=Références!$B$8,Références!$D$8)+IF(T461=Références!$B$9,Références!$D$9)+IF(T461=Références!$B$10,Références!$D$10)+IF(T461=Références!$B$11,Références!$D$11)+IF(T461=Références!$B$12,Références!$D$12)+IF(T461=Références!$B$13,IF(S461>=1600,Références!$D$16,IF('Calculateur-Transport'!S461>=500,Références!$D$15,IF('Calculateur-Transport'!S461<=499,Références!$D$14)))))*S461","v":0}]
[null,null,null,null,null,null,null,null,null,null,null,null,null,null,null,null,null,null,null,null,{"$f":"(IF(T462=Références!$B$5,Références!$D$5)+IF(T462=Références!$B$6,Références!$D$6)+IF(T462=Références!$B$7,Références!$D$7)+IF(T462=Références!$B$8,Références!$D$8)+IF(T462=Références!$B$9,Références!$D$9)+IF(T462=Références!$B$10,Références!$D$10)+IF(T462=Références!$B$11,Références!$D$11)+IF(T462=Références!$B$12,Références!$D$12)+IF(T462=Références!$B$13,IF(S462>=1600,Références!$D$16,IF('Calculateur-Transport'!S462>=500,Références!$D$15,IF('Calculateur-Transport'!S462<=499,Références!$D$14)))))*S462","v":0}]
[null,null,null,null,null,null,null,null,null,null,null,null,null,null,null,null,null,null,null,null,{"$f":"(IF(T463=Références!$B$5,Références!$D$5)+IF(T463=Références!$B$6,Références!$D$6)+IF(T463=Références!$B$7,Références!$D$7)+IF(T463=Références!$B$8,Références!$D$8)+IF(T463=Références!$B$9,Références!$D$9)+IF(T463=Références!$B$10,Références!$D$10)+IF(T463=Références!$B$11,Références!$D$11)+IF(T463=Références!$B$12,Références!$D$12)+IF(T463=Références!$B$13,IF(S463>=1600,Références!$D$16,IF('Calculateur-Transport'!S463>=500,Références!$D$15,IF('Calculateur-Transport'!S463<=499,Références!$D$14)))))*S463","v":0}]
[null,null,null,null,null,null,null,null,null,null,null,null,null,null,null,null,null,null,null,null,{"$f":"(IF(T464=Références!$B$5,Références!$D$5)+IF(T464=Références!$B$6,Références!$D$6)+IF(T464=Références!$B$7,Références!$D$7)+IF(T464=Références!$B$8,Références!$D$8)+IF(T464=Références!$B$9,Références!$D$9)+IF(T464=Références!$B$10,Références!$D$10)+IF(T464=Références!$B$11,Références!$D$11)+IF(T464=Références!$B$12,Références!$D$12)+IF(T464=Références!$B$13,IF(S464>=1600,Références!$D$16,IF('Calculateur-Transport'!S464>=500,Références!$D$15,IF('Calculateur-Transport'!S464<=499,Références!$D$14)))))*S464","v":0}]
[null,null,null,null,null,null,null,null,null,null,null,null,null,null,null,null,null,null,null,null,{"$f":"(IF(T465=Références!$B$5,Références!$D$5)+IF(T465=Références!$B$6,Références!$D$6)+IF(T465=Références!$B$7,Références!$D$7)+IF(T465=Références!$B$8,Références!$D$8)+IF(T465=Références!$B$9,Références!$D$9)+IF(T465=Références!$B$10,Références!$D$10)+IF(T465=Références!$B$11,Références!$D$11)+IF(T465=Références!$B$12,Références!$D$12)+IF(T465=Références!$B$13,IF(S465>=1600,Références!$D$16,IF('Calculateur-Transport'!S465>=500,Références!$D$15,IF('Calculateur-Transport'!S465<=499,Références!$D$14)))))*S465","v":0}]
[null,null,null,null,null,null,null,null,null,null,null,null,null,null,null,null,null,null,null,null,{"$f":"(IF(T466=Références!$B$5,Références!$D$5)+IF(T466=Références!$B$6,Références!$D$6)+IF(T466=Références!$B$7,Références!$D$7)+IF(T466=Références!$B$8,Références!$D$8)+IF(T466=Références!$B$9,Références!$D$9)+IF(T466=Références!$B$10,Références!$D$10)+IF(T466=Références!$B$11,Références!$D$11)+IF(T466=Références!$B$12,Références!$D$12)+IF(T466=Références!$B$13,IF(S466>=1600,Références!$D$16,IF('Calculateur-Transport'!S466>=500,Références!$D$15,IF('Calculateur-Transport'!S466<=499,Références!$D$14)))))*S466","v":0}]
[null,null,null,null,null,null,null,null,null,null,null,null,null,null,null,null,null,null,null,null,{"$f":"(IF(T467=Références!$B$5,Références!$D$5)+IF(T467=Références!$B$6,Références!$D$6)+IF(T467=Références!$B$7,Références!$D$7)+IF(T467=Références!$B$8,Références!$D$8)+IF(T467=Références!$B$9,Références!$D$9)+IF(T467=Références!$B$10,Références!$D$10)+IF(T467=Références!$B$11,Références!$D$11)+IF(T467=Références!$B$12,Références!$D$12)+IF(T467=Références!$B$13,IF(S467>=1600,Références!$D$16,IF('Calculateur-Transport'!S467>=500,Références!$D$15,IF('Calculateur-Transport'!S467<=499,Références!$D$14)))))*S467","v":0}]
[null,null,null,null,null,null,null,null,null,null,null,null,null,null,null,null,null,null,null,null,{"$f":"(IF(T468=Références!$B$5,Références!$D$5)+IF(T468=Références!$B$6,Références!$D$6)+IF(T468=Références!$B$7,Références!$D$7)+IF(T468=Références!$B$8,Références!$D$8)+IF(T468=Références!$B$9,Références!$D$9)+IF(T468=Références!$B$10,Références!$D$10)+IF(T468=Références!$B$11,Références!$D$11)+IF(T468=Références!$B$12,Références!$D$12)+IF(T468=Références!$B$13,IF(S468>=1600,Références!$D$16,IF('Calculateur-Transport'!S468>=500,Références!$D$15,IF('Calculateur-Transport'!S468<=499,Références!$D$14)))))*S468","v":0}]
[null,null,null,null,null,null,null,null,null,null,null,null,null,null,null,null,null,null,null,null,{"$f":"(IF(T469=Références!$B$5,Références!$D$5)+IF(T469=Références!$B$6,Références!$D$6)+IF(T469=Références!$B$7,Références!$D$7)+IF(T469=Références!$B$8,Références!$D$8)+IF(T469=Références!$B$9,Références!$D$9)+IF(T469=Références!$B$10,Références!$D$10)+IF(T469=Références!$B$11,Références!$D$11)+IF(T469=Références!$B$12,Références!$D$12)+IF(T469=Références!$B$13,IF(S469>=1600,Références!$D$16,IF('Calculateur-Transport'!S469>=500,Références!$D$15,IF('Calculateur-Transport'!S469<=499,Références!$D$14)))))*S469","v":0}]
[null,null,null,null,null,null,null,null,null,null,null,null,null,null,null,null,null,null,null,null,{"$f":"(IF(T470=Références!$B$5,Références!$D$5)+IF(T470=Références!$B$6,Références!$D$6)+IF(T470=Références!$B$7,Références!$D$7)+IF(T470=Références!$B$8,Références!$D$8)+IF(T470=Références!$B$9,Références!$D$9)+IF(T470=Références!$B$10,Références!$D$10)+IF(T470=Références!$B$11,Références!$D$11)+IF(T470=Références!$B$12,Références!$D$12)+IF(T470=Références!$B$13,IF(S470>=1600,Références!$D$16,IF('Calculateur-Transport'!S470>=500,Références!$D$15,IF('Calculateur-Transport'!S470<=499,Références!$D$14)))))*S470","v":0}]
[null,null,null,null,null,null,null,null,null,null,null,null,null,null,null,null,null,null,null,null,{"$f":"(IF(T471=Références!$B$5,Références!$D$5)+IF(T471=Références!$B$6,Références!$D$6)+IF(T471=Références!$B$7,Références!$D$7)+IF(T471=Références!$B$8,Références!$D$8)+IF(T471=Références!$B$9,Références!$D$9)+IF(T471=Références!$B$10,Références!$D$10)+IF(T471=Références!$B$11,Références!$D$11)+IF(T471=Références!$B$12,Références!$D$12)+IF(T471=Références!$B$13,IF(S471>=1600,Références!$D$16,IF('Calculateur-Transport'!S471>=500,Références!$D$15,IF('Calculateur-Transport'!S471<=499,Références!$D$14)))))*S471","v":0}]
[null,null,null,null,null,null,null,null,null,null,null,null,null,null,null,null,null,null,null,null,{"$f":"(IF(T472=Références!$B$5,Références!$D$5)+IF(T472=Références!$B$6,Références!$D$6)+IF(T472=Références!$B$7,Références!$D$7)+IF(T472=Références!$B$8,Références!$D$8)+IF(T472=Références!$B$9,Références!$D$9)+IF(T472=Références!$B$10,Références!$D$10)+IF(T472=Références!$B$11,Références!$D$11)+IF(T472=Références!$B$12,Références!$D$12)+IF(T472=Références!$B$13,IF(S472>=1600,Références!$D$16,IF('Calculateur-Transport'!S472>=500,Références!$D$15,IF('Calculateur-Transport'!S472<=499,Références!$D$14)))))*S472","v":0}]
[null,null,null,null,null,null,null,null,null,null,null,null,null,null,null,null,null,null,null,null,{"$f":"(IF(T473=Références!$B$5,Références!$D$5)+IF(T473=Références!$B$6,Références!$D$6)+IF(T473=Références!$B$7,Références!$D$7)+IF(T473=Références!$B$8,Références!$D$8)+IF(T473=Références!$B$9,Références!$D$9)+IF(T473=Références!$B$10,Références!$D$10)+IF(T473=Références!$B$11,Références!$D$11)+IF(T473=Références!$B$12,Références!$D$12)+IF(T473=Références!$B$13,IF(S473>=1600,Références!$D$16,IF('Calculateur-Transport'!S473>=500,Références!$D$15,IF('Calculateur-Transport'!S473<=499,Références!$D$14)))))*S473","v":0}]
[null,null,null,null,null,null,null,null,null,null,null,null,null,null,null,null,null,null,null,null,{"$f":"(IF(T474=Références!$B$5,Références!$D$5)+IF(T474=Références!$B$6,Références!$D$6)+IF(T474=Références!$B$7,Références!$D$7)+IF(T474=Références!$B$8,Références!$D$8)+IF(T474=Références!$B$9,Références!$D$9)+IF(T474=Références!$B$10,Références!$D$10)+IF(T474=Références!$B$11,Références!$D$11)+IF(T474=Références!$B$12,Références!$D$12)+IF(T474=Références!$B$13,IF(S474>=1600,Références!$D$16,IF('Calculateur-Transport'!S474>=500,Références!$D$15,IF('Calculateur-Transport'!S474<=499,Références!$D$14)))))*S474","v":0}]
[null,null,null,null,null,null,null,null,null,null,null,null,null,null,null,null,null,null,null,null,{"$f":"(IF(T475=Références!$B$5,Références!$D$5)+IF(T475=Références!$B$6,Références!$D$6)+IF(T475=Références!$B$7,Références!$D$7)+IF(T475=Références!$B$8,Références!$D$8)+IF(T475=Références!$B$9,Références!$D$9)+IF(T475=Références!$B$10,Références!$D$10)+IF(T475=Références!$B$11,Références!$D$11)+IF(T475=Références!$B$12,Références!$D$12)+IF(T475=Références!$B$13,IF(S475>=1600,Références!$D$16,IF('Calculateur-Transport'!S475>=500,Références!$D$15,IF('Calculateur-Transport'!S475<=499,Références!$D$14)))))*S475","v":0}]
[null,null,null,null,null,null,null,null,null,null,null,null,null,null,null,null,null,null,null,null,{"$f":"(IF(T476=Références!$B$5,Références!$D$5)+IF(T476=Références!$B$6,Références!$D$6)+IF(T476=Références!$B$7,Références!$D$7)+IF(T476=Références!$B$8,Références!$D$8)+IF(T476=Références!$B$9,Références!$D$9)+IF(T476=Références!$B$10,Références!$D$10)+IF(T476=Références!$B$11,Références!$D$11)+IF(T476=Références!$B$12,Références!$D$12)+IF(T476=Références!$B$13,IF(S476>=1600,Références!$D$16,IF('Calculateur-Transport'!S476>=500,Références!$D$15,IF('Calculateur-Transport'!S476<=499,Références!$D$14)))))*S476","v":0}]
[null,null,null,null,null,null,null,null,null,null,null,null,null,null,null,null,null,null,null,null,{"$f":"(IF(T477=Références!$B$5,Références!$D$5)+IF(T477=Références!$B$6,Références!$D$6)+IF(T477=Références!$B$7,Références!$D$7)+IF(T477=Références!$B$8,Références!$D$8)+IF(T477=Références!$B$9,Références!$D$9)+IF(T477=Références!$B$10,Références!$D$10)+IF(T477=Références!$B$11,Références!$D$11)+IF(T477=Références!$B$12,Références!$D$12)+IF(T477=Références!$B$13,IF(S477>=1600,Références!$D$16,IF('Calculateur-Transport'!S477>=500,Références!$D$15,IF('Calculateur-Transport'!S477<=499,Références!$D$14)))))*S477","v":0}]
[null,null,null,null,null,null,null,null,null,null,null,null,null,null,null,null,null,null,null,null,{"$f":"(IF(T478=Références!$B$5,Références!$D$5)+IF(T478=Références!$B$6,Références!$D$6)+IF(T478=Références!$B$7,Références!$D$7)+IF(T478=Références!$B$8,Références!$D$8)+IF(T478=Références!$B$9,Références!$D$9)+IF(T478=Références!$B$10,Références!$D$10)+IF(T478=Références!$B$11,Références!$D$11)+IF(T478=Références!$B$12,Références!$D$12)+IF(T478=Références!$B$13,IF(S478>=1600,Références!$D$16,IF('Calculateur-Transport'!S478>=500,Références!$D$15,IF('Calculateur-Transport'!S478<=499,Références!$D$14)))))*S478","v":0}]
[null,null,null,null,null,null,null,null,null,null,null,null,null,null,null,null,null,null,null,null,{"$f":"(IF(T479=Références!$B$5,Références!$D$5)+IF(T479=Références!$B$6,Références!$D$6)+IF(T479=Références!$B$7,Références!$D$7)+IF(T479=Références!$B$8,Références!$D$8)+IF(T479=Références!$B$9,Références!$D$9)+IF(T479=Références!$B$10,Références!$D$10)+IF(T479=Références!$B$11,Références!$D$11)+IF(T479=Références!$B$12,Références!$D$12)+IF(T479=Références!$B$13,IF(S479>=1600,Références!$D$16,IF('Calculateur-Transport'!S479>=500,Références!$D$15,IF('Calculateur-Transport'!S479<=499,Références!$D$14)))))*S479","v":0}]
[null,null,null,null,null,null,null,null,null,null,null,null,null,null,null,null,null,null,null,null,{"$f":"(IF(T480=Références!$B$5,Références!$D$5)+IF(T480=Références!$B$6,Références!$D$6)+IF(T480=Références!$B$7,Références!$D$7)+IF(T480=Références!$B$8,Références!$D$8)+IF(T480=Références!$B$9,Références!$D$9)+IF(T480=Références!$B$10,Références!$D$10)+IF(T480=Références!$B$11,Références!$D$11)+IF(T480=Références!$B$12,Références!$D$12)+IF(T480=Références!$B$13,IF(S480>=1600,Références!$D$16,IF('Calculateur-Transport'!S480>=500,Références!$D$15,IF('Calculateur-Transport'!S480<=499,Références!$D$14)))))*S480","v":0}]
[null,null,null,null,null,null,null,null,null,null,null,null,null,null,null,null,null,null,null,null,{"$f":"(IF(T481=Références!$B$5,Références!$D$5)+IF(T481=Références!$B$6,Références!$D$6)+IF(T481=Références!$B$7,Références!$D$7)+IF(T481=Références!$B$8,Références!$D$8)+IF(T481=Références!$B$9,Références!$D$9)+IF(T481=Références!$B$10,Références!$D$10)+IF(T481=Références!$B$11,Références!$D$11)+IF(T481=Références!$B$12,Références!$D$12)+IF(T481=Références!$B$13,IF(S481>=1600,Références!$D$16,IF('Calculateur-Transport'!S481>=500,Références!$D$15,IF('Calculateur-Transport'!S481<=499,Références!$D$14)))))*S481","v":0}]
[null,null,null,null,null,null,null,null,null,null,null,null,null,null,null,null,null,null,null,null,{"$f":"(IF(T482=Références!$B$5,Références!$D$5)+IF(T482=Références!$B$6,Références!$D$6)+IF(T482=Références!$B$7,Références!$D$7)+IF(T482=Références!$B$8,Références!$D$8)+IF(T482=Références!$B$9,Références!$D$9)+IF(T482=Références!$B$10,Références!$D$10)+IF(T482=Références!$B$11,Références!$D$11)+IF(T482=Références!$B$12,Références!$D$12)+IF(T482=Références!$B$13,IF(S482>=1600,Références!$D$16,IF('Calculateur-Transport'!S482>=500,Références!$D$15,IF('Calculateur-Transport'!S482<=499,Références!$D$14)))))*S482","v":0}]
[null,null,null,null,null,null,null,null,null,null,null,null,null,null,null,null,null,null,null,null,{"$f":"(IF(T483=Références!$B$5,Références!$D$5)+IF(T483=Références!$B$6,Références!$D$6)+IF(T483=Références!$B$7,Références!$D$7)+IF(T483=Références!$B$8,Références!$D$8)+IF(T483=Références!$B$9,Références!$D$9)+IF(T483=Références!$B$10,Références!$D$10)+IF(T483=Références!$B$11,Références!$D$11)+IF(T483=Références!$B$12,Références!$D$12)+IF(T483=Références!$B$13,IF(S483>=1600,Références!$D$16,IF('Calculateur-Transport'!S483>=500,Références!$D$15,IF('Calculateur-Transport'!S483<=499,Références!$D$14)))))*S483","v":0}]
[null,null,null,null,null,null,null,null,null,null,null,null,null,null,null,null,null,null,null,null,{"$f":"(IF(T484=Références!$B$5,Références!$D$5)+IF(T484=Références!$B$6,Références!$D$6)+IF(T484=Références!$B$7,Références!$D$7)+IF(T484=Références!$B$8,Références!$D$8)+IF(T484=Références!$B$9,Références!$D$9)+IF(T484=Références!$B$10,Références!$D$10)+IF(T484=Références!$B$11,Références!$D$11)+IF(T484=Références!$B$12,Références!$D$12)+IF(T484=Références!$B$13,IF(S484>=1600,Références!$D$16,IF('Calculateur-Transport'!S484>=500,Références!$D$15,IF('Calculateur-Transport'!S484<=499,Références!$D$14)))))*S484","v":0}]
[null,null,null,null,null,null,null,null,null,null,null,null,null,null,null,null,null,null,null,null,{"$f":"(IF(T485=Références!$B$5,Références!$D$5)+IF(T485=Références!$B$6,Références!$D$6)+IF(T485=Références!$B$7,Références!$D$7)+IF(T485=Références!$B$8,Références!$D$8)+IF(T485=Références!$B$9,Références!$D$9)+IF(T485=Références!$B$10,Références!$D$10)+IF(T485=Références!$B$11,Références!$D$11)+IF(T485=Références!$B$12,Références!$D$12)+IF(T485=Références!$B$13,IF(S485>=1600,Références!$D$16,IF('Calculateur-Transport'!S485>=500,Références!$D$15,IF('Calculateur-Transport'!S485<=499,Références!$D$14)))))*S485","v":0}]
[null,null,null,null,null,null,null,null,null,null,null,null,null,null,null,null,null,null,null,null,{"$f":"(IF(T486=Références!$B$5,Références!$D$5)+IF(T486=Références!$B$6,Références!$D$6)+IF(T486=Références!$B$7,Références!$D$7)+IF(T486=Références!$B$8,Références!$D$8)+IF(T486=Références!$B$9,Références!$D$9)+IF(T486=Références!$B$10,Références!$D$10)+IF(T486=Références!$B$11,Références!$D$11)+IF(T486=Références!$B$12,Références!$D$12)+IF(T486=Références!$B$13,IF(S486>=1600,Références!$D$16,IF('Calculateur-Transport'!S486>=500,Références!$D$15,IF('Calculateur-Transport'!S486<=499,Références!$D$14)))))*S486","v":0}]
[null,null,null,null,null,null,null,null,null,null,null,null,null,null,null,null,null,null,null,null,{"$f":"(IF(T487=Références!$B$5,Références!$D$5)+IF(T487=Références!$B$6,Références!$D$6)+IF(T487=Références!$B$7,Références!$D$7)+IF(T487=Références!$B$8,Références!$D$8)+IF(T487=Références!$B$9,Références!$D$9)+IF(T487=Références!$B$10,Références!$D$10)+IF(T487=Références!$B$11,Références!$D$11)+IF(T487=Références!$B$12,Références!$D$12)+IF(T487=Références!$B$13,IF(S487>=1600,Références!$D$16,IF('Calculateur-Transport'!S487>=500,Références!$D$15,IF('Calculateur-Transport'!S487<=499,Références!$D$14)))))*S487","v":0}]
[null,null,null,null,null,null,null,null,null,null,null,null,null,null,null,null,null,null,null,null,{"$f":"(IF(T488=Références!$B$5,Références!$D$5)+IF(T488=Références!$B$6,Références!$D$6)+IF(T488=Références!$B$7,Références!$D$7)+IF(T488=Références!$B$8,Références!$D$8)+IF(T488=Références!$B$9,Références!$D$9)+IF(T488=Références!$B$10,Références!$D$10)+IF(T488=Références!$B$11,Références!$D$11)+IF(T488=Références!$B$12,Références!$D$12)+IF(T488=Références!$B$13,IF(S488>=1600,Références!$D$16,IF('Calculateur-Transport'!S488>=500,Références!$D$15,IF('Calculateur-Transport'!S488<=499,Références!$D$14)))))*S488","v":0}]
[null,null,null,null,null,null,null,null,null,null,null,null,null,null,null,null,null,null,null,null,{"$f":"(IF(T489=Références!$B$5,Références!$D$5)+IF(T489=Références!$B$6,Références!$D$6)+IF(T489=Références!$B$7,Références!$D$7)+IF(T489=Références!$B$8,Références!$D$8)+IF(T489=Références!$B$9,Références!$D$9)+IF(T489=Références!$B$10,Références!$D$10)+IF(T489=Références!$B$11,Références!$D$11)+IF(T489=Références!$B$12,Références!$D$12)+IF(T489=Références!$B$13,IF(S489>=1600,Références!$D$16,IF('Calculateur-Transport'!S489>=500,Références!$D$15,IF('Calculateur-Transport'!S489<=499,Références!$D$14)))))*S489","v":0}]
[null,null,null,null,null,null,null,null,null,null,null,null,null,null,null,null,null,null,null,null,{"$f":"(IF(T490=Références!$B$5,Références!$D$5)+IF(T490=Références!$B$6,Références!$D$6)+IF(T490=Références!$B$7,Références!$D$7)+IF(T490=Références!$B$8,Références!$D$8)+IF(T490=Références!$B$9,Références!$D$9)+IF(T490=Références!$B$10,Références!$D$10)+IF(T490=Références!$B$11,Références!$D$11)+IF(T490=Références!$B$12,Références!$D$12)+IF(T490=Références!$B$13,IF(S490>=1600,Références!$D$16,IF('Calculateur-Transport'!S490>=500,Références!$D$15,IF('Calculateur-Transport'!S490<=499,Références!$D$14)))))*S490","v":0}]
[null,null,null,null,null,null,null,null,null,null,null,null,null,null,null,null,null,null,null,null,{"$f":"(IF(T491=Références!$B$5,Références!$D$5)+IF(T491=Références!$B$6,Références!$D$6)+IF(T491=Références!$B$7,Références!$D$7)+IF(T491=Références!$B$8,Références!$D$8)+IF(T491=Références!$B$9,Références!$D$9)+IF(T491=Références!$B$10,Références!$D$10)+IF(T491=Références!$B$11,Références!$D$11)+IF(T491=Références!$B$12,Références!$D$12)+IF(T491=Références!$B$13,IF(S491>=1600,Références!$D$16,IF('Calculateur-Transport'!S491>=500,Références!$D$15,IF('Calculateur-Transport'!S491<=499,Références!$D$14)))))*S491","v":0}]
[null,null,null,null,null,null,null,null,null,null,null,null,null,null,null,null,null,null,null,null,{"$f":"(IF(T492=Références!$B$5,Références!$D$5)+IF(T492=Références!$B$6,Références!$D$6)+IF(T492=Références!$B$7,Références!$D$7)+IF(T492=Références!$B$8,Références!$D$8)+IF(T492=Références!$B$9,Références!$D$9)+IF(T492=Références!$B$10,Références!$D$10)+IF(T492=Références!$B$11,Références!$D$11)+IF(T492=Références!$B$12,Références!$D$12)+IF(T492=Références!$B$13,IF(S492>=1600,Références!$D$16,IF('Calculateur-Transport'!S492>=500,Références!$D$15,IF('Calculateur-Transport'!S492<=499,Références!$D$14)))))*S492","v":0}]
[null,null,null,null,null,null,null,null,null,null,null,null,null,null,null,null,null,null,null,null,{"$f":"(IF(T493=Références!$B$5,Références!$D$5)+IF(T493=Références!$B$6,Références!$D$6)+IF(T493=Références!$B$7,Références!$D$7)+IF(T493=Références!$B$8,Références!$D$8)+IF(T493=Références!$B$9,Références!$D$9)+IF(T493=Références!$B$10,Références!$D$10)+IF(T493=Références!$B$11,Références!$D$11)+IF(T493=Références!$B$12,Références!$D$12)+IF(T493=Références!$B$13,IF(S493>=1600,Références!$D$16,IF('Calculateur-Transport'!S493>=500,Références!$D$15,IF('Calculateur-Transport'!S493<=499,Références!$D$14)))))*S493","v":0}]
[null,null,null,null,null,null,null,null,null,null,null,null,null,null,null,null,null,null,null,null,{"$f":"(IF(T494=Références!$B$5,Références!$D$5)+IF(T494=Références!$B$6,Références!$D$6)+IF(T494=Références!$B$7,Références!$D$7)+IF(T494=Références!$B$8,Références!$D$8)+IF(T494=Références!$B$9,Références!$D$9)+IF(T494=Références!$B$10,Références!$D$10)+IF(T494=Références!$B$11,Références!$D$11)+IF(T494=Références!$B$12,Références!$D$12)+IF(T494=Références!$B$13,IF(S494>=1600,Références!$D$16,IF('Calculateur-Transport'!S494>=500,Références!$D$15,IF('Calculateur-Transport'!S494<=499,Références!$D$14)))))*S494","v":0}]
[null,null,null,null,null,null,null,null,null,null,null,null,null,null,null,null,null,null,null,null,{"$f":"(IF(T495=Références!$B$5,Références!$D$5)+IF(T495=Références!$B$6,Références!$D$6)+IF(T495=Références!$B$7,Références!$D$7)+IF(T495=Références!$B$8,Références!$D$8)+IF(T495=Références!$B$9,Références!$D$9)+IF(T495=Références!$B$10,Références!$D$10)+IF(T495=Références!$B$11,Références!$D$11)+IF(T495=Références!$B$12,Références!$D$12)+IF(T495=Références!$B$13,IF(S495>=1600,Références!$D$16,IF('Calculateur-Transport'!S495>=500,Références!$D$15,IF('Calculateur-Transport'!S495<=499,Références!$D$14)))))*S495","v":0}]
[null,null,null,null,null,null,null,null,null,null,null,null,null,null,null,null,null,null,null,null,{"$f":"(IF(T496=Références!$B$5,Références!$D$5)+IF(T496=Références!$B$6,Références!$D$6)+IF(T496=Références!$B$7,Références!$D$7)+IF(T496=Références!$B$8,Références!$D$8)+IF(T496=Références!$B$9,Références!$D$9)+IF(T496=Références!$B$10,Références!$D$10)+IF(T496=Références!$B$11,Références!$D$11)+IF(T496=Références!$B$12,Références!$D$12)+IF(T496=Références!$B$13,IF(S496>=1600,Références!$D$16,IF('Calculateur-Transport'!S496>=500,Références!$D$15,IF('Calculateur-Transport'!S496<=499,Références!$D$14)))))*S496","v":0}]
[null,null,null,null,null,null,null,null,null,null,null,null,null,null,null,null,null,null,null,null,{"$f":"(IF(T497=Références!$B$5,Références!$D$5)+IF(T497=Références!$B$6,Références!$D$6)+IF(T497=Références!$B$7,Références!$D$7)+IF(T497=Références!$B$8,Références!$D$8)+IF(T497=Références!$B$9,Références!$D$9)+IF(T497=Références!$B$10,Références!$D$10)+IF(T497=Références!$B$11,Références!$D$11)+IF(T497=Références!$B$12,Références!$D$12)+IF(T497=Références!$B$13,IF(S497>=1600,Références!$D$16,IF('Calculateur-Transport'!S497>=500,Références!$D$15,IF('Calculateur-Transport'!S497<=499,Références!$D$14)))))*S497","v":0}]
[null,null,null,null,null,null,null,null,null,null,null,null,null,null,null,null,null,null,null,null,{"$f":"(IF(T498=Références!$B$5,Références!$D$5)+IF(T498=Références!$B$6,Références!$D$6)+IF(T498=Références!$B$7,Références!$D$7)+IF(T498=Références!$B$8,Références!$D$8)+IF(T498=Références!$B$9,Références!$D$9)+IF(T498=Références!$B$10,Références!$D$10)+IF(T498=Références!$B$11,Références!$D$11)+IF(T498=Références!$B$12,Références!$D$12)+IF(T498=Références!$B$13,IF(S498>=1600,Références!$D$16,IF('Calculateur-Transport'!S498>=500,Références!$D$15,IF('Calculateur-Transport'!S498<=499,Références!$D$14)))))*S498","v":0}]
[null,null,null,null,null,null,null,null,null,null,null,null,null,null,null,null,null,null,null,null,{"$f":"(IF(T499=Références!$B$5,Références!$D$5)+IF(T499=Références!$B$6,Références!$D$6)+IF(T499=Références!$B$7,Références!$D$7)+IF(T499=Références!$B$8,Références!$D$8)+IF(T499=Références!$B$9,Références!$D$9)+IF(T499=Références!$B$10,Références!$D$10)+IF(T499=Références!$B$11,Références!$D$11)+IF(T499=Références!$B$12,Références!$D$12)+IF(T499=Références!$B$13,IF(S499>=1600,Références!$D$16,IF('Calculateur-Transport'!S499>=500,Références!$D$15,IF('Calculateur-Transport'!S499<=499,Références!$D$14)))))*S499","v":0}]
[null,null,null,null,null,null,null,null,null,null,null,null,null,null,null,null,null,null,null,null,{"$f":"(IF(T500=Références!$B$5,Références!$D$5)+IF(T500=Références!$B$6,Références!$D$6)+IF(T500=Références!$B$7,Références!$D$7)+IF(T500=Références!$B$8,Références!$D$8)+IF(T500=Références!$B$9,Références!$D$9)+IF(T500=Références!$B$10,Références!$D$10)+IF(T500=Références!$B$11,Références!$D$11)+IF(T500=Références!$B$12,Références!$D$12)+IF(T500=Références!$B$13,IF(S500>=1600,Références!$D$16,IF('Calculateur-Transport'!S500>=500,Références!$D$15,IF('Calculateur-Transport'!S500<=499,Références!$D$14)))))*S500","v":0}]
[null,null,null,null,null,null,null,null,null,null,null,null,null,null,null,null,null,null,null,null,{"$f":"(IF(T501=Références!$B$5,Références!$D$5)+IF(T501=Références!$B$6,Références!$D$6)+IF(T501=Références!$B$7,Références!$D$7)+IF(T501=Références!$B$8,Références!$D$8)+IF(T501=Références!$B$9,Références!$D$9)+IF(T501=Références!$B$10,Références!$D$10)+IF(T501=Références!$B$11,Références!$D$11)+IF(T501=Références!$B$12,Références!$D$12)+IF(T501=Références!$B$13,IF(S501>=1600,Références!$D$16,IF('Calculateur-Transport'!S501>=500,Références!$D$15,IF('Calculateur-Transport'!S501<=499,Références!$D$14)))))*S501","v":0}]
[null,null,null,null,null,null,null,null,null,null,null,null,null,null,null,null,null,null,null,null,{"$f":"(IF(T502=Références!$B$5,Références!$D$5)+IF(T502=Références!$B$6,Références!$D$6)+IF(T502=Références!$B$7,Références!$D$7)+IF(T502=Références!$B$8,Références!$D$8)+IF(T502=Références!$B$9,Références!$D$9)+IF(T502=Références!$B$10,Références!$D$10)+IF(T502=Références!$B$11,Références!$D$11)+IF(T502=Références!$B$12,Références!$D$12)+IF(T502=Références!$B$13,IF(S502>=1600,Références!$D$16,IF('Calculateur-Transport'!S502>=500,Références!$D$15,IF('Calculateur-Transport'!S502<=499,Références!$D$14)))))*S502","v":0}]
[null,null,null,null,null,null,null,null,null,null,null,null,null,null,null,null,null,null,null,null,{"$f":"(IF(T503=Références!$B$5,Références!$D$5)+IF(T503=Références!$B$6,Références!$D$6)+IF(T503=Références!$B$7,Références!$D$7)+IF(T503=Références!$B$8,Références!$D$8)+IF(T503=Références!$B$9,Références!$D$9)+IF(T503=Références!$B$10,Références!$D$10)+IF(T503=Références!$B$11,Références!$D$11)+IF(T503=Références!$B$12,Références!$D$12)+IF(T503=Références!$B$13,IF(S503>=1600,Références!$D$16,IF('Calculateur-Transport'!S503>=500,Références!$D$15,IF('Calculateur-Transport'!S503<=499,Références!$D$14)))))*S503","v":0}]
[null,null,null,null,null,null,null,null,null,null,null,null,null,null,null,null,null,null,null,null,{"$f":"(IF(T504=Références!$B$5,Références!$D$5)+IF(T504=Références!$B$6,Références!$D$6)+IF(T504=Références!$B$7,Références!$D$7)+IF(T504=Références!$B$8,Références!$D$8)+IF(T504=Références!$B$9,Références!$D$9)+IF(T504=Références!$B$10,Références!$D$10)+IF(T504=Références!$B$11,Références!$D$11)+IF(T504=Références!$B$12,Références!$D$12)+IF(T504=Références!$B$13,IF(S504>=1600,Références!$D$16,IF('Calculateur-Transport'!S504>=500,Références!$D$15,IF('Calculateur-Transport'!S504<=499,Références!$D$14)))))*S504","v":0}]
[null,null,null,null,null,null,null,null,null,null,null,null,null,null,null,null,null,null,null,null,{"$f":"(IF(T505=Références!$B$5,Références!$D$5)+IF(T505=Références!$B$6,Références!$D$6)+IF(T505=Références!$B$7,Références!$D$7)+IF(T505=Références!$B$8,Références!$D$8)+IF(T505=Références!$B$9,Références!$D$9)+IF(T505=Références!$B$10,Références!$D$10)+IF(T505=Références!$B$11,Références!$D$11)+IF(T505=Références!$B$12,Références!$D$12)+IF(T505=Références!$B$13,IF(S505>=1600,Références!$D$16,IF('Calculateur-Transport'!S505>=500,Références!$D$15,IF('Calculateur-Transport'!S505<=499,Références!$D$14)))))*S505","v":0}]
[null,null,null,null,null,null,null,null,null,null,null,null,null,null,null,null,null,null,null,null,{"$f":"(IF(T506=Références!$B$5,Références!$D$5)+IF(T506=Références!$B$6,Références!$D$6)+IF(T506=Références!$B$7,Références!$D$7)+IF(T506=Références!$B$8,Références!$D$8)+IF(T506=Références!$B$9,Références!$D$9)+IF(T506=Références!$B$10,Références!$D$10)+IF(T506=Références!$B$11,Références!$D$11)+IF(T506=Références!$B$12,Références!$D$12)+IF(T506=Références!$B$13,IF(S506>=1600,Références!$D$16,IF('Calculateur-Transport'!S506>=500,Références!$D$15,IF('Calculateur-Transport'!S506<=499,Références!$D$14)))))*S506","v":0}]
[null,null,null,null,null,null,null,null,null,null,null,null,null,null,null,null,null,null,null,null,{"$f":"(IF(T507=Références!$B$5,Références!$D$5)+IF(T507=Références!$B$6,Références!$D$6)+IF(T507=Références!$B$7,Références!$D$7)+IF(T507=Références!$B$8,Références!$D$8)+IF(T507=Références!$B$9,Références!$D$9)+IF(T507=Références!$B$10,Références!$D$10)+IF(T507=Références!$B$11,Références!$D$11)+IF(T507=Références!$B$12,Références!$D$12)+IF(T507=Références!$B$13,IF(S507>=1600,Références!$D$16,IF('Calculateur-Transport'!S507>=500,Références!$D$15,IF('Calculateur-Transport'!S507<=499,Références!$D$14)))))*S507","v":0}]
[null,null,null,null,null,null,null,null,null,null,null,null,null,null,null,null,null,null,null,null,{"$f":"(IF(T508=Références!$B$5,Références!$D$5)+IF(T508=Références!$B$6,Références!$D$6)+IF(T508=Références!$B$7,Références!$D$7)+IF(T508=Références!$B$8,Références!$D$8)+IF(T508=Références!$B$9,Références!$D$9)+IF(T508=Références!$B$10,Références!$D$10)+IF(T508=Références!$B$11,Références!$D$11)+IF(T508=Références!$B$12,Références!$D$12)+IF(T508=Références!$B$13,IF(S508>=1600,Références!$D$16,IF('Calculateur-Transport'!S508>=500,Références!$D$15,IF('Calculateur-Transport'!S508<=499,Références!$D$14)))))*S508","v":0}]
[null,null,null,null,null,null,null,null,null,null,null,null,null,null,null,null,null,null,null,null,{"$f":"(IF(T509=Références!$B$5,Références!$D$5)+IF(T509=Références!$B$6,Références!$D$6)+IF(T509=Références!$B$7,Références!$D$7)+IF(T509=Références!$B$8,Références!$D$8)+IF(T509=Références!$B$9,Références!$D$9)+IF(T509=Références!$B$10,Références!$D$10)+IF(T509=Références!$B$11,Références!$D$11)+IF(T509=Références!$B$12,Références!$D$12)+IF(T509=Références!$B$13,IF(S509>=1600,Références!$D$16,IF('Calculateur-Transport'!S509>=500,Références!$D$15,IF('Calculateur-Transport'!S509<=499,Références!$D$14)))))*S509","v":0}]
[null,null,null,null,null,null,null,null,null,null,null,null,null,null,null,null,null,null,null,null,{"$f":"(IF(T510=Références!$B$5,Références!$D$5)+IF(T510=Références!$B$6,Références!$D$6)+IF(T510=Références!$B$7,Références!$D$7)+IF(T510=Références!$B$8,Références!$D$8)+IF(T510=Références!$B$9,Références!$D$9)+IF(T510=Références!$B$10,Références!$D$10)+IF(T510=Références!$B$11,Références!$D$11)+IF(T510=Références!$B$12,Références!$D$12)+IF(T510=Références!$B$13,IF(S510>=1600,Références!$D$16,IF('Calculateur-Transport'!S510>=500,Références!$D$15,IF('Calculateur-Transport'!S510<=499,Références!$D$14)))))*S510","v":0}]
[null,null,null,null,null,null,null,null,null,null,null,null,null,null,null,null,null,null,null,null,{"$f":"(IF(T511=Références!$B$5,Références!$D$5)+IF(T511=Références!$B$6,Références!$D$6)+IF(T511=Références!$B$7,Références!$D$7)+IF(T511=Références!$B$8,Références!$D$8)+IF(T511=Références!$B$9,Références!$D$9)+IF(T511=Références!$B$10,Références!$D$10)+IF(T511=Références!$B$11,Références!$D$11)+IF(T511=Références!$B$12,Références!$D$12)+IF(T511=Références!$B$13,IF(S511>=1600,Références!$D$16,IF('Calculateur-Transport'!S511>=500,Références!$D$15,IF('Calculateur-Transport'!S511<=499,Références!$D$14)))))*S511","v":0}]
[null,null,null,null,null,null,null,null,null,null,null,null,null,null,null,null,null,null,null,null,{"$f":"(IF(T512=Références!$B$5,Références!$D$5)+IF(T512=Références!$B$6,Références!$D$6)+IF(T512=Références!$B$7,Références!$D$7)+IF(T512=Références!$B$8,Références!$D$8)+IF(T512=Références!$B$9,Références!$D$9)+IF(T512=Références!$B$10,Références!$D$10)+IF(T512=Références!$B$11,Références!$D$11)+IF(T512=Références!$B$12,Références!$D$12)+IF(T512=Références!$B$13,IF(S512>=1600,Références!$D$16,IF('Calculateur-Transport'!S512>=500,Références!$D$15,IF('Calculateur-Transport'!S512<=499,Références!$D$14)))))*S512","v":0}]
[null,null,null,null,null,null,null,null,null,null,null,null,null,null,null,null,null,null,null,null,{"$f":"(IF(T513=Références!$B$5,Références!$D$5)+IF(T513=Références!$B$6,Références!$D$6)+IF(T513=Références!$B$7,Références!$D$7)+IF(T513=Références!$B$8,Références!$D$8)+IF(T513=Références!$B$9,Références!$D$9)+IF(T513=Références!$B$10,Références!$D$10)+IF(T513=Références!$B$11,Références!$D$11)+IF(T513=Références!$B$12,Références!$D$12)+IF(T513=Références!$B$13,IF(S513>=1600,Références!$D$16,IF('Calculateur-Transport'!S513>=500,Références!$D$15,IF('Calculateur-Transport'!S513<=499,Références!$D$14)))))*S513","v":0}]
[null,null,null,null,null,null,null,null,null,null,null,null,null,null,null,null,null,null,null,null,{"$f":"(IF(T514=Références!$B$5,Références!$D$5)+IF(T514=Références!$B$6,Références!$D$6)+IF(T514=Références!$B$7,Références!$D$7)+IF(T514=Références!$B$8,Références!$D$8)+IF(T514=Références!$B$9,Références!$D$9)+IF(T514=Références!$B$10,Références!$D$10)+IF(T514=Références!$B$11,Références!$D$11)+IF(T514=Références!$B$12,Références!$D$12)+IF(T514=Références!$B$13,IF(S514>=1600,Références!$D$16,IF('Calculateur-Transport'!S514>=500,Références!$D$15,IF('Calculateur-Transport'!S514<=499,Références!$D$14)))))*S514","v":0}]
[null,null,null,null,null,null,null,null,null,null,null,null,null,null,null,null,null,null,null,null,{"$f":"(IF(T515=Références!$B$5,Références!$D$5)+IF(T515=Références!$B$6,Références!$D$6)+IF(T515=Références!$B$7,Références!$D$7)+IF(T515=Références!$B$8,Références!$D$8)+IF(T515=Références!$B$9,Références!$D$9)+IF(T515=Références!$B$10,Références!$D$10)+IF(T515=Références!$B$11,Références!$D$11)+IF(T515=Références!$B$12,Références!$D$12)+IF(T515=Références!$B$13,IF(S515>=1600,Références!$D$16,IF('Calculateur-Transport'!S515>=500,Références!$D$15,IF('Calculateur-Transport'!S515<=499,Références!$D$14)))))*S515","v":0}]
[null,null,null,null,null,null,null,null,null,null,null,null,null,null,null,null,null,null,null,null,{"$f":"(IF(T516=Références!$B$5,Références!$D$5)+IF(T516=Références!$B$6,Références!$D$6)+IF(T516=Références!$B$7,Références!$D$7)+IF(T516=Références!$B$8,Références!$D$8)+IF(T516=Références!$B$9,Références!$D$9)+IF(T516=Références!$B$10,Références!$D$10)+IF(T516=Références!$B$11,Références!$D$11)+IF(T516=Références!$B$12,Références!$D$12)+IF(T516=Références!$B$13,IF(S516>=1600,Références!$D$16,IF('Calculateur-Transport'!S516>=500,Références!$D$15,IF('Calculateur-Transport'!S516<=499,Références!$D$14)))))*S516","v":0}]
[null,null,null,null,null,null,null,null,null,null,null,null,null,null,null,null,null,null,null,null,{"$f":"(IF(T517=Références!$B$5,Références!$D$5)+IF(T517=Références!$B$6,Références!$D$6)+IF(T517=Références!$B$7,Références!$D$7)+IF(T517=Références!$B$8,Références!$D$8)+IF(T517=Références!$B$9,Références!$D$9)+IF(T517=Références!$B$10,Références!$D$10)+IF(T517=Références!$B$11,Références!$D$11)+IF(T517=Références!$B$12,Références!$D$12)+IF(T517=Références!$B$13,IF(S517>=1600,Références!$D$16,IF('Calculateur-Transport'!S517>=500,Références!$D$15,IF('Calculateur-Transport'!S517<=499,Références!$D$14)))))*S517","v":0}]
[null,null,null,null,null,null,null,null,null,null,null,null,null,null,null,null,null,null,null,null,{"$f":"(IF(T518=Références!$B$5,Références!$D$5)+IF(T518=Références!$B$6,Références!$D$6)+IF(T518=Références!$B$7,Références!$D$7)+IF(T518=Références!$B$8,Références!$D$8)+IF(T518=Références!$B$9,Références!$D$9)+IF(T518=Références!$B$10,Références!$D$10)+IF(T518=Références!$B$11,Références!$D$11)+IF(T518=Références!$B$12,Références!$D$12)+IF(T518=Références!$B$13,IF(S518>=1600,Références!$D$16,IF('Calculateur-Transport'!S518>=500,Références!$D$15,IF('Calculateur-Transport'!S518<=499,Références!$D$14)))))*S518","v":0}]
[null,null,null,null,null,null,null,null,null,null,null,null,null,null,null,null,null,null,null,null,{"$f":"(IF(T519=Références!$B$5,Références!$D$5)+IF(T519=Références!$B$6,Références!$D$6)+IF(T519=Références!$B$7,Références!$D$7)+IF(T519=Références!$B$8,Références!$D$8)+IF(T519=Références!$B$9,Références!$D$9)+IF(T519=Références!$B$10,Références!$D$10)+IF(T519=Références!$B$11,Références!$D$11)+IF(T519=Références!$B$12,Références!$D$12)+IF(T519=Références!$B$13,IF(S519>=1600,Références!$D$16,IF('Calculateur-Transport'!S519>=500,Références!$D$15,IF('Calculateur-Transport'!S519<=499,Références!$D$14)))))*S519","v":0}]
[null,null,null,null,null,null,null,null,null,null,null,null,null,null,null,null,null,null,null,null,{"$f":"(IF(T520=Références!$B$5,Références!$D$5)+IF(T520=Références!$B$6,Références!$D$6)+IF(T520=Références!$B$7,Références!$D$7)+IF(T520=Références!$B$8,Références!$D$8)+IF(T520=Références!$B$9,Références!$D$9)+IF(T520=Références!$B$10,Références!$D$10)+IF(T520=Références!$B$11,Références!$D$11)+IF(T520=Références!$B$12,Références!$D$12)+IF(T520=Références!$B$13,IF(S520>=1600,Références!$D$16,IF('Calculateur-Transport'!S520>=500,Références!$D$15,IF('Calculateur-Transport'!S520<=499,Références!$D$14)))))*S520","v":0}]
[null,null,null,null,null,null,null,null,null,null,null,null,null,null,null,null,null,null,null,null,{"$f":"(IF(T521=Références!$B$5,Références!$D$5)+IF(T521=Références!$B$6,Références!$D$6)+IF(T521=Références!$B$7,Références!$D$7)+IF(T521=Références!$B$8,Références!$D$8)+IF(T521=Références!$B$9,Références!$D$9)+IF(T521=Références!$B$10,Références!$D$10)+IF(T521=Références!$B$11,Références!$D$11)+IF(T521=Références!$B$12,Références!$D$12)+IF(T521=Références!$B$13,IF(S521>=1600,Références!$D$16,IF('Calculateur-Transport'!S521>=500,Références!$D$15,IF('Calculateur-Transport'!S521<=499,Références!$D$14)))))*S521","v":0}]
[null,null,null,null,null,null,null,null,null,null,null,null,null,null,null,null,null,null,null,null,{"$f":"(IF(T522=Références!$B$5,Références!$D$5)+IF(T522=Références!$B$6,Références!$D$6)+IF(T522=Références!$B$7,Références!$D$7)+IF(T522=Références!$B$8,Références!$D$8)+IF(T522=Références!$B$9,Références!$D$9)+IF(T522=Références!$B$10,Références!$D$10)+IF(T522=Références!$B$11,Références!$D$11)+IF(T522=Références!$B$12,Références!$D$12)+IF(T522=Références!$B$13,IF(S522>=1600,Références!$D$16,IF('Calculateur-Transport'!S522>=500,Références!$D$15,IF('Calculateur-Transport'!S522<=499,Références!$D$14)))))*S522","v":0}]
[null,null,null,null,null,null,null,null,null,null,null,null,null,null,null,null,null,null,null,null,{"$f":"(IF(T523=Références!$B$5,Références!$D$5)+IF(T523=Références!$B$6,Références!$D$6)+IF(T523=Références!$B$7,Références!$D$7)+IF(T523=Références!$B$8,Références!$D$8)+IF(T523=Références!$B$9,Références!$D$9)+IF(T523=Références!$B$10,Références!$D$10)+IF(T523=Références!$B$11,Références!$D$11)+IF(T523=Références!$B$12,Références!$D$12)+IF(T523=Références!$B$13,IF(S523>=1600,Références!$D$16,IF('Calculateur-Transport'!S523>=500,Références!$D$15,IF('Calculateur-Transport'!S523<=499,Références!$D$14)))))*S523","v":0}]
[null,null,null,null,null,null,null,null,null,null,null,null,null,null,null,null,null,null,null,null,{"$f":"(IF(T524=Références!$B$5,Références!$D$5)+IF(T524=Références!$B$6,Références!$D$6)+IF(T524=Références!$B$7,Références!$D$7)+IF(T524=Références!$B$8,Références!$D$8)+IF(T524=Références!$B$9,Références!$D$9)+IF(T524=Références!$B$10,Références!$D$10)+IF(T524=Références!$B$11,Références!$D$11)+IF(T524=Références!$B$12,Références!$D$12)+IF(T524=Références!$B$13,IF(S524>=1600,Références!$D$16,IF('Calculateur-Transport'!S524>=500,Références!$D$15,IF('Calculateur-Transport'!S524<=499,Références!$D$14)))))*S524","v":0}]
[null,null,null,null,null,null,null,null,null,null,null,null,null,null,null,null,null,null,null,null,{"$f":"(IF(T525=Références!$B$5,Références!$D$5)+IF(T525=Références!$B$6,Références!$D$6)+IF(T525=Références!$B$7,Références!$D$7)+IF(T525=Références!$B$8,Références!$D$8)+IF(T525=Références!$B$9,Références!$D$9)+IF(T525=Références!$B$10,Références!$D$10)+IF(T525=Références!$B$11,Références!$D$11)+IF(T525=Références!$B$12,Références!$D$12)+IF(T525=Références!$B$13,IF(S525>=1600,Références!$D$16,IF('Calculateur-Transport'!S525>=500,Références!$D$15,IF('Calculateur-Transport'!S525<=499,Références!$D$14)))))*S525","v":0}]
[null,null,null,null,null,null,null,null,null,null,null,null,null,null,null,null,null,null,null,null,{"$f":"(IF(T526=Références!$B$5,Références!$D$5)+IF(T526=Références!$B$6,Références!$D$6)+IF(T526=Références!$B$7,Références!$D$7)+IF(T526=Références!$B$8,Références!$D$8)+IF(T526=Références!$B$9,Références!$D$9)+IF(T526=Références!$B$10,Références!$D$10)+IF(T526=Références!$B$11,Références!$D$11)+IF(T526=Références!$B$12,Références!$D$12)+IF(T526=Références!$B$13,IF(S526>=1600,Références!$D$16,IF('Calculateur-Transport'!S526>=500,Références!$D$15,IF('Calculateur-Transport'!S526<=499,Références!$D$14)))))*S526","v":0}]
[null,null,null,null,null,null,null,null,null,null,null,null,null,null,null,null,null,null,null,null,{"$f":"(IF(T527=Références!$B$5,Références!$D$5)+IF(T527=Références!$B$6,Références!$D$6)+IF(T527=Références!$B$7,Références!$D$7)+IF(T527=Références!$B$8,Références!$D$8)+IF(T527=Références!$B$9,Références!$D$9)+IF(T527=Références!$B$10,Références!$D$10)+IF(T527=Références!$B$11,Références!$D$11)+IF(T527=Références!$B$12,Références!$D$12)+IF(T527=Références!$B$13,IF(S527>=1600,Références!$D$16,IF('Calculateur-Transport'!S527>=500,Références!$D$15,IF('Calculateur-Transport'!S527<=499,Références!$D$14)))))*S527","v":0}]
[null,null,null,null,null,null,null,null,null,null,null,null,null,null,null,null,null,null,null,null,{"$f":"(IF(T528=Références!$B$5,Références!$D$5)+IF(T528=Références!$B$6,Références!$D$6)+IF(T528=Références!$B$7,Références!$D$7)+IF(T528=Références!$B$8,Références!$D$8)+IF(T528=Références!$B$9,Références!$D$9)+IF(T528=Références!$B$10,Références!$D$10)+IF(T528=Références!$B$11,Références!$D$11)+IF(T528=Références!$B$12,Références!$D$12)+IF(T528=Références!$B$13,IF(S528>=1600,Références!$D$16,IF('Calculateur-Transport'!S528>=500,Références!$D$15,IF('Calculateur-Transport'!S528<=499,Références!$D$14)))))*S528","v":0}]
[null,null,null,null,null,null,null,null,null,null,null,null,null,null,null,null,null,null,null,null,{"$f":"(IF(T529=Références!$B$5,Références!$D$5)+IF(T529=Références!$B$6,Références!$D$6)+IF(T529=Références!$B$7,Références!$D$7)+IF(T529=Références!$B$8,Références!$D$8)+IF(T529=Références!$B$9,Références!$D$9)+IF(T529=Références!$B$10,Références!$D$10)+IF(T529=Références!$B$11,Références!$D$11)+IF(T529=Références!$B$12,Références!$D$12)+IF(T529=Références!$B$13,IF(S529>=1600,Références!$D$16,IF('Calculateur-Transport'!S529>=500,Références!$D$15,IF('Calculateur-Transport'!S529<=499,Références!$D$14)))))*S529","v":0}]
[null,null,null,null,null,null,null,null,null,null,null,null,null,null,null,null,null,null,null,null,{"$f":"(IF(T530=Références!$B$5,Références!$D$5)+IF(T530=Références!$B$6,Références!$D$6)+IF(T530=Références!$B$7,Références!$D$7)+IF(T530=Références!$B$8,Références!$D$8)+IF(T530=Références!$B$9,Références!$D$9)+IF(T530=Références!$B$10,Références!$D$10)+IF(T530=Références!$B$11,Références!$D$11)+IF(T530=Références!$B$12,Références!$D$12)+IF(T530=Références!$B$13,IF(S530>=1600,Références!$D$16,IF('Calculateur-Transport'!S530>=500,Références!$D$15,IF('Calculateur-Transport'!S530<=499,Références!$D$14)))))*S530","v":0}]
[null,null,null,null,null,null,null,null,null,null,null,null,null,null,null,null,null,null,null,null,{"$f":"(IF(T531=Références!$B$5,Références!$D$5)+IF(T531=Références!$B$6,Références!$D$6)+IF(T531=Références!$B$7,Références!$D$7)+IF(T531=Références!$B$8,Références!$D$8)+IF(T531=Références!$B$9,Références!$D$9)+IF(T531=Références!$B$10,Références!$D$10)+IF(T531=Références!$B$11,Références!$D$11)+IF(T531=Références!$B$12,Références!$D$12)+IF(T531=Références!$B$13,IF(S531>=1600,Références!$D$16,IF('Calculateur-Transport'!S531>=500,Références!$D$15,IF('Calculateur-Transport'!S531<=499,Références!$D$14)))))*S531","v":0}]
[null,null,null,null,null,null,null,null,null,null,null,null,null,null,null,null,null,null,null,null,{"$f":"(IF(T532=Références!$B$5,Références!$D$5)+IF(T532=Références!$B$6,Références!$D$6)+IF(T532=Références!$B$7,Références!$D$7)+IF(T532=Références!$B$8,Références!$D$8)+IF(T532=Références!$B$9,Références!$D$9)+IF(T532=Références!$B$10,Références!$D$10)+IF(T532=Références!$B$11,Références!$D$11)+IF(T532=Références!$B$12,Références!$D$12)+IF(T532=Références!$B$13,IF(S532>=1600,Références!$D$16,IF('Calculateur-Transport'!S532>=500,Références!$D$15,IF('Calculateur-Transport'!S532<=499,Références!$D$14)))))*S532","v":0}]
[null,null,null,null,null,null,null,null,null,null,null,null,null,null,null,null,null,null,null,null,{"$f":"(IF(T533=Références!$B$5,Références!$D$5)+IF(T533=Références!$B$6,Références!$D$6)+IF(T533=Références!$B$7,Références!$D$7)+IF(T533=Références!$B$8,Références!$D$8)+IF(T533=Références!$B$9,Références!$D$9)+IF(T533=Références!$B$10,Références!$D$10)+IF(T533=Références!$B$11,Références!$D$11)+IF(T533=Références!$B$12,Références!$D$12)+IF(T533=Références!$B$13,IF(S533>=1600,Références!$D$16,IF('Calculateur-Transport'!S533>=500,Références!$D$15,IF('Calculateur-Transport'!S533<=499,Références!$D$14)))))*S533","v":0}]
[null,null,null,null,null,null,null,null,null,null,null,null,null,null,null,null,null,null,null,null,{"$f":"(IF(T534=Références!$B$5,Références!$D$5)+IF(T534=Références!$B$6,Références!$D$6)+IF(T534=Références!$B$7,Références!$D$7)+IF(T534=Références!$B$8,Références!$D$8)+IF(T534=Références!$B$9,Références!$D$9)+IF(T534=Références!$B$10,Références!$D$10)+IF(T534=Références!$B$11,Références!$D$11)+IF(T534=Références!$B$12,Références!$D$12)+IF(T534=Références!$B$13,IF(S534>=1600,Références!$D$16,IF('Calculateur-Transport'!S534>=500,Références!$D$15,IF('Calculateur-Transport'!S534<=499,Références!$D$14)))))*S534","v":0}]
[null,null,null,null,null,null,null,null,null,null,null,null,null,null,null,null,null,null,null,null,{"$f":"(IF(T535=Références!$B$5,Références!$D$5)+IF(T535=Références!$B$6,Références!$D$6)+IF(T535=Références!$B$7,Références!$D$7)+IF(T535=Références!$B$8,Références!$D$8)+IF(T535=Références!$B$9,Références!$D$9)+IF(T535=Références!$B$10,Références!$D$10)+IF(T535=Références!$B$11,Références!$D$11)+IF(T535=Références!$B$12,Références!$D$12)+IF(T535=Références!$B$13,IF(S535>=1600,Références!$D$16,IF('Calculateur-Transport'!S535>=500,Références!$D$15,IF('Calculateur-Transport'!S535<=499,Références!$D$14)))))*S535","v":0}]
[null,null,null,null,null,null,null,null,null,null,null,null,null,null,null,null,null,null,null,null,{"$f":"(IF(T536=Références!$B$5,Références!$D$5)+IF(T536=Références!$B$6,Références!$D$6)+IF(T536=Références!$B$7,Références!$D$7)+IF(T536=Références!$B$8,Références!$D$8)+IF(T536=Références!$B$9,Références!$D$9)+IF(T536=Références!$B$10,Références!$D$10)+IF(T536=Références!$B$11,Références!$D$11)+IF(T536=Références!$B$12,Références!$D$12)+IF(T536=Références!$B$13,IF(S536>=1600,Références!$D$16,IF('Calculateur-Transport'!S536>=500,Références!$D$15,IF('Calculateur-Transport'!S536<=499,Références!$D$14)))))*S536","v":0}]
[null,null,null,null,null,null,null,null,null,null,null,null,null,null,null,null,null,null,null,null,{"$f":"(IF(T537=Références!$B$5,Références!$D$5)+IF(T537=Références!$B$6,Références!$D$6)+IF(T537=Références!$B$7,Références!$D$7)+IF(T537=Références!$B$8,Références!$D$8)+IF(T537=Références!$B$9,Références!$D$9)+IF(T537=Références!$B$10,Références!$D$10)+IF(T537=Références!$B$11,Références!$D$11)+IF(T537=Références!$B$12,Références!$D$12)+IF(T537=Références!$B$13,IF(S537>=1600,Références!$D$16,IF('Calculateur-Transport'!S537>=500,Références!$D$15,IF('Calculateur-Transport'!S537<=499,Références!$D$14)))))*S537","v":0}]
[null,null,null,null,null,null,null,null,null,null,null,null,null,null,null,null,null,null,null,null,{"$f":"(IF(T538=Références!$B$5,Références!$D$5)+IF(T538=Références!$B$6,Références!$D$6)+IF(T538=Références!$B$7,Références!$D$7)+IF(T538=Références!$B$8,Références!$D$8)+IF(T538=Références!$B$9,Références!$D$9)+IF(T538=Références!$B$10,Références!$D$10)+IF(T538=Références!$B$11,Références!$D$11)+IF(T538=Références!$B$12,Références!$D$12)+IF(T538=Références!$B$13,IF(S538>=1600,Références!$D$16,IF('Calculateur-Transport'!S538>=500,Références!$D$15,IF('Calculateur-Transport'!S538<=499,Références!$D$14)))))*S538","v":0}]
[null,null,null,null,null,null,null,null,null,null,null,null,null,null,null,null,null,null,null,null,{"$f":"(IF(T539=Références!$B$5,Références!$D$5)+IF(T539=Références!$B$6,Références!$D$6)+IF(T539=Références!$B$7,Références!$D$7)+IF(T539=Références!$B$8,Références!$D$8)+IF(T539=Références!$B$9,Références!$D$9)+IF(T539=Références!$B$10,Références!$D$10)+IF(T539=Références!$B$11,Références!$D$11)+IF(T539=Références!$B$12,Références!$D$12)+IF(T539=Références!$B$13,IF(S539>=1600,Références!$D$16,IF('Calculateur-Transport'!S539>=500,Références!$D$15,IF('Calculateur-Transport'!S539<=499,Références!$D$14)))))*S539","v":0}]
[null,null,null,null,null,null,null,null,null,null,null,null,null,null,null,null,null,null,null,null,{"$f":"(IF(T540=Références!$B$5,Références!$D$5)+IF(T540=Références!$B$6,Références!$D$6)+IF(T540=Références!$B$7,Références!$D$7)+IF(T540=Références!$B$8,Références!$D$8)+IF(T540=Références!$B$9,Références!$D$9)+IF(T540=Références!$B$10,Références!$D$10)+IF(T540=Références!$B$11,Références!$D$11)+IF(T540=Références!$B$12,Références!$D$12)+IF(T540=Références!$B$13,IF(S540>=1600,Références!$D$16,IF('Calculateur-Transport'!S540>=500,Références!$D$15,IF('Calculateur-Transport'!S540<=499,Références!$D$14)))))*S540","v":0}]
[null,null,null,null,null,null,null,null,null,null,null,null,null,null,null,null,null,null,null,null,{"$f":"(IF(T541=Références!$B$5,Références!$D$5)+IF(T541=Références!$B$6,Références!$D$6)+IF(T541=Références!$B$7,Références!$D$7)+IF(T541=Références!$B$8,Références!$D$8)+IF(T541=Références!$B$9,Références!$D$9)+IF(T541=Références!$B$10,Références!$D$10)+IF(T541=Références!$B$11,Références!$D$11)+IF(T541=Références!$B$12,Références!$D$12)+IF(T541=Références!$B$13,IF(S541>=1600,Références!$D$16,IF('Calculateur-Transport'!S541>=500,Références!$D$15,IF('Calculateur-Transport'!S541<=499,Références!$D$14)))))*S541","v":0}]
[null,null,null,null,null,null,null,null,null,null,null,null,null,null,null,null,null,null,null,null,{"$f":"(IF(T542=Références!$B$5,Références!$D$5)+IF(T542=Références!$B$6,Références!$D$6)+IF(T542=Références!$B$7,Références!$D$7)+IF(T542=Références!$B$8,Références!$D$8)+IF(T542=Références!$B$9,Références!$D$9)+IF(T542=Références!$B$10,Références!$D$10)+IF(T542=Références!$B$11,Références!$D$11)+IF(T542=Références!$B$12,Références!$D$12)+IF(T542=Références!$B$13,IF(S542>=1600,Références!$D$16,IF('Calculateur-Transport'!S542>=500,Références!$D$15,IF('Calculateur-Transport'!S542<=499,Références!$D$14)))))*S542","v":0}]
[null,null,null,null,null,null,null,null,null,null,null,null,null,null,null,null,null,null,null,null,{"$f":"(IF(T543=Références!$B$5,Références!$D$5)+IF(T543=Références!$B$6,Références!$D$6)+IF(T543=Références!$B$7,Références!$D$7)+IF(T543=Références!$B$8,Références!$D$8)+IF(T543=Références!$B$9,Références!$D$9)+IF(T543=Références!$B$10,Références!$D$10)+IF(T543=Références!$B$11,Références!$D$11)+IF(T543=Références!$B$12,Références!$D$12)+IF(T543=Références!$B$13,IF(S543>=1600,Références!$D$16,IF('Calculateur-Transport'!S543>=500,Références!$D$15,IF('Calculateur-Transport'!S543<=499,Références!$D$14)))))*S543","v":0}]
[null,null,null,null,null,null,null,null,null,null,null,null,null,null,null,null,null,null,null,null,{"$f":"(IF(T544=Références!$B$5,Références!$D$5)+IF(T544=Références!$B$6,Références!$D$6)+IF(T544=Références!$B$7,Références!$D$7)+IF(T544=Références!$B$8,Références!$D$8)+IF(T544=Références!$B$9,Références!$D$9)+IF(T544=Références!$B$10,Références!$D$10)+IF(T544=Références!$B$11,Références!$D$11)+IF(T544=Références!$B$12,Références!$D$12)+IF(T544=Références!$B$13,IF(S544>=1600,Références!$D$16,IF('Calculateur-Transport'!S544>=500,Références!$D$15,IF('Calculateur-Transport'!S544<=499,Références!$D$14)))))*S544","v":0}]
[null,null,null,null,null,null,null,null,null,null,null,null,null,null,null,null,null,null,null,null,{"$f":"(IF(T545=Références!$B$5,Références!$D$5)+IF(T545=Références!$B$6,Références!$D$6)+IF(T545=Références!$B$7,Références!$D$7)+IF(T545=Références!$B$8,Références!$D$8)+IF(T545=Références!$B$9,Références!$D$9)+IF(T545=Références!$B$10,Références!$D$10)+IF(T545=Références!$B$11,Références!$D$11)+IF(T545=Références!$B$12,Références!$D$12)+IF(T545=Références!$B$13,IF(S545>=1600,Références!$D$16,IF('Calculateur-Transport'!S545>=500,Références!$D$15,IF('Calculateur-Transport'!S545<=499,Références!$D$14)))))*S545","v":0}]
[null,null,null,null,null,null,null,null,null,null,null,null,null,null,null,null,null,null,null,null,{"$f":"(IF(T546=Références!$B$5,Références!$D$5)+IF(T546=Références!$B$6,Références!$D$6)+IF(T546=Références!$B$7,Références!$D$7)+IF(T546=Références!$B$8,Références!$D$8)+IF(T546=Références!$B$9,Références!$D$9)+IF(T546=Références!$B$10,Références!$D$10)+IF(T546=Références!$B$11,Références!$D$11)+IF(T546=Références!$B$12,Références!$D$12)+IF(T546=Références!$B$13,IF(S546>=1600,Références!$D$16,IF('Calculateur-Transport'!S546>=500,Références!$D$15,IF('Calculateur-Transport'!S546<=499,Références!$D$14)))))*S546","v":0}]
[null,null,null,null,null,null,null,null,null,null,null,null,null,null,null,null,null,null,null,null,{"$f":"(IF(T547=Références!$B$5,Références!$D$5)+IF(T547=Références!$B$6,Références!$D$6)+IF(T547=Références!$B$7,Références!$D$7)+IF(T547=Références!$B$8,Références!$D$8)+IF(T547=Références!$B$9,Références!$D$9)+IF(T547=Références!$B$10,Références!$D$10)+IF(T547=Références!$B$11,Références!$D$11)+IF(T547=Références!$B$12,Références!$D$12)+IF(T547=Références!$B$13,IF(S547>=1600,Références!$D$16,IF('Calculateur-Transport'!S547>=500,Références!$D$15,IF('Calculateur-Transport'!S547<=499,Références!$D$14)))))*S547","v":0}]
[null,null,null,null,null,null,null,null,null,null,null,null,null,null,null,null,null,null,null,null,{"$f":"(IF(T548=Références!$B$5,Références!$D$5)+IF(T548=Références!$B$6,Références!$D$6)+IF(T548=Références!$B$7,Références!$D$7)+IF(T548=Références!$B$8,Références!$D$8)+IF(T548=Références!$B$9,Références!$D$9)+IF(T548=Références!$B$10,Références!$D$10)+IF(T548=Références!$B$11,Références!$D$11)+IF(T548=Références!$B$12,Références!$D$12)+IF(T548=Références!$B$13,IF(S548>=1600,Références!$D$16,IF('Calculateur-Transport'!S548>=500,Références!$D$15,IF('Calculateur-Transport'!S548<=499,Références!$D$14)))))*S548","v":0}]
[null,null,null,null,null,null,null,null,null,null,null,null,null,null,null,null,null,null,null,null,{"$f":"(IF(T549=Références!$B$5,Références!$D$5)+IF(T549=Références!$B$6,Références!$D$6)+IF(T549=Références!$B$7,Références!$D$7)+IF(T549=Références!$B$8,Références!$D$8)+IF(T549=Références!$B$9,Références!$D$9)+IF(T549=Références!$B$10,Références!$D$10)+IF(T549=Références!$B$11,Références!$D$11)+IF(T549=Références!$B$12,Références!$D$12)+IF(T549=Références!$B$13,IF(S549>=1600,Références!$D$16,IF('Calculateur-Transport'!S549>=500,Références!$D$15,IF('Calculateur-Transport'!S549<=499,Références!$D$14)))))*S549","v":0}]
[null,null,null,null,null,null,null,null,null,null,null,null,null,null,null,null,null,null,null,null,{"$f":"(IF(T550=Références!$B$5,Références!$D$5)+IF(T550=Références!$B$6,Références!$D$6)+IF(T550=Références!$B$7,Références!$D$7)+IF(T550=Références!$B$8,Références!$D$8)+IF(T550=Références!$B$9,Références!$D$9)+IF(T550=Références!$B$10,Références!$D$10)+IF(T550=Références!$B$11,Références!$D$11)+IF(T550=Références!$B$12,Références!$D$12)+IF(T550=Références!$B$13,IF(S550>=1600,Références!$D$16,IF('Calculateur-Transport'!S550>=500,Références!$D$15,IF('Calculateur-Transport'!S550<=499,Références!$D$14)))))*S550","v":0}]
[null,null,null,null,null,null,null,null,null,null,null,null,null,null,null,null,null,null,null,null,{"$f":"(IF(T551=Références!$B$5,Références!$D$5)+IF(T551=Références!$B$6,Références!$D$6)+IF(T551=Références!$B$7,Références!$D$7)+IF(T551=Références!$B$8,Références!$D$8)+IF(T551=Références!$B$9,Références!$D$9)+IF(T551=Références!$B$10,Références!$D$10)+IF(T551=Références!$B$11,Références!$D$11)+IF(T551=Références!$B$12,Références!$D$12)+IF(T551=Références!$B$13,IF(S551>=1600,Références!$D$16,IF('Calculateur-Transport'!S551>=500,Références!$D$15,IF('Calculateur-Transport'!S551<=499,Références!$D$14)))))*S551","v":0}]
[null,null,null,null,null,null,null,null,null,null,null,null,null,null,null,null,null,null,null,null,{"$f":"(IF(T552=Références!$B$5,Références!$D$5)+IF(T552=Références!$B$6,Références!$D$6)+IF(T552=Références!$B$7,Références!$D$7)+IF(T552=Références!$B$8,Références!$D$8)+IF(T552=Références!$B$9,Références!$D$9)+IF(T552=Références!$B$10,Références!$D$10)+IF(T552=Références!$B$11,Références!$D$11)+IF(T552=Références!$B$12,Références!$D$12)+IF(T552=Références!$B$13,IF(S552>=1600,Références!$D$16,IF('Calculateur-Transport'!S552>=500,Références!$D$15,IF('Calculateur-Transport'!S552<=499,Références!$D$14)))))*S552","v":0}]
[null,null,null,null,null,null,null,null,null,null,null,null,null,null,null,null,null,null,null,null,{"$f":"(IF(T553=Références!$B$5,Références!$D$5)+IF(T553=Références!$B$6,Références!$D$6)+IF(T553=Références!$B$7,Références!$D$7)+IF(T553=Références!$B$8,Références!$D$8)+IF(T553=Références!$B$9,Références!$D$9)+IF(T553=Références!$B$10,Références!$D$10)+IF(T553=Références!$B$11,Références!$D$11)+IF(T553=Références!$B$12,Références!$D$12)+IF(T553=Références!$B$13,IF(S553>=1600,Références!$D$16,IF('Calculateur-Transport'!S553>=500,Références!$D$15,IF('Calculateur-Transport'!S553<=499,Références!$D$14)))))*S553","v":0}]
[null,null,null,null,null,null,null,null,null,null,null,null,null,null,null,null,null,null,null,null,{"$f":"(IF(T554=Références!$B$5,Références!$D$5)+IF(T554=Références!$B$6,Références!$D$6)+IF(T554=Références!$B$7,Références!$D$7)+IF(T554=Références!$B$8,Références!$D$8)+IF(T554=Références!$B$9,Références!$D$9)+IF(T554=Références!$B$10,Références!$D$10)+IF(T554=Références!$B$11,Références!$D$11)+IF(T554=Références!$B$12,Références!$D$12)+IF(T554=Références!$B$13,IF(S554>=1600,Références!$D$16,IF('Calculateur-Transport'!S554>=500,Références!$D$15,IF('Calculateur-Transport'!S554<=499,Références!$D$14)))))*S554","v":0}]
[null,null,null,null,null,null,null,null,null,null,null,null,null,null,null,null,null,null,null,null,{"$f":"(IF(T555=Références!$B$5,Références!$D$5)+IF(T555=Références!$B$6,Références!$D$6)+IF(T555=Références!$B$7,Références!$D$7)+IF(T555=Références!$B$8,Références!$D$8)+IF(T555=Références!$B$9,Références!$D$9)+IF(T555=Références!$B$10,Références!$D$10)+IF(T555=Références!$B$11,Références!$D$11)+IF(T555=Références!$B$12,Références!$D$12)+IF(T555=Références!$B$13,IF(S555>=1600,Références!$D$16,IF('Calculateur-Transport'!S555>=500,Références!$D$15,IF('Calculateur-Transport'!S555<=499,Références!$D$14)))))*S555","v":0}]
[null,null,null,null,null,null,null,null,null,null,null,null,null,null,null,null,null,null,null,null,{"$f":"(IF(T556=Références!$B$5,Références!$D$5)+IF(T556=Références!$B$6,Références!$D$6)+IF(T556=Références!$B$7,Références!$D$7)+IF(T556=Références!$B$8,Références!$D$8)+IF(T556=Références!$B$9,Références!$D$9)+IF(T556=Références!$B$10,Références!$D$10)+IF(T556=Références!$B$11,Références!$D$11)+IF(T556=Références!$B$12,Références!$D$12)+IF(T556=Références!$B$13,IF(S556>=1600,Références!$D$16,IF('Calculateur-Transport'!S556>=500,Références!$D$15,IF('Calculateur-Transport'!S556<=499,Références!$D$14)))))*S556","v":0}]
[null,null,null,null,null,null,null,null,null,null,null,null,null,null,null,null,null,null,null,null,{"$f":"(IF(T557=Références!$B$5,Références!$D$5)+IF(T557=Références!$B$6,Références!$D$6)+IF(T557=Références!$B$7,Références!$D$7)+IF(T557=Références!$B$8,Références!$D$8)+IF(T557=Références!$B$9,Références!$D$9)+IF(T557=Références!$B$10,Références!$D$10)+IF(T557=Références!$B$11,Références!$D$11)+IF(T557=Références!$B$12,Références!$D$12)+IF(T557=Références!$B$13,IF(S557>=1600,Références!$D$16,IF('Calculateur-Transport'!S557>=500,Références!$D$15,IF('Calculateur-Transport'!S557<=499,Références!$D$14)))))*S557","v":0}]
[null,null,null,null,null,null,null,null,null,null,null,null,null,null,null,null,null,null,null,null,{"$f":"(IF(T558=Références!$B$5,Références!$D$5)+IF(T558=Références!$B$6,Références!$D$6)+IF(T558=Références!$B$7,Références!$D$7)+IF(T558=Références!$B$8,Références!$D$8)+IF(T558=Références!$B$9,Références!$D$9)+IF(T558=Références!$B$10,Références!$D$10)+IF(T558=Références!$B$11,Références!$D$11)+IF(T558=Références!$B$12,Références!$D$12)+IF(T558=Références!$B$13,IF(S558>=1600,Références!$D$16,IF('Calculateur-Transport'!S558>=500,Références!$D$15,IF('Calculateur-Transport'!S558<=499,Références!$D$14)))))*S558","v":0}]
[null,null,null,null,null,null,null,null,null,null,null,null,null,null,null,null,null,null,null,null,{"$f":"(IF(T559=Références!$B$5,Références!$D$5)+IF(T559=Références!$B$6,Références!$D$6)+IF(T559=Références!$B$7,Références!$D$7)+IF(T559=Références!$B$8,Références!$D$8)+IF(T559=Références!$B$9,Références!$D$9)+IF(T559=Références!$B$10,Références!$D$10)+IF(T559=Références!$B$11,Références!$D$11)+IF(T559=Références!$B$12,Références!$D$12)+IF(T559=Références!$B$13,IF(S559>=1600,Références!$D$16,IF('Calculateur-Transport'!S559>=500,Références!$D$15,IF('Calculateur-Transport'!S559<=499,Références!$D$14)))))*S559","v":0}]
[null,null,null,null,null,null,null,null,null,null,null,null,null,null,null,null,null,null,null,null,{"$f":"(IF(T560=Références!$B$5,Références!$D$5)+IF(T560=Références!$B$6,Références!$D$6)+IF(T560=Références!$B$7,Références!$D$7)+IF(T560=Références!$B$8,Références!$D$8)+IF(T560=Références!$B$9,Références!$D$9)+IF(T560=Références!$B$10,Références!$D$10)+IF(T560=Références!$B$11,Références!$D$11)+IF(T560=Références!$B$12,Références!$D$12)+IF(T560=Références!$B$13,IF(S560>=1600,Références!$D$16,IF('Calculateur-Transport'!S560>=500,Références!$D$15,IF('Calculateur-Transport'!S560<=499,Références!$D$14)))))*S560","v":0}]
[null,null,null,null,null,null,null,null,null,null,null,null,null,null,null,null,null,null,null,null,{"$f":"(IF(T561=Références!$B$5,Références!$D$5)+IF(T561=Références!$B$6,Références!$D$6)+IF(T561=Références!$B$7,Références!$D$7)+IF(T561=Références!$B$8,Références!$D$8)+IF(T561=Références!$B$9,Références!$D$9)+IF(T561=Références!$B$10,Références!$D$10)+IF(T561=Références!$B$11,Références!$D$11)+IF(T561=Références!$B$12,Références!$D$12)+IF(T561=Références!$B$13,IF(S561>=1600,Références!$D$16,IF('Calculateur-Transport'!S561>=500,Références!$D$15,IF('Calculateur-Transport'!S561<=499,Références!$D$14)))))*S561","v":0}]
[null,null,null,null,null,null,null,null,null,null,null,null,null,null,null,null,null,null,null,null,{"$f":"(IF(T562=Références!$B$5,Références!$D$5)+IF(T562=Références!$B$6,Références!$D$6)+IF(T562=Références!$B$7,Références!$D$7)+IF(T562=Références!$B$8,Références!$D$8)+IF(T562=Références!$B$9,Références!$D$9)+IF(T562=Références!$B$10,Références!$D$10)+IF(T562=Références!$B$11,Références!$D$11)+IF(T562=Références!$B$12,Références!$D$12)+IF(T562=Références!$B$13,IF(S562>=1600,Références!$D$16,IF('Calculateur-Transport'!S562>=500,Références!$D$15,IF('Calculateur-Transport'!S562<=499,Références!$D$14)))))*S562","v":0}]
[null,null,null,null,null,null,null,null,null,null,null,null,null,null,null,null,null,null,null,null,{"$f":"(IF(T563=Références!$B$5,Références!$D$5)+IF(T563=Références!$B$6,Références!$D$6)+IF(T563=Références!$B$7,Références!$D$7)+IF(T563=Références!$B$8,Références!$D$8)+IF(T563=Références!$B$9,Références!$D$9)+IF(T563=Références!$B$10,Références!$D$10)+IF(T563=Références!$B$11,Références!$D$11)+IF(T563=Références!$B$12,Références!$D$12)+IF(T563=Références!$B$13,IF(S563>=1600,Références!$D$16,IF('Calculateur-Transport'!S563>=500,Références!$D$15,IF('Calculateur-Transport'!S563<=499,Références!$D$14)))))*S563","v":0}]
[null,null,null,null,null,null,null,null,null,null,null,null,null,null,null,null,null,null,null,null,{"$f":"(IF(T564=Références!$B$5,Références!$D$5)+IF(T564=Références!$B$6,Références!$D$6)+IF(T564=Références!$B$7,Références!$D$7)+IF(T564=Références!$B$8,Références!$D$8)+IF(T564=Références!$B$9,Références!$D$9)+IF(T564=Références!$B$10,Références!$D$10)+IF(T564=Références!$B$11,Références!$D$11)+IF(T564=Références!$B$12,Références!$D$12)+IF(T564=Références!$B$13,IF(S564>=1600,Références!$D$16,IF('Calculateur-Transport'!S564>=500,Références!$D$15,IF('Calculateur-Transport'!S564<=499,Références!$D$14)))))*S564","v":0}]
[null,null,null,null,null,null,null,null,null,null,null,null,null,null,null,null,null,null,null,null,{"$f":"(IF(T565=Références!$B$5,Références!$D$5)+IF(T565=Références!$B$6,Références!$D$6)+IF(T565=Références!$B$7,Références!$D$7)+IF(T565=Références!$B$8,Références!$D$8)+IF(T565=Références!$B$9,Références!$D$9)+IF(T565=Références!$B$10,Références!$D$10)+IF(T565=Références!$B$11,Références!$D$11)+IF(T565=Références!$B$12,Références!$D$12)+IF(T565=Références!$B$13,IF(S565>=1600,Références!$D$16,IF('Calculateur-Transport'!S565>=500,Références!$D$15,IF('Calculateur-Transport'!S565<=499,Références!$D$14)))))*S565","v":0}]
[null,null,null,null,null,null,null,null,null,null,null,null,null,null,null,null,null,null,null,null,{"$f":"(IF(T566=Références!$B$5,Références!$D$5)+IF(T566=Références!$B$6,Références!$D$6)+IF(T566=Références!$B$7,Références!$D$7)+IF(T566=Références!$B$8,Références!$D$8)+IF(T566=Références!$B$9,Références!$D$9)+IF(T566=Références!$B$10,Références!$D$10)+IF(T566=Références!$B$11,Références!$D$11)+IF(T566=Références!$B$12,Références!$D$12)+IF(T566=Références!$B$13,IF(S566>=1600,Références!$D$16,IF('Calculateur-Transport'!S566>=500,Références!$D$15,IF('Calculateur-Transport'!S566<=499,Références!$D$14)))))*S566","v":0}]
[null,null,null,null,null,null,null,null,null,null,null,null,null,null,null,null,null,null,null,null,{"$f":"(IF(T567=Références!$B$5,Références!$D$5)+IF(T567=Références!$B$6,Références!$D$6)+IF(T567=Références!$B$7,Références!$D$7)+IF(T567=Références!$B$8,Références!$D$8)+IF(T567=Références!$B$9,Références!$D$9)+IF(T567=Références!$B$10,Références!$D$10)+IF(T567=Références!$B$11,Références!$D$11)+IF(T567=Références!$B$12,Références!$D$12)+IF(T567=Références!$B$13,IF(S567>=1600,Références!$D$16,IF('Calculateur-Transport'!S567>=500,Références!$D$15,IF('Calculateur-Transport'!S567<=499,Références!$D$14)))))*S567","v":0}]
[null,null,null,null,null,null,null,null,null,null,null,null,null,null,null,null,null,null,null,null,{"$f":"(IF(T568=Références!$B$5,Références!$D$5)+IF(T568=Références!$B$6,Références!$D$6)+IF(T568=Références!$B$7,Références!$D$7)+IF(T568=Références!$B$8,Références!$D$8)+IF(T568=Références!$B$9,Références!$D$9)+IF(T568=Références!$B$10,Références!$D$10)+IF(T568=Références!$B$11,Références!$D$11)+IF(T568=Références!$B$12,Références!$D$12)+IF(T568=Références!$B$13,IF(S568>=1600,Références!$D$16,IF('Calculateur-Transport'!S568>=500,Références!$D$15,IF('Calculateur-Transport'!S568<=499,Références!$D$14)))))*S568","v":0}]
[null,null,null,null,null,null,null,null,null,null,null,null,null,null,null,null,null,null,null,null,{"$f":"(IF(T569=Références!$B$5,Références!$D$5)+IF(T569=Références!$B$6,Références!$D$6)+IF(T569=Références!$B$7,Références!$D$7)+IF(T569=Références!$B$8,Références!$D$8)+IF(T569=Références!$B$9,Références!$D$9)+IF(T569=Références!$B$10,Références!$D$10)+IF(T569=Références!$B$11,Références!$D$11)+IF(T569=Références!$B$12,Références!$D$12)+IF(T569=Références!$B$13,IF(S569>=1600,Références!$D$16,IF('Calculateur-Transport'!S569>=500,Références!$D$15,IF('Calculateur-Transport'!S569<=499,Références!$D$14)))))*S569","v":0}]
[null,null,null,null,null,null,null,null,null,null,null,null,null,null,null,null,null,null,null,null,{"$f":"(IF(T570=Références!$B$5,Références!$D$5)+IF(T570=Références!$B$6,Références!$D$6)+IF(T570=Références!$B$7,Références!$D$7)+IF(T570=Références!$B$8,Références!$D$8)+IF(T570=Références!$B$9,Références!$D$9)+IF(T570=Références!$B$10,Références!$D$10)+IF(T570=Références!$B$11,Références!$D$11)+IF(T570=Références!$B$12,Références!$D$12)+IF(T570=Références!$B$13,IF(S570>=1600,Références!$D$16,IF('Calculateur-Transport'!S570>=500,Références!$D$15,IF('Calculateur-Transport'!S570<=499,Références!$D$14)))))*S570","v":0}]
[null,null,null,null,null,null,null,null,null,null,null,null,null,null,null,null,null,null,null,null,{"$f":"(IF(T571=Références!$B$5,Références!$D$5)+IF(T571=Références!$B$6,Références!$D$6)+IF(T571=Références!$B$7,Références!$D$7)+IF(T571=Références!$B$8,Références!$D$8)+IF(T571=Références!$B$9,Références!$D$9)+IF(T571=Références!$B$10,Références!$D$10)+IF(T571=Références!$B$11,Références!$D$11)+IF(T571=Références!$B$12,Références!$D$12)+IF(T571=Références!$B$13,IF(S571>=1600,Références!$D$16,IF('Calculateur-Transport'!S571>=500,Références!$D$15,IF('Calculateur-Transport'!S571<=499,Références!$D$14)))))*S571","v":0}]
[null,null,null,null,null,null,null,null,null,null,null,null,null,null,null,null,null,null,null,null,{"$f":"(IF(T572=Références!$B$5,Références!$D$5)+IF(T572=Références!$B$6,Références!$D$6)+IF(T572=Références!$B$7,Références!$D$7)+IF(T572=Références!$B$8,Références!$D$8)+IF(T572=Références!$B$9,Références!$D$9)+IF(T572=Références!$B$10,Références!$D$10)+IF(T572=Références!$B$11,Références!$D$11)+IF(T572=Références!$B$12,Références!$D$12)+IF(T572=Références!$B$13,IF(S572>=1600,Références!$D$16,IF('Calculateur-Transport'!S572>=500,Références!$D$15,IF('Calculateur-Transport'!S572<=499,Références!$D$14)))))*S572","v":0}]
[null,null,null,null,null,null,null,null,null,null,null,null,null,null,null,null,null,null,null,null,{"$f":"(IF(T573=Références!$B$5,Références!$D$5)+IF(T573=Références!$B$6,Références!$D$6)+IF(T573=Références!$B$7,Références!$D$7)+IF(T573=Références!$B$8,Références!$D$8)+IF(T573=Références!$B$9,Références!$D$9)+IF(T573=Références!$B$10,Références!$D$10)+IF(T573=Références!$B$11,Références!$D$11)+IF(T573=Références!$B$12,Références!$D$12)+IF(T573=Références!$B$13,IF(S573>=1600,Références!$D$16,IF('Calculateur-Transport'!S573>=500,Références!$D$15,IF('Calculateur-Transport'!S573<=499,Références!$D$14)))))*S573","v":0}]
[null,null,null,null,null,null,null,null,null,null,null,null,null,null,null,null,null,null,null,null,{"$f":"(IF(T574=Références!$B$5,Références!$D$5)+IF(T574=Références!$B$6,Références!$D$6)+IF(T574=Références!$B$7,Références!$D$7)+IF(T574=Références!$B$8,Références!$D$8)+IF(T574=Références!$B$9,Références!$D$9)+IF(T574=Références!$B$10,Références!$D$10)+IF(T574=Références!$B$11,Références!$D$11)+IF(T574=Références!$B$12,Références!$D$12)+IF(T574=Références!$B$13,IF(S574>=1600,Références!$D$16,IF('Calculateur-Transport'!S574>=500,Références!$D$15,IF('Calculateur-Transport'!S574<=499,Références!$D$14)))))*S574","v":0}]
[null,null,null,null,null,null,null,null,null,null,null,null,null,null,null,null,null,null,null,null,{"$f":"(IF(T575=Références!$B$5,Références!$D$5)+IF(T575=Références!$B$6,Références!$D$6)+IF(T575=Références!$B$7,Références!$D$7)+IF(T575=Références!$B$8,Références!$D$8)+IF(T575=Références!$B$9,Références!$D$9)+IF(T575=Références!$B$10,Références!$D$10)+IF(T575=Références!$B$11,Références!$D$11)+IF(T575=Références!$B$12,Références!$D$12)+IF(T575=Références!$B$13,IF(S575>=1600,Références!$D$16,IF('Calculateur-Transport'!S575>=500,Références!$D$15,IF('Calculateur-Transport'!S575<=499,Références!$D$14)))))*S575","v":0}]
[null,null,null,null,null,null,null,null,null,null,null,null,null,null,null,null,null,null,null,null,{"$f":"(IF(T576=Références!$B$5,Références!$D$5)+IF(T576=Références!$B$6,Références!$D$6)+IF(T576=Références!$B$7,Références!$D$7)+IF(T576=Références!$B$8,Références!$D$8)+IF(T576=Références!$B$9,Références!$D$9)+IF(T576=Références!$B$10,Références!$D$10)+IF(T576=Références!$B$11,Références!$D$11)+IF(T576=Références!$B$12,Références!$D$12)+IF(T576=Références!$B$13,IF(S576>=1600,Références!$D$16,IF('Calculateur-Transport'!S576>=500,Références!$D$15,IF('Calculateur-Transport'!S576<=499,Références!$D$14)))))*S576","v":0}]
[null,null,null,null,null,null,null,null,null,null,null,null,null,null,null,null,null,null,null,null,{"$f":"(IF(T577=Références!$B$5,Références!$D$5)+IF(T577=Références!$B$6,Références!$D$6)+IF(T577=Références!$B$7,Références!$D$7)+IF(T577=Références!$B$8,Références!$D$8)+IF(T577=Références!$B$9,Références!$D$9)+IF(T577=Références!$B$10,Références!$D$10)+IF(T577=Références!$B$11,Références!$D$11)+IF(T577=Références!$B$12,Références!$D$12)+IF(T577=Références!$B$13,IF(S577>=1600,Références!$D$16,IF('Calculateur-Transport'!S577>=500,Références!$D$15,IF('Calculateur-Transport'!S577<=499,Références!$D$14)))))*S577","v":0}]
[null,null,null,null,null,null,null,null,null,null,null,null,null,null,null,null,null,null,null,null,{"$f":"(IF(T578=Références!$B$5,Références!$D$5)+IF(T578=Références!$B$6,Références!$D$6)+IF(T578=Références!$B$7,Références!$D$7)+IF(T578=Références!$B$8,Références!$D$8)+IF(T578=Références!$B$9,Références!$D$9)+IF(T578=Références!$B$10,Références!$D$10)+IF(T578=Références!$B$11,Références!$D$11)+IF(T578=Références!$B$12,Références!$D$12)+IF(T578=Références!$B$13,IF(S578>=1600,Références!$D$16,IF('Calculateur-Transport'!S578>=500,Références!$D$15,IF('Calculateur-Transport'!S578<=499,Références!$D$14)))))*S578","v":0}]
[null,null,null,null,null,null,null,null,null,null,null,null,null,null,null,null,null,null,null,null,{"$f":"(IF(T579=Références!$B$5,Références!$D$5)+IF(T579=Références!$B$6,Références!$D$6)+IF(T579=Références!$B$7,Références!$D$7)+IF(T579=Références!$B$8,Références!$D$8)+IF(T579=Références!$B$9,Références!$D$9)+IF(T579=Références!$B$10,Références!$D$10)+IF(T579=Références!$B$11,Références!$D$11)+IF(T579=Références!$B$12,Références!$D$12)+IF(T579=Références!$B$13,IF(S579>=1600,Références!$D$16,IF('Calculateur-Transport'!S579>=500,Références!$D$15,IF('Calculateur-Transport'!S579<=499,Références!$D$14)))))*S579","v":0}]
[null,null,null,null,null,null,null,null,null,null,null,null,null,null,null,null,null,null,null,null,{"$f":"(IF(T580=Références!$B$5,Références!$D$5)+IF(T580=Références!$B$6,Références!$D$6)+IF(T580=Références!$B$7,Références!$D$7)+IF(T580=Références!$B$8,Références!$D$8)+IF(T580=Références!$B$9,Références!$D$9)+IF(T580=Références!$B$10,Références!$D$10)+IF(T580=Références!$B$11,Références!$D$11)+IF(T580=Références!$B$12,Références!$D$12)+IF(T580=Références!$B$13,IF(S580>=1600,Références!$D$16,IF('Calculateur-Transport'!S580>=500,Références!$D$15,IF('Calculateur-Transport'!S580<=499,Références!$D$14)))))*S580","v":0}]
[null,null,null,null,null,null,null,null,null,null,null,null,null,null,null,null,null,null,null,null,{"$f":"(IF(T581=Références!$B$5,Références!$D$5)+IF(T581=Références!$B$6,Références!$D$6)+IF(T581=Références!$B$7,Références!$D$7)+IF(T581=Références!$B$8,Références!$D$8)+IF(T581=Références!$B$9,Références!$D$9)+IF(T581=Références!$B$10,Références!$D$10)+IF(T581=Références!$B$11,Références!$D$11)+IF(T581=Références!$B$12,Références!$D$12)+IF(T581=Références!$B$13,IF(S581>=1600,Références!$D$16,IF('Calculateur-Transport'!S581>=500,Références!$D$15,IF('Calculateur-Transport'!S581<=499,Références!$D$14)))))*S581","v":0}]
[null,null,null,null,null,null,null,null,null,null,null,null,null,null,null,null,null,null,null,null,{"$f":"(IF(T582=Références!$B$5,Références!$D$5)+IF(T582=Références!$B$6,Références!$D$6)+IF(T582=Références!$B$7,Références!$D$7)+IF(T582=Références!$B$8,Références!$D$8)+IF(T582=Références!$B$9,Références!$D$9)+IF(T582=Références!$B$10,Références!$D$10)+IF(T582=Références!$B$11,Références!$D$11)+IF(T582=Références!$B$12,Références!$D$12)+IF(T582=Références!$B$13,IF(S582>=1600,Références!$D$16,IF('Calculateur-Transport'!S582>=500,Références!$D$15,IF('Calculateur-Transport'!S582<=499,Références!$D$14)))))*S582","v":0}]
[null,null,null,null,null,null,null,null,null,null,null,null,null,null,null,null,null,null,null,null,{"$f":"(IF(T583=Références!$B$5,Références!$D$5)+IF(T583=Références!$B$6,Références!$D$6)+IF(T583=Références!$B$7,Références!$D$7)+IF(T583=Références!$B$8,Références!$D$8)+IF(T583=Références!$B$9,Références!$D$9)+IF(T583=Références!$B$10,Références!$D$10)+IF(T583=Références!$B$11,Références!$D$11)+IF(T583=Références!$B$12,Références!$D$12)+IF(T583=Références!$B$13,IF(S583>=1600,Références!$D$16,IF('Calculateur-Transport'!S583>=500,Références!$D$15,IF('Calculateur-Transport'!S583<=499,Références!$D$14)))))*S583","v":0}]
[null,null,null,null,null,null,null,null,null,null,null,null,null,null,null,null,null,null,null,null,{"$f":"(IF(T584=Références!$B$5,Références!$D$5)+IF(T584=Références!$B$6,Références!$D$6)+IF(T584=Références!$B$7,Références!$D$7)+IF(T584=Références!$B$8,Références!$D$8)+IF(T584=Références!$B$9,Références!$D$9)+IF(T584=Références!$B$10,Références!$D$10)+IF(T584=Références!$B$11,Références!$D$11)+IF(T584=Références!$B$12,Références!$D$12)+IF(T584=Références!$B$13,IF(S584>=1600,Références!$D$16,IF('Calculateur-Transport'!S584>=500,Références!$D$15,IF('Calculateur-Transport'!S584<=499,Références!$D$14)))))*S584","v":0}]
[null,null,null,null,null,null,null,null,null,null,null,null,null,null,null,null,null,null,null,null,{"$f":"(IF(T585=Références!$B$5,Références!$D$5)+IF(T585=Références!$B$6,Références!$D$6)+IF(T585=Références!$B$7,Références!$D$7)+IF(T585=Références!$B$8,Références!$D$8)+IF(T585=Références!$B$9,Références!$D$9)+IF(T585=Références!$B$10,Références!$D$10)+IF(T585=Références!$B$11,Références!$D$11)+IF(T585=Références!$B$12,Références!$D$12)+IF(T585=Références!$B$13,IF(S585>=1600,Références!$D$16,IF('Calculateur-Transport'!S585>=500,Références!$D$15,IF('Calculateur-Transport'!S585<=499,Références!$D$14)))))*S585","v":0}]
[null,null,null,null,null,null,null,null,null,null,null,null,null,null,null,null,null,null,null,null,{"$f":"(IF(T586=Références!$B$5,Références!$D$5)+IF(T586=Références!$B$6,Références!$D$6)+IF(T586=Références!$B$7,Références!$D$7)+IF(T586=Références!$B$8,Références!$D$8)+IF(T586=Références!$B$9,Références!$D$9)+IF(T586=Références!$B$10,Références!$D$10)+IF(T586=Références!$B$11,Références!$D$11)+IF(T586=Références!$B$12,Références!$D$12)+IF(T586=Références!$B$13,IF(S586>=1600,Références!$D$16,IF('Calculateur-Transport'!S586>=500,Références!$D$15,IF('Calculateur-Transport'!S586<=499,Références!$D$14)))))*S586","v":0}]
[null,null,null,null,null,null,null,null,null,null,null,null,null,null,null,null,null,null,null,null,{"$f":"(IF(T587=Références!$B$5,Références!$D$5)+IF(T587=Références!$B$6,Références!$D$6)+IF(T587=Références!$B$7,Références!$D$7)+IF(T587=Références!$B$8,Références!$D$8)+IF(T587=Références!$B$9,Références!$D$9)+IF(T587=Références!$B$10,Références!$D$10)+IF(T587=Références!$B$11,Références!$D$11)+IF(T587=Références!$B$12,Références!$D$12)+IF(T587=Références!$B$13,IF(S587>=1600,Références!$D$16,IF('Calculateur-Transport'!S587>=500,Références!$D$15,IF('Calculateur-Transport'!S587<=499,Références!$D$14)))))*S587","v":0}]
[null,null,null,null,null,null,null,null,null,null,null,null,null,null,null,null,null,null,null,null,{"$f":"(IF(T588=Références!$B$5,Références!$D$5)+IF(T588=Références!$B$6,Références!$D$6)+IF(T588=Références!$B$7,Références!$D$7)+IF(T588=Références!$B$8,Références!$D$8)+IF(T588=Références!$B$9,Références!$D$9)+IF(T588=Références!$B$10,Références!$D$10)+IF(T588=Références!$B$11,Références!$D$11)+IF(T588=Références!$B$12,Références!$D$12)+IF(T588=Références!$B$13,IF(S588>=1600,Références!$D$16,IF('Calculateur-Transport'!S588>=500,Références!$D$15,IF('Calculateur-Transport'!S588<=499,Références!$D$14)))))*S588","v":0}]
[null,null,null,null,null,null,null,null,null,null,null,null,null,null,null,null,null,null,null,null,{"$f":"(IF(T589=Références!$B$5,Références!$D$5)+IF(T589=Références!$B$6,Références!$D$6)+IF(T589=Références!$B$7,Références!$D$7)+IF(T589=Références!$B$8,Références!$D$8)+IF(T589=Références!$B$9,Références!$D$9)+IF(T589=Références!$B$10,Références!$D$10)+IF(T589=Références!$B$11,Références!$D$11)+IF(T589=Références!$B$12,Références!$D$12)+IF(T589=Références!$B$13,IF(S589>=1600,Références!$D$16,IF('Calculateur-Transport'!S589>=500,Références!$D$15,IF('Calculateur-Transport'!S589<=499,Références!$D$14)))))*S589","v":0}]
[null,null,null,null,null,null,null,null,null,null,null,null,null,null,null,null,null,null,null,null,{"$f":"(IF(T590=Références!$B$5,Références!$D$5)+IF(T590=Références!$B$6,Références!$D$6)+IF(T590=Références!$B$7,Références!$D$7)+IF(T590=Références!$B$8,Références!$D$8)+IF(T590=Références!$B$9,Références!$D$9)+IF(T590=Références!$B$10,Références!$D$10)+IF(T590=Références!$B$11,Références!$D$11)+IF(T590=Références!$B$12,Références!$D$12)+IF(T590=Références!$B$13,IF(S590>=1600,Références!$D$16,IF('Calculateur-Transport'!S590>=500,Références!$D$15,IF('Calculateur-Transport'!S590<=499,Références!$D$14)))))*S590","v":0}]
[null,null,null,null,null,null,null,null,null,null,null,null,null,null,null,null,null,null,null,null,{"$f":"(IF(T591=Références!$B$5,Références!$D$5)+IF(T591=Références!$B$6,Références!$D$6)+IF(T591=Références!$B$7,Références!$D$7)+IF(T591=Références!$B$8,Références!$D$8)+IF(T591=Références!$B$9,Références!$D$9)+IF(T591=Références!$B$10,Références!$D$10)+IF(T591=Références!$B$11,Références!$D$11)+IF(T591=Références!$B$12,Références!$D$12)+IF(T591=Références!$B$13,IF(S591>=1600,Références!$D$16,IF('Calculateur-Transport'!S591>=500,Références!$D$15,IF('Calculateur-Transport'!S591<=499,Références!$D$14)))))*S591","v":0}]
[null,null,null,null,null,null,null,null,null,null,null,null,null,null,null,null,null,null,null,null,{"$f":"(IF(T592=Références!$B$5,Références!$D$5)+IF(T592=Références!$B$6,Références!$D$6)+IF(T592=Références!$B$7,Références!$D$7)+IF(T592=Références!$B$8,Références!$D$8)+IF(T592=Références!$B$9,Références!$D$9)+IF(T592=Références!$B$10,Références!$D$10)+IF(T592=Références!$B$11,Références!$D$11)+IF(T592=Références!$B$12,Références!$D$12)+IF(T592=Références!$B$13,IF(S592>=1600,Références!$D$16,IF('Calculateur-Transport'!S592>=500,Références!$D$15,IF('Calculateur-Transport'!S592<=499,Références!$D$14)))))*S592","v":0}]
[null,null,null,null,null,null,null,null,null,null,null,null,null,null,null,null,null,null,null,null,{"$f":"(IF(T593=Références!$B$5,Références!$D$5)+IF(T593=Références!$B$6,Références!$D$6)+IF(T593=Références!$B$7,Références!$D$7)+IF(T593=Références!$B$8,Références!$D$8)+IF(T593=Références!$B$9,Références!$D$9)+IF(T593=Références!$B$10,Références!$D$10)+IF(T593=Références!$B$11,Références!$D$11)+IF(T593=Références!$B$12,Références!$D$12)+IF(T593=Références!$B$13,IF(S593>=1600,Références!$D$16,IF('Calculateur-Transport'!S593>=500,Références!$D$15,IF('Calculateur-Transport'!S593<=499,Références!$D$14)))))*S593","v":0}]
[null,null,null,null,null,null,null,null,null,null,null,null,null,null,null,null,null,null,null,null,{"$f":"(IF(T594=Références!$B$5,Références!$D$5)+IF(T594=Références!$B$6,Références!$D$6)+IF(T594=Références!$B$7,Références!$D$7)+IF(T594=Références!$B$8,Références!$D$8)+IF(T594=Références!$B$9,Références!$D$9)+IF(T594=Références!$B$10,Références!$D$10)+IF(T594=Références!$B$11,Références!$D$11)+IF(T594=Références!$B$12,Références!$D$12)+IF(T594=Références!$B$13,IF(S594>=1600,Références!$D$16,IF('Calculateur-Transport'!S594>=500,Références!$D$15,IF('Calculateur-Transport'!S594<=499,Références!$D$14)))))*S594","v":0}]
[null,null,null,null,null,null,null,null,null,null,null,null,null,null,null,null,null,null,null,null,{"$f":"(IF(T595=Références!$B$5,Références!$D$5)+IF(T595=Références!$B$6,Références!$D$6)+IF(T595=Références!$B$7,Références!$D$7)+IF(T595=Références!$B$8,Références!$D$8)+IF(T595=Références!$B$9,Références!$D$9)+IF(T595=Références!$B$10,Références!$D$10)+IF(T595=Références!$B$11,Références!$D$11)+IF(T595=Références!$B$12,Références!$D$12)+IF(T595=Références!$B$13,IF(S595>=1600,Références!$D$16,IF('Calculateur-Transport'!S595>=500,Références!$D$15,IF('Calculateur-Transport'!S595<=499,Références!$D$14)))))*S595","v":0}]
[null,null,null,null,null,null,null,null,null,null,null,null,null,null,null,null,null,null,null,null,{"$f":"(IF(T596=Références!$B$5,Références!$D$5)+IF(T596=Références!$B$6,Références!$D$6)+IF(T596=Références!$B$7,Références!$D$7)+IF(T596=Références!$B$8,Références!$D$8)+IF(T596=Références!$B$9,Références!$D$9)+IF(T596=Références!$B$10,Références!$D$10)+IF(T596=Références!$B$11,Références!$D$11)+IF(T596=Références!$B$12,Références!$D$12)+IF(T596=Références!$B$13,IF(S596>=1600,Références!$D$16,IF('Calculateur-Transport'!S596>=500,Références!$D$15,IF('Calculateur-Transport'!S596<=499,Références!$D$14)))))*S596","v":0}]
[null,null,null,null,null,null,null,null,null,null,null,null,null,null,null,null,null,null,null,null,{"$f":"(IF(T597=Références!$B$5,Références!$D$5)+IF(T597=Références!$B$6,Références!$D$6)+IF(T597=Références!$B$7,Références!$D$7)+IF(T597=Références!$B$8,Références!$D$8)+IF(T597=Références!$B$9,Références!$D$9)+IF(T597=Références!$B$10,Références!$D$10)+IF(T597=Références!$B$11,Références!$D$11)+IF(T597=Références!$B$12,Références!$D$12)+IF(T597=Références!$B$13,IF(S597>=1600,Références!$D$16,IF('Calculateur-Transport'!S597>=500,Références!$D$15,IF('Calculateur-Transport'!S597<=499,Références!$D$14)))))*S597","v":0}]
[null,null,null,null,null,null,null,null,null,null,null,null,null,null,null,null,null,null,null,null,{"$f":"(IF(T598=Références!$B$5,Références!$D$5)+IF(T598=Références!$B$6,Références!$D$6)+IF(T598=Références!$B$7,Références!$D$7)+IF(T598=Références!$B$8,Références!$D$8)+IF(T598=Références!$B$9,Références!$D$9)+IF(T598=Références!$B$10,Références!$D$10)+IF(T598=Références!$B$11,Références!$D$11)+IF(T598=Références!$B$12,Références!$D$12)+IF(T598=Références!$B$13,IF(S598>=1600,Références!$D$16,IF('Calculateur-Transport'!S598>=500,Références!$D$15,IF('Calculateur-Transport'!S598<=499,Références!$D$14)))))*S598","v":0}]
[null,null,null,null,null,null,null,null,null,null,null,null,null,null,null,null,null,null,null,null,{"$f":"(IF(T599=Références!$B$5,Références!$D$5)+IF(T599=Références!$B$6,Références!$D$6)+IF(T599=Références!$B$7,Références!$D$7)+IF(T599=Références!$B$8,Références!$D$8)+IF(T599=Références!$B$9,Références!$D$9)+IF(T599=Références!$B$10,Références!$D$10)+IF(T599=Références!$B$11,Références!$D$11)+IF(T599=Références!$B$12,Références!$D$12)+IF(T599=Références!$B$13,IF(S599>=1600,Références!$D$16,IF('Calculateur-Transport'!S599>=500,Références!$D$15,IF('Calculateur-Transport'!S599<=499,Références!$D$14)))))*S599","v":0}]
[null,null,null,null,null,null,null,null,null,null,null,null,null,null,null,null,null,null,null,null,{"$f":"(IF(T600=Références!$B$5,Références!$D$5)+IF(T600=Références!$B$6,Références!$D$6)+IF(T600=Références!$B$7,Références!$D$7)+IF(T600=Références!$B$8,Références!$D$8)+IF(T600=Références!$B$9,Références!$D$9)+IF(T600=Références!$B$10,Références!$D$10)+IF(T600=Références!$B$11,Références!$D$11)+IF(T600=Références!$B$12,Références!$D$12)+IF(T600=Références!$B$13,IF(S600>=1600,Références!$D$16,IF('Calculateur-Transport'!S600>=500,Références!$D$15,IF('Calculateur-Transport'!S600<=499,Références!$D$14)))))*S600","v":0}]
[null,null,null,null,null,null,null,null,null,null,null,null,null,null,null,null,null,null,null,null,{"$f":"(IF(T601=Références!$B$5,Références!$D$5)+IF(T601=Références!$B$6,Références!$D$6)+IF(T601=Références!$B$7,Références!$D$7)+IF(T601=Références!$B$8,Références!$D$8)+IF(T601=Références!$B$9,Références!$D$9)+IF(T601=Références!$B$10,Références!$D$10)+IF(T601=Références!$B$11,Références!$D$11)+IF(T601=Références!$B$12,Références!$D$12)+IF(T601=Références!$B$13,IF(S601>=1600,Références!$D$16,IF('Calculateur-Transport'!S601>=500,Références!$D$15,IF('Calculateur-Transport'!S601<=499,Références!$D$14)))))*S601","v":0}]
[null,null,null,null,null,null,null,null,null,null,null,null,null,null,null,null,null,null,null,null,{"$f":"(IF(T602=Références!$B$5,Références!$D$5)+IF(T602=Références!$B$6,Références!$D$6)+IF(T602=Références!$B$7,Références!$D$7)+IF(T602=Références!$B$8,Références!$D$8)+IF(T602=Références!$B$9,Références!$D$9)+IF(T602=Références!$B$10,Références!$D$10)+IF(T602=Références!$B$11,Références!$D$11)+IF(T602=Références!$B$12,Références!$D$12)+IF(T602=Références!$B$13,IF(S602>=1600,Références!$D$16,IF('Calculateur-Transport'!S602>=500,Références!$D$15,IF('Calculateur-Transport'!S602<=499,Références!$D$14)))))*S602","v":0}]
[null,null,null,null,null,null,null,null,null,null,null,null,null,null,null,null,null,null,null,null,{"$f":"(IF(T603=Références!$B$5,Références!$D$5)+IF(T603=Références!$B$6,Références!$D$6)+IF(T603=Références!$B$7,Références!$D$7)+IF(T603=Références!$B$8,Références!$D$8)+IF(T603=Références!$B$9,Références!$D$9)+IF(T603=Références!$B$10,Références!$D$10)+IF(T603=Références!$B$11,Références!$D$11)+IF(T603=Références!$B$12,Références!$D$12)+IF(T603=Références!$B$13,IF(S603>=1600,Références!$D$16,IF('Calculateur-Transport'!S603>=500,Références!$D$15,IF('Calculateur-Transport'!S603<=499,Références!$D$14)))))*S603","v":0}]
[null,null,null,null,null,null,null,null,null,null,null,null,null,null,null,null,null,null,null,null,{"$f":"(IF(T604=Références!$B$5,Références!$D$5)+IF(T604=Références!$B$6,Références!$D$6)+IF(T604=Références!$B$7,Références!$D$7)+IF(T604=Références!$B$8,Références!$D$8)+IF(T604=Références!$B$9,Références!$D$9)+IF(T604=Références!$B$10,Références!$D$10)+IF(T604=Références!$B$11,Références!$D$11)+IF(T604=Références!$B$12,Références!$D$12)+IF(T604=Références!$B$13,IF(S604>=1600,Références!$D$16,IF('Calculateur-Transport'!S604>=500,Références!$D$15,IF('Calculateur-Transport'!S604<=499,Références!$D$14)))))*S604","v":0}]
[null,null,null,null,null,null,null,null,null,null,null,null,null,null,null,null,null,null,null,null,{"$f":"(IF(T605=Références!$B$5,Références!$D$5)+IF(T605=Références!$B$6,Références!$D$6)+IF(T605=Références!$B$7,Références!$D$7)+IF(T605=Références!$B$8,Références!$D$8)+IF(T605=Références!$B$9,Références!$D$9)+IF(T605=Références!$B$10,Références!$D$10)+IF(T605=Références!$B$11,Références!$D$11)+IF(T605=Références!$B$12,Références!$D$12)+IF(T605=Références!$B$13,IF(S605>=1600,Références!$D$16,IF('Calculateur-Transport'!S605>=500,Références!$D$15,IF('Calculateur-Transport'!S605<=499,Références!$D$14)))))*S605","v":0}]
[null,null,null,null,null,null,null,null,null,null,null,null,null,null,null,null,null,null,null,null,{"$f":"(IF(T606=Références!$B$5,Références!$D$5)+IF(T606=Références!$B$6,Références!$D$6)+IF(T606=Références!$B$7,Références!$D$7)+IF(T606=Références!$B$8,Références!$D$8)+IF(T606=Références!$B$9,Références!$D$9)+IF(T606=Références!$B$10,Références!$D$10)+IF(T606=Références!$B$11,Références!$D$11)+IF(T606=Références!$B$12,Références!$D$12)+IF(T606=Références!$B$13,IF(S606>=1600,Références!$D$16,IF('Calculateur-Transport'!S606>=500,Références!$D$15,IF('Calculateur-Transport'!S606<=499,Références!$D$14)))))*S606","v":0}]
[null,null,null,null,null,null,null,null,null,null,null,null,null,null,null,null,null,null,null,null,{"$f":"(IF(T607=Références!$B$5,Références!$D$5)+IF(T607=Références!$B$6,Références!$D$6)+IF(T607=Références!$B$7,Références!$D$7)+IF(T607=Références!$B$8,Références!$D$8)+IF(T607=Références!$B$9,Références!$D$9)+IF(T607=Références!$B$10,Références!$D$10)+IF(T607=Références!$B$11,Références!$D$11)+IF(T607=Références!$B$12,Références!$D$12)+IF(T607=Références!$B$13,IF(S607>=1600,Références!$D$16,IF('Calculateur-Transport'!S607>=500,Références!$D$15,IF('Calculateur-Transport'!S607<=499,Références!$D$14)))))*S607","v":0}]
[null,null,null,null,null,null,null,null,null,null,null,null,null,null,null,null,null,null,null,null,{"$f":"(IF(T608=Références!$B$5,Références!$D$5)+IF(T608=Références!$B$6,Références!$D$6)+IF(T608=Références!$B$7,Références!$D$7)+IF(T608=Références!$B$8,Références!$D$8)+IF(T608=Références!$B$9,Références!$D$9)+IF(T608=Références!$B$10,Références!$D$10)+IF(T608=Références!$B$11,Références!$D$11)+IF(T608=Références!$B$12,Références!$D$12)+IF(T608=Références!$B$13,IF(S608>=1600,Références!$D$16,IF('Calculateur-Transport'!S608>=500,Références!$D$15,IF('Calculateur-Transport'!S608<=499,Références!$D$14)))))*S608","v":0}]
[null,null,null,null,null,null,null,null,null,null,null,null,null,null,null,null,null,null,null,null,{"$f":"(IF(T609=Références!$B$5,Références!$D$5)+IF(T609=Références!$B$6,Références!$D$6)+IF(T609=Références!$B$7,Références!$D$7)+IF(T609=Références!$B$8,Références!$D$8)+IF(T609=Références!$B$9,Références!$D$9)+IF(T609=Références!$B$10,Références!$D$10)+IF(T609=Références!$B$11,Références!$D$11)+IF(T609=Références!$B$12,Références!$D$12)+IF(T609=Références!$B$13,IF(S609>=1600,Références!$D$16,IF('Calculateur-Transport'!S609>=500,Références!$D$15,IF('Calculateur-Transport'!S609<=499,Références!$D$14)))))*S609","v":0}]
[null,null,null,null,null,null,null,null,null,null,null,null,null,null,null,null,null,null,null,null,{"$f":"(IF(T610=Références!$B$5,Références!$D$5)+IF(T610=Références!$B$6,Références!$D$6)+IF(T610=Références!$B$7,Références!$D$7)+IF(T610=Références!$B$8,Références!$D$8)+IF(T610=Références!$B$9,Références!$D$9)+IF(T610=Références!$B$10,Références!$D$10)+IF(T610=Références!$B$11,Références!$D$11)+IF(T610=Références!$B$12,Références!$D$12)+IF(T610=Références!$B$13,IF(S610>=1600,Références!$D$16,IF('Calculateur-Transport'!S610>=500,Références!$D$15,IF('Calculateur-Transport'!S610<=499,Références!$D$14)))))*S610","v":0}]
[null,null,null,null,null,null,null,null,null,null,null,null,null,null,null,null,null,null,null,null,{"$f":"(IF(T611=Références!$B$5,Références!$D$5)+IF(T611=Références!$B$6,Références!$D$6)+IF(T611=Références!$B$7,Références!$D$7)+IF(T611=Références!$B$8,Références!$D$8)+IF(T611=Références!$B$9,Références!$D$9)+IF(T611=Références!$B$10,Références!$D$10)+IF(T611=Références!$B$11,Références!$D$11)+IF(T611=Références!$B$12,Références!$D$12)+IF(T611=Références!$B$13,IF(S611>=1600,Références!$D$16,IF('Calculateur-Transport'!S611>=500,Références!$D$15,IF('Calculateur-Transport'!S611<=499,Références!$D$14)))))*S611","v":0}]
[null,null,null,null,null,null,null,null,null,null,null,null,null,null,null,null,null,null,null,null,{"$f":"(IF(T612=Références!$B$5,Références!$D$5)+IF(T612=Références!$B$6,Références!$D$6)+IF(T612=Références!$B$7,Références!$D$7)+IF(T612=Références!$B$8,Références!$D$8)+IF(T612=Références!$B$9,Références!$D$9)+IF(T612=Références!$B$10,Références!$D$10)+IF(T612=Références!$B$11,Références!$D$11)+IF(T612=Références!$B$12,Références!$D$12)+IF(T612=Références!$B$13,IF(S612>=1600,Références!$D$16,IF('Calculateur-Transport'!S612>=500,Références!$D$15,IF('Calculateur-Transport'!S612<=499,Références!$D$14)))))*S612","v":0}]
[null,null,null,null,null,null,null,null,null,null,null,null,null,null,null,null,null,null,null,null,{"$f":"(IF(T613=Références!$B$5,Références!$D$5)+IF(T613=Références!$B$6,Références!$D$6)+IF(T613=Références!$B$7,Références!$D$7)+IF(T613=Références!$B$8,Références!$D$8)+IF(T613=Références!$B$9,Références!$D$9)+IF(T613=Références!$B$10,Références!$D$10)+IF(T613=Références!$B$11,Références!$D$11)+IF(T613=Références!$B$12,Références!$D$12)+IF(T613=Références!$B$13,IF(S613>=1600,Références!$D$16,IF('Calculateur-Transport'!S613>=500,Références!$D$15,IF('Calculateur-Transport'!S613<=499,Références!$D$14)))))*S613","v":0}]
[null,null,null,null,null,null,null,null,null,null,null,null,null,null,null,null,null,null,null,null,{"$f":"(IF(T614=Références!$B$5,Références!$D$5)+IF(T614=Références!$B$6,Références!$D$6)+IF(T614=Références!$B$7,Références!$D$7)+IF(T614=Références!$B$8,Références!$D$8)+IF(T614=Références!$B$9,Références!$D$9)+IF(T614=Références!$B$10,Références!$D$10)+IF(T614=Références!$B$11,Références!$D$11)+IF(T614=Références!$B$12,Références!$D$12)+IF(T614=Références!$B$13,IF(S614>=1600,Références!$D$16,IF('Calculateur-Transport'!S614>=500,Références!$D$15,IF('Calculateur-Transport'!S614<=499,Références!$D$14)))))*S614","v":0}]
[null,null,null,null,null,null,null,null,null,null,null,null,null,null,null,null,null,null,null,null,{"$f":"(IF(T615=Références!$B$5,Références!$D$5)+IF(T615=Références!$B$6,Références!$D$6)+IF(T615=Références!$B$7,Références!$D$7)+IF(T615=Références!$B$8,Références!$D$8)+IF(T615=Références!$B$9,Références!$D$9)+IF(T615=Références!$B$10,Références!$D$10)+IF(T615=Références!$B$11,Références!$D$11)+IF(T615=Références!$B$12,Références!$D$12)+IF(T615=Références!$B$13,IF(S615>=1600,Références!$D$16,IF('Calculateur-Transport'!S615>=500,Références!$D$15,IF('Calculateur-Transport'!S615<=499,Références!$D$14)))))*S615","v":0}]
[null,null,null,null,null,null,null,null,null,null,null,null,null,null,null,null,null,null,null,null,{"$f":"(IF(T616=Références!$B$5,Références!$D$5)+IF(T616=Références!$B$6,Références!$D$6)+IF(T616=Références!$B$7,Références!$D$7)+IF(T616=Références!$B$8,Références!$D$8)+IF(T616=Références!$B$9,Références!$D$9)+IF(T616=Références!$B$10,Références!$D$10)+IF(T616=Références!$B$11,Références!$D$11)+IF(T616=Références!$B$12,Références!$D$12)+IF(T616=Références!$B$13,IF(S616>=1600,Références!$D$16,IF('Calculateur-Transport'!S616>=500,Références!$D$15,IF('Calculateur-Transport'!S616<=499,Références!$D$14)))))*S616","v":0}]
[null,null,null,null,null,null,null,null,null,null,null,null,null,null,null,null,null,null,null,null,{"$f":"(IF(T617=Références!$B$5,Références!$D$5)+IF(T617=Références!$B$6,Références!$D$6)+IF(T617=Références!$B$7,Références!$D$7)+IF(T617=Références!$B$8,Références!$D$8)+IF(T617=Références!$B$9,Références!$D$9)+IF(T617=Références!$B$10,Références!$D$10)+IF(T617=Références!$B$11,Références!$D$11)+IF(T617=Références!$B$12,Références!$D$12)+IF(T617=Références!$B$13,IF(S617>=1600,Références!$D$16,IF('Calculateur-Transport'!S617>=500,Références!$D$15,IF('Calculateur-Transport'!S617<=499,Références!$D$14)))))*S617","v":0}]
[null,null,null,null,null,null,null,null,null,null,null,null,null,null,null,null,null,null,null,null,{"$f":"(IF(T618=Références!$B$5,Références!$D$5)+IF(T618=Références!$B$6,Références!$D$6)+IF(T618=Références!$B$7,Références!$D$7)+IF(T618=Références!$B$8,Références!$D$8)+IF(T618=Références!$B$9,Références!$D$9)+IF(T618=Références!$B$10,Références!$D$10)+IF(T618=Références!$B$11,Références!$D$11)+IF(T618=Références!$B$12,Références!$D$12)+IF(T618=Références!$B$13,IF(S618>=1600,Références!$D$16,IF('Calculateur-Transport'!S618>=500,Références!$D$15,IF('Calculateur-Transport'!S618<=499,Références!$D$14)))))*S618","v":0}]
[null,null,null,null,null,null,null,null,null,null,null,null,null,null,null,null,null,null,null,null,{"$f":"(IF(T619=Références!$B$5,Références!$D$5)+IF(T619=Références!$B$6,Références!$D$6)+IF(T619=Références!$B$7,Références!$D$7)+IF(T619=Références!$B$8,Références!$D$8)+IF(T619=Références!$B$9,Références!$D$9)+IF(T619=Références!$B$10,Références!$D$10)+IF(T619=Références!$B$11,Références!$D$11)+IF(T619=Références!$B$12,Références!$D$12)+IF(T619=Références!$B$13,IF(S619>=1600,Références!$D$16,IF('Calculateur-Transport'!S619>=500,Références!$D$15,IF('Calculateur-Transport'!S619<=499,Références!$D$14)))))*S619","v":0}]
[null,null,null,null,null,null,null,null,null,null,null,null,null,null,null,null,null,null,null,null,{"$f":"(IF(T620=Références!$B$5,Références!$D$5)+IF(T620=Références!$B$6,Références!$D$6)+IF(T620=Références!$B$7,Références!$D$7)+IF(T620=Références!$B$8,Références!$D$8)+IF(T620=Références!$B$9,Références!$D$9)+IF(T620=Références!$B$10,Références!$D$10)+IF(T620=Références!$B$11,Références!$D$11)+IF(T620=Références!$B$12,Références!$D$12)+IF(T620=Références!$B$13,IF(S620>=1600,Références!$D$16,IF('Calculateur-Transport'!S620>=500,Références!$D$15,IF('Calculateur-Transport'!S620<=499,Références!$D$14)))))*S620","v":0}]
[null,null,null,null,null,null,null,null,null,null,null,null,null,null,null,null,null,null,null,null,{"$f":"(IF(T621=Références!$B$5,Références!$D$5)+IF(T621=Références!$B$6,Références!$D$6)+IF(T621=Références!$B$7,Références!$D$7)+IF(T621=Références!$B$8,Références!$D$8)+IF(T621=Références!$B$9,Références!$D$9)+IF(T621=Références!$B$10,Références!$D$10)+IF(T621=Références!$B$11,Références!$D$11)+IF(T621=Références!$B$12,Références!$D$12)+IF(T621=Références!$B$13,IF(S621>=1600,Références!$D$16,IF('Calculateur-Transport'!S621>=500,Références!$D$15,IF('Calculateur-Transport'!S621<=499,Références!$D$14)))))*S621","v":0}]
[null,null,null,null,null,null,null,null,null,null,null,null,null,null,null,null,null,null,null,null,{"$f":"(IF(T622=Références!$B$5,Références!$D$5)+IF(T622=Références!$B$6,Références!$D$6)+IF(T622=Références!$B$7,Références!$D$7)+IF(T622=Références!$B$8,Références!$D$8)+IF(T622=Références!$B$9,Références!$D$9)+IF(T622=Références!$B$10,Références!$D$10)+IF(T622=Références!$B$11,Références!$D$11)+IF(T622=Références!$B$12,Références!$D$12)+IF(T622=Références!$B$13,IF(S622>=1600,Références!$D$16,IF('Calculateur-Transport'!S622>=500,Références!$D$15,IF('Calculateur-Transport'!S622<=499,Références!$D$14)))))*S622","v":0}]
[null,null,null,null,null,null,null,null,null,null,null,null,null,null,null,null,null,null,null,null,{"$f":"(IF(T623=Références!$B$5,Références!$D$5)+IF(T623=Références!$B$6,Références!$D$6)+IF(T623=Références!$B$7,Références!$D$7)+IF(T623=Références!$B$8,Références!$D$8)+IF(T623=Références!$B$9,Références!$D$9)+IF(T623=Références!$B$10,Références!$D$10)+IF(T623=Références!$B$11,Références!$D$11)+IF(T623=Références!$B$12,Références!$D$12)+IF(T623=Références!$B$13,IF(S623>=1600,Références!$D$16,IF('Calculateur-Transport'!S623>=500,Références!$D$15,IF('Calculateur-Transport'!S623<=499,Références!$D$14)))))*S623","v":0}]
[null,null,null,null,null,null,null,null,null,null,null,null,null,null,null,null,null,null,null,null,{"$f":"(IF(T624=Références!$B$5,Références!$D$5)+IF(T624=Références!$B$6,Références!$D$6)+IF(T624=Références!$B$7,Références!$D$7)+IF(T624=Références!$B$8,Références!$D$8)+IF(T624=Références!$B$9,Références!$D$9)+IF(T624=Références!$B$10,Références!$D$10)+IF(T624=Références!$B$11,Références!$D$11)+IF(T624=Références!$B$12,Références!$D$12)+IF(T624=Références!$B$13,IF(S624>=1600,Références!$D$16,IF('Calculateur-Transport'!S624>=500,Références!$D$15,IF('Calculateur-Transport'!S624<=499,Références!$D$14)))))*S624","v":0}]
[null,null,null,null,null,null,null,null,null,null,null,null,null,null,null,null,null,null,null,null,{"$f":"(IF(T625=Références!$B$5,Références!$D$5)+IF(T625=Références!$B$6,Références!$D$6)+IF(T625=Références!$B$7,Références!$D$7)+IF(T625=Références!$B$8,Références!$D$8)+IF(T625=Références!$B$9,Références!$D$9)+IF(T625=Références!$B$10,Références!$D$10)+IF(T625=Références!$B$11,Références!$D$11)+IF(T625=Références!$B$12,Références!$D$12)+IF(T625=Références!$B$13,IF(S625>=1600,Références!$D$16,IF('Calculateur-Transport'!S625>=500,Références!$D$15,IF('Calculateur-Transport'!S625<=499,Références!$D$14)))))*S625","v":0}]
[null,null,null,null,null,null,null,null,null,null,null,null,null,null,null,null,null,null,null,null,{"$f":"(IF(T626=Références!$B$5,Références!$D$5)+IF(T626=Références!$B$6,Références!$D$6)+IF(T626=Références!$B$7,Références!$D$7)+IF(T626=Références!$B$8,Références!$D$8)+IF(T626=Références!$B$9,Références!$D$9)+IF(T626=Références!$B$10,Références!$D$10)+IF(T626=Références!$B$11,Références!$D$11)+IF(T626=Références!$B$12,Références!$D$12)+IF(T626=Références!$B$13,IF(S626>=1600,Références!$D$16,IF('Calculateur-Transport'!S626>=500,Références!$D$15,IF('Calculateur-Transport'!S626<=499,Références!$D$14)))))*S626","v":0}]
[null,null,null,null,null,null,null,null,null,null,null,null,null,null,null,null,null,null,null,null,{"$f":"(IF(T627=Références!$B$5,Références!$D$5)+IF(T627=Références!$B$6,Références!$D$6)+IF(T627=Références!$B$7,Références!$D$7)+IF(T627=Références!$B$8,Références!$D$8)+IF(T627=Références!$B$9,Références!$D$9)+IF(T627=Références!$B$10,Références!$D$10)+IF(T627=Références!$B$11,Références!$D$11)+IF(T627=Références!$B$12,Références!$D$12)+IF(T627=Références!$B$13,IF(S627>=1600,Références!$D$16,IF('Calculateur-Transport'!S627>=500,Références!$D$15,IF('Calculateur-Transport'!S627<=499,Références!$D$14)))))*S627","v":0}]
[null,null,null,null,null,null,null,null,null,null,null,null,null,null,null,null,null,null,null,null,{"$f":"(IF(T628=Références!$B$5,Références!$D$5)+IF(T628=Références!$B$6,Références!$D$6)+IF(T628=Références!$B$7,Références!$D$7)+IF(T628=Références!$B$8,Références!$D$8)+IF(T628=Références!$B$9,Références!$D$9)+IF(T628=Références!$B$10,Références!$D$10)+IF(T628=Références!$B$11,Références!$D$11)+IF(T628=Références!$B$12,Références!$D$12)+IF(T628=Références!$B$13,IF(S628>=1600,Références!$D$16,IF('Calculateur-Transport'!S628>=500,Références!$D$15,IF('Calculateur-Transport'!S628<=499,Références!$D$14)))))*S628","v":0}]
[null,null,null,null,null,null,null,null,null,null,null,null,null,null,null,null,null,null,null,null,{"$f":"(IF(T629=Références!$B$5,Références!$D$5)+IF(T629=Références!$B$6,Références!$D$6)+IF(T629=Références!$B$7,Références!$D$7)+IF(T629=Références!$B$8,Références!$D$8)+IF(T629=Références!$B$9,Références!$D$9)+IF(T629=Références!$B$10,Références!$D$10)+IF(T629=Références!$B$11,Références!$D$11)+IF(T629=Références!$B$12,Références!$D$12)+IF(T629=Références!$B$13,IF(S629>=1600,Références!$D$16,IF('Calculateur-Transport'!S629>=500,Références!$D$15,IF('Calculateur-Transport'!S629<=499,Références!$D$14)))))*S629","v":0}]
[null,null,null,null,null,null,null,null,null,null,null,null,null,null,null,null,null,null,null,null,{"$f":"(IF(T630=Références!$B$5,Références!$D$5)+IF(T630=Références!$B$6,Références!$D$6)+IF(T630=Références!$B$7,Références!$D$7)+IF(T630=Références!$B$8,Références!$D$8)+IF(T630=Références!$B$9,Références!$D$9)+IF(T630=Références!$B$10,Références!$D$10)+IF(T630=Références!$B$11,Références!$D$11)+IF(T630=Références!$B$12,Références!$D$12)+IF(T630=Références!$B$13,IF(S630>=1600,Références!$D$16,IF('Calculateur-Transport'!S630>=500,Références!$D$15,IF('Calculateur-Transport'!S630<=499,Références!$D$14)))))*S630","v":0}]
[null,null,null,null,null,null,null,null,null,null,null,null,null,null,null,null,null,null,null,null,{"$f":"(IF(T631=Références!$B$5,Références!$D$5)+IF(T631=Références!$B$6,Références!$D$6)+IF(T631=Références!$B$7,Références!$D$7)+IF(T631=Références!$B$8,Références!$D$8)+IF(T631=Références!$B$9,Références!$D$9)+IF(T631=Références!$B$10,Références!$D$10)+IF(T631=Références!$B$11,Références!$D$11)+IF(T631=Références!$B$12,Références!$D$12)+IF(T631=Références!$B$13,IF(S631>=1600,Références!$D$16,IF('Calculateur-Transport'!S631>=500,Références!$D$15,IF('Calculateur-Transport'!S631<=499,Références!$D$14)))))*S631","v":0}]
[null,null,null,null,null,null,null,null,null,null,null,null,null,null,null,null,null,null,null,null,{"$f":"(IF(T632=Références!$B$5,Références!$D$5)+IF(T632=Références!$B$6,Références!$D$6)+IF(T632=Références!$B$7,Références!$D$7)+IF(T632=Références!$B$8,Références!$D$8)+IF(T632=Références!$B$9,Références!$D$9)+IF(T632=Références!$B$10,Références!$D$10)+IF(T632=Références!$B$11,Références!$D$11)+IF(T632=Références!$B$12,Références!$D$12)+IF(T632=Références!$B$13,IF(S632>=1600,Références!$D$16,IF('Calculateur-Transport'!S632>=500,Références!$D$15,IF('Calculateur-Transport'!S632<=499,Références!$D$14)))))*S632","v":0}]
[null,null,null,null,null,null,null,null,null,null,null,null,null,null,null,null,null,null,null,null,{"$f":"(IF(T633=Références!$B$5,Références!$D$5)+IF(T633=Références!$B$6,Références!$D$6)+IF(T633=Références!$B$7,Références!$D$7)+IF(T633=Références!$B$8,Références!$D$8)+IF(T633=Références!$B$9,Références!$D$9)+IF(T633=Références!$B$10,Références!$D$10)+IF(T633=Références!$B$11,Références!$D$11)+IF(T633=Références!$B$12,Références!$D$12)+IF(T633=Références!$B$13,IF(S633>=1600,Références!$D$16,IF('Calculateur-Transport'!S633>=500,Références!$D$15,IF('Calculateur-Transport'!S633<=499,Références!$D$14)))))*S633","v":0}]
[null,null,null,null,null,null,null,null,null,null,null,null,null,null,null,null,null,null,null,null,{"$f":"(IF(T634=Références!$B$5,Références!$D$5)+IF(T634=Références!$B$6,Références!$D$6)+IF(T634=Références!$B$7,Références!$D$7)+IF(T634=Références!$B$8,Références!$D$8)+IF(T634=Références!$B$9,Références!$D$9)+IF(T634=Références!$B$10,Références!$D$10)+IF(T634=Références!$B$11,Références!$D$11)+IF(T634=Références!$B$12,Références!$D$12)+IF(T634=Références!$B$13,IF(S634>=1600,Références!$D$16,IF('Calculateur-Transport'!S634>=500,Références!$D$15,IF('Calculateur-Transport'!S634<=499,Références!$D$14)))))*S634","v":0}]
[null,null,null,null,null,null,null,null,null,null,null,null,null,null,null,null,null,null,null,null,{"$f":"(IF(T635=Références!$B$5,Références!$D$5)+IF(T635=Références!$B$6,Références!$D$6)+IF(T635=Références!$B$7,Références!$D$7)+IF(T635=Références!$B$8,Références!$D$8)+IF(T635=Références!$B$9,Références!$D$9)+IF(T635=Références!$B$10,Références!$D$10)+IF(T635=Références!$B$11,Références!$D$11)+IF(T635=Références!$B$12,Références!$D$12)+IF(T635=Références!$B$13,IF(S635>=1600,Références!$D$16,IF('Calculateur-Transport'!S635>=500,Références!$D$15,IF('Calculateur-Transport'!S635<=499,Références!$D$14)))))*S635","v":0}]
[null,null,null,null,null,null,null,null,null,null,null,null,null,null,null,null,null,null,null,null,{"$f":"(IF(T636=Références!$B$5,Références!$D$5)+IF(T636=Références!$B$6,Références!$D$6)+IF(T636=Références!$B$7,Références!$D$7)+IF(T636=Références!$B$8,Références!$D$8)+IF(T636=Références!$B$9,Références!$D$9)+IF(T636=Références!$B$10,Références!$D$10)+IF(T636=Références!$B$11,Références!$D$11)+IF(T636=Références!$B$12,Références!$D$12)+IF(T636=Références!$B$13,IF(S636>=1600,Références!$D$16,IF('Calculateur-Transport'!S636>=500,Références!$D$15,IF('Calculateur-Transport'!S636<=499,Références!$D$14)))))*S636","v":0}]

{"sheet":"Calculateur-Mati. résiduelles","index":3,"n_rows":15,"n_cols":8,"rows_kept":15,"cut":false,"hidden":false,"merged":[[11,3,13,3],[19,7,21,12],[11,7,13,12]]}
[]
[]
[]
[]
[]
[]
[]
[null,"Type de matières","Quantité\n (kg)","Émission de CO2 équivalent \n(kg)"]
[null,"Déchets utlimes",null,{"$f":"C9*Références!D19","v":0}]
[null,"Matières recyclées",null,{"$f":"Références!D20*'Calculateur-Mati. résiduelles'!C10","v":0}]
[null,"Matières organiques",null,{"$f":"C11*Références!D21","v":0},null,null,null,"Instructions :"]
[null,null,null,{"$f":"SUM(D9:D11)","v":0},null,null,null,"1. Pour chaque type de matière, inscrivez le poids générés par l'événement (en kilogramme) sous la colonne «Quantité». Les calculs sont font automatiquement."]
[]
[]
[null,null,null,null,null,null,null,"2. Le total des émissions (en CO2 équivalent) se calcule automatiquement ."]

{"sheet":"Références","index":4,"n_rows":24,"n_cols":4,"rows_kept":24,"cut":false,"hidden":false,"merged":[[16,1,17,1],[16,2,17,2],[16,3,17,3],[22,1,22,3],[1,1,2,1],[1,2,2,2],[1,3,2,3]]}
[]
[null,"Mode de transport","Unités","Facteur\n (CO2 éq) "]
[]
[null,"Piétons / Vélo","-",0]
[null,"Voiture solo","kg / km",0.21]
[null,"Motocyclette","kg / km",0.11]
[null,"Covoiturage","kg / passager / km",0.08]
[null,"Camion léger solo (VUS, camionnette, minifourgonnete)","kg / km",0.27]
[null,"Transport en commun (autobus)","kg / passager / km",0.06]
[null,"Autocar interurbain","kg / passager / km",0.06]
[null,"Camion lourd","kg / km",0.83]
[null,"Train","kg / passager / km",0.11]
[null,"Avion"]
[null,"Avion - courte distance (plus petit ou égal à 499 km)","kg / passager / km",0.17147000000000001]
[null,"Avion - moyenne distance (de 500 km à 1599 km)","kg / passager / km",9.7000000000000003E-2]
[null,"Avion - longue distance (1600 km et plus)","kg / passager / km",0.11319]
[null,"Type de matières","Unités","Facteur\n (CO2 éq) "]
[]
[null,"Matières destinées à l'enfouissement","kg / kg",1.48]
[null,"Matières destinées au recyclage ","kg / kg",0.01]
[null,"Matières destinées au compostage","kg / kg",0.03]
[]
[null,"Prenez note que les données ci-dessus sont tirées du calculateur de GES du Fonds d’action québécois pour le développement durable. Vous pouvez consulter cet outil au:"]
[null,"www.faqdd.qc.ca/public/Calculateur_GES_FAQDD_version2013.xls."]